Workbook

Sheet 説明
A1: 鎌ケ谷市移動支援事業 請求書・実績記録作成支援システムの使い方
A3: シート名 | B3: 説明
A4: 請求事業者 | B4: まず、事業所の情報を入力してください。入力内容は請求書にも反映されますので、債権者登録の内容と一致させてください。
A5: 利用者情報 | B5: 利用者の受給者証の情報を入力してください。色がついた部分を入力してください。赤線部分は必須内容です。有効期限が近かったり、切れていたりするとコメントが表示されます。先頭の「№」から該当する提供実績記録票にリンクしています。
A7: （提供実績記録票）1～20 | B7: 利用者ごとに実績記録を入力してください。色がついた部分を入力してください。入力日の月が異なっていたり、決定日数を超過している場合コメントが表示されます。
A9: 請求書 | B9: 利用者の実績記録をもとに請求書に自動で情報が入力されます。
A11: 請求書と実績記録票をプリントし、実績記録票に「サービス提供者印」・「利用者確認印」の押印と、請求書に「事業所」の押印をお願いします。
A12: 請求書の提出は利用の翌月１０日までになります。土日・祝日などによって提出期間が短くなる場合がありますのでご注意ください。

Sheet 請求事業者
A1: 請求者の情報を入力してください。請求書の請求事業者の欄に反映されます。請求者は債権者登録の内容と一致する必要があります。変更する場合は債権者登録の変更の手続きが必要になりますので、障がい福祉課までご連絡ください。
A3: 事業所番号
A4: 〒
A5: 住所
A6: 電話番号
A7: 名称
A8: 職氏名
A9: 所在地 | B9: 鎌ケ谷市 | C9: =VLOOKUP(B9,'データ '!B:C,2,FALSE) -> 5

Sheet 利用者情報
B1: 下記に利用者の受給者証の情報を入力してください。色が付いている部分の入力をお願いします。赤線部分は必須事項になります。 | H1: 【本日の日付】 | I1: =TODAY() -> 2020-04-01
A3: № | B3: 登録番号 | C3: 利用者名 | D3: 時間数 | E3: 身体介護の有無 | F3: 利用者負担の有無 | G3: 利用者負担上限額 | H3: 有効期限（始期） | I3: 有効期限（終期） | J3: コメント | N3: 氏名 | O3: 算定額 | P3: 利用者負担額 | Q3: 請求額 | R3: 最新の利用月
A4: 1 | G4: =IF(F4="有",37200,0) -> 0 | J4: =IF(I4=0,"",IF($I$1>I4,"受給者証の有効期限が切れいています！",IF($I$1+31>I4,"有効期限注意！更新してください！",""))) ->  | K4: =E4 -> 0 | L4: =IF(M4=1,SUM($M$4:M4),0) -> 0 | M4: =IF(Q4<>0,1,0) -> 0 | N4: =C4 -> 0 | O4: =IFERROR(INDIRECT(A4&"!$K$44"),0) -> 0 | P4: =IFERROR(INDIRECT(A4&"!$L$44"),0) -> 0 | Q4: =IFERROR(INDIRECT(A4&"!Ｍ44"),0) -> 0 | R4: =IF(INDIRECT(A4&"!Ｂ4")=31,"実績入力なし",INDIRECT(A4&"!Ｂ4")) -> 実績入力なし
A5: 2 | G5: =IF(F5="有",37200,0) -> 0 | J5: =IF(I5=0,"",IF($I$1>I5,"受給者証の有効期限が切れいています！",IF($I$1+31>I5,"有効期限注意！更新してください！",""))) ->  | K5: 0 | L5: =IF(M5=1,SUM($M$4:M5),0) -> 0 | M5: =IF(Q5<>0,1,0) -> 0 | N5: =C5 -> 0 | O5: =IFERROR(INDIRECT(A5&"!$K$44"),0) -> 0 | P5: =IFERROR(INDIRECT(A5&"!$L$44"),0) -> 0 | Q5: =IFERROR(INDIRECT(A5&"!Ｍ44"),0) -> 0 | R5: =IF(INDIRECT(A5&"!Ｂ4")=31,"実績入力なし",INDIRECT(A5&"!Ｂ4")) -> 実績入力なし
A6: 3 | G6: 0 | K6: 0 | L6: =IF(M6=1,SUM($M$4:M6),0) -> 0 | M6: =IF(Q6<>0,1,0) -> 0 | N6: 0 | O6: 0 | P6: 0 | Q6: =IFERROR(INDIRECT(A6&"!Ｍ44"),0) -> 0 | R6: =IF(INDIRECT(A6&"!Ｂ4")=31,"実績入力なし",INDIRECT(A6&"!Ｂ4")) -> 実績入力なし
A7: 4 | G7: 0 | K7: 0 | L7: =IF(M7=1,SUM($M$4:M7),0) -> 0 | M7: 0 | N7: 0 | O7: 0 | P7: 0 | Q7: 0 | R7: 実績入力なし
A8: 5 | G8: 0 | K8: 0 | L8: =IF(M8=1,SUM($M$4:M8),0) -> 0 | M8: 0 | N8: 0 | O8: 0 | P8: 0 | Q8: 0 | R8: 実績入力なし
A9: 6 | G9: 0 | K9: 0 | L9: =IF(M9=1,SUM($M$4:M9),0) -> 0 | M9: 0 | N9: 0 | O9: 0 | P9: 0 | Q9: 0 | R9: 実績入力なし
A10: 7 | G10: 0 | K10: 0 | L10: =IF(M10=1,SUM($M$4:M10),0) -> 0 | M10: 0 | N10: 0 | O10: 0 | P10: 0 | Q10: 0 | R10: 実績入力なし
A11: 8 | G11: 0 | K11: 0 | L11: =IF(M11=1,SUM($M$4:M11),0) -> 0 | M11: 0 | N11: 0 | O11: 0 | P11: 0 | Q11: 0 | R11: 実績入力なし
A12: 9 | G12: 0 | K12: 0 | L12: =IF(M12=1,SUM($M$4:M12),0) -> 0 | M12: 0 | N12: 0 | O12: 0 | P12: 0 | Q12: 0 | R12: 実績入力なし
A13: 10 | G13: 0 | K13: 0 | L13: =IF(M13=1,SUM($M$4:M13),0) -> 0 | M13: 0 | N13: 0 | O13: 0 | P13: 0 | Q13: 0 | R13: 実績入力なし
A14: 11 | G14: 0 | J14: =IF(I14=0,"",IF($I$1>I14,"受給者証の有効期限が切れいています！",IF($I$1+31>I14,"有効期限注意！更新してください！",""))) ->  | K14: 0 | L14: =IF(M14=1,SUM($M$4:M14),0) -> 0 | M14: 0 | N14: 0 | O14: 0 | P14: 0 | Q14: 0 | R14: 実績入力なし
A15: 12 | G15: 0 | K15: 0 | L15: =IF(M15=1,SUM($M$4:M15),0) -> 0 | M15: 0 | N15: 0 | O15: 0 | P15: 0 | Q15: 0 | R15: 実績入力なし
A16: 13 | G16: 0 | K16: 0 | L16: =IF(M16=1,SUM($M$4:M16),0) -> 0 | M16: 0 | N16: 0 | O16: 0 | P16: 0 | Q16: 0 | R16: 実績入力なし
A17: 14 | G17: 0 | K17: 0 | L17: =IF(M17=1,SUM($M$4:M17),0) -> 0 | M17: 0 | N17: 0 | O17: 0 | P17: 0 | Q17: 0 | R17: 実績入力なし
A18: 15 | G18: 0 | K18: 0 | L18: =IF(M18=1,SUM($M$4:M18),0) -> 0 | M18: 0 | N18: 0 | O18: 0 | P18: 0 | Q18: 0 | R18: 実績入力なし
A19: 16 | G19: 0 | K19: 0 | L19: =IF(M19=1,SUM($M$4:M19),0) -> 0 | M19: 0 | N19: 0 | O19: 0 | P19: 0 | Q19: 0 | R19: 実績入力なし
A20: 17 | G20: 0 | K20: 0 | L20: =IF(M20=1,SUM($M$4:M20),0) -> 0 | M20: 0 | N20: 0 | O20: 0 | P20: 0 | Q20: 0 | R20: 実績入力なし
A21: 18 | G21: 0 | K21: 0 | L21: =IF(M21=1,SUM($M$4:M21),0) -> 0 | M21: 0 | N21: 0 | O21: 0 | P21: 0 | Q21: 0 | R21: 実績入力なし
A22: 19 | G22: 0 | K22: 0 | L22: =IF(M22=1,SUM($M$4:M22),0) -> 0 | M22: 0 | N22: 0 | O22: 0 | P22: 0 | Q22: 0 | R22: 実績入力なし
A23: 20 | G23: 0 | K23: 0 | L23: =IF(M23=1,SUM($M$4:M23),0) -> 0 | M23: 0 | N23: 0 | O23: 0 | P23: 0 | Q23: 0 | R23: 実績入力なし

Sheet 請求書
B2: 鎌ケ谷市地域生活支援事業 | U2: 鎌ケ谷市地域生活支援事業
B3: （移動支援、日中一時）請求書 | U3: （移動支援、日中一時）請求書
B4: 鎌ケ谷市長 様 | U4: 鎌ケ谷市長 様
B6: 請求金額合計 | F6: =K21+AD21 -> 0 | U6: 請求金額合計
B8: 内容 | C8: =Q11 ->  | E8: 年 | F8: =Q11 ->  | H8: 月分 | U8: 内容 | V8: =Q11 ->  | X8: 年 | Y8: =F8 ->  | AA8: 月分
C9: 利用者名 | F9: 算定額 | I9: 利用者負担額 | K9: 請求額 | V9: 利用者名 | Y9: 算定額 | AB9: 利用者負担額 | AD9: 請求額
C11: =IF($Q11=$F$8,IFERROR(VLOOKUP($O11,利用者情報!$L:$Q,3,FALSE),""),"") ->  | F11: =IF($Q11=$F$8,IFERROR(VLOOKUP($O11,利用者情報!$L:$Q,4,FALSE),0),0) -> 0 | I11: =IF($Q11=$F$8,IFERROR(VLOOKUP($O11,利用者情報!$L:$Q,5,FALSE),0),0) -> 0 | K11: =IF($Q11=$F$8,IFERROR(VLOOKUP(O11,利用者情報!$L:$Q,6,FALSE),0),0) -> 0 | O11: 1 | P11: =IF($F$8=Q11,1,0) -> 1 | Q11: =IFERROR(VLOOKUP(O11,利用者情報!$L:$R,7,FALSE),"") ->  | V11: =IF($Q21=$F$8,IFERROR(VLOOKUP($O21,利用者情報!$L:$Q,3,FALSE),""),"") ->  | Y11: =IF($Q21=$F$8,IFERROR(VLOOKUP($O21,利用者情報!$L:$Q,4,FALSE),0),0) -> 0 | AB11: =IF($Q21=$F$8,IFERROR(VLOOKUP($O21,利用者情報!$L:$Q,5,FALSE),0),0) -> 0 | AD11: =IF($Q21=$F$8,IFERROR(VLOOKUP($O21,利用者情報!$L:$Q,6,FALSE),0),0) -> 0
C12: =IF($Q12=$F$8,IFERROR(VLOOKUP($O12,利用者情報!$L:$Q,3,FALSE),""),"") ->  | F12: =IF($Q12=$F$8,IFERROR(VLOOKUP($O12,利用者情報!$L:$Q,4,FALSE),0),0) -> 0 | I12: =IF($Q12=$F$8,IFERROR(VLOOKUP($O12,利用者情報!$L:$Q,5,FALSE),0),0) -> 0 | K12: =IF($Q12=$F$8,IFERROR(VLOOKUP(O12,利用者情報!$L:$Q,6,FALSE),0),0) -> 0 | O12: 2 | P12: =IF($F$8=Q12,1,0) -> 1 | Q12: =IFERROR(VLOOKUP(O12,利用者情報!$L:$R,7,FALSE),"") ->  | R12: =IFERROR(VLOOKUP(O12,$Q$11:$Q$29,2,FALSE),"") ->  | V12: =IF($Q22=$F$8,IFERROR(VLOOKUP($O22,利用者情報!$L:$Q,3,FALSE),""),"") ->  | Y12: =IF($Q22=$F$8,IFERROR(VLOOKUP($O22,利用者情報!$L:$Q,4,FALSE),0),0) -> 0 | AB12: =IF($Q22=$F$8,IFERROR(VLOOKUP($O22,利用者情報!$L:$Q,5,FALSE),0),0) -> 0 | AD12: =IF($Q22=$F$8,IFERROR(VLOOKUP($O22,利用者情報!$L:$Q,6,FALSE),0),0) -> 0
C13: =IF($Q13=$F$8,IFERROR(VLOOKUP($O13,利用者情報!$L:$Q,3,FALSE),""),"") ->  | F13: =IF($Q13=$F$8,IFERROR(VLOOKUP($O13,利用者情報!$L:$Q,4,FALSE),0),0) -> 0 | I13: =IF($Q13=$F$8,IFERROR(VLOOKUP($O13,利用者情報!$L:$Q,5,FALSE),0),0) -> 0 | K13: =IF($Q13=$F$8,IFERROR(VLOOKUP(O13,利用者情報!$L:$Q,6,FALSE),0),0) -> 0 | O13: 3 | P13: =IF($F$8=Q13,1,0) -> 1 | Q13: =IFERROR(VLOOKUP(O13,利用者情報!$L:$R,7,FALSE),"") ->  | V13: =IF($Q23=$F$8,IFERROR(VLOOKUP($O23,利用者情報!$L:$Q,3,FALSE),""),"") ->  | Y13: =IF($Q23=$F$8,IFERROR(VLOOKUP($O23,利用者情報!$L:$Q,4,FALSE),0),0) -> 0 | AB13: =IF($Q23=$F$8,IFERROR(VLOOKUP($O23,利用者情報!$L:$Q,5,FALSE),0),0) -> 0 | AD13: =IF($Q23=$F$8,IFERROR(VLOOKUP($O23,利用者情報!$L:$Q,6,FALSE),0),0) -> 0
C14: =IF($Q14=$F$8,IFERROR(VLOOKUP($O14,利用者情報!$L:$Q,3,FALSE),""),"") ->  | F14: =IF($Q14=$F$8,IFERROR(VLOOKUP($O14,利用者情報!$L:$Q,4,FALSE),0),0) -> 0 | I14: =IF($Q14=$F$8,IFERROR(VLOOKUP($O14,利用者情報!$L:$Q,5,FALSE),0),0) -> 0 | K14: =IF($Q14=$F$8,IFERROR(VLOOKUP(O14,利用者情報!$L:$Q,6,FALSE),0),0) -> 0 | O14: 4 | P14: 1 | Q14: =IFERROR(VLOOKUP(O14,利用者情報!$L:$R,7,FALSE),"") ->  | V14: =IF($Q24=$F$8,IFERROR(VLOOKUP($O24,利用者情報!$L:$Q,3,FALSE),""),"") ->  | Y14: =IF($Q24=$F$8,IFERROR(VLOOKUP($O24,利用者情報!$L:$Q,4,FALSE),0),0) -> 0 | AB14: =IF($Q24=$F$8,IFERROR(VLOOKUP($O24,利用者情報!$L:$Q,5,FALSE),0),0) -> 0 | AD14: =IF($Q24=$F$8,IFERROR(VLOOKUP($O24,利用者情報!$L:$Q,6,FALSE),0),0) -> 0
C15: =IF($Q15=$F$8,IFERROR(VLOOKUP($O15,利用者情報!$L:$Q,3,FALSE),""),"") ->  | F15: =IF($Q15=$F$8,IFERROR(VLOOKUP($O15,利用者情報!$L:$Q,4,FALSE),0),0) -> 0 | I15: =IF($Q15=$F$8,IFERROR(VLOOKUP($O15,利用者情報!$L:$Q,5,FALSE),0),0) -> 0 | K15: =IF($Q15=$F$8,IFERROR(VLOOKUP(O15,利用者情報!$L:$Q,6,FALSE),0),0) -> 0 | O15: 5 | P15: 1 | Q15: =IFERROR(VLOOKUP(O15,利用者情報!$L:$R,7,FALSE),"") ->  | V15: =IF($Q25=$F$8,IFERROR(VLOOKUP($O25,利用者情報!$L:$Q,3,FALSE),""),"") ->  | Y15: =IF($Q25=$F$8,IFERROR(VLOOKUP($O25,利用者情報!$L:$Q,4,FALSE),0),0) -> 0 | AB15: =IF($Q25=$F$8,IFERROR(VLOOKUP($O25,利用者情報!$L:$Q,5,FALSE),0),0) -> 0 | AD15: =IF($Q25=$F$8,IFERROR(VLOOKUP($O25,利用者情報!$L:$Q,6,FALSE),0),0) -> 0
C16: =IF($Q16=$F$8,IFERROR(VLOOKUP($O16,利用者情報!$L:$Q,3,FALSE),""),"") ->  | F16: =IF($Q16=$F$8,IFERROR(VLOOKUP($O16,利用者情報!$L:$Q,4,FALSE),0),0) -> 0 | I16: =IF($Q16=$F$8,IFERROR(VLOOKUP($O16,利用者情報!$L:$Q,5,FALSE),0),0) -> 0 | K16: =IF($Q16=$F$8,IFERROR(VLOOKUP(O16,利用者情報!$L:$Q,6,FALSE),0),0) -> 0 | O16: 6 | P16: 1 | Q16: =IFERROR(VLOOKUP(O16,利用者情報!$L:$R,7,FALSE),"") ->  | V16: =IF($Q26=$F$8,IFERROR(VLOOKUP($O26,利用者情報!$L:$Q,3,FALSE),""),"") ->  | Y16: =IF($Q26=$F$8,IFERROR(VLOOKUP($O26,利用者情報!$L:$Q,4,FALSE),0),0) -> 0 | AB16: =IF($Q26=$F$8,IFERROR(VLOOKUP($O26,利用者情報!$L:$Q,5,FALSE),0),0) -> 0 | AD16: =IF($Q26=$F$8,IFERROR(VLOOKUP($O26,利用者情報!$L:$Q,6,FALSE),0),0) -> 0
C17: =IF($Q17=$F$8,IFERROR(VLOOKUP($O17,利用者情報!$L:$Q,3,FALSE),""),"") ->  | F17: =IF($Q17=$F$8,IFERROR(VLOOKUP($O17,利用者情報!$L:$Q,4,FALSE),0),0) -> 0 | I17: =IF($Q17=$F$8,IFERROR(VLOOKUP($O17,利用者情報!$L:$Q,5,FALSE),0),0) -> 0 | K17: =IF($Q17=$F$8,IFERROR(VLOOKUP(O17,利用者情報!$L:$Q,6,FALSE),0),0) -> 0 | O17: 7 | P17: 1 | Q17: =IFERROR(VLOOKUP(O17,利用者情報!$L:$R,7,FALSE),"") ->  | V17: =IF($Q27=$F$8,IFERROR(VLOOKUP($O27,利用者情報!$L:$Q,3,FALSE),""),"") ->  | Y17: =IF($Q27=$F$8,IFERROR(VLOOKUP($O27,利用者情報!$L:$Q,4,FALSE),0),0) -> 0 | AB17: =IF($Q27=$F$8,IFERROR(VLOOKUP($O27,利用者情報!$L:$Q,5,FALSE),0),0) -> 0 | AD17: =IF($Q27=$F$8,IFERROR(VLOOKUP($O27,利用者情報!$L:$Q,6,FALSE),0),0) -> 0
C18: =IF($Q18=$F$8,IFERROR(VLOOKUP($O18,利用者情報!$L:$Q,3,FALSE),""),"") ->  | F18: =IF($Q18=$F$8,IFERROR(VLOOKUP($O18,利用者情報!$L:$Q,4,FALSE),0),0) -> 0 | I18: =IF($Q18=$F$8,IFERROR(VLOOKUP($O18,利用者情報!$L:$Q,5,FALSE),0),0) -> 0 | K18: =IF($Q18=$F$8,IFERROR(VLOOKUP(O18,利用者情報!$L:$Q,6,FALSE),0),0) -> 0 | O18: 8 | P18: 1 | Q18: =IFERROR(VLOOKUP(O18,利用者情報!$L:$R,7,FALSE),"") ->  | V18: =IF($Q28=$F$8,IFERROR(VLOOKUP($O28,利用者情報!$L:$Q,3,FALSE),""),"") ->  | Y18: =IF($Q28=$F$8,IFERROR(VLOOKUP($O28,利用者情報!$L:$Q,4,FALSE),0),0) -> 0 | AB18: =IF($Q28=$F$8,IFERROR(VLOOKUP($O28,利用者情報!$L:$Q,5,FALSE),0),0) -> 0 | AD18: =IF($Q28=$F$8,IFERROR(VLOOKUP($O28,利用者情報!$L:$Q,6,FALSE),0),0) -> 0
C19: =IF($Q19=$F$8,IFERROR(VLOOKUP($O19,利用者情報!$L:$Q,3,FALSE),""),"") ->  | F19: =IF($Q19=$F$8,IFERROR(VLOOKUP($O19,利用者情報!$L:$Q,4,FALSE),0),0) -> 0 | I19: =IF($Q19=$F$8,IFERROR(VLOOKUP($O19,利用者情報!$L:$Q,5,FALSE),0),0) -> 0 | K19: =IF($Q19=$F$8,IFERROR(VLOOKUP(O19,利用者情報!$L:$Q,6,FALSE),0),0) -> 0 | O19: 9 | P19: 1 | Q19: =IFERROR(VLOOKUP(O19,利用者情報!$L:$R,7,FALSE),"") ->  | V19: =IF($Q29=$F$8,IFERROR(VLOOKUP($O29,利用者情報!$L:$Q,3,FALSE),""),"") ->  | Y19: =IF($Q29=$F$8,IFERROR(VLOOKUP($O29,利用者情報!$L:$Q,4,FALSE),0),0) -> 0 | AB19: =IF($Q29=$F$8,IFERROR(VLOOKUP($O29,利用者情報!$L:$Q,5,FALSE),0),0) -> 0 | AD19: =IF($Q29=$F$8,IFERROR(VLOOKUP($O29,利用者情報!$L:$Q,6,FALSE),0),0) -> 0
C20: =IF($Q20=$F$8,IFERROR(VLOOKUP($O20,利用者情報!$L:$Q,3,FALSE),""),"") ->  | F20: =IF($Q20=$F$8,IFERROR(VLOOKUP($O20,利用者情報!$L:$Q,4,FALSE),0),0) -> 0 | I20: =IF($Q20=$F$8,IFERROR(VLOOKUP($O20,利用者情報!$L:$Q,5,FALSE),0),0) -> 0 | K20: =IF($Q20=$F$8,IFERROR(VLOOKUP(O20,利用者情報!$L:$Q,6,FALSE),0),0) -> 0 | O20: 10 | P20: 1 | Q20: =IFERROR(VLOOKUP(O20,利用者情報!$L:$R,7,FALSE),"") ->  | V20: =IF($Q30=$F$8,IFERROR(VLOOKUP($O30,利用者情報!$L:$Q,3,FALSE),""),"") ->  | Y20: =IF($Q30=$F$8,IFERROR(VLOOKUP($O30,利用者情報!$L:$Q,4,FALSE),0),0) -> 0 | AB20: =IF($Q30=$F$8,IFERROR(VLOOKUP($O30,利用者情報!$L:$Q,5,FALSE),0),0) -> 0 | AD20: =IF($Q30=$F$8,IFERROR(VLOOKUP($O30,利用者情報!$L:$Q,6,FALSE),0),0) -> 0
C21: 合計 | F21: =SUM(F11:H17) -> 0 | I21: =SUM(I11:J17) -> 0 | K21: =SUM(K11:L17) -> 0 | O21: 11 | P21: 1 | Q21: =IFERROR(VLOOKUP(O21,利用者情報!$L:$R,7,FALSE),"") ->  | V21: 合計 | Y21: =SUM(Y11:AA20) -> 0 | AB21: =SUM(AB11:AC20) -> 0 | AD21: =SUM(AD11:AE20) -> 0
O22: 12 | P22: 1 | Q22: =IFERROR(VLOOKUP(O22,利用者情報!$L:$R,7,FALSE),"") -> 
B23: 上記のとおり請求します。 | O23: 13 | P23: 1 | Q23: =IFERROR(VLOOKUP(O23,利用者情報!$L:$R,7,FALSE),"") ->  | U23: 上記のとおり請求します。
B24: 年 月 日 | O24: 14 | P24: 1 | Q24: =IFERROR(VLOOKUP(O24,利用者情報!$L:$R,7,FALSE),"") ->  | U24: 年 月 日
O25: 15 | P25: 1 | Q25: =IFERROR(VLOOKUP(O25,利用者情報!$L:$R,7,FALSE),"") -> 
E26: 事業所番号 （登録番号） | G26: =請求事業者!B3 -> 0 | O26: 16 | P26: 1 | Q26: =IFERROR(VLOOKUP(O26,利用者情報!$L:$R,7,FALSE),"") ->  | X26: 事業所番号 （登録番号） | Z26: =G26 -> 0
E27: 請求事業者 | G27: 住 所 | I27: =請求事業者!A4&請求事業者!B4 -> 〒 | O27: 17 | P27: 1 | Q27: =IFERROR(VLOOKUP(O27,利用者情報!$L:$R,7,FALSE),"") ->  | X27: 請求事業者 | Z27: 住 所 | AB27: =I27 -> 〒
I28: =請求事業者!B5 -> 0 | O28: 18 | P28: 1 | Q28: =IFERROR(VLOOKUP(O28,利用者情報!$L:$R,7,FALSE),"") ->  | AB28: =I28 -> 0
G29: 電話番号 | I29: =請求事業者!B6 -> 0 | O29: 19 | P29: 1 | Q29: =IFERROR(VLOOKUP(O29,利用者情報!$L:$R,7,FALSE),"") ->  | Z29: 電話番号 | AB29: =I29 -> 0
G30: 名称 | I30: =請求事業者!B7 -> 0 | O30: 20 | P30: 1 | Q30: =IFERROR(VLOOKUP(O30,利用者情報!$L:$R,7,FALSE),"") ->  | Z30: 名称 | AB30: =I30 -> 0
G31: 職氏名 | I31: =請求事業者!B8 -> 0 | Z31: 職氏名 | AB31: =I31 -> 0

Sheet 単価表
A1: 鎌ケ谷市移動支援事業単価表
X2: 単位：円
A3: 【身体介護 あり】 | C3: 基本単位 | D3: その他 | G3: １ 級地 | J3: ２ 級地 | M3: ３ 級地 | P3: ４ 級地 | S3: ５ 級地 | V3: ６ 級地
D4: =$D$86 -> 1 | G4: =$D$74 -> 1.108 | J4: =$D$76 -> 1.09 | M4: =$D$78 -> 1.072 | P4: =$D$80 -> 1.06 | S4: =$D$82 -> 1.036 | V4: =$D$84 -> 1.018
D5: １～６級地以外 | G5: 特別区 | J5: 成田市、印西市 | M5: 船橋市、浦安市 袖ケ浦市 | P5: 千葉市、市川市 松戸市、四街道市 富津市、習志野市 | S5: 柏市、茂原市 佐倉市、市原市 白井市、我孫子市 鎌ケ谷市、長柄町 長南町、木更津市 君津市 | V5: 野田市、東金市 流山市、八街市 酒々井町、栄町 大網白里市、山武市 富里市
A6: 利用時間 | D6: 基準 | E6: ９割 | F6: １割 | G6: 基準 | H6: ９割 | I6: １割 | J6: 基準 | K6: ９割 | L6: １割 | M6: 基準 | N6: ９割 | O6: １割 | P6: 基準 | Q6: ９割 | R6: １割 | S6: 基準 | T6: ９割 | U6: １割 | V6: 基準 | W6: ９割 | X6: １割
B7: 30分未満 | C7: 254 | D7: =ROUNDDOWN($C7*10*D$4,0) -> 2540 | E7: =D7-F7 -> 2286 | F7: =ROUNDDOWN(D7*0.1,0) -> 254 | G7: =ROUNDDOWN($C7*10*G$4,0) -> 2814 | H7: =G7-I7 -> 2533 | I7: =ROUNDDOWN(G7*0.1,0) -> 281 | J7: =ROUNDDOWN($C7*10*J$4,0) -> 2768 | K7: =J7-L7 -> 2492 | L7: =ROUNDDOWN(J7*0.1,0) -> 276 | M7: =ROUNDDOWN($C7*10*M$4,0) -> 2722 | N7: =M7-O7 -> 2450 | O7: =ROUNDDOWN(M7*0.1,0) -> 272 | P7: =ROUNDDOWN($C7*10*P$4,0) -> 2692 | Q7: =P7-R7 -> 2423 | R7: =ROUNDDOWN(P7*0.1,0) -> 269 | S7: =ROUNDDOWN($C7*10*S$4,0) -> 2631 | T7: =S7-U7 -> 2368 | U7: =ROUNDDOWN(S7*0.1,0) -> 263 | V7: =ROUNDDOWN($C7*10*V$4,0) -> 2585 | W7: =V7-X7 -> 2327 | X7: =ROUNDDOWN(V7*0.1,0) -> 258
A8: 30分以上 | B8: 1時間未満 | C8: 402 | D8: =ROUNDDOWN($C8*10*D$4,0) -> 4020 | E8: =D8-F8 -> 3618 | F8: =ROUNDDOWN(D8*0.1,0) -> 402 | G8: =ROUNDDOWN($C8*10*G$4,0) -> 4454 | H8: =G8-I8 -> 4009 | I8: =ROUNDDOWN(G8*0.1,0) -> 445 | J8: =ROUNDDOWN($C8*10*J$4,0) -> 4381 | K8: =J8-L8 -> 3943 | L8: =ROUNDDOWN(J8*0.1,0) -> 438 | M8: =ROUNDDOWN($C8*10*M$4,0) -> 4309 | N8: =M8-O8 -> 3879 | O8: =ROUNDDOWN(M8*0.1,0) -> 430 | P8: =ROUNDDOWN($C8*10*P$4,0) -> 4261 | Q8: =P8-R8 -> 3835 | R8: =ROUNDDOWN(P8*0.1,0) -> 426 | S8: =ROUNDDOWN($C8*10*S$4,0) -> 4164 | T8: =S8-U8 -> 3748 | U8: =ROUNDDOWN(S8*0.1,0) -> 416 | V8: =ROUNDDOWN($C8*10*V$4,0) -> 4092 | W8: =V8-X8 -> 3683 | X8: =ROUNDDOWN(V8*0.1,0) -> 409
A9: 1時間以上 | B9: 1時間30分未満 | C9: 584 | D9: 5840 | E9: 5256 | F9: 584 | G9: 6470 | H9: =G9-I9 -> 5823 | I9: 647 | J9: 6365 | K9: 5729 | L9: 636 | M9: 6260 | N9: 5634 | O9: 626 | P9: 6190 | Q9: 5571 | R9: 619 | S9: 6050 | T9: 5445 | U9: 605 | V9: 5945 | W9: 5351 | X9: 594
A10: 1時間30分以上 | B10: 2時間未満 | C10: =C9+83 -> 667 | D10: 6670 | E10: 6003 | F10: 667 | G10: 7390 | H10: 6651 | I10: 739 | J10: 7270 | K10: 6543 | L10: 727 | M10: 7150 | N10: 6435 | O10: 715 | P10: 7070 | Q10: 6363 | R10: 707 | S10: 6910 | T10: 6219 | U10: 691 | V10: 6790 | W10: 6111 | X10: 679
A11: 2時間以上 | B11: 2時間30分未満 | C11: =C10+83 -> 750 | D11: 7500 | E11: 6750 | F11: 750 | G11: 8310 | H11: 7479 | I11: 831 | J11: 8175 | K11: 7358 | L11: 817 | M11: 8040 | N11: 7236 | O11: 804 | P11: 7950 | Q11: 7155 | R11: 795 | S11: 7770 | T11: 6993 | U11: 777 | V11: 7635 | W11: 6872 | X11: 763
A12: 2時間30分以上 | B12: 3時間未満 | C12: =C11+83 -> 833 | D12: 8330 | E12: 7497 | F12: 833 | G12: 9229 | H12: 8307 | I12: 922 | J12: 9079 | K12: 8172 | L12: 907 | M12: 8929 | N12: 8037 | O12: 892 | P12: 8829 | Q12: 7947 | R12: 882 | S12: 8629 | T12: 7767 | U12: 862 | V12: 8479 | W12: 7632 | X12: 847
A13: 3時間以上 | B13: 3時間30分未満 | C13: =C12+83 -> 916 | D13: 9160 | E13: 8244 | F13: 916 | G13: 10149 | H13: 9135 | I13: 1014 | J13: 9984 | K13: 8986 | L13: 998 | M13: 9819 | N13: 8838 | O13: 981 | P13: 9709 | Q13: 8739 | R13: 970 | S13: 9489 | T13: 8541 | U13: 948 | V13: 9324 | W13: 8392 | X13: 932
A14: 3時間30分以上 | B14: 4時間未満 | C14: =C13+83 -> 999 | D14: 9990 | E14: 8991 | F14: 999 | G14: 11068 | H14: 9962 | I14: 1106 | J14: 10889 | K14: 9801 | L14: 1088 | M14: 10709 | N14: 9639 | O14: 1070 | P14: 10589 | Q14: 9531 | R14: 1058 | S14: 10349 | T14: 9315 | U14: 1034 | V14: 10169 | W14: 9153 | X14: 1016
A15: 4時間以上 | B15: 4時間30分未満 | C15: =C14+83 -> 1082 | D15: 10820 | E15: 9738 | F15: 1082 | G15: 11988 | H15: 10790 | I15: 1198 | J15: 11793 | K15: 10614 | L15: 1179 | M15: 11599 | N15: 10440 | O15: 1159 | P15: 11469 | Q15: 10323 | R15: 1146 | S15: 11209 | T15: 10089 | U15: 1120 | V15: 11014 | W15: 9913 | X15: 1101
A16: 4時間30分以上 | B16: 5時間未満 | C16: 1165 | D16: 11650 | E16: 10485 | F16: 1165 | G16: 12908 | H16: 11618 | I16: 1290 | J16: 12698 | K16: 11429 | L16: 1269 | M16: 12488 | N16: 11240 | O16: 1248 | P16: 12349 | Q16: 11115 | R16: 1234 | S16: 12069 | T16: 10863 | U16: 1206 | V16: 11859 | W16: 10674 | X16: 1185
A17: 5時間以上 | B17: 5時間30分未満 | C17: 1248 | D17: 12480 | E17: 11232 | F17: 1248 | G17: 13827 | H17: 12445 | I17: 1382 | J17: 13603 | K17: 12243 | L17: 1360 | M17: 13378 | N17: 12041 | O17: 1337 | P17: 13228 | Q17: 11906 | R17: 1322 | S17: 12929 | T17: 11637 | U17: 1292 | V17: 12704 | W17: 11434 | X17: 1270
A18: 5時間30分以上 | B18: 6時間未満 | C18: 1331 | D18: =ROUNDDOWN($C18*10*D$4,0) -> 13310 | E18: 11979 | F18: =ROUNDDOWN(D18*0.1,0) -> 1331 | G18: 14747 | H18: 13273 | I18: 1474 | J18: 14507 | K18: 13057 | L18: 1450 | M18: 14268 | N18: 12842 | O18: 1426 | P18: 14108 | Q18: 12698 | R18: 1410 | S18: 13789 | T18: 12411 | U18: 1378 | V18: 13549 | W18: 12195 | X18: 1354
A19: 6時間以上 | B19: 6時間30分未満 | C19: 1414 | D19: 14140 | E19: 12726 | F19: 1414 | G19: 15667 | H19: 14101 | I19: 1566 | J19: 15412 | K19: 13871 | L19: 1541 | M19: 15158 | N19: 13643 | O19: 1515 | P19: 14988 | Q19: 13490 | R19: 1498 | S19: 14649 | T19: 13185 | U19: 1464 | V19: 14394 | W19: 12955 | X19: 1439
A20: 6時間30分以上 | B20: 7時間未満 | C20: 1497 | D20: 14970 | E20: 13473 | F20: 1497 | G20: 16586 | H20: 14928 | I20: 1658 | J20: 16317 | K20: 14686 | L20: 1631 | M20: 16047 | N20: 14443 | O20: 1604 | P20: 15868 | Q20: 14282 | R20: 1586 | S20: 15508 | T20: 13958 | U20: 1550 | V20: 15239 | W20: 13716 | X20: 1523
A21: 7時間以上 | B21: 7時間30分未満 | C21: 1580 | D21: 15800 | E21: 14220 | F21: 1580 | G21: 17506 | H21: 15756 | I21: 1750 | J21: 17222 | K21: 15500 | L21: 1722 | M21: 16937 | N21: 15244 | O21: 1693 | P21: 16748 | Q21: 15074 | R21: 1674 | S21: 16368 | T21: 14732 | U21: 1636 | V21: 16084 | W21: 14476 | X21: 1608
A22: 7時間30分以上 | B22: 8時間未満 | C22: 1663 | D22: 16630 | E22: 14967 | F22: 1663 | G22: 18426 | H22: 16584 | I22: 1842 | J22: 18126 | K22: 16314 | L22: 1812 | M22: 17827 | N22: 16045 | O22: 1782 | P22: 17627 | Q22: 15865 | R22: 1762 | S22: 17228 | T22: 15506 | U22: 1722 | V22: 16929 | W22: 15237 | X22: 1692
A23: 8時間以上 | B23: 8時間30分未満 | C23: 1746 | D23: 17460 | E23: 15714 | F23: 1746 | G23: 19345 | H23: 17411 | I23: 1934 | J23: 19031 | K23: 17128 | L23: 1903 | M23: =ROUNDDOWN($C23*10*M$4,0) -> 18717 | N23: 16846 | O23: 1871 | P23: 18507 | Q23: 16657 | R23: 1850 | S23: 18088 | T23: 16280 | U23: 1808 | V23: 17774 | W23: 15997 | X23: 1777
A24: 8時間30分以上 | B24: 9時間未満 | C24: 1829 | D24: 18290 | E24: 16461 | F24: 1829 | G24: 20265 | H24: 18239 | I24: 2026 | J24: 19936 | K24: 17943 | L24: 1993 | M24: 19606 | N24: 17646 | O24: 1960 | P24: 19387 | Q24: 17449 | R24: 1938 | S24: 18948 | T24: 17054 | U24: 1894 | V24: 18619 | W24: 16758 | X24: 1861
A25: 9時間以上 | B25: 9時間30分未満 | C25: 1912 | D25: =ROUNDDOWN($C25*10*D$4,0) -> 19120 | E25: 17208 | F25: 1912 | G25: 21184 | H25: 19066 | I25: 2118 | J25: 20840 | K25: 18756 | L25: 2084 | M25: 20496 | N25: 18447 | O25: 2049 | P25: 20267 | Q25: 18241 | R25: 2026 | S25: 19808 | T25: 17828 | U25: 1980 | V25: 19464 | W25: 17518 | X25: 1946
A26: 9時間30分以上 | B26: 10時間未満 | C26: 1995 | D26: 19950 | E26: 17955 | F26: 1995 | G26: 22104 | H26: 19894 | I26: 2210 | J26: 21745 | K26: 19571 | L26: 2174 | M26: 21386 | N26: 19248 | O26: 2138 | P26: 21147 | Q26: 19033 | R26: 2114 | S26: 20668 | T26: 18602 | U26: 2066 | V26: 20309 | W26: 18279 | X26: 2030
A27: 10時間以上 | B27: 10時間30分未満 | C27: =C26+83 -> 2078 | D27: 20780 | E27: 18702 | F27: 2078 | G27: =ROUNDDOWN($C27*10*G$4,0) -> 23024 | H27: 20722 | I27: 2302 | J27: =ROUNDDOWN($C27*10*J$4,0) -> 22650 | K27: 20385 | L27: 2265 | M27: 22276 | N27: 20049 | O27: 2227 | P27: =ROUNDDOWN($C27*10*P$4,0) -> 22026 | Q27: 19824 | R27: 2202 | S27: 21528 | T27: 19376 | U27: 2152 | V27: 21154 | W27: 19039 | X27: 2115
A28: 10時間30分以上 | B28: 11時間未満 | C28: =C27+83 -> 2161 | D28: =ROUNDDOWN($C28*10*D$4,0) -> 21610 | E28: 19449 | F28: 2161 | G28: 23943 | H28: 21549 | I28: 2394 | J28: 23554 | K28: 21199 | L28: 2355 | M28: 23165 | N28: 20849 | O28: 2316 | P28: 22906 | Q28: 20616 | R28: 2290 | S28: 22387 | T28: 20149 | U28: 2238 | V28: 21998 | W28: 19799 | X28: 2199
A29: 11時間以上 | B29: 11時間30分未満 | C29: 2244 | D29: =ROUNDDOWN($C29*10*D$4,0) -> 22440 | E29: 20196 | F29: 2244 | G29: 24863 | H29: 22377 | I29: 2486 | J29: 24459 | K29: 22014 | L29: 2445 | M29: 24055 | N29: 21650 | O29: 2405 | P29: 23786 | Q29: 21408 | R29: 2378 | S29: 23247 | T29: 20923 | U29: 2324 | V29: 22843 | W29: 20559 | X29: 2284
A30: 11時間30分以上 | B30: 12時間未満 | C30: 2327 | D30: 23270 | E30: 20943 | F30: 2327 | G30: 25783 | H30: 23205 | I30: 2578 | J30: 25364 | K30: 22828 | L30: 2536 | M30: 24945 | N30: 22451 | O30: 2494 | P30: 24666 | Q30: 22200 | R30: 2466 | S30: 24107 | T30: 21697 | U30: 2410 | V30: 23688 | W30: 21320 | X30: 2368
A31: 12時間以上 | B31: 12時間30分未満 | C31: 2410 | D31: 24100 | E31: 21690 | F31: 2410 | G31: =ROUNDDOWN($C31*10*G$4,0) -> 26702 | H31: 24032 | I31: 2670 | J31: =ROUNDDOWN($C31*10*J$4,0) -> 26269 | K31: 23643 | L31: 2626 | M31: 25835 | N31: 23252 | O31: 2583 | P31: =ROUNDDOWN($C31*10*P$4,0) -> 25546 | Q31: 22992 | R31: 2554 | S31: 24967 | T31: 22471 | U31: 2496 | V31: 24533 | W31: 22080 | X31: 2453
A32: 12時間30分以上 | B32: 13時間未満 | C32: 2493 | D32: 24930 | E32: 22437 | F32: 2493 | G32: 27622 | H32: 24860 | I32: 2762 | J32: 27173 | K32: 24456 | L32: 2717 | M32: 26724 | N32: 24052 | O32: 2672 | P32: 26425 | Q32: 23783 | R32: 2642 | S32: 25827 | T32: 23245 | U32: 2582 | V32: 25378 | W32: 22841 | X32: 2537
A33: 13時間以上 | B33: 13時間30分未満 | C33: 2576 | D33: 25760 | E33: 23184 | F33: 2576 | G33: =ROUNDDOWN($C33*10*G$4,0) -> 28542 | H33: 25688 | I33: 2854 | J33: =ROUNDDOWN($C33*10*J$4,0) -> 28078 | K33: 25271 | L33: 2807 | M33: 27614 | N33: 24853 | O33: 2761 | P33: =ROUNDDOWN($C33*10*P$4,0) -> 27305 | Q33: 24575 | R33: 2730 | S33: 26687 | T33: 24019 | U33: 2668 | V33: 26223 | W33: 23601 | X33: 2622
A34: 13時間30分以上 | B34: 14時間未満 | C34: 2659 | D34: =ROUNDDOWN($C34*10*D$4,0) -> 26590 | E34: =D34-F34 -> 23931 | F34: =ROUNDDOWN(D34*0.1,0) -> 2659 | G34: =ROUNDDOWN($C34*10*G$4,0) -> 29461 | H34: =G34-I34 -> 26515 | I34: =ROUNDDOWN(G34*0.1,0) -> 2946 | J34: =ROUNDDOWN($C34*10*J$4,0) -> 28983 | K34: =J34-L34 -> 26085 | L34: =ROUNDDOWN(J34*0.1,0) -> 2898 | M34: 28504 | N34: =M34-O34 -> 25654 | O34: =ROUNDDOWN(M34*0.1,0) -> 2850 | P34: =ROUNDDOWN($C34*10*P$4,0) -> 28185 | Q34: =P34-R34 -> 25367 | R34: =ROUNDDOWN(P34*0.1,0) -> 2818 | S34: 27547 | T34: =S34-U34 -> 24793 | U34: =ROUNDDOWN(S34*0.1,0) -> 2754 | V34: 27068 | W34: =V34-X34 -> 24362 | X34: =ROUNDDOWN(V34*0.1,0) -> 2706
A36: 平成２７年度 鎌ケ谷市移動支援事業単価表 ()
X37: 単位：円
A38: 【身体介護 なし】 | C38: 基本単位 | D38: その他 | G38: １ 級地 | J38: ２ 級地 | M38: ３ 級地 | P38: ４ 級地 | S38: ５ 級地 | V38: ６ 級地
D39: =$D$86 -> 1 | G39: =$D$74 -> 1.108 | J39: =$D$76 -> 1.09 | M39: =$D$78 -> 1.072 | P39: =$D$80 -> 1.06 | S39: =$D$82 -> 1.036 | V39: =$D$84 -> 1.018
D40: １～６級地以外 | G40: 特別区 | J40: 成田市、印西市 | M40: 船橋市、浦安市 袖ケ浦市 | P40: 千葉市、市川市 松戸市、四街道市 富津市、習志野市 | S40: 柏市、茂原市 佐倉市、市原市 白井市、我孫子市 鎌ケ谷市、長柄町 長南町、木更津市 君津市 | V40: 野田市、東金市 流山市、八街市 酒々井町、栄町 大網白里市、山武市 富里市
A41: 利用時間 | D41: 基準 | E41: ９割 | F41: １割 | G41: 基準 | H41: ９割 | I41: １割 | J41: 基準 | K41: ９割 | L41: １割 | M41: 基準 | N41: ９割 | O41: １割 | P41: 基準 | Q41: ９割 | R41: １割 | S41: 基準 | T41: ９割 | U41: １割 | V41: 基準 | W41: ９割 | X41: １割
B42: 30分未満 | C42: 105 | D42: =ROUNDDOWN($C42*10*D$39,0) -> 1050 | E42: =D42-F42 -> 945 | F42: =ROUNDDOWN(D42*0.1,0) -> 105 | G42: =ROUNDDOWN($C42*10*G$39,0) -> 1163 | H42: =G42-I42 -> 1047 | I42: =ROUNDDOWN(G42*0.1,0) -> 116 | J42: =ROUNDDOWN($C42*10*J$39,0) -> 1144 | K42: =J42-L42 -> 1030 | L42: =ROUNDDOWN(J42*0.1,0) -> 114 | M42: =ROUNDDOWN($C42*10*M$39,0) -> 1125 | N42: =M42-O42 -> 1013 | O42: =ROUNDDOWN(M42*0.1,0) -> 112 | P42: =ROUNDDOWN($C42*10*P$39,0) -> 1113 | Q42: =P42-R42 -> 1002 | R42: =ROUNDDOWN(P42*0.1,0) -> 111 | S42: =ROUNDDOWN($C42*10*S$39,0) -> 1087 | T42: =S42-U42 -> 979 | U42: =ROUNDDOWN(S42*0.1,0) -> 108 | V42: =ROUNDDOWN($C42*10*V$39,0) -> 1068 | W42: =V42-X42 -> 962 | X42: =ROUNDDOWN(V42*0.1,0) -> 106
A43: 30分以上 | B43: 1時間未満 | C43: 197 | D43: =ROUNDDOWN($C43*10*D$39,0) -> 1970 | E43: =D43-F43 -> 1773 | F43: =ROUNDDOWN(D43*0.1,0) -> 197 | G43: =ROUNDDOWN($C43*10*G$39,0) -> 2182 | H43: =G43-I43 -> 1964 | I43: =ROUNDDOWN(G43*0.1,0) -> 218 | J43: =ROUNDDOWN($C43*10*J$39,0) -> 2147 | K43: =J43-L43 -> 1933 | L43: =ROUNDDOWN(J43*0.1,0) -> 214 | M43: =ROUNDDOWN($C43*10*M$39,0) -> 2111 | N43: =M43-O43 -> 1900 | O43: =ROUNDDOWN(M43*0.1,0) -> 211 | P43: =ROUNDDOWN($C43*10*P$39,0) -> 2088 | Q43: =P43-R43 -> 1880 | R43: =ROUNDDOWN(P43*0.1,0) -> 208 | S43: =ROUNDDOWN($C43*10*S$39,0) -> 2040 | T43: =S43-U43 -> 1836 | U43: =ROUNDDOWN(S43*0.1,0) -> 204 | V43: 2005 | W43: 1805 | X43: 200
A44: 1時間以上 | B44: 1時間30分未満 | C44: 276 | D44: 2760 | E44: 2484 | F44: 276 | G44: 3058 | H44: 2753 | I44: 305 | J44: 3008 | K44: 2708 | L44: 300 | M44: 2958 | N44: 2663 | O44: 295 | P44: 2925 | Q44: 2633 | R44: 292 | S44: 2859 | T44: 2574 | U44: 285 | V44: 2809 | W44: 2529 | X44: 280
A45: 1時間30分以上 | B45: 2時間未満 | C45: =C44+70 -> 346 | D45: 3460 | E45: 3114 | F45: 346 | G45: 3833 | H45: 3450 | I45: 383 | J45: 3771 | K45: 3394 | L45: 377 | M45: 3709 | N45: 3339 | O45: 370 | P45: 3667 | Q45: 3301 | R45: 366 | S45: 3584 | T45: 3226 | U45: 358 | V45: 3522 | W45: 3170 | X45: 352
A46: 2時間以上 | B46: 2時間30分未満 | C46: =C45+70 -> 416 | D46: 4160 | E46: 3744 | F46: 416 | G46: 4609 | H46: 4149 | I46: 460 | J46: 4534 | K46: 4081 | L46: 453 | M46: 4459 | N46: 4014 | O46: 445 | P46: 4409 | Q46: 3969 | R46: 440 | S46: 4309 | T46: 3879 | U46: 430 | V46: 4234 | W46: 3811 | X46: 423
A47: 2時間30分以上 | B47: 3時間未満 | C47: =C46+70 -> 486 | D47: 4860 | E47: 4374 | F47: 486 | G47: 5384 | H47: 4846 | I47: 538 | J47: 5297 | K47: 4768 | L47: 529 | M47: 5209 | N47: 4689 | O47: 520 | P47: 5151 | Q47: 4636 | R47: 515 | S47: 5034 | T47: 4531 | U47: 503 | V47: 4947 | W47: 4453 | X47: 494
A48: 3時間以上 | B48: 3時間30分未満 | C48: 556 | D48: 5560 | E48: 5004 | F48: 556 | G48: 6160 | H48: 5544 | I48: 616 | J48: 6060 | K48: 5454 | L48: 606 | M48: 5960 | N48: 5364 | O48: 596 | P48: 5893 | Q48: 5304 | R48: 589 | S48: 5760 | T48: 5184 | U48: 576 | V48: 5660 | W48: 5094 | X48: 566
A49: 3時間30分以上 | B49: 4時間未満 | C49: 626 | D49: =ROUNDDOWN($C49*10*D$39,0) -> 6260 | E49: 5634 | F49: 626 | G49: 6936 | H49: 6243 | I49: 693 | J49: =ROUNDDOWN($C49*10*J$39,0) -> 6823 | K49: 6141 | L49: 682 | M49: =ROUNDDOWN($C49*10*M$39,0) -> 6710 | N49: 6039 | O49: 671 | P49: =ROUNDDOWN($C49*10*P$39,0) -> 6635 | Q49: 5972 | R49: 663 | S49: =ROUNDDOWN($C49*10*S$39,0) -> 6485 | T49: 5837 | U49: 648 | V49: 6372 | W49: 5735 | X49: 637
A50: 4時間以上 | B50: 4時間30分未満 | C50: 696 | D50: 6960 | E50: 6264 | F50: 696 | G50: 7711 | H50: 6940 | I50: 771 | J50: 7586 | K50: 6828 | L50: 758 | M50: 7461 | N50: 6715 | O50: 746 | P50: 7377 | Q50: 6640 | R50: 737 | S50: 7210 | T50: 6489 | U50: 721 | V50: 7085 | W50: 6377 | X50: 708
A51: 4時間30分以上 | B51: 5時間未満 | C51: 766 | D51: 7660 | E51: 6894 | F51: 766 | G51: 8487 | H51: 7639 | I51: 848 | J51: 8349 | K51: 7515 | L51: 834 | M51: 8211 | N51: 7390 | O51: 821 | P51: 8119 | Q51: 7308 | R51: 811 | S51: 7935 | T51: 7142 | U51: 793 | V51: 7797 | W51: 7018 | X51: 779
A52: 5時間以上 | B52: 5時間30分未満 | C52: 836 | D52: 8360 | E52: 7524 | F52: 836 | G52: 9262 | H52: 8336 | I52: 926 | J52: 9112 | K52: 8201 | L52: 911 | M52: 8961 | N52: 8065 | O52: 896 | P52: 8861 | Q52: 7975 | R52: 886 | S52: 8660 | T52: 7794 | U52: 866 | V52: 8510 | W52: 7659 | X52: 851
A53: 5時間30分以上 | B53: 6時間未満 | C53: 906 | D53: 9060 | E53: 8154 | F53: 906 | G53: 10038 | H53: 9035 | I53: 1003 | J53: 9875 | K53: 8888 | L53: 987 | M53: 9712 | N53: 8741 | O53: 971 | P53: 9603 | Q53: 8643 | R53: 960 | S53: 9386 | T53: 8448 | U53: 938 | V53: 9223 | W53: 8301 | X53: 922
A54: 6時間以上 | B54: 6時間30分未満 | C54: 976 | D54: 9760 | E54: 8784 | F54: 976 | G54: 10814 | H54: 9733 | I54: 1081 | J54: 10638 | K54: 9575 | L54: 1063 | M54: 10462 | N54: 9416 | O54: 1046 | P54: 10345 | Q54: 9311 | R54: 1034 | S54: 10111 | T54: 9100 | U54: 1011 | V54: 9935 | W54: 8942 | X54: 993
A55: 6時間30分以上 | B55: 7時間未満 | C55: 1046 | D55: 10460 | E55: 9414 | F55: 1046 | G55: 11589 | H55: 10431 | I55: 1158 | J55: 11401 | K55: 10261 | L55: 1140 | M55: 11213 | N55: 10092 | O55: 1121 | P55: 11087 | Q55: 9979 | R55: 1108 | S55: 10836 | T55: 9753 | U55: 1083 | V55: 10648 | W55: 9584 | X55: 1064
A56: 7時間以上 | B56: 7時間30分未満 | C56: 1116 | D56: 11160 | E56: 10044 | F56: 1116 | G56: 12365 | H56: 11129 | I56: 1236 | J56: 12164 | K56: 10948 | L56: 1216 | M56: 11963 | N56: 10767 | O56: 1196 | P56: 11829 | Q56: 10647 | R56: 1182 | S56: 11561 | T56: 10405 | U56: 1156 | V56: 11360 | W56: 10224 | X56: 1136
A57: 7時間30分以上 | B57: 8時間未満 | C57: 1186 | D57: 11860 | E57: 10674 | F57: 1186 | G57: 13140 | H57: 11826 | I57: 1314 | J57: 12927 | K57: 11635 | L57: 1292 | M57: 12713 | N57: 11442 | O57: 1271 | P57: 12571 | Q57: 11314 | R57: 1257 | S57: 12286 | T57: 11058 | U57: 1228 | V57: 12073 | W57: 10866 | X57: 1207
A58: 8時間以上 | B58: 8時間30分未満 | C58: 1256 | D58: 12560 | E58: 11304 | F58: 1256 | G58: 13916 | H58: 12525 | I58: 1391 | J58: 13690 | K58: 12321 | L58: 1369 | M58: 13464 | N58: 12118 | O58: 1346 | P58: 13313 | Q58: 11982 | R58: 1331 | S58: 13012 | T58: 11711 | U58: 1301 | V58: 12786 | W58: 11508 | X58: 1278
A59: 8時間30分以上 | B59: 9時間未満 | C59: =C58+70 -> 1326 | D59: 13260 | E59: 11934 | F59: 1326 | G59: 14692 | H59: 13223 | I59: 1469 | J59: 14453 | K59: 13008 | L59: 1445 | M59: 14214 | N59: 12793 | O59: 1421 | P59: 14055 | Q59: 12650 | R59: 1405 | S59: 13737 | T59: 12364 | U59: 1373 | V59: 13498 | W59: 12149 | X59: 1349
A60: 9時間以上 | B60: 9時間30分未満 | C60: 1396 | D60: 13960 | E60: 12564 | F60: 1396 | G60: 15467 | H60: 13921 | I60: 1546 | J60: 15216 | K60: 13695 | L60: 1521 | M60: 14965 | N60: 13469 | O60: 1496 | P60: 14797 | Q60: 13318 | R60: 1479 | S60: 14462 | T60: 13016 | U60: 1446 | V60: 14211 | W60: 12790 | X60: 1421
A61: 9時間30分以上 | B61: 10時間未満 | C61: 1466 | D61: 14660 | E61: 13194 | F61: 1466 | G61: 16243 | H61: 14619 | I61: 1624 | J61: 15979 | K61: 14382 | L61: 1597 | M61: 15715 | N61: 14144 | O61: 1571 | P61: 15539 | Q61: 13986 | R61: 1553 | S61: 15187 | T61: 13669 | U61: 1518 | V61: 14923 | W61: 13431 | X61: 1492
A62: 10時間以上 | B62: 10時間30分未満 | C62: 1536 | D62: 15360 | E62: 13824 | F62: 1536 | G62: 17018 | H62: 15317 | I62: 1701 | J62: 16742 | K62: 15068 | L62: 1674 | M62: 16465 | N62: 14819 | O62: 1646 | P62: 16281 | Q62: 14653 | R62: 1628 | S62: 15912 | T62: 14321 | U62: 1591 | V62: 15636 | W62: 14073 | X62: 1563
A63: 10時間30分以上 | B63: 11時間未満 | C63: 1606 | D63: =ROUNDDOWN($C63*10*D$4,0) -> 16060 | E63: 14454 | F63: 1606 | G63: =ROUNDDOWN($C63*10*G$4,0) -> 17794 | H63: 16015 | I63: 1779 | J63: =ROUNDDOWN($C63*10*J$4,0) -> 17505 | K63: 15755 | L63: 1750 | M63: =ROUNDDOWN($C63*10*M$4,0) -> 17216 | N63: 15495 | O63: 1721 | P63: =ROUNDDOWN($C63*10*P$4,0) -> 17023 | Q63: 15321 | R63: 1702 | S63: =ROUNDDOWN($C63*10*S$4,0) -> 16638 | T63: 14975 | U63: 1663 | V63: =ROUNDDOWN($C63*10*V$4,0) -> 16349 | W63: 14715 | X63: 1634
A64: 11時間以上 | B64: 11時間30分未満 | C64: 1676 | D64: 16760 | E64: 15084 | F64: 1676 | G64: 18570 | H64: 16713 | I64: 1857 | J64: 18268 | K64: 16442 | L64: 1826 | M64: 17966 | N64: 16170 | O64: 1796 | P64: 17765 | Q64: 15989 | R64: 1776 | S64: 17363 | T64: 15627 | U64: 1736 | V64: 17061 | W64: 15355 | X64: 1706
A65: 11時間30分以上 | B65: 12時間未満 | C65: 1746 | D65: 17460 | E65: 15714 | F65: 1746 | G65: 19345 | H65: 17411 | I65: 1934 | J65: 19031 | K65: 17128 | L65: 1903 | M65: 18717 | N65: 16846 | O65: 1871 | P65: 18507 | Q65: 16657 | R65: 1850 | S65: 18088 | T65: 16280 | U65: 1808 | V65: 17774 | W65: 15997 | X65: 1777
A66: 12時間以上 | B66: 12時間30分未満 | C66: 1816 | D66: 18160 | E66: 16344 | F66: 1816 | G66: 20121 | H66: 18109 | I66: 2012 | J66: 19794 | K66: 17815 | L66: 1979 | M66: 19467 | N66: 17521 | O66: 1946 | P66: 19249 | Q66: 17325 | R66: 1924 | S66: 18813 | T66: 16932 | U66: 1881 | V66: 18486 | W66: 16638 | X66: 1848
A67: 12時間30分以上 | B67: 13時間未満 | C67: 1886 | D67: 18860 | E67: 16974 | F67: 1886 | G67: 20896 | H67: 18807 | I67: 2089 | J67: 20557 | K67: 18502 | L67: 2055 | M67: 20217 | N67: 18196 | O67: 2021 | P67: 19991 | Q67: 17992 | R67: 1999 | S67: 19538 | T67: 17585 | U67: 1953 | V67: 19199 | W67: 17280 | X67: 1919
A68: 13時間以上 | B68: 13時間30分未満 | C68: 1956 | D68: 19560 | E68: 17604 | F68: =ROUNDDOWN(D68*0.1,0) -> 1956 | G68: 21672 | H68: 19505 | I68: 2167 | J68: 21320 | K68: 19188 | L68: 2132 | M68: 20968 | N68: 18872 | O68: 2096 | P68: 20733 | Q68: 18660 | R68: 2073 | S68: 20264 | T68: 18238 | U68: 2026 | V68: 19912 | W68: 17921 | X68: 1991
A69: 13時間30分以上 | B69: 14時間未満 | C69: 2026 | D69: 20260 | E69: =D69-F69 -> 18234 | F69: =ROUNDDOWN(D69*0.1,0) -> 2026 | G69: 22448 | H69: =G69-I69 -> 20204 | I69: =ROUNDDOWN(G69*0.1,0) -> 2244 | J69: 22083 | K69: =J69-L69 -> 19875 | L69: =ROUNDDOWN(J69*0.1,0) -> 2208 | M69: 21718 | N69: =M69-O69 -> 19547 | O69: =ROUNDDOWN(M69*0.1,0) -> 2171 | P69: 21475 | Q69: =P69-R69 -> 19328 | R69: =ROUNDDOWN(P69*0.1,0) -> 2147 | S69: 20989 | T69: =S69-U69 -> 18891 | U69: =ROUNDDOWN(S69*0.1,0) -> 2098 | V69: 20624 | W69: =V69-X69 -> 18562 | X69: =ROUNDDOWN(V69*0.1,0) -> 2062
A72: 級地 | B72: 地域区分率
A73: 級地該当千葉県内市町村名、特別区
A74: 1 級地 | B74: 1108/1000 ＝ | C74: 1.09 | D74: 1.108
A75: 特別区
A76: ２ 級地 | B76: 1090/1000 ＝ | C76: 1.09 | D76: 1.09
A77: 成田市、印西市
A78: ３ 級地 | B78: 1072/1000＝ | C78: 1.072 | D78: 1.072
A79: 船橋市、浦安市、袖ヶ浦市
A80: ４ 級地 | B80: 1060/1000＝ | C80: 1.06 | D80: 1.06
A81: 千葉市、市川市、松戸市、四街道市、富津市、習志野市
A82: ５級地 | B82: 1036/1000＝ | C82: 1.036 | D82: 1.036
A83: 柏市、茂原市、佐倉市、市原市、白井市、我孫子市、鎌ケ谷市、長柄町、長南町、木更津市、君津市
A84: ６ 級地 | B84: 1018/1000＝ | C84: 1.018 | D84: 1.018
A85: 野田市、東金市、流山市、八街市、酒々井町、栄町、大網白里市、山武市、富里市
A86: その他 | B86: 1000/1000 ＝ | C86: 1 | D86: 1
A87: １～６級地外

Sheet データ (hidden)
F1: 区分
B2: 特別区 | C2: 1 | F2: 1 | G2: Ａ | K2: 以上 | L2: 未満 | O2: その他 | P2: その他（9割） | Q2: 1 | R2: =Q2&"（9割）" -> 1（9割） | S2: 2 | T2: =S2&"（9割）" -> 2（9割） | U2: 3 | V2: =U2&"（9割）" -> 3（9割） | W2: 4 | X2: =W2&"（9割）" -> 4（9割） | Y2: 5 | Z2: =Y2&"（9割）" -> 5（9割） | AA2: 6 | AB2: =AA2&"（9割）" -> 6（9割）
B3: 成田市 | C3: 2 | F3: 2 | G3: Ａ | L3: 00:30:00 | M3: 30分未満 | N3: 30分未満/有 | O3: 2540 | P3: =O3-ROUNDDOWN(O3*0.1,0) -> 2286 | Q3: 2814 | R3: =Q3-ROUNDDOWN(Q3*0.1,0) -> 2533 | S3: 2768 | T3: =S3-ROUNDDOWN(S3*0.1,0) -> 2492 | U3: 2722 | V3: =U3-ROUNDDOWN(U3*0.1,0) -> 2450 | W3: 2692 | X3: =W3-ROUNDDOWN(W3*0.1,0) -> 2423 | Y3: 2631 | Z3: =Y3-ROUNDDOWN(Y3*0.1,0) -> 2368 | AA3: 2585 | AB3: =AA3-ROUNDDOWN(AA3*0.1,0) -> 2327
B4: 印西市 | C4: 2 | F4: 3 | G4: Ｂ | K4: 00:30:00 | L4: 01:00:00 | M4: 30分以上1時間未満 | N4: 30分以上1時間未満/有 | O4: 4020 | P4: =O4-ROUNDDOWN(O4*0.1,0) -> 3618 | Q4: 4454 | R4: 4009 | S4: 4381 | T4: =S4-ROUNDDOWN(S4*0.1,0) -> 3943 | U4: 4309 | V4: =U4-ROUNDDOWN(U4*0.1,0) -> 3879 | W4: 4261 | X4: =W4-ROUNDDOWN(W4*0.1,0) -> 3835 | Y4: 4164 | Z4: =Y4-ROUNDDOWN(Y4*0.1,0) -> 3748 | AA4: 4092 | AB4: =AA4-ROUNDDOWN(AA4*0.1,0) -> 3683
B5: 船橋市 | C5: 3 | F5: 4 | G5: Ｂ | K5: 01:00:00 | L5: 01:30:00 | M5: 1時間以上1時間30分未満 | N5: 1時間以上1時間30分未満/有 | O5: 5840 | P5: 5256 | Q5: 6470 | R5: 5823 | S5: 6365 | T5: =S5-ROUNDDOWN(S5*0.1,0) -> 5729 | U5: 6260 | V5: =U5-ROUNDDOWN(U5*0.1,0) -> 5634 | W5: 6190 | X5: =W5-ROUNDDOWN(W5*0.1,0) -> 5571 | Y5: 6050 | Z5: =Y5-ROUNDDOWN(Y5*0.1,0) -> 5445 | AA5: 5945 | AB5: =AA5-ROUNDDOWN(AA5*0.1,0) -> 5351
B6: 浦安市 | C6: 3 | F6: 5 | G6: Ｃ | K6: 01:30:00 | L6: 02:00:00 | M6: 1時間30分以上2時間未満 | N6: 1時間30分以上2時間未満/有 | O6: 6670 | P6: 6003 | Q6: 7390 | R6: 6651 | S6: 7270 | T6: =S6-ROUNDDOWN(S6*0.1,0) -> 6543 | U6: 7150 | V6: =U6-ROUNDDOWN(U6*0.1,0) -> 6435 | W6: 7070 | X6: =W6-ROUNDDOWN(W6*0.1,0) -> 6363 | Y6: 6910 | Z6: =Y6-ROUNDDOWN(Y6*0.1,0) -> 6219 | AA6: 6790 | AB6: =AA6-ROUNDDOWN(AA6*0.1,0) -> 6111
B7: 袖ケ浦市 | C7: 3 | F7: 6 | G7: Ｃ | K7: 02:00:00 | L7: 02:30:00 | M7: 2時間以上2時間30分未満 | N7: 2時間以上2時間30分未満/有 | O7: 7500 | P7: 6750 | Q7: 8310 | R7: 7479 | S7: 8175 | T7: =S7-ROUNDDOWN(S7*0.1,0) -> 7358 | U7: 8040 | V7: =U7-ROUNDDOWN(U7*0.1,0) -> 7236 | W7: 7950 | X7: =W7-ROUNDDOWN(W7*0.1,0) -> 7155 | Y7: 7770 | Z7: =Y7-ROUNDDOWN(Y7*0.1,0) -> 6993 | AA7: 7635 | AB7: =AA7-ROUNDDOWN(AA7*0.1,0) -> 6872
B8: 千葉市 | C8: 4 | F8: 児1 | G8: Ａ | K8: 02:30:00 | L8: 03:00:00 | M8: 2時間30分以上3時間未満 | N8: 2時間30分以上3時間未満/有 | O8: 8330 | P8: 7497 | Q8: 9229 | R8: 8307 | S8: 9079 | T8: =S8-ROUNDDOWN(S8*0.1,0) -> 8172 | U8: 8929 | V8: =U8-ROUNDDOWN(U8*0.1,0) -> 8037 | W8: 8829 | X8: =W8-ROUNDDOWN(W8*0.1,0) -> 7947 | Y8: 8629 | Z8: =Y8-ROUNDDOWN(Y8*0.1,0) -> 7767 | AA8: 8479 | AB8: =AA8-ROUNDDOWN(AA8*0.1,0) -> 7632
B9: 市川市 | C9: 4 | F9: 児2 | G9: Ｂ | K9: 03:00:00 | L9: 03:30:00 | M9: 3時間以上3時間30分未満 | N9: 3時間以上3時間30分未満/有 | O9: 9160 | P9: 8244 | Q9: 10149 | R9: 9135 | S9: 9984 | T9: =S9-ROUNDDOWN(S9*0.1,0) -> 8986 | U9: 9819 | V9: =U9-ROUNDDOWN(U9*0.1,0) -> 8838 | W9: 9709 | X9: =W9-ROUNDDOWN(W9*0.1,0) -> 8739 | Y9: 9489 | Z9: =Y9-ROUNDDOWN(Y9*0.1,0) -> 8541 | AA9: 9324 | AB9: =AA9-ROUNDDOWN(AA9*0.1,0) -> 8392
B10: 松戸市 | C10: 4 | F10: 児3 | G10: Ｃ | K10: 03:30:00 | L10: 04:00:00 | M10: 3時間30分以上4時間未満 | N10: 3時間30分以上4時間未満/有 | O10: 9990 | P10: 8991 | Q10: 11068 | R10: 9962 | S10: 10889 | T10: =S10-ROUNDDOWN(S10*0.1,0) -> 9801 | U10: 10709 | V10: =U10-ROUNDDOWN(U10*0.1,0) -> 9639 | W10: 10589 | X10: =W10-ROUNDDOWN(W10*0.1,0) -> 9531 | Y10: 10349 | Z10: =Y10-ROUNDDOWN(Y10*0.1,0) -> 9315 | AA10: 10169 | AB10: =AA10-ROUNDDOWN(AA10*0.1,0) -> 9153
B11: 四街道市 | C11: 4 | K11: 04:00:00 | L11: 04:30:00 | M11: 4時間以上4時間30分未満 | N11: 4時間以上4時間30分未満/有 | O11: 10820 | P11: 9738 | Q11: 11988 | R11: 10790 | S11: 11793 | T11: =S11-ROUNDDOWN(S11*0.1,0) -> 10614 | U11: 11599 | V11: =U11-ROUNDDOWN(U11*0.1,0) -> 10440 | W11: 11469 | X11: =W11-ROUNDDOWN(W11*0.1,0) -> 10323 | Y11: 11209 | Z11: =Y11-ROUNDDOWN(Y11*0.1,0) -> 10089 | AA11: 11014 | AB11: =AA11-ROUNDDOWN(AA11*0.1,0) -> 9913
B12: 富津市 | C12: 4 | K12: 04:30:00 | L12: 05:00:00 | M12: 4時間30分以上5時間未満 | N12: 4時間30分以上5時間未満/有 | O12: 11650 | P12: 10485 | Q12: 12908 | R12: 11618 | S12: 12698 | T12: =S12-ROUNDDOWN(S12*0.1,0) -> 11429 | U12: 12488 | V12: =U12-ROUNDDOWN(U12*0.1,0) -> 11240 | W12: 12349 | X12: =W12-ROUNDDOWN(W12*0.1,0) -> 11115 | Y12: 12069 | Z12: =Y12-ROUNDDOWN(Y12*0.1,0) -> 10863 | AA12: 11859 | AB12: =AA12-ROUNDDOWN(AA12*0.1,0) -> 10674
B13: 習志野市 | C13: 4 | E13: 有 | K13: 05:00:00 | L13: 05:30:00 | M13: 5時間以上5時間30分未満 | N13: 5時間以上5時間30分未満/有 | O13: 12480 | P13: 11232 | Q13: 13827 | R13: 12445 | S13: 13603 | T13: =S13-ROUNDDOWN(S13*0.1,0) -> 12243 | U13: 13378 | V13: =U13-ROUNDDOWN(U13*0.1,0) -> 12041 | W13: 13228 | X13: =W13-ROUNDDOWN(W13*0.1,0) -> 11906 | Y13: 12929 | Z13: =Y13-ROUNDDOWN(Y13*0.1,0) -> 11637 | AA13: 12704 | AB13: =AA13-ROUNDDOWN(AA13*0.1,0) -> 11434
B14: 柏市 | C14: 5 | E14: 無 | K14: 05:30:00 | L14: 06:00:00 | M14: 5時間30分以上6時間未満 | N14: 5時間30分以上6時間未満/有 | O14: 13310 | P14: 11979 | Q14: 14747 | R14: 13273 | S14: 14507 | T14: =S14-ROUNDDOWN(S14*0.1,0) -> 13057 | U14: 14268 | V14: =U14-ROUNDDOWN(U14*0.1,0) -> 12842 | W14: 14108 | X14: =W14-ROUNDDOWN(W14*0.1,0) -> 12698 | Y14: 13789 | Z14: =Y14-ROUNDDOWN(Y14*0.1,0) -> 12411 | AA14: 13549 | AB14: =AA14-ROUNDDOWN(AA14*0.1,0) -> 12195
B15: 茂原市 | C15: 5 | K15: 06:00:00 | L15: 06:30:00 | M15: 6時間以上6時間30分未満 | N15: 6時間以上6時間30分未満/有 | O15: 14140 | P15: 12726 | Q15: 15667 | R15: 14101 | S15: 15412 | T15: =S15-ROUNDDOWN(S15*0.1,0) -> 13871 | U15: 15158 | V15: =U15-ROUNDDOWN(U15*0.1,0) -> 13643 | W15: 14988 | X15: =W15-ROUNDDOWN(W15*0.1,0) -> 13490 | Y15: 14649 | Z15: =Y15-ROUNDDOWN(Y15*0.1,0) -> 13185 | AA15: 14394 | AB15: =AA15-ROUNDDOWN(AA15*0.1,0) -> 12955
B16: 佐倉市 | C16: 5 | K16: 06:30:00 | L16: 07:00:00 | M16: 6時間30分以上7時間未満 | N16: 6時間30分以上7時間未満/有 | O16: 14970 | P16: 13473 | Q16: 16586 | R16: 14928 | S16: 16317 | T16: =S16-ROUNDDOWN(S16*0.1,0) -> 14686 | U16: 16047 | V16: =U16-ROUNDDOWN(U16*0.1,0) -> 14443 | W16: 15868 | X16: =W16-ROUNDDOWN(W16*0.1,0) -> 14282 | Y16: 15508 | Z16: =Y16-ROUNDDOWN(Y16*0.1,0) -> 13958 | AA16: 15239 | AB16: =AA16-ROUNDDOWN(AA16*0.1,0) -> 13716
B17: 市原市 | C17: 5 | K17: 07:00:00 | L17: 07:30:00 | M17: 7時間以上7時間30分未満 | N17: 7時間以上7時間30分未満/有 | O17: 15800 | P17: 14220 | Q17: 17506 | R17: 15756 | S17: 17222 | T17: =S17-ROUNDDOWN(S17*0.1,0) -> 15500 | U17: 16937 | V17: =U17-ROUNDDOWN(U17*0.1,0) -> 15244 | W17: 16748 | X17: =W17-ROUNDDOWN(W17*0.1,0) -> 15074 | Y17: 16368 | Z17: =Y17-ROUNDDOWN(Y17*0.1,0) -> 14732 | AA17: 16084 | AB17: =AA17-ROUNDDOWN(AA17*0.1,0) -> 14476
B18: 白井市 | C18: 5 | K18: 07:30:00 | L18: 08:00:00 | M18: 7時間30分以上8時間未満 | N18: 7時間30分以上8時間未満/有 | O18: 16630 | P18: 14967 | Q18: 18426 | R18: 16584 | S18: 18126 | T18: =S18-ROUNDDOWN(S18*0.1,0) -> 16314 | U18: 17827 | V18: =U18-ROUNDDOWN(U18*0.1,0) -> 16045 | W18: 17627 | X18: =W18-ROUNDDOWN(W18*0.1,0) -> 15865 | Y18: 17228 | Z18: =Y18-ROUNDDOWN(Y18*0.1,0) -> 15506 | AA18: 16929 | AB18: =AA18-ROUNDDOWN(AA18*0.1,0) -> 15237
B19: 我孫子市 | C19: 5 | K19: 08:00:00 | L19: 08:30:00 | M19: 8時間以上8時間30分未満 | N19: 8時間以上8時間30分未満/有 | O19: 17460 | P19: 15714 | Q19: 19345 | R19: 17411 | S19: 19031 | T19: =S19-ROUNDDOWN(S19*0.1,0) -> 17128 | U19: 18717 | V19: =U19-ROUNDDOWN(U19*0.1,0) -> 16846 | W19: 18507 | X19: =W19-ROUNDDOWN(W19*0.1,0) -> 16657 | Y19: 18088 | Z19: =Y19-ROUNDDOWN(Y19*0.1,0) -> 16280 | AA19: 17774 | AB19: =AA19-ROUNDDOWN(AA19*0.1,0) -> 15997
B20: 鎌ケ谷市 | C20: 5 | K20: 08:30:00 | L20: 09:00:00 | M20: 8時間30分以上9時間未満 | N20: 8時間30分以上9時間未満/有 | O20: 18290 | P20: 16461 | Q20: 20265 | R20: 18239 | S20: 19936 | T20: =S20-ROUNDDOWN(S20*0.1,0) -> 17943 | U20: 19606 | V20: =U20-ROUNDDOWN(U20*0.1,0) -> 17646 | W20: 19387 | X20: =W20-ROUNDDOWN(W20*0.1,0) -> 17449 | Y20: 18948 | Z20: =Y20-ROUNDDOWN(Y20*0.1,0) -> 17054 | AA20: 18619 | AB20: =AA20-ROUNDDOWN(AA20*0.1,0) -> 16758
B21: 長柄町 | C21: 5 | K21: 09:00:00 | L21: 09:30:00 | M21: 9時間以上9時間30分未満 | N21: 9時間以上9時間30分未満/有 | O21: 19120 | P21: 17208 | Q21: 21184 | R21: 19066 | S21: 20840 | T21: =S21-ROUNDDOWN(S21*0.1,0) -> 18756 | U21: 20496 | V21: =U21-ROUNDDOWN(U21*0.1,0) -> 18447 | W21: 20267 | X21: =W21-ROUNDDOWN(W21*0.1,0) -> 18241 | Y21: 19808 | Z21: =Y21-ROUNDDOWN(Y21*0.1,0) -> 17828 | AA21: 19464 | AB21: =AA21-ROUNDDOWN(AA21*0.1,0) -> 17518
B22: 長南町 | C22: 5 | K22: 09:30:00 | L22: 10:00:00 | M22: 9時間30分以上10時間未満 | N22: 9時間30分以上10時間未満/有 | O22: 19950 | P22: 17955 | Q22: 22104 | R22: 19894 | S22: 21745 | T22: =S22-ROUNDDOWN(S22*0.1,0) -> 19571 | U22: 21386 | V22: =U22-ROUNDDOWN(U22*0.1,0) -> 19248 | W22: 21147 | X22: =W22-ROUNDDOWN(W22*0.1,0) -> 19033 | Y22: 20668 | Z22: =Y22-ROUNDDOWN(Y22*0.1,0) -> 18602 | AA22: 20309 | AB22: =AA22-ROUNDDOWN(AA22*0.1,0) -> 18279
B23: 木更津市 | C23: 5 | K23: 10:00:00 | L23: 10:30:00 | M23: 10時間以上10時間30分未満 | N23: 10時間以上10時間30分未満/有 | O23: 20780 | P23: 18702 | Q23: 23024 | R23: 20722 | S23: 22650 | T23: =S23-ROUNDDOWN(S23*0.1,0) -> 20385 | U23: 22276 | V23: =U23-ROUNDDOWN(U23*0.1,0) -> 20049 | W23: 22026 | X23: =W23-ROUNDDOWN(W23*0.1,0) -> 19824 | Y23: 21528 | Z23: =Y23-ROUNDDOWN(Y23*0.1,0) -> 19376 | AA23: 21154 | AB23: =AA23-ROUNDDOWN(AA23*0.1,0) -> 19039
B24: 君津市 | C24: 5 | K24: 10:30:00 | L24: 11:00:00 | M24: 10時間30分以上11時間未満 | N24: =M24&"/有" -> 10時間30分以上11時間未満/有 | O24: 21610 | P24: 19449 | Q24: 23943 | R24: 21549 | S24: 23554 | T24: =S24-ROUNDDOWN(S24*0.1,0) -> 21199 | U24: 23165 | V24: =U24-ROUNDDOWN(U24*0.1,0) -> 20849 | W24: 22906 | X24: =W24-ROUNDDOWN(W24*0.1,0) -> 20616 | Y24: 22387 | Z24: =Y24-ROUNDDOWN(Y24*0.1,0) -> 20149 | AA24: 21998 | AB24: =AA24-ROUNDDOWN(AA24*0.1,0) -> 19799
B25: 神栖市 | C25: その他 | K25: 11:00:00 | L25: 11:30:00 | M25: 11時間以上11時間30分未満 | N25: 11時間以上11時間30分未満/有 | O25: 22440 | P25: 20196 | Q25: 24863 | R25: 22377 | S25: 24459 | T25: =S25-ROUNDDOWN(S25*0.1,0) -> 22014 | U25: 24055 | V25: =U25-ROUNDDOWN(U25*0.1,0) -> 21650 | W25: 23786 | X25: =W25-ROUNDDOWN(W25*0.1,0) -> 21408 | Y25: 23247 | Z25: =Y25-ROUNDDOWN(Y25*0.1,0) -> 20923 | AA25: 22843 | AB25: =AA25-ROUNDDOWN(AA25*0.1,0) -> 20559
K26: 11:30:00 | L26: 12:00:00 | M26: 11時間30分以上12時間未満 | N26: 11時間30分以上12時間未満/有 | O26: 23270 | P26: 20943 | Q26: 25783 | R26: 23205 | S26: 25364 | T26: =S26-ROUNDDOWN(S26*0.1,0) -> 22828 | U26: 24945 | V26: =U26-ROUNDDOWN(U26*0.1,0) -> 22451 | W26: 24666 | X26: =W26-ROUNDDOWN(W26*0.1,0) -> 22200 | Y26: 24107 | Z26: =Y26-ROUNDDOWN(Y26*0.1,0) -> 21697 | AA26: 23688 | AB26: =AA26-ROUNDDOWN(AA26*0.1,0) -> 21320
K27: 12:00:00 | L27: 12:30:00 | M27: 12時間以上12時間30分未満 | N27: 12時間以上12時間30分未満/有 | O27: 24100 | P27: 21690 | Q27: 26702 | R27: 24032 | S27: 26269 | T27: =S27-ROUNDDOWN(S27*0.1,0) -> 23643 | U27: 25835 | V27: =U27-ROUNDDOWN(U27*0.1,0) -> 23252 | W27: 25546 | X27: =W27-ROUNDDOWN(W27*0.1,0) -> 22992 | Y27: 24967 | Z27: =Y27-ROUNDDOWN(Y27*0.1,0) -> 22471 | AA27: 24533 | AB27: =AA27-ROUNDDOWN(AA27*0.1,0) -> 22080
K28: 12:30:00 | L28: 13:00:00 | M28: 12時間30分以上13時間未満 | N28: 12時間30分以上13時間未満/有 | O28: 24930 | P28: 22437 | Q28: 27622 | R28: 24860 | S28: 27173 | T28: =S28-ROUNDDOWN(S28*0.1,0) -> 24456 | U28: 26724 | V28: =U28-ROUNDDOWN(U28*0.1,0) -> 24052 | W28: 26425 | X28: =W28-ROUNDDOWN(W28*0.1,0) -> 23783 | Y28: 25827 | Z28: =Y28-ROUNDDOWN(Y28*0.1,0) -> 23245 | AA28: 25378 | AB28: =AA28-ROUNDDOWN(AA28*0.1,0) -> 22841
K29: 13:00:00 | L29: 13:30:00 | M29: 13時間以上13時間30分未満 | N29: 13時間以上13時間30分未満/有 | O29: 25760 | P29: 23184 | Q29: 28542 | R29: 25688 | S29: 28078 | T29: =S29-ROUNDDOWN(S29*0.1,0) -> 25271 | U29: 27614 | V29: =U29-ROUNDDOWN(U29*0.1,0) -> 24853 | W29: 27305 | X29: =W29-ROUNDDOWN(W29*0.1,0) -> 24575 | Y29: 26687 | Z29: =Y29-ROUNDDOWN(Y29*0.1,0) -> 24019 | AA29: 26223 | AB29: =AA29-ROUNDDOWN(AA29*0.1,0) -> 23601
K30: 13:30:00 | L30: 14:00:00 | M30: 13時間30分以上14時間未満 | N30: 13時間30分以上14時間未満/有 | O30: 26590 | P30: 23931 | Q30: 29461 | R30: 26515 | S30: 28983 | T30: =S30-ROUNDDOWN(S30*0.1,0) -> 26085 | U30: 28504 | V30: =U30-ROUNDDOWN(U30*0.1,0) -> 25654 | W30: 28185 | X30: =W30-ROUNDDOWN(W30*0.1,0) -> 25367 | Y30: 27547 | Z30: =Y30-ROUNDDOWN(Y30*0.1,0) -> 24793 | AA30: 27068 | AB30: =AA30-ROUNDDOWN(AA30*0.1,0) -> 24362
N31: 30分未満/無 | O31: 1050 | P31: 945 | Q31: 1163 | R31: 1047 | S31: 1144 | T31: =S31-ROUNDDOWN(S31*0.1,0) -> 1030 | U31: 1125 | V31: =U31-ROUNDDOWN(U31*0.1,0) -> 1013 | W31: 1113 | X31: =W31-ROUNDDOWN(W31*0.1,0) -> 1002 | Y31: 1087 | Z31: =Y31-ROUNDDOWN(Y31*0.1,0) -> 979 | AA31: 1068 | AB31: =AA31-ROUNDDOWN(AA31*0.1,0) -> 962
N32: 30分以上1時間未満/無 | O32: 1970 | P32: 1773 | Q32: 2182 | R32: 1964 | S32: 2147 | T32: =S32-ROUNDDOWN(S32*0.1,0) -> 1933 | U32: 2111 | V32: =U32-ROUNDDOWN(U32*0.1,0) -> 1900 | W32: 2088 | X32: =W32-ROUNDDOWN(W32*0.1,0) -> 1880 | Y32: 2040 | Z32: =Y32-ROUNDDOWN(Y32*0.1,0) -> 1836 | AA32: 2005 | AB32: =AA32-ROUNDDOWN(AA32*0.1,0) -> 1805
N33: 1時間以上1時間30分未満/無 | O33: 2760 | P33: 2484 | Q33: 3058 | R33: 2753 | S33: 3008 | T33: =S33-ROUNDDOWN(S33*0.1,0) -> 2708 | U33: 2958 | V33: =U33-ROUNDDOWN(U33*0.1,0) -> 2663 | W33: 2925 | X33: =W33-ROUNDDOWN(W33*0.1,0) -> 2633 | Y33: 2859 | Z33: =Y33-ROUNDDOWN(Y33*0.1,0) -> 2574 | AA33: 2809 | AB33: =AA33-ROUNDDOWN(AA33*0.1,0) -> 2529
N34: 1時間30分以上2時間未満/無 | O34: 3460 | P34: 3114 | Q34: 3833 | R34: 3450 | S34: 3771 | T34: =S34-ROUNDDOWN(S34*0.1,0) -> 3394 | U34: 3709 | V34: =U34-ROUNDDOWN(U34*0.1,0) -> 3339 | W34: 3667 | X34: =W34-ROUNDDOWN(W34*0.1,0) -> 3301 | Y34: 3584 | Z34: =Y34-ROUNDDOWN(Y34*0.1,0) -> 3226 | AA34: 3522 | AB34: =AA34-ROUNDDOWN(AA34*0.1,0) -> 3170
N35: 2時間以上2時間30分未満/無 | O35: 4160 | P35: 3744 | Q35: 4609 | R35: 4149 | S35: 4534 | T35: =S35-ROUNDDOWN(S35*0.1,0) -> 4081 | U35: 4459 | V35: =U35-ROUNDDOWN(U35*0.1,0) -> 4014 | W35: 4409 | X35: =W35-ROUNDDOWN(W35*0.1,0) -> 3969 | Y35: 4309 | Z35: =Y35-ROUNDDOWN(Y35*0.1,0) -> 3879 | AA35: 4234 | AB35: =AA35-ROUNDDOWN(AA35*0.1,0) -> 3811
N36: 2時間30分以上3時間未満/無 | O36: 4860 | P36: 4374 | Q36: 5384 | R36: 4846 | S36: 5297 | T36: =S36-ROUNDDOWN(S36*0.1,0) -> 4768 | U36: 5209 | V36: =U36-ROUNDDOWN(U36*0.1,0) -> 4689 | W36: 5151 | X36: =W36-ROUNDDOWN(W36*0.1,0) -> 4636 | Y36: 5034 | Z36: =Y36-ROUNDDOWN(Y36*0.1,0) -> 4531 | AA36: 4947 | AB36: =AA36-ROUNDDOWN(AA36*0.1,0) -> 4453
N37: 3時間以上3時間30分未満/無 | O37: 5560 | P37: 5004 | Q37: 6160 | R37: 5544 | S37: 6060 | T37: =S37-ROUNDDOWN(S37*0.1,0) -> 5454 | U37: 5960 | V37: =U37-ROUNDDOWN(U37*0.1,0) -> 5364 | W37: 5893 | X37: =W37-ROUNDDOWN(W37*0.1,0) -> 5304 | Y37: 5760 | Z37: =Y37-ROUNDDOWN(Y37*0.1,0) -> 5184 | AA37: 5660 | AB37: =AA37-ROUNDDOWN(AA37*0.1,0) -> 5094
N38: 3時間30分以上4時間未満/無 | O38: 6260 | P38: 5634 | Q38: 6936 | R38: 6243 | S38: 6823 | T38: =S38-ROUNDDOWN(S38*0.1,0) -> 6141 | U38: 6710 | V38: =U38-ROUNDDOWN(U38*0.1,0) -> 6039 | W38: 6635 | X38: =W38-ROUNDDOWN(W38*0.1,0) -> 5972 | Y38: 6485 | Z38: =Y38-ROUNDDOWN(Y38*0.1,0) -> 5837 | AA38: 6372 | AB38: =AA38-ROUNDDOWN(AA38*0.1,0) -> 5735
N39: 4時間以上4時間30分未満/無 | O39: 6960 | P39: 6264 | Q39: 7711 | R39: 6940 | S39: 7586 | T39: =S39-ROUNDDOWN(S39*0.1,0) -> 6828 | U39: 7461 | V39: =U39-ROUNDDOWN(U39*0.1,0) -> 6715 | W39: 7377 | X39: =W39-ROUNDDOWN(W39*0.1,0) -> 6640 | Y39: 7210 | Z39: =Y39-ROUNDDOWN(Y39*0.1,0) -> 6489 | AA39: 7085 | AB39: =AA39-ROUNDDOWN(AA39*0.1,0) -> 6377
N40: 4時間30分以上5時間未満/無 | O40: 7660 | P40: 6894 | Q40: 8487 | R40: 7639 | S40: 8349 | T40: =S40-ROUNDDOWN(S40*0.1,0) -> 7515 | U40: 8211 | V40: =U40-ROUNDDOWN(U40*0.1,0) -> 7390 | W40: 8119 | X40: =W40-ROUNDDOWN(W40*0.1,0) -> 7308 | Y40: 7935 | Z40: =Y40-ROUNDDOWN(Y40*0.1,0) -> 7142 | AA40: 7797 | AB40: =AA40-ROUNDDOWN(AA40*0.1,0) -> 7018
N41: 5時間以上5時間30分未満/無 | O41: 8360 | P41: 7524 | Q41: 9262 | R41: 8336 | S41: 9112 | T41: =S41-ROUNDDOWN(S41*0.1,0) -> 8201 | U41: 8961 | V41: =U41-ROUNDDOWN(U41*0.1,0) -> 8065 | W41: 8861 | X41: =W41-ROUNDDOWN(W41*0.1,0) -> 7975 | Y41: 8660 | Z41: =Y41-ROUNDDOWN(Y41*0.1,0) -> 7794 | AA41: 8510 | AB41: =AA41-ROUNDDOWN(AA41*0.1,0) -> 7659
N42: 5時間30分以上6時間未満/無 | O42: 9060 | P42: 8154 | Q42: 10038 | R42: 9035 | S42: 9875 | T42: =S42-ROUNDDOWN(S42*0.1,0) -> 8888 | U42: 9712 | V42: =U42-ROUNDDOWN(U42*0.1,0) -> 8741 | W42: 9603 | X42: =W42-ROUNDDOWN(W42*0.1,0) -> 8643 | Y42: 9386 | Z42: =Y42-ROUNDDOWN(Y42*0.1,0) -> 8448 | AA42: 9223 | AB42: =AA42-ROUNDDOWN(AA42*0.1,0) -> 8301
N43: 6時間以上6時間30分未満/無 | O43: 9760 | P43: 8784 | Q43: 10814 | R43: 9733 | S43: 10638 | T43: =S43-ROUNDDOWN(S43*0.1,0) -> 9575 | U43: 10462 | V43: =U43-ROUNDDOWN(U43*0.1,0) -> 9416 | W43: 10345 | X43: =W43-ROUNDDOWN(W43*0.1,0) -> 9311 | Y43: 10111 | Z43: =Y43-ROUNDDOWN(Y43*0.1,0) -> 9100 | AA43: 9935 | AB43: =AA43-ROUNDDOWN(AA43*0.1,0) -> 8942
N44: 6時間30分以上7時間未満/無 | O44: 10460 | P44: 9414 | Q44: 11589 | R44: 10431 | S44: 11401 | T44: =S44-ROUNDDOWN(S44*0.1,0) -> 10261 | U44: 11213 | V44: =U44-ROUNDDOWN(U44*0.1,0) -> 10092 | W44: 11087 | X44: =W44-ROUNDDOWN(W44*0.1,0) -> 9979 | Y44: 10836 | Z44: =Y44-ROUNDDOWN(Y44*0.1,0) -> 9753 | AA44: 10648 | AB44: =AA44-ROUNDDOWN(AA44*0.1,0) -> 9584
N45: 7時間以上7時間30分未満/無 | O45: 11160 | P45: 10044 | Q45: 12365 | R45: 11129 | S45: 12164 | T45: =S45-ROUNDDOWN(S45*0.1,0) -> 10948 | U45: 11963 | V45: =U45-ROUNDDOWN(U45*0.1,0) -> 10767 | W45: 11829 | X45: =W45-ROUNDDOWN(W45*0.1,0) -> 10647 | Y45: 11561 | Z45: =Y45-ROUNDDOWN(Y45*0.1,0) -> 10405 | AA45: 11360 | AB45: =AA45-ROUNDDOWN(AA45*0.1,0) -> 10224
N46: 7時間30分以上8時間未満/無 | O46: 11860 | P46: 10674 | Q46: 13140 | R46: 11826 | S46: 12927 | T46: =S46-ROUNDDOWN(S46*0.1,0) -> 11635 | U46: 12713 | V46: =U46-ROUNDDOWN(U46*0.1,0) -> 11442 | W46: 12571 | X46: =W46-ROUNDDOWN(W46*0.1,0) -> 11314 | Y46: 12286 | Z46: =Y46-ROUNDDOWN(Y46*0.1,0) -> 11058 | AA46: 12073 | AB46: =AA46-ROUNDDOWN(AA46*0.1,0) -> 10866
N47: 8時間以上8時間30分未満/無 | O47: 12560 | P47: 11304 | Q47: 13916 | R47: 12525 | S47: 13690 | T47: =S47-ROUNDDOWN(S47*0.1,0) -> 12321 | U47: 13464 | V47: =U47-ROUNDDOWN(U47*0.1,0) -> 12118 | W47: 13313 | X47: =W47-ROUNDDOWN(W47*0.1,0) -> 11982 | Y47: 13012 | Z47: =Y47-ROUNDDOWN(Y47*0.1,0) -> 11711 | AA47: 12786 | AB47: =AA47-ROUNDDOWN(AA47*0.1,0) -> 11508
I48: 0 | N48: 8時間30分以上9時間未満/無 | O48: 13260 | P48: 11934 | Q48: 14692 | R48: 13223 | S48: 14453 | T48: =S48-ROUNDDOWN(S48*0.1,0) -> 13008 | U48: 14214 | V48: =U48-ROUNDDOWN(U48*0.1,0) -> 12793 | W48: 14055 | X48: =W48-ROUNDDOWN(W48*0.1,0) -> 12650 | Y48: 13737 | Z48: =Y48-ROUNDDOWN(Y48*0.1,0) -> 12364 | AA48: 13498 | AB48: =AA48-ROUNDDOWN(AA48*0.1,0) -> 12149
N49: 9時間以上9時間30分未満/無 | O49: 13960 | P49: 12564 | Q49: 15467 | R49: 13921 | S49: 15216 | T49: =S49-ROUNDDOWN(S49*0.1,0) -> 13695 | U49: 14965 | V49: =U49-ROUNDDOWN(U49*0.1,0) -> 13469 | W49: 14797 | X49: =W49-ROUNDDOWN(W49*0.1,0) -> 13318 | Y49: 14462 | Z49: =Y49-ROUNDDOWN(Y49*0.1,0) -> 13016 | AA49: 14211 | AB49: =AA49-ROUNDDOWN(AA49*0.1,0) -> 12790
N50: 9時間30分以上10時間未満/無 | O50: 14660 | P50: 13194 | Q50: 16243 | R50: 14619 | S50: 15979 | T50: =S50-ROUNDDOWN(S50*0.1,0) -> 14382 | U50: 15715 | V50: =U50-ROUNDDOWN(U50*0.1,0) -> 14144 | W50: 15539 | X50: =W50-ROUNDDOWN(W50*0.1,0) -> 13986 | Y50: 15187 | Z50: =Y50-ROUNDDOWN(Y50*0.1,0) -> 13669 | AA50: 14923 | AB50: =AA50-ROUNDDOWN(AA50*0.1,0) -> 13431
N51: 10時間以上10時間30分未満/無 | O51: 15360 | P51: 13824 | Q51: 17018 | R51: 15317 | S51: 16742 | T51: =S51-ROUNDDOWN(S51*0.1,0) -> 15068 | U51: 16465 | V51: =U51-ROUNDDOWN(U51*0.1,0) -> 14819 | W51: 16281 | X51: =W51-ROUNDDOWN(W51*0.1,0) -> 14653 | Y51: 15912 | Z51: =Y51-ROUNDDOWN(Y51*0.1,0) -> 14321 | AA51: 15636 | AB51: =AA51-ROUNDDOWN(AA51*0.1,0) -> 14073
N52: =M24&"/無" -> 10時間30分以上11時間未満/無 | O52: 16060 | P52: 14454 | Q52: 17794 | R52: 16015 | S52: 17505 | T52: =S52-ROUNDDOWN(S52*0.1,0) -> 15755 | U52: 17216 | V52: =U52-ROUNDDOWN(U52*0.1,0) -> 15495 | W52: 17023 | X52: =W52-ROUNDDOWN(W52*0.1,0) -> 15321 | Y52: 16638 | Z52: =Y52-ROUNDDOWN(Y52*0.1,0) -> 14975 | AA52: 16349 | AB52: =AA52-ROUNDDOWN(AA52*0.1,0) -> 14715
N53: 11時間以上11時間30分未満/無 | O53: 16760 | P53: 15084 | Q53: 18570 | R53: 16713 | S53: 18268 | T53: =S53-ROUNDDOWN(S53*0.1,0) -> 16442 | U53: 17966 | V53: =U53-ROUNDDOWN(U53*0.1,0) -> 16170 | W53: 17765 | X53: =W53-ROUNDDOWN(W53*0.1,0) -> 15989 | Y53: 17363 | Z53: =Y53-ROUNDDOWN(Y53*0.1,0) -> 15627 | AA53: 17061 | AB53: =AA53-ROUNDDOWN(AA53*0.1,0) -> 15355
N54: 11時間30分以上12時間未満/無 | O54: 17460 | P54: 15714 | Q54: 19345 | R54: 17411 | S54: 19031 | T54: =S54-ROUNDDOWN(S54*0.1,0) -> 17128 | U54: 18717 | V54: =U54-ROUNDDOWN(U54*0.1,0) -> 16846 | W54: 18507 | X54: =W54-ROUNDDOWN(W54*0.1,0) -> 16657 | Y54: 18088 | Z54: =Y54-ROUNDDOWN(Y54*0.1,0) -> 16280 | AA54: 17774 | AB54: =AA54-ROUNDDOWN(AA54*0.1,0) -> 15997
N55: 12時間以上12時間30分未満/無 | O55: 18160 | P55: 16344 | Q55: 20121 | R55: 18109 | S55: 19794 | T55: =S55-ROUNDDOWN(S55*0.1,0) -> 17815 | U55: 19467 | V55: =U55-ROUNDDOWN(U55*0.1,0) -> 17521 | W55: 19249 | X55: =W55-ROUNDDOWN(W55*0.1,0) -> 17325 | Y55: 18813 | Z55: =Y55-ROUNDDOWN(Y55*0.1,0) -> 16932 | AA55: 18486 | AB55: =AA55-ROUNDDOWN(AA55*0.1,0) -> 16638
N56: 12時間30分以上13時間未満/無 | O56: 18860 | P56: 16974 | Q56: 20896 | R56: 18807 | S56: 20557 | T56: =S56-ROUNDDOWN(S56*0.1,0) -> 18502 | U56: 20217 | V56: =U56-ROUNDDOWN(U56*0.1,0) -> 18196 | W56: 19991 | X56: =W56-ROUNDDOWN(W56*0.1,0) -> 17992 | Y56: 19538 | Z56: =Y56-ROUNDDOWN(Y56*0.1,0) -> 17585 | AA56: 19199 | AB56: =AA56-ROUNDDOWN(AA56*0.1,0) -> 17280
N57: 13時間以上13時間30分未満/無 | O57: 19560 | P57: 17604 | Q57: 21672 | R57: 19505 | S57: 21320 | T57: =S57-ROUNDDOWN(S57*0.1,0) -> 19188 | U57: 20968 | V57: =U57-ROUNDDOWN(U57*0.1,0) -> 18872 | W57: 20733 | X57: =W57-ROUNDDOWN(W57*0.1,0) -> 18660 | Y57: 20264 | Z57: =Y57-ROUNDDOWN(Y57*0.1,0) -> 18238 | AA57: 19912 | AB57: =AA57-ROUNDDOWN(AA57*0.1,0) -> 17921
N58: 13時間30分以上14時間未満/無 | O58: 20260 | P58: 18234 | Q58: 22448 | R58: 20204 | S58: 22083 | T58: =S58-ROUNDDOWN(S58*0.1,0) -> 19875 | U58: 21718 | V58: =U58-ROUNDDOWN(U58*0.1,0) -> 19547 | W58: 21475 | X58: =W58-ROUNDDOWN(W58*0.1,0) -> 19328 | Y58: 20989 | Z58: =Y58-ROUNDDOWN(Y58*0.1,0) -> 18891 | AA58: 20624 | AB58: =AA58-ROUNDDOWN(AA58*0.1,0) -> 18562

Sheet 1
B1: № | C1: 1
B4: =EOMONTH(B13,0) -> 1900-01-31 | F4: 鎌ケ谷市移動支援サービス提供実績記録票
A5: 登録番号 | D5: =VLOOKUP($C$1,利用者情報!A:U,COLUMN(利用者情報!B3),FALSE) -> 0 | G5: 支給決定障がい者等氏名 （児童氏名） | I5: =VLOOKUP($C$1,利用者情報!A:U,COLUMN(利用者情報!C1),FALSE) -> 0 | L5: 事業所登録番号
L6: =請求事業者!B3 -> 0 | Q6: コメント | S6: 決定時間数
A7: 契約支給量 | D7: 身体介護を 伴う | F7: =IF(VLOOKUP(C1,利用者情報!A:G,5)="有",CONCATENATE(VLOOKUP(C1,利用者情報!A:G,4)&"時間"),"") ->  | G7: 身体介護を 伴わない | I7: =IF(VLOOKUP(C1,利用者情報!A:G,5)<>"有",CONCATENATE(VLOOKUP(C1,利用者情報!A:G,4)&"時間"),"") -> 時間 | J7: 事業所及び その事業所 | L7: =請求事業者!B7 -> 0 | Q7: =利用者情報!J4 ->  | S7: =IF(F7="",I7,F7) -> 時間
A8: 利用者負担の有無 | F8: 利用者の負担割合 | H8: 利用者負担上限額
A9: =VLOOKUP($C$1,利用者情報!A:U,COLUMN(利用者情報!F3),FALSE) -> 0 | F9: =IF(A9="有","1割","0割") -> 0割 | H9: =VLOOKUP($C$1,利用者情報!A:U,COLUMN(利用者情報!G3),FALSE) -> 0 | W9: =請求事業者!C9 -> 5
W10: 便宜上区分
A11: 日付 | D11: 支援計画 | I11: 算定 時間 | J11: 派遣 人数 | K11: 算定額 | L11: 利用者 負担額 | M11: 請求額 | N11: サービス 提供者印 | O11: 利用者 確認印 | Q11: コメント | T11: 利用者負担額 累計 | U11: 上限到達フラグ | V11: 上限達成時の利用者負担額 | W11: =IF(F7="","無","有") -> 無
A12: 月 | B12: 日 | C12: 曜日 | D12: 開始 時間 | E12: 終了 時間 | F12: 計画 時間数 | G12: 開始 時間 | H12: 終了 時間 | R12: 請求額 | S12: 利用者 負担額 | W12: =IF(A9="有","（9割）","") -> 
A13: =IF(B13="","",TEXT(B13,"m")) ->  | C13: =IF(B13="","",B13) ->  | I13: =H13-G13 -> 0 | K13: =IF($H13=0,0,INDEX(単価,MATCH(W13,時間,0),MATCH($W$9,地域区分,0))) -> 0 | L13: =IF(U13=0,S13,V13) -> 0 | M13: =K13-L13 -> 0 | P13: 1 | Q13: =IF(A13="","",IF($A$13<>A13,"月が異なります！",IF(SUM($I$13:I13)>$S$7,"決定時間数を超過しています！",""))) ->  | R13: =IF(I13=0,0,INDEX(単価,MATCH(W13,時間,0),MATCH(IF(W12="",W9,W9&W12),地域区分,0))) -> 0 | S13: =K13-R13 -> 0 | T13: =SUM($S$13:S13) -> 0 | W13: =IF(I13=0,0,CONCATENATE(VLOOKUP(I13+"00:01",'データ '!K:M,3,TRUE),"/",$W$11)) -> 0
A14: =IF(B14="","",TEXT(B14,"m")) ->  | C14: =IF(B14="","",B14) ->  | I14: =H14-G14 -> 0 | K14: =IF($H14=0,0,INDEX(単価,MATCH(W14,時間,0),MATCH($W$9,地域区分,0))) -> 0 | L14: =IF(U14=0,S14,V14) -> 0 | M14: =K14-L14 -> 0 | P14: 2 | Q14: =IF(A14="","",IF($A$13<>A14,"月が異なります！",IF(SUM($I$13:I14)>$S$7,"決定時間数を超過しています！",""))) ->  | R14: =IF(AND($H14=0),0,IF($A$9="有",INDEX(単価,MATCH(W14,時間,0),MATCH($W$9&$W$12,地域区分,0)),INDEX(単価,MATCH(W14,時間,0),MATCH($W$9,地域区分,0)))) -> 0 | S14: =K14-R14 -> 0 | T14: =SUM($S$13:S14) -> 0 | U14: =IF(AND(T13<$H$9,T14>$H$9),1,IF(T14>$H$9,2,0)) -> 0 | V14: =IF(U14=1,$H$9-T13,0) -> 0 | W14: =IF(I14=0,0,CONCATENATE(VLOOKUP(I14+"00:01",'データ '!K:M,3,TRUE),"/",$W$11)) -> 0
I15: 0 | K15: 0 | L15: =IF(U15=0,S15,V15) -> 0 | M15: =K15-L15 -> 0 | P15: 3 | Q15: =IF(A15="","",IF($A$13<>A15,"月が異なります！",IF(SUM($I$13:I15)>$S$7,"決定時間数を超過しています！",""))) ->  | R15: 0 | S15: 0 | T15: =SUM($S$13:S15) -> 0 | U15: =IF(AND(T14<$H$9,T15>$H$9),1,IF(T15>$H$9,2,0)) -> 0 | V15: =IF(U15=1,$H$9-T14,0) -> 0 | W15: =IF(I15=0,0,CONCATENATE(VLOOKUP(I15+"00:01",'データ '!K:M,3,TRUE),"/",$W$11)) -> 0
I16: 0 | K16: 0 | L16: 0 | M16: 0 | P16: 4 | Q16: =IF(A16="","",IF($A$13<>A16,"月が異なります！",IF(SUM($I$13:I16)>$S$7,"決定時間数を超過しています！",""))) ->  | R16: 0 | S16: 0 | T16: =SUM($S$13:S16) -> 0 | U16: 0 | V16: 0 | W16: =IF(I16=0,0,CONCATENATE(VLOOKUP(I16+"00:01",'データ '!K:M,3,TRUE),"/",$W$11)) -> 0
I17: 0 | K17: 0 | L17: 0 | M17: 0 | P17: 5 | Q17: =IF(A17="","",IF($A$13<>A17,"月が異なります！",IF(SUM($I$13:I17)>$S$7,"決定時間数を超過しています！",""))) ->  | R17: 0 | S17: 0 | T17: =SUM($S$13:S17) -> 0 | U17: 0 | V17: 0 | W17: =IF(I17=0,0,CONCATENATE(VLOOKUP(I17+"00:01",'データ '!K:M,3,TRUE),"/",$W$11)) -> 0
I18: 0 | K18: 0 | L18: 0 | M18: 0 | P18: 6 | Q18: =IF(A18="","",IF($A$13<>A18,"月が異なります！",IF(SUM($I$13:I18)>$S$7,"決定時間数を超過しています！",""))) ->  | R18: 0 | S18: 0 | T18: =SUM($S$13:S18) -> 0 | U18: 0 | V18: 0 | W18: =IF(I18=0,0,CONCATENATE(VLOOKUP(I18+"00:01",'データ '!K:M,3,TRUE),"/",$W$11)) -> 0
I19: 0 | K19: 0 | L19: 0 | M19: 0 | P19: 7 | Q19: =IF(A19="","",IF($A$13<>A19,"月が異なります！",IF(SUM($I$13:I19)>$S$7,"決定時間数を超過しています！",""))) ->  | R19: 0 | S19: 0 | T19: =SUM($S$13:S19) -> 0 | U19: 0 | V19: 0 | W19: =IF(I19=0,0,CONCATENATE(VLOOKUP(I19+"00:01",'データ '!K:M,3,TRUE),"/",$W$11)) -> 0
I20: 0 | K20: 0 | L20: 0 | M20: 0 | P20: 8 | Q20: =IF(A20="","",IF($A$13<>A20,"月が異なります！",IF(SUM($I$13:I20)>$S$7,"決定時間数を超過しています！",""))) ->  | R20: 0 | S20: 0 | T20: =SUM($S$13:S20) -> 0 | U20: 0 | V20: 0 | W20: =IF(I20=0,0,CONCATENATE(VLOOKUP(I20+"00:01",'データ '!K:M,3,TRUE),"/",$W$11)) -> 0
I21: 0 | K21: 0 | L21: =IF(U21=0,S21,V21) -> 0 | M21: 0 | P21: 9 | Q21: =IF(A21="","",IF($A$13<>A21,"月が異なります！",IF(SUM($I$13:I21)>$S$7,"決定時間数を超過しています！",""))) ->  | R21: 0 | S21: 0 | T21: =SUM($S$13:S21) -> 0 | U21: 0 | V21: 0 | W21: =IF(I21=0,0,CONCATENATE(VLOOKUP(I21+"00:01",'データ '!K:M,3,TRUE),"/",$W$11)) -> 0
I22: 0 | K22: 0 | L22: =IF(U22=0,S22,V22) -> 0 | M22: 0 | P22: 10 | Q22: =IF(A22="","",IF($A$13<>A22,"月が異なります！",IF(SUM($I$13:I22)>$S$7,"決定時間数を超過しています！",""))) ->  | R22: 0 | S22: =K22-R22 -> 0 | T22: =SUM($S$13:S22) -> 0 | U22: 0 | V22: 0 | W22: =IF(I22=0,0,CONCATENATE(VLOOKUP(I22+"00:01",'データ '!K:M,3,TRUE),"/",$W$11)) -> 0
I23: 0 | K23: 0 | L23: 0 | M23: 0 | P23: 11 | Q23: =IF(A23="","",IF($A$13<>A23,"月が異なります！",IF(SUM($I$13:I23)>$S$7,"決定時間数を超過しています！",""))) ->  | R23: 0 | S23: 0 | T23: =SUM($S$13:S23) -> 0 | U23: 0 | V23: 0 | W23: =IF(I23=0,0,CONCATENATE(VLOOKUP(I23+"00:01",'データ '!K:M,3,TRUE),"/",$W$11)) -> 0
I24: 0 | K24: 0 | L24: 0 | M24: 0 | P24: 12 | Q24: =IF(A24="","",IF($A$13<>A24,"月が異なります！",IF(SUM($I$13:I24)>$S$7,"決定時間数を超過しています！",""))) ->  | R24: 0 | S24: 0 | T24: =SUM($S$13:S24) -> 0 | U24: 0 | V24: 0 | W24: =IF(I24=0,0,CONCATENATE(VLOOKUP(I24+"00:01",'データ '!K:M,3,TRUE),"/",$W$11)) -> 0
I25: 0 | K25: 0 | L25: 0 | M25: 0 | P25: 13 | Q25: =IF(A25="","",IF($A$13<>A25,"月が異なります！",IF(SUM($I$13:I25)>$S$7,"決定時間数を超過しています！",""))) ->  | R25: 0 | S25: 0 | T25: =SUM($S$13:S25) -> 0 | U25: 0 | V25: 0 | W25: =IF(I25=0,0,CONCATENATE(VLOOKUP(I25+"00:01",'データ '!K:M,3,TRUE),"/",$W$11)) -> 0
I26: 0 | K26: 0 | L26: 0 | M26: 0 | P26: 14 | Q26: =IF(A26="","",IF($A$13<>A26,"月が異なります！",IF(SUM($I$13:I26)>$S$7,"決定時間数を超過しています！",""))) ->  | R26: 0 | S26: 0 | T26: =SUM($S$13:S26) -> 0 | U26: 0 | V26: 0 | W26: =IF(I26=0,0,CONCATENATE(VLOOKUP(I26+"00:01",'データ '!K:M,3,TRUE),"/",$W$11)) -> 0
I27: 0 | K27: 0 | L27: 0 | M27: 0 | P27: 15 | Q27: =IF(A27="","",IF($A$13<>A27,"月が異なります！",IF(SUM($I$13:I27)>$S$7,"決定時間数を超過しています！",""))) ->  | R27: 0 | S27: 0 | T27: =SUM($S$13:S27) -> 0 | U27: 0 | V27: 0 | W27: =IF(I27=0,0,CONCATENATE(VLOOKUP(I27+"00:01",'データ '!K:M,3,TRUE),"/",$W$11)) -> 0
I28: 0 | K28: 0 | L28: 0 | M28: 0 | P28: 16 | Q28: =IF(A28="","",IF($A$13<>A28,"月が異なります！",IF(SUM($I$13:I28)>$S$7,"決定時間数を超過しています！",""))) ->  | R28: 0 | S28: 0 | T28: =SUM($S$13:S28) -> 0 | U28: 0 | V28: 0 | W28: =IF(I28=0,0,CONCATENATE(VLOOKUP(I28+"00:01",'データ '!K:M,3,TRUE),"/",$W$11)) -> 0
I29: 0 | K29: 0 | L29: 0 | M29: 0 | P29: 17 | Q29: =IF(A29="","",IF($A$13<>A29,"月が異なります！",IF(SUM($I$13:I29)>$S$7,"決定時間数を超過しています！",""))) ->  | R29: 0 | S29: 0 | T29: =SUM($S$13:S29) -> 0 | U29: 0 | V29: 0 | W29: =IF(I29=0,0,CONCATENATE(VLOOKUP(I29+"00:01",'データ '!K:M,3,TRUE),"/",$W$11)) -> 0
I30: 0 | K30: 0 | L30: 0 | M30: 0 | P30: 18 | Q30: =IF(A30="","",IF($A$13<>A30,"月が異なります！",IF(SUM($I$13:I30)>$S$7,"決定時間数を超過しています！",""))) ->  | R30: 0 | S30: 0 | T30: =SUM($S$13:S30) -> 0 | U30: 0 | V30: 0 | W30: =IF(I30=0,0,CONCATENATE(VLOOKUP(I30+"00:01",'データ '!K:M,3,TRUE),"/",$W$11)) -> 0
I31: 0 | K31: 0 | L31: 0 | M31: 0 | P31: 19 | Q31: =IF(A31="","",IF($A$13<>A31,"月が異なります！",IF(SUM($I$13:I31)>$S$7,"決定時間数を超過しています！",""))) ->  | R31: 0 | S31: 0 | T31: =SUM($S$13:S31) -> 0 | U31: 0 | V31: 0 | W31: =IF(I31=0,0,CONCATENATE(VLOOKUP(I31+"00:01",'データ '!K:M,3,TRUE),"/",$W$11)) -> 0
I32: 0 | K32: 0 | L32: 0 | M32: 0 | P32: 20 | Q32: =IF(A32="","",IF($A$13<>A32,"月が異なります！",IF(SUM($I$13:I32)>$S$7,"決定時間数を超過しています！",""))) ->  | R32: 0 | S32: 0 | T32: =SUM($S$13:S32) -> 0 | U32: 0 | V32: 0 | W32: =IF(I32=0,0,CONCATENATE(VLOOKUP(I32+"00:01",'データ '!K:M,3,TRUE),"/",$W$11)) -> 0
I33: 0 | K33: 0 | L33: 0 | M33: 0 | P33: 21 | Q33: =IF(A33="","",IF($A$13<>A33,"月が異なります！",IF(SUM($I$13:I33)>$S$7,"決定時間数を超過しています！",""))) ->  | R33: 0 | S33: 0 | T33: =SUM($S$13:S33) -> 0 | U33: 0 | V33: 0 | W33: =IF(I33=0,0,CONCATENATE(VLOOKUP(I33+"00:01",'データ '!K:M,3,TRUE),"/",$W$11)) -> 0
I34: 0 | K34: 0 | L34: 0 | M34: 0 | P34: 22 | Q34: =IF(A34="","",IF($A$13<>A34,"月が異なります！",IF(SUM($I$13:I34)>$S$7,"決定時間数を超過しています！",""))) ->  | R34: 0 | S34: 0 | T34: =SUM($S$13:S34) -> 0 | U34: 0 | V34: 0 | W34: =IF(I34=0,0,CONCATENATE(VLOOKUP(I34+"00:01",'データ '!K:M,3,TRUE),"/",$W$11)) -> 0
I35: 0 | K35: 0 | L35: 0 | M35: 0 | P35: 23 | Q35: =IF(A35="","",IF($A$13<>A35,"月が異なります！",IF(SUM($I$13:I35)>$S$7,"決定時間数を超過しています！",""))) ->  | R35: 0 | S35: 0 | T35: =SUM($S$13:S35) -> 0 | U35: 0 | V35: 0 | W35: =IF(I35=0,0,CONCATENATE(VLOOKUP(I35+"00:01",'データ '!K:M,3,TRUE),"/",$W$11)) -> 0
I36: 0 | K36: 0 | L36: 0 | M36: 0 | P36: 24 | Q36: =IF(A36="","",IF($A$13<>A36,"月が異なります！",IF(SUM($I$13:I36)>$S$7,"決定時間数を超過しています！",""))) ->  | R36: 0 | S36: 0 | T36: =SUM($S$13:S36) -> 0 | U36: 0 | V36: 0 | W36: =IF(I36=0,0,CONCATENATE(VLOOKUP(I36+"00:01",'データ '!K:M,3,TRUE),"/",$W$11)) -> 0
I37: 0 | K37: 0 | L37: 0 | M37: 0 | P37: 25 | Q37: =IF(A37="","",IF($A$13<>A37,"月が異なります！",IF(SUM($I$13:I37)>$S$7,"決定時間数を超過しています！",""))) ->  | R37: 0 | S37: 0 | T37: =SUM($S$13:S37) -> 0 | U37: 0 | V37: 0 | W37: =IF(I37=0,0,CONCATENATE(VLOOKUP(I37+"00:01",'データ '!K:M,3,TRUE),"/",$W$11)) -> 0
I38: 0 | K38: 0 | L38: 0 | M38: 0 | P38: 26 | Q38: =IF(A38="","",IF($A$13<>A38,"月が異なります！",IF(SUM($I$13:I38)>$S$7,"決定時間数を超過しています！",""))) ->  | R38: 0 | S38: 0 | T38: =SUM($S$13:S38) -> 0 | U38: 0 | V38: 0 | W38: =IF(I38=0,0,CONCATENATE(VLOOKUP(I38+"00:01",'データ '!K:M,3,TRUE),"/",$W$11)) -> 0
I39: 0 | K39: 0 | L39: 0 | M39: 0 | P39: 27 | Q39: =IF(A39="","",IF($A$13<>A39,"月が異なります！",IF(SUM($I$13:I39)>$S$7,"決定時間数を超過しています！",""))) ->  | R39: 0 | S39: 0 | T39: =SUM($S$13:S39) -> 0 | U39: 0 | V39: 0 | W39: =IF(I39=0,0,CONCATENATE(VLOOKUP(I39+"00:01",'データ '!K:M,3,TRUE),"/",$W$11)) -> 0
I40: 0 | K40: 0 | L40: 0 | M40: 0 | P40: 28 | Q40: =IF(A40="","",IF($A$13<>A40,"月が異なります！",IF(SUM($I$13:I40)>$S$7,"決定時間数を超過しています！",""))) ->  | R40: 0 | S40: 0 | T40: =SUM($S$13:S40) -> 0 | U40: 0 | V40: 0 | W40: =IF(I40=0,0,CONCATENATE(VLOOKUP(I40+"00:01",'データ '!K:M,3,TRUE),"/",$W$11)) -> 0
I41: 0 | K41: 0 | L41: 0 | M41: 0 | P41: 29 | Q41: =IF(A41="","",IF($A$13<>A41,"月が異なります！",IF(SUM($I$13:I41)>$S$7,"決定時間数を超過しています！",""))) ->  | R41: 0 | S41: 0 | T41: =SUM($S$13:S41) -> 0 | U41: 0 | V41: 0 | W41: =IF(I41=0,0,CONCATENATE(VLOOKUP(I41+"00:01",'データ '!K:M,3,TRUE),"/",$W$11)) -> 0
I42: 0 | K42: 0 | L42: 0 | M42: 0 | P42: 30 | Q42: =IF(A42="","",IF($A$13<>A42,"月が異なります！",IF(SUM($I$13:I42)>$S$7,"決定時間数を超過しています！",""))) ->  | R42: 0 | S42: 0 | T42: =SUM($S$13:S42) -> 0 | U42: 0 | V42: 0 | W42: =IF(I42=0,0,CONCATENATE(VLOOKUP(I42+"00:01",'データ '!K:M,3,TRUE),"/",$W$11)) -> 0
I43: 0 | K43: 0 | L43: 0 | M43: 0 | P43: 31 | Q43: =IF(A43="","",IF($A$13<>A43,"月が異なります！",IF(SUM($I$13:I43)>$S$7,"決定時間数を超過しています！",""))) ->  | R43: 0 | S43: 0 | T43: =SUM($S$13:S43) -> 0 | U43: 0 | V43: 0 | W43: =IF(I43=0,0,CONCATENATE(VLOOKUP(I43+"00:01",'データ '!K:M,3,TRUE),"/",$W$11)) -> 0
A44: 合計 | I44: =SUM(I13:I43) -> 0 | K44: =SUM(K13:K43) -> 0 | L44: =SUM(L13:L43) -> 0 | M44: =SUM(M13:M43) -> 0 | W44: =IF(I44>=$X$8,$Y$9,IF(AND(I44<$X$8,I44>=$X$7),$Y$8,IF(I44<$X$7,$Y$7)))&$W$11 -> 無

Sheet 2
B1: № | C1: 2
B4: =EOMONTH(B13,0) -> 1900-01-31 | F4: 鎌ケ谷市移動支援サービス提供実績記録票
A5: 登録番号 | D5: =VLOOKUP($C$1,利用者情報!A:U,COLUMN(利用者情報!B3),FALSE) -> 0 | G5: 支給決定障がい者等氏名 （児童氏名） | I5: =VLOOKUP($C$1,利用者情報!A:U,COLUMN(利用者情報!C1),FALSE) -> 0 | L5: 事業所登録番号
L6: =請求事業者!B3 -> 0 | Q6: コメント | S6: 決定時間数
A7: 契約支給量 | D7: 身体介護を 伴う | F7: =IF(VLOOKUP(C1,利用者情報!A:G,5)="有",CONCATENATE(VLOOKUP(C1,利用者情報!A:G,4)&"時間"),"") ->  | G7: 身体介護を 伴わない | I7: =IF(VLOOKUP(C1,利用者情報!A:G,5)<>"有",CONCATENATE(VLOOKUP(C1,利用者情報!A:G,4)&"時間"),"") -> 時間 | J7: 事業所及び その事業所 | L7: =請求事業者!B7 -> 0 | Q7: =利用者情報!J4 ->  | S7: =IF(F7="",I7,F7) -> 時間
A8: 利用者負担の有無 | F8: 利用者の負担割合 | H8: 利用者負担上限額
A9: =VLOOKUP($C$1,利用者情報!A:U,COLUMN(利用者情報!F3),FALSE) -> 0 | F9: =IF(A9="有","1割","0割") -> 0割 | H9: =VLOOKUP($C$1,利用者情報!A:U,COLUMN(利用者情報!G3),FALSE) -> 0 | W9: =請求事業者!C9 -> 5
W10: 便宜上区分
A11: 日付 | D11: 支援計画 | I11: 算定 時間 | J11: 派遣 人数 | K11: 算定額 | L11: 利用者 負担額 | M11: 請求額 | N11: サービス 提供者印 | O11: 利用者 確認印 | Q11: コメント | T11: 利用者負担額 累計 | U11: 上限到達フラグ | V11: 上限達成時の利用者負担額 | W11: =IF(F7="","無","有") -> 無
A12: 月 | B12: 日 | C12: 曜日 | D12: 開始 時間 | E12: 終了 時間 | F12: 計画 時間数 | G12: 開始 時間 | H12: 終了 時間 | R12: 請求額 | S12: 利用者 負担額 | W12: =IF(A9="有","（9割）","") -> 
A13: =IF(B13="","",TEXT(B13,"m")) ->  | C13: =IF(B13="","",B13) ->  | I13: =H13-G13 -> 0 | K13: =IF($H13=0,0,INDEX(単価,MATCH(W13,時間,0),MATCH($W$9,地域区分,0))) -> 0 | L13: =IF(U13=0,S13,V13) -> 0 | M13: =K13-L13 -> 0 | P13: 1 | Q13: =IF(A13="","",IF($A$13<>A13,"月が異なります！",IF(SUM($I$13:I13)>$S$7,"決定時間数を超過しています！",""))) ->  | R13: =IF(I13=0,0,INDEX(単価,MATCH(W13,時間,0),MATCH(IF(W12="",W9,W9&W12),地域区分,0))) -> 0 | S13: =K13-R13 -> 0 | T13: =SUM($S$13:S13) -> 0 | W13: =IF(I13=0,0,CONCATENATE(VLOOKUP(I13+"00:01",'データ '!K:M,3,TRUE),"/",$W$11)) -> 0
A14: =IF(B14="","",TEXT(B14,"m")) ->  | C14: =IF(B14="","",B14) ->  | I14: =H14-G14 -> 0 | K14: =IF($H14=0,0,INDEX(単価,MATCH(W14,時間,0),MATCH($W$9,地域区分,0))) -> 0 | L14: =IF(U14=0,S14,V14) -> 0 | M14: =K14-L14 -> 0 | P14: 2 | Q14: =IF(A14="","",IF($A$13<>A14,"月が異なります！",IF(SUM($I$13:I14)>$S$7,"決定時間数を超過しています！",""))) ->  | R14: =IF(AND($H14=0),0,IF($A$9="有",INDEX(単価,MATCH(W14,時間,0),MATCH($W$9&$W$12,地域区分,0)),INDEX(単価,MATCH(W14,時間,0),MATCH($W$9,地域区分,0)))) -> 0 | S14: =K14-R14 -> 0 | T14: =SUM($S$13:S14) -> 0 | U14: =IF(AND(T13<$H$9,T14>$H$9),1,IF(T14>$H$9,2,0)) -> 0 | V14: =IF(U14=1,$H$9-T13,0) -> 0 | W14: =IF(I14=0,0,CONCATENATE(VLOOKUP(I14+"00:01",'データ '!K:M,3,TRUE),"/",$W$11)) -> 0
I15: 0 | K15: 0 | L15: =IF(U15=0,S15,V15) -> 0 | M15: =K15-L15 -> 0 | P15: 3 | Q15: =IF(A15="","",IF($A$13<>A15,"月が異なります！",IF(SUM($I$13:I15)>$S$7,"決定時間数を超過しています！",""))) ->  | R15: 0 | S15: 0 | T15: =SUM($S$13:S15) -> 0 | U15: =IF(AND(T14<$H$9,T15>$H$9),1,IF(T15>$H$9,2,0)) -> 0 | V15: =IF(U15=1,$H$9-T14,0) -> 0 | W15: =IF(I15=0,0,CONCATENATE(VLOOKUP(I15+"00:01",'データ '!K:M,3,TRUE),"/",$W$11)) -> 0
I16: 0 | K16: 0 | L16: 0 | M16: 0 | P16: 4 | Q16: =IF(A16="","",IF($A$13<>A16,"月が異なります！",IF(SUM($I$13:I16)>$S$7,"決定時間数を超過しています！",""))) ->  | R16: 0 | S16: 0 | T16: =SUM($S$13:S16) -> 0 | U16: 0 | V16: 0 | W16: =IF(I16=0,0,CONCATENATE(VLOOKUP(I16+"00:01",'データ '!K:M,3,TRUE),"/",$W$11)) -> 0
I17: 0 | K17: 0 | L17: 0 | M17: 0 | P17: 5 | Q17: =IF(A17="","",IF($A$13<>A17,"月が異なります！",IF(SUM($I$13:I17)>$S$7,"決定時間数を超過しています！",""))) ->  | R17: 0 | S17: 0 | T17: =SUM($S$13:S17) -> 0 | U17: 0 | V17: 0 | W17: =IF(I17=0,0,CONCATENATE(VLOOKUP(I17+"00:01",'データ '!K:M,3,TRUE),"/",$W$11)) -> 0
I18: 0 | K18: 0 | L18: 0 | M18: 0 | P18: 6 | Q18: =IF(A18="","",IF($A$13<>A18,"月が異なります！",IF(SUM($I$13:I18)>$S$7,"決定時間数を超過しています！",""))) ->  | R18: 0 | S18: 0 | T18: =SUM($S$13:S18) -> 0 | U18: 0 | V18: 0 | W18: =IF(I18=0,0,CONCATENATE(VLOOKUP(I18+"00:01",'データ '!K:M,3,TRUE),"/",$W$11)) -> 0
I19: 0 | K19: 0 | L19: 0 | M19: 0 | P19: 7 | Q19: =IF(A19="","",IF($A$13<>A19,"月が異なります！",IF(SUM($I$13:I19)>$S$7,"決定時間数を超過しています！",""))) ->  | R19: 0 | S19: 0 | T19: =SUM($S$13:S19) -> 0 | U19: 0 | V19: 0 | W19: =IF(I19=0,0,CONCATENATE(VLOOKUP(I19+"00:01",'データ '!K:M,3,TRUE),"/",$W$11)) -> 0
I20: 0 | K20: 0 | L20: 0 | M20: 0 | P20: 8 | Q20: =IF(A20="","",IF($A$13<>A20,"月が異なります！",IF(SUM($I$13:I20)>$S$7,"決定時間数を超過しています！",""))) ->  | R20: 0 | S20: 0 | T20: =SUM($S$13:S20) -> 0 | U20: 0 | V20: 0 | W20: =IF(I20=0,0,CONCATENATE(VLOOKUP(I20+"00:01",'データ '!K:M,3,TRUE),"/",$W$11)) -> 0
I21: 0 | K21: 0 | L21: =IF(U21=0,S21,V21) -> 0 | M21: 0 | P21: 9 | Q21: =IF(A21="","",IF($A$13<>A21,"月が異なります！",IF(SUM($I$13:I21)>$S$7,"決定時間数を超過しています！",""))) ->  | R21: 0 | S21: 0 | T21: =SUM($S$13:S21) -> 0 | U21: 0 | V21: 0 | W21: =IF(I21=0,0,CONCATENATE(VLOOKUP(I21+"00:01",'データ '!K:M,3,TRUE),"/",$W$11)) -> 0
I22: 0 | K22: 0 | L22: =IF(U22=0,S22,V22) -> 0 | M22: 0 | P22: 10 | Q22: =IF(A22="","",IF($A$13<>A22,"月が異なります！",IF(SUM($I$13:I22)>$S$7,"決定時間数を超過しています！",""))) ->  | R22: 0 | S22: =K22-R22 -> 0 | T22: =SUM($S$13:S22) -> 0 | U22: 0 | V22: 0 | W22: =IF(I22=0,0,CONCATENATE(VLOOKUP(I22+"00:01",'データ '!K:M,3,TRUE),"/",$W$11)) -> 0
I23: 0 | K23: 0 | L23: 0 | M23: 0 | P23: 11 | Q23: =IF(A23="","",IF($A$13<>A23,"月が異なります！",IF(SUM($I$13:I23)>$S$7,"決定時間数を超過しています！",""))) ->  | R23: 0 | S23: 0 | T23: =SUM($S$13:S23) -> 0 | U23: 0 | V23: 0 | W23: =IF(I23=0,0,CONCATENATE(VLOOKUP(I23+"00:01",'データ '!K:M,3,TRUE),"/",$W$11)) -> 0
I24: 0 | K24: 0 | L24: 0 | M24: 0 | P24: 12 | Q24: =IF(A24="","",IF($A$13<>A24,"月が異なります！",IF(SUM($I$13:I24)>$S$7,"決定時間数を超過しています！",""))) ->  | R24: 0 | S24: 0 | T24: =SUM($S$13:S24) -> 0 | U24: 0 | V24: 0 | W24: =IF(I24=0,0,CONCATENATE(VLOOKUP(I24+"00:01",'データ '!K:M,3,TRUE),"/",$W$11)) -> 0
I25: 0 | K25: 0 | L25: 0 | M25: 0 | P25: 13 | Q25: =IF(A25="","",IF($A$13<>A25,"月が異なります！",IF(SUM($I$13:I25)>$S$7,"決定時間数を超過しています！",""))) ->  | R25: 0 | S25: 0 | T25: =SUM($S$13:S25) -> 0 | U25: 0 | V25: 0 | W25: =IF(I25=0,0,CONCATENATE(VLOOKUP(I25+"00:01",'データ '!K:M,3,TRUE),"/",$W$11)) -> 0
I26: 0 | K26: 0 | L26: 0 | M26: 0 | P26: 14 | Q26: =IF(A26="","",IF($A$13<>A26,"月が異なります！",IF(SUM($I$13:I26)>$S$7,"決定時間数を超過しています！",""))) ->  | R26: 0 | S26: 0 | T26: =SUM($S$13:S26) -> 0 | U26: 0 | V26: 0 | W26: =IF(I26=0,0,CONCATENATE(VLOOKUP(I26+"00:01",'データ '!K:M,3,TRUE),"/",$W$11)) -> 0
I27: 0 | K27: 0 | L27: 0 | M27: 0 | P27: 15 | Q27: =IF(A27="","",IF($A$13<>A27,"月が異なります！",IF(SUM($I$13:I27)>$S$7,"決定時間数を超過しています！",""))) ->  | R27: 0 | S27: 0 | T27: =SUM($S$13:S27) -> 0 | U27: 0 | V27: 0 | W27: =IF(I27=0,0,CONCATENATE(VLOOKUP(I27+"00:01",'データ '!K:M,3,TRUE),"/",$W$11)) -> 0
I28: 0 | K28: 0 | L28: 0 | M28: 0 | P28: 16 | Q28: =IF(A28="","",IF($A$13<>A28,"月が異なります！",IF(SUM($I$13:I28)>$S$7,"決定時間数を超過しています！",""))) ->  | R28: 0 | S28: 0 | T28: =SUM($S$13:S28) -> 0 | U28: 0 | V28: 0 | W28: =IF(I28=0,0,CONCATENATE(VLOOKUP(I28+"00:01",'データ '!K:M,3,TRUE),"/",$W$11)) -> 0
I29: 0 | K29: 0 | L29: 0 | M29: 0 | P29: 17 | Q29: =IF(A29="","",IF($A$13<>A29,"月が異なります！",IF(SUM($I$13:I29)>$S$7,"決定時間数を超過しています！",""))) ->  | R29: 0 | S29: 0 | T29: =SUM($S$13:S29) -> 0 | U29: 0 | V29: 0 | W29: =IF(I29=0,0,CONCATENATE(VLOOKUP(I29+"00:01",'データ '!K:M,3,TRUE),"/",$W$11)) -> 0
I30: 0 | K30: 0 | L30: 0 | M30: 0 | P30: 18 | Q30: =IF(A30="","",IF($A$13<>A30,"月が異なります！",IF(SUM($I$13:I30)>$S$7,"決定時間数を超過しています！",""))) ->  | R30: 0 | S30: 0 | T30: =SUM($S$13:S30) -> 0 | U30: 0 | V30: 0 | W30: =IF(I30=0,0,CONCATENATE(VLOOKUP(I30+"00:01",'データ '!K:M,3,TRUE),"/",$W$11)) -> 0
I31: 0 | K31: 0 | L31: 0 | M31: 0 | P31: 19 | Q31: =IF(A31="","",IF($A$13<>A31,"月が異なります！",IF(SUM($I$13:I31)>$S$7,"決定時間数を超過しています！",""))) ->  | R31: 0 | S31: 0 | T31: =SUM($S$13:S31) -> 0 | U31: 0 | V31: 0 | W31: =IF(I31=0,0,CONCATENATE(VLOOKUP(I31+"00:01",'データ '!K:M,3,TRUE),"/",$W$11)) -> 0
I32: 0 | K32: 0 | L32: 0 | M32: 0 | P32: 20 | Q32: =IF(A32="","",IF($A$13<>A32,"月が異なります！",IF(SUM($I$13:I32)>$S$7,"決定時間数を超過しています！",""))) ->  | R32: 0 | S32: 0 | T32: =SUM($S$13:S32) -> 0 | U32: 0 | V32: 0 | W32: =IF(I32=0,0,CONCATENATE(VLOOKUP(I32+"00:01",'データ '!K:M,3,TRUE),"/",$W$11)) -> 0
I33: 0 | K33: 0 | L33: 0 | M33: 0 | P33: 21 | Q33: =IF(A33="","",IF($A$13<>A33,"月が異なります！",IF(SUM($I$13:I33)>$S$7,"決定時間数を超過しています！",""))) ->  | R33: 0 | S33: 0 | T33: =SUM($S$13:S33) -> 0 | U33: 0 | V33: 0 | W33: =IF(I33=0,0,CONCATENATE(VLOOKUP(I33+"00:01",'データ '!K:M,3,TRUE),"/",$W$11)) -> 0
I34: 0 | K34: 0 | L34: 0 | M34: 0 | P34: 22 | Q34: =IF(A34="","",IF($A$13<>A34,"月が異なります！",IF(SUM($I$13:I34)>$S$7,"決定時間数を超過しています！",""))) ->  | R34: 0 | S34: 0 | T34: =SUM($S$13:S34) -> 0 | U34: 0 | V34: 0 | W34: =IF(I34=0,0,CONCATENATE(VLOOKUP(I34+"00:01",'データ '!K:M,3,TRUE),"/",$W$11)) -> 0
I35: 0 | K35: 0 | L35: 0 | M35: 0 | P35: 23 | Q35: =IF(A35="","",IF($A$13<>A35,"月が異なります！",IF(SUM($I$13:I35)>$S$7,"決定時間数を超過しています！",""))) ->  | R35: 0 | S35: 0 | T35: =SUM($S$13:S35) -> 0 | U35: 0 | V35: 0 | W35: =IF(I35=0,0,CONCATENATE(VLOOKUP(I35+"00:01",'データ '!K:M,3,TRUE),"/",$W$11)) -> 0
I36: 0 | K36: 0 | L36: 0 | M36: 0 | P36: 24 | Q36: =IF(A36="","",IF($A$13<>A36,"月が異なります！",IF(SUM($I$13:I36)>$S$7,"決定時間数を超過しています！",""))) ->  | R36: 0 | S36: 0 | T36: =SUM($S$13:S36) -> 0 | U36: 0 | V36: 0 | W36: =IF(I36=0,0,CONCATENATE(VLOOKUP(I36+"00:01",'データ '!K:M,3,TRUE),"/",$W$11)) -> 0
I37: 0 | K37: 0 | L37: 0 | M37: 0 | P37: 25 | Q37: =IF(A37="","",IF($A$13<>A37,"月が異なります！",IF(SUM($I$13:I37)>$S$7,"決定時間数を超過しています！",""))) ->  | R37: 0 | S37: 0 | T37: =SUM($S$13:S37) -> 0 | U37: 0 | V37: 0 | W37: =IF(I37=0,0,CONCATENATE(VLOOKUP(I37+"00:01",'データ '!K:M,3,TRUE),"/",$W$11)) -> 0
I38: 0 | K38: 0 | L38: 0 | M38: 0 | P38: 26 | Q38: =IF(A38="","",IF($A$13<>A38,"月が異なります！",IF(SUM($I$13:I38)>$S$7,"決定時間数を超過しています！",""))) ->  | R38: 0 | S38: 0 | T38: =SUM($S$13:S38) -> 0 | U38: 0 | V38: 0 | W38: =IF(I38=0,0,CONCATENATE(VLOOKUP(I38+"00:01",'データ '!K:M,3,TRUE),"/",$W$11)) -> 0
I39: 0 | K39: 0 | L39: 0 | M39: 0 | P39: 27 | Q39: =IF(A39="","",IF($A$13<>A39,"月が異なります！",IF(SUM($I$13:I39)>$S$7,"決定時間数を超過しています！",""))) ->  | R39: 0 | S39: 0 | T39: =SUM($S$13:S39) -> 0 | U39: 0 | V39: 0 | W39: =IF(I39=0,0,CONCATENATE(VLOOKUP(I39+"00:01",'データ '!K:M,3,TRUE),"/",$W$11)) -> 0
I40: 0 | K40: 0 | L40: 0 | M40: 0 | P40: 28 | Q40: =IF(A40="","",IF($A$13<>A40,"月が異なります！",IF(SUM($I$13:I40)>$S$7,"決定時間数を超過しています！",""))) ->  | R40: 0 | S40: 0 | T40: =SUM($S$13:S40) -> 0 | U40: 0 | V40: 0 | W40: =IF(I40=0,0,CONCATENATE(VLOOKUP(I40+"00:01",'データ '!K:M,3,TRUE),"/",$W$11)) -> 0
I41: 0 | K41: 0 | L41: 0 | M41: 0 | P41: 29 | Q41: =IF(A41="","",IF($A$13<>A41,"月が異なります！",IF(SUM($I$13:I41)>$S$7,"決定時間数を超過しています！",""))) ->  | R41: 0 | S41: 0 | T41: =SUM($S$13:S41) -> 0 | U41: 0 | V41: 0 | W41: =IF(I41=0,0,CONCATENATE(VLOOKUP(I41+"00:01",'データ '!K:M,3,TRUE),"/",$W$11)) -> 0
I42: 0 | K42: 0 | L42: 0 | M42: 0 | P42: 30 | Q42: =IF(A42="","",IF($A$13<>A42,"月が異なります！",IF(SUM($I$13:I42)>$S$7,"決定時間数を超過しています！",""))) ->  | R42: 0 | S42: 0 | T42: =SUM($S$13:S42) -> 0 | U42: 0 | V42: 0 | W42: =IF(I42=0,0,CONCATENATE(VLOOKUP(I42+"00:01",'データ '!K:M,3,TRUE),"/",$W$11)) -> 0
I43: 0 | K43: 0 | L43: 0 | M43: 0 | P43: 31 | Q43: =IF(A43="","",IF($A$13<>A43,"月が異なります！",IF(SUM($I$13:I43)>$S$7,"決定時間数を超過しています！",""))) ->  | R43: 0 | S43: 0 | T43: =SUM($S$13:S43) -> 0 | U43: 0 | V43: 0 | W43: =IF(I43=0,0,CONCATENATE(VLOOKUP(I43+"00:01",'データ '!K:M,3,TRUE),"/",$W$11)) -> 0
A44: 合計 | I44: =SUM(I13:I43) -> 0 | K44: =SUM(K13:K43) -> 0 | L44: =SUM(L13:L43) -> 0 | M44: =SUM(M13:M43) -> 0 | W44: =IF(I44>=$X$8,$Y$9,IF(AND(I44<$X$8,I44>=$X$7),$Y$8,IF(I44<$X$7,$Y$7)))&$W$11 -> 無

Sheet 3
B1: № | C1: 3
B4: =EOMONTH(B13,0) -> 1900-01-31 | F4: 鎌ケ谷市移動支援サービス提供実績記録票
A5: 登録番号 | D5: =VLOOKUP($C$1,利用者情報!A:U,COLUMN(利用者情報!B3),FALSE) -> 0 | G5: 支給決定障がい者等氏名 （児童氏名） | I5: =VLOOKUP($C$1,利用者情報!A:U,COLUMN(利用者情報!C1),FALSE) -> 0 | L5: 事業所登録番号
L6: =請求事業者!B3 -> 0 | Q6: コメント | S6: 決定時間数
A7: 契約支給量 | D7: 身体介護を 伴う | F7: =IF(VLOOKUP(C1,利用者情報!A:G,5)="有",CONCATENATE(VLOOKUP(C1,利用者情報!A:G,4)&"時間"),"") ->  | G7: 身体介護を 伴わない | I7: =IF(VLOOKUP(C1,利用者情報!A:G,5)<>"有",CONCATENATE(VLOOKUP(C1,利用者情報!A:G,4)&"時間"),"") -> 時間 | J7: 事業所及び その事業所 | L7: =請求事業者!B7 -> 0 | Q7: =利用者情報!J4 ->  | S7: =IF(F7="",I7,F7) -> 時間
A8: 利用者負担の有無 | F8: 利用者の負担割合 | H8: 利用者負担上限額
A9: =VLOOKUP($C$1,利用者情報!A:U,COLUMN(利用者情報!F3),FALSE) -> 0 | F9: =IF(A9="有","1割","0割") -> 0割 | H9: =VLOOKUP($C$1,利用者情報!A:U,COLUMN(利用者情報!G3),FALSE) -> 0 | W9: =請求事業者!C9 -> 5
W10: 便宜上区分
A11: 日付 | D11: 支援計画 | I11: 算定 時間 | J11: 派遣 人数 | K11: 算定額 | L11: 利用者 負担額 | M11: 請求額 | N11: サービス 提供者印 | O11: 利用者 確認印 | Q11: コメント | T11: 利用者負担額 累計 | U11: 上限到達フラグ | V11: 上限達成時の利用者負担額 | W11: =IF(F7="","無","有") -> 無
A12: 月 | B12: 日 | C12: 曜日 | D12: 開始 時間 | E12: 終了 時間 | F12: 計画 時間数 | G12: 開始 時間 | H12: 終了 時間 | R12: 請求額 | S12: 利用者 負担額 | W12: =IF(A9="有","（9割）","") -> 
A13: =IF(B13="","",TEXT(B13,"m")) ->  | C13: =IF(B13="","",B13) ->  | I13: =H13-G13 -> 0 | K13: =IF($H13=0,0,INDEX(単価,MATCH(W13,時間,0),MATCH($W$9,地域区分,0))) -> 0 | L13: =IF(U13=0,S13,V13) -> 0 | M13: =K13-L13 -> 0 | P13: 1 | Q13: =IF(A13="","",IF($A$13<>A13,"月が異なります！",IF(SUM($I$13:I13)>$S$7,"決定時間数を超過しています！",""))) ->  | R13: =IF(I13=0,0,INDEX(単価,MATCH(W13,時間,0),MATCH(IF(W12="",W9,W9&W12),地域区分,0))) -> 0 | S13: =K13-R13 -> 0 | T13: =SUM($S$13:S13) -> 0 | W13: =IF(I13=0,0,CONCATENATE(VLOOKUP(I13+"00:01",'データ '!K:M,3,TRUE),"/",$W$11)) -> 0
A14: =IF(B14="","",TEXT(B14,"m")) ->  | C14: =IF(B14="","",B14) ->  | I14: =H14-G14 -> 0 | K14: =IF($H14=0,0,INDEX(単価,MATCH(W14,時間,0),MATCH($W$9,地域区分,0))) -> 0 | L14: =IF(U14=0,S14,V14) -> 0 | M14: =K14-L14 -> 0 | P14: 2 | Q14: =IF(A14="","",IF($A$13<>A14,"月が異なります！",IF(SUM($I$13:I14)>$S$7,"決定時間数を超過しています！",""))) ->  | R14: =IF(AND($H14=0),0,IF($A$9="有",INDEX(単価,MATCH(W14,時間,0),MATCH($W$9&$W$12,地域区分,0)),INDEX(単価,MATCH(W14,時間,0),MATCH($W$9,地域区分,0)))) -> 0 | S14: =K14-R14 -> 0 | T14: =SUM($S$13:S14) -> 0 | U14: =IF(AND(T13<$H$9,T14>$H$9),1,IF(T14>$H$9,2,0)) -> 0 | V14: =IF(U14=1,$H$9-T13,0) -> 0 | W14: =IF(I14=0,0,CONCATENATE(VLOOKUP(I14+"00:01",'データ '!K:M,3,TRUE),"/",$W$11)) -> 0
I15: 0 | K15: 0 | L15: =IF(U15=0,S15,V15) -> 0 | M15: =K15-L15 -> 0 | P15: 3 | Q15: =IF(A15="","",IF($A$13<>A15,"月が異なります！",IF(SUM($I$13:I15)>$S$7,"決定時間数を超過しています！",""))) ->  | R15: 0 | S15: 0 | T15: =SUM($S$13:S15) -> 0 | U15: =IF(AND(T14<$H$9,T15>$H$9),1,IF(T15>$H$9,2,0)) -> 0 | V15: =IF(U15=1,$H$9-T14,0) -> 0 | W15: =IF(I15=0,0,CONCATENATE(VLOOKUP(I15+"00:01",'データ '!K:M,3,TRUE),"/",$W$11)) -> 0
I16: 0 | K16: 0 | L16: 0 | M16: 0 | P16: 4 | Q16: =IF(A16="","",IF($A$13<>A16,"月が異なります！",IF(SUM($I$13:I16)>$S$7,"決定時間数を超過しています！",""))) ->  | R16: 0 | S16: 0 | T16: =SUM($S$13:S16) -> 0 | U16: 0 | V16: 0 | W16: =IF(I16=0,0,CONCATENATE(VLOOKUP(I16+"00:01",'データ '!K:M,3,TRUE),"/",$W$11)) -> 0
I17: 0 | K17: 0 | L17: 0 | M17: 0 | P17: 5 | Q17: =IF(A17="","",IF($A$13<>A17,"月が異なります！",IF(SUM($I$13:I17)>$S$7,"決定時間数を超過しています！",""))) ->  | R17: 0 | S17: 0 | T17: =SUM($S$13:S17) -> 0 | U17: 0 | V17: 0 | W17: =IF(I17=0,0,CONCATENATE(VLOOKUP(I17+"00:01",'データ '!K:M,3,TRUE),"/",$W$11)) -> 0
I18: 0 | K18: 0 | L18: 0 | M18: 0 | P18: 6 | Q18: =IF(A18="","",IF($A$13<>A18,"月が異なります！",IF(SUM($I$13:I18)>$S$7,"決定時間数を超過しています！",""))) ->  | R18: 0 | S18: 0 | T18: =SUM($S$13:S18) -> 0 | U18: 0 | V18: 0 | W18: =IF(I18=0,0,CONCATENATE(VLOOKUP(I18+"00:01",'データ '!K:M,3,TRUE),"/",$W$11)) -> 0
I19: 0 | K19: 0 | L19: 0 | M19: 0 | P19: 7 | Q19: =IF(A19="","",IF($A$13<>A19,"月が異なります！",IF(SUM($I$13:I19)>$S$7,"決定時間数を超過しています！",""))) ->  | R19: 0 | S19: 0 | T19: =SUM($S$13:S19) -> 0 | U19: 0 | V19: 0 | W19: =IF(I19=0,0,CONCATENATE(VLOOKUP(I19+"00:01",'データ '!K:M,3,TRUE),"/",$W$11)) -> 0
I20: 0 | K20: 0 | L20: 0 | M20: 0 | P20: 8 | Q20: =IF(A20="","",IF($A$13<>A20,"月が異なります！",IF(SUM($I$13:I20)>$S$7,"決定時間数を超過しています！",""))) ->  | R20: 0 | S20: 0 | T20: =SUM($S$13:S20) -> 0 | U20: 0 | V20: 0 | W20: =IF(I20=0,0,CONCATENATE(VLOOKUP(I20+"00:01",'データ '!K:M,3,TRUE),"/",$W$11)) -> 0
I21: 0 | K21: 0 | L21: =IF(U21=0,S21,V21) -> 0 | M21: 0 | P21: 9 | Q21: =IF(A21="","",IF($A$13<>A21,"月が異なります！",IF(SUM($I$13:I21)>$S$7,"決定時間数を超過しています！",""))) ->  | R21: 0 | S21: 0 | T21: =SUM($S$13:S21) -> 0 | U21: 0 | V21: 0 | W21: =IF(I21=0,0,CONCATENATE(VLOOKUP(I21+"00:01",'データ '!K:M,3,TRUE),"/",$W$11)) -> 0
I22: 0 | K22: 0 | L22: =IF(U22=0,S22,V22) -> 0 | M22: 0 | P22: 10 | Q22: =IF(A22="","",IF($A$13<>A22,"月が異なります！",IF(SUM($I$13:I22)>$S$7,"決定時間数を超過しています！",""))) ->  | R22: 0 | S22: =K22-R22 -> 0 | T22: =SUM($S$13:S22) -> 0 | U22: 0 | V22: 0 | W22: =IF(I22=0,0,CONCATENATE(VLOOKUP(I22+"00:01",'データ '!K:M,3,TRUE),"/",$W$11)) -> 0
I23: 0 | K23: 0 | L23: 0 | M23: 0 | P23: 11 | Q23: =IF(A23="","",IF($A$13<>A23,"月が異なります！",IF(SUM($I$13:I23)>$S$7,"決定時間数を超過しています！",""))) ->  | R23: 0 | S23: 0 | T23: =SUM($S$13:S23) -> 0 | U23: 0 | V23: 0 | W23: =IF(I23=0,0,CONCATENATE(VLOOKUP(I23+"00:01",'データ '!K:M,3,TRUE),"/",$W$11)) -> 0
I24: 0 | K24: 0 | L24: 0 | M24: 0 | P24: 12 | Q24: =IF(A24="","",IF($A$13<>A24,"月が異なります！",IF(SUM($I$13:I24)>$S$7,"決定時間数を超過しています！",""))) ->  | R24: 0 | S24: 0 | T24: =SUM($S$13:S24) -> 0 | U24: 0 | V24: 0 | W24: =IF(I24=0,0,CONCATENATE(VLOOKUP(I24+"00:01",'データ '!K:M,3,TRUE),"/",$W$11)) -> 0
I25: 0 | K25: 0 | L25: 0 | M25: 0 | P25: 13 | Q25: =IF(A25="","",IF($A$13<>A25,"月が異なります！",IF(SUM($I$13:I25)>$S$7,"決定時間数を超過しています！",""))) ->  | R25: 0 | S25: 0 | T25: =SUM($S$13:S25) -> 0 | U25: 0 | V25: 0 | W25: =IF(I25=0,0,CONCATENATE(VLOOKUP(I25+"00:01",'データ '!K:M,3,TRUE),"/",$W$11)) -> 0
I26: 0 | K26: 0 | L26: 0 | M26: 0 | P26: 14 | Q26: =IF(A26="","",IF($A$13<>A26,"月が異なります！",IF(SUM($I$13:I26)>$S$7,"決定時間数を超過しています！",""))) ->  | R26: 0 | S26: 0 | T26: =SUM($S$13:S26) -> 0 | U26: 0 | V26: 0 | W26: =IF(I26=0,0,CONCATENATE(VLOOKUP(I26+"00:01",'データ '!K:M,3,TRUE),"/",$W$11)) -> 0
I27: 0 | K27: 0 | L27: 0 | M27: 0 | P27: 15 | Q27: =IF(A27="","",IF($A$13<>A27,"月が異なります！",IF(SUM($I$13:I27)>$S$7,"決定時間数を超過しています！",""))) ->  | R27: 0 | S27: 0 | T27: =SUM($S$13:S27) -> 0 | U27: 0 | V27: 0 | W27: =IF(I27=0,0,CONCATENATE(VLOOKUP(I27+"00:01",'データ '!K:M,3,TRUE),"/",$W$11)) -> 0
I28: 0 | K28: 0 | L28: 0 | M28: 0 | P28: 16 | Q28: =IF(A28="","",IF($A$13<>A28,"月が異なります！",IF(SUM($I$13:I28)>$S$7,"決定時間数を超過しています！",""))) ->  | R28: 0 | S28: 0 | T28: =SUM($S$13:S28) -> 0 | U28: 0 | V28: 0 | W28: =IF(I28=0,0,CONCATENATE(VLOOKUP(I28+"00:01",'データ '!K:M,3,TRUE),"/",$W$11)) -> 0
I29: 0 | K29: 0 | L29: 0 | M29: 0 | P29: 17 | Q29: =IF(A29="","",IF($A$13<>A29,"月が異なります！",IF(SUM($I$13:I29)>$S$7,"決定時間数を超過しています！",""))) ->  | R29: 0 | S29: 0 | T29: =SUM($S$13:S29) -> 0 | U29: 0 | V29: 0 | W29: =IF(I29=0,0,CONCATENATE(VLOOKUP(I29+"00:01",'データ '!K:M,3,TRUE),"/",$W$11)) -> 0
I30: 0 | K30: 0 | L30: 0 | M30: 0 | P30: 18 | Q30: =IF(A30="","",IF($A$13<>A30,"月が異なります！",IF(SUM($I$13:I30)>$S$7,"決定時間数を超過しています！",""))) ->  | R30: 0 | S30: 0 | T30: =SUM($S$13:S30) -> 0 | U30: 0 | V30: 0 | W30: =IF(I30=0,0,CONCATENATE(VLOOKUP(I30+"00:01",'データ '!K:M,3,TRUE),"/",$W$11)) -> 0
I31: 0 | K31: 0 | L31: 0 | M31: 0 | P31: 19 | Q31: =IF(A31="","",IF($A$13<>A31,"月が異なります！",IF(SUM($I$13:I31)>$S$7,"決定時間数を超過しています！",""))) ->  | R31: 0 | S31: 0 | T31: =SUM($S$13:S31) -> 0 | U31: 0 | V31: 0 | W31: =IF(I31=0,0,CONCATENATE(VLOOKUP(I31+"00:01",'データ '!K:M,3,TRUE),"/",$W$11)) -> 0
I32: 0 | K32: 0 | L32: 0 | M32: 0 | P32: 20 | Q32: =IF(A32="","",IF($A$13<>A32,"月が異なります！",IF(SUM($I$13:I32)>$S$7,"決定時間数を超過しています！",""))) ->  | R32: 0 | S32: 0 | T32: =SUM($S$13:S32) -> 0 | U32: 0 | V32: 0 | W32: =IF(I32=0,0,CONCATENATE(VLOOKUP(I32+"00:01",'データ '!K:M,3,TRUE),"/",$W$11)) -> 0
I33: 0 | K33: 0 | L33: 0 | M33: 0 | P33: 21 | Q33: =IF(A33="","",IF($A$13<>A33,"月が異なります！",IF(SUM($I$13:I33)>$S$7,"決定時間数を超過しています！",""))) ->  | R33: 0 | S33: 0 | T33: =SUM($S$13:S33) -> 0 | U33: 0 | V33: 0 | W33: =IF(I33=0,0,CONCATENATE(VLOOKUP(I33+"00:01",'データ '!K:M,3,TRUE),"/",$W$11)) -> 0
I34: 0 | K34: 0 | L34: 0 | M34: 0 | P34: 22 | Q34: =IF(A34="","",IF($A$13<>A34,"月が異なります！",IF(SUM($I$13:I34)>$S$7,"決定時間数を超過しています！",""))) ->  | R34: 0 | S34: 0 | T34: =SUM($S$13:S34) -> 0 | U34: 0 | V34: 0 | W34: =IF(I34=0,0,CONCATENATE(VLOOKUP(I34+"00:01",'データ '!K:M,3,TRUE),"/",$W$11)) -> 0
I35: 0 | K35: 0 | L35: 0 | M35: 0 | P35: 23 | Q35: =IF(A35="","",IF($A$13<>A35,"月が異なります！",IF(SUM($I$13:I35)>$S$7,"決定時間数を超過しています！",""))) ->  | R35: 0 | S35: 0 | T35: =SUM($S$13:S35) -> 0 | U35: 0 | V35: 0 | W35: =IF(I35=0,0,CONCATENATE(VLOOKUP(I35+"00:01",'データ '!K:M,3,TRUE),"/",$W$11)) -> 0
I36: 0 | K36: 0 | L36: 0 | M36: 0 | P36: 24 | Q36: =IF(A36="","",IF($A$13<>A36,"月が異なります！",IF(SUM($I$13:I36)>$S$7,"決定時間数を超過しています！",""))) ->  | R36: 0 | S36: 0 | T36: =SUM($S$13:S36) -> 0 | U36: 0 | V36: 0 | W36: =IF(I36=0,0,CONCATENATE(VLOOKUP(I36+"00:01",'データ '!K:M,3,TRUE),"/",$W$11)) -> 0
I37: 0 | K37: 0 | L37: 0 | M37: 0 | P37: 25 | Q37: =IF(A37="","",IF($A$13<>A37,"月が異なります！",IF(SUM($I$13:I37)>$S$7,"決定時間数を超過しています！",""))) ->  | R37: 0 | S37: 0 | T37: =SUM($S$13:S37) -> 0 | U37: 0 | V37: 0 | W37: =IF(I37=0,0,CONCATENATE(VLOOKUP(I37+"00:01",'データ '!K:M,3,TRUE),"/",$W$11)) -> 0
I38: 0 | K38: 0 | L38: 0 | M38: 0 | P38: 26 | Q38: =IF(A38="","",IF($A$13<>A38,"月が異なります！",IF(SUM($I$13:I38)>$S$7,"決定時間数を超過しています！",""))) ->  | R38: 0 | S38: 0 | T38: =SUM($S$13:S38) -> 0 | U38: 0 | V38: 0 | W38: =IF(I38=0,0,CONCATENATE(VLOOKUP(I38+"00:01",'データ '!K:M,3,TRUE),"/",$W$11)) -> 0
I39: 0 | K39: 0 | L39: 0 | M39: 0 | P39: 27 | Q39: =IF(A39="","",IF($A$13<>A39,"月が異なります！",IF(SUM($I$13:I39)>$S$7,"決定時間数を超過しています！",""))) ->  | R39: 0 | S39: 0 | T39: =SUM($S$13:S39) -> 0 | U39: 0 | V39: 0 | W39: =IF(I39=0,0,CONCATENATE(VLOOKUP(I39+"00:01",'データ '!K:M,3,TRUE),"/",$W$11)) -> 0
I40: 0 | K40: 0 | L40: 0 | M40: 0 | P40: 28 | Q40: =IF(A40="","",IF($A$13<>A40,"月が異なります！",IF(SUM($I$13:I40)>$S$7,"決定時間数を超過しています！",""))) ->  | R40: 0 | S40: 0 | T40: =SUM($S$13:S40) -> 0 | U40: 0 | V40: 0 | W40: =IF(I40=0,0,CONCATENATE(VLOOKUP(I40+"00:01",'データ '!K:M,3,TRUE),"/",$W$11)) -> 0
I41: 0 | K41: 0 | L41: 0 | M41: 0 | P41: 29 | Q41: =IF(A41="","",IF($A$13<>A41,"月が異なります！",IF(SUM($I$13:I41)>$S$7,"決定時間数を超過しています！",""))) ->  | R41: 0 | S41: 0 | T41: =SUM($S$13:S41) -> 0 | U41: 0 | V41: 0 | W41: =IF(I41=0,0,CONCATENATE(VLOOKUP(I41+"00:01",'データ '!K:M,3,TRUE),"/",$W$11)) -> 0
I42: 0 | K42: 0 | L42: 0 | M42: 0 | P42: 30 | Q42: =IF(A42="","",IF($A$13<>A42,"月が異なります！",IF(SUM($I$13:I42)>$S$7,"決定時間数を超過しています！",""))) ->  | R42: 0 | S42: 0 | T42: =SUM($S$13:S42) -> 0 | U42: 0 | V42: 0 | W42: =IF(I42=0,0,CONCATENATE(VLOOKUP(I42+"00:01",'データ '!K:M,3,TRUE),"/",$W$11)) -> 0
I43: 0 | K43: 0 | L43: 0 | M43: 0 | P43: 31 | Q43: =IF(A43="","",IF($A$13<>A43,"月が異なります！",IF(SUM($I$13:I43)>$S$7,"決定時間数を超過しています！",""))) ->  | R43: 0 | S43: 0 | T43: =SUM($S$13:S43) -> 0 | U43: 0 | V43: 0 | W43: =IF(I43=0,0,CONCATENATE(VLOOKUP(I43+"00:01",'データ '!K:M,3,TRUE),"/",$W$11)) -> 0
A44: 合計 | I44: =SUM(I13:I43) -> 0 | K44: =SUM(K13:K43) -> 0 | L44: =SUM(L13:L43) -> 0 | M44: =SUM(M13:M43) -> 0 | W44: =IF(I44>=$X$8,$Y$9,IF(AND(I44<$X$8,I44>=$X$7),$Y$8,IF(I44<$X$7,$Y$7)))&$W$11 -> 無

Sheet 4
B1: № | C1: 4
B4: =EOMONTH(B13,0) -> 1900-01-31 | F4: 鎌ケ谷市移動支援サービス提供実績記録票
A5: 登録番号 | D5: =VLOOKUP($C$1,利用者情報!A:U,COLUMN(利用者情報!B3),FALSE) -> 0 | G5: 支給決定障がい者等氏名 （児童氏名） | I5: =VLOOKUP($C$1,利用者情報!A:U,COLUMN(利用者情報!C1),FALSE) -> 0 | L5: 事業所登録番号
L6: =請求事業者!B3 -> 0 | Q6: コメント | S6: 決定時間数
A7: 契約支給量 | D7: 身体介護を 伴う | F7: =IF(VLOOKUP(C1,利用者情報!A:G,5)="有",CONCATENATE(VLOOKUP(C1,利用者情報!A:G,4)&"時間"),"") ->  | G7: 身体介護を 伴わない | I7: =IF(VLOOKUP(C1,利用者情報!A:G,5)<>"有",CONCATENATE(VLOOKUP(C1,利用者情報!A:G,4)&"時間"),"") -> 時間 | J7: 事業所及び その事業所 | L7: =請求事業者!B7 -> 0 | Q7: =利用者情報!J4 ->  | S7: =IF(F7="",I7,F7) -> 時間
A8: 利用者負担の有無 | F8: 利用者の負担割合 | H8: 利用者負担上限額
A9: =VLOOKUP($C$1,利用者情報!A:U,COLUMN(利用者情報!F3),FALSE) -> 0 | F9: =IF(A9="有","1割","0割") -> 0割 | H9: =VLOOKUP($C$1,利用者情報!A:U,COLUMN(利用者情報!G3),FALSE) -> 0 | W9: =請求事業者!C9 -> 5
W10: 便宜上区分
A11: 日付 | D11: 支援計画 | I11: 算定 時間 | J11: 派遣 人数 | K11: 算定額 | L11: 利用者 負担額 | M11: 請求額 | N11: サービス 提供者印 | O11: 利用者 確認印 | Q11: コメント | T11: 利用者負担額 累計 | U11: 上限到達フラグ | V11: 上限達成時の利用者負担額 | W11: =IF(F7="","無","有") -> 無
A12: 月 | B12: 日 | C12: 曜日 | D12: 開始 時間 | E12: 終了 時間 | F12: 計画 時間数 | G12: 開始 時間 | H12: 終了 時間 | R12: 請求額 | S12: 利用者 負担額 | W12: =IF(A9="有","（9割）","") -> 
A13: =IF(B13="","",TEXT(B13,"m")) ->  | C13: =IF(B13="","",B13) ->  | I13: =H13-G13 -> 0 | K13: =IF($H13=0,0,INDEX(単価,MATCH(W13,時間,0),MATCH($W$9,地域区分,0))) -> 0 | L13: =IF(U13=0,S13,V13) -> 0 | M13: =K13-L13 -> 0 | P13: 1 | Q13: =IF(A13="","",IF($A$13<>A13,"月が異なります！",IF(SUM($I$13:I13)>$S$7,"決定時間数を超過しています！",""))) ->  | R13: =IF(I13=0,0,INDEX(単価,MATCH(W13,時間,0),MATCH(IF(W12="",W9,W9&W12),地域区分,0))) -> 0 | S13: =K13-R13 -> 0 | T13: =SUM($S$13:S13) -> 0 | W13: =IF(I13=0,0,CONCATENATE(VLOOKUP(I13+"00:01",'データ '!K:M,3,TRUE),"/",$W$11)) -> 0
A14: =IF(B14="","",TEXT(B14,"m")) ->  | C14: =IF(B14="","",B14) ->  | I14: =H14-G14 -> 0 | K14: =IF($H14=0,0,INDEX(単価,MATCH(W14,時間,0),MATCH($W$9,地域区分,0))) -> 0 | L14: =IF(U14=0,S14,V14) -> 0 | M14: =K14-L14 -> 0 | P14: 2 | Q14: =IF(A14="","",IF($A$13<>A14,"月が異なります！",IF(SUM($I$13:I14)>$S$7,"決定時間数を超過しています！",""))) ->  | R14: =IF(AND($H14=0),0,IF($A$9="有",INDEX(単価,MATCH(W14,時間,0),MATCH($W$9&$W$12,地域区分,0)),INDEX(単価,MATCH(W14,時間,0),MATCH($W$9,地域区分,0)))) -> 0 | S14: =K14-R14 -> 0 | T14: =SUM($S$13:S14) -> 0 | U14: =IF(AND(T13<$H$9,T14>$H$9),1,IF(T14>$H$9,2,0)) -> 0 | V14: =IF(U14=1,$H$9-T13,0) -> 0 | W14: =IF(I14=0,0,CONCATENATE(VLOOKUP(I14+"00:01",'データ '!K:M,3,TRUE),"/",$W$11)) -> 0
I15: 0 | K15: 0 | L15: =IF(U15=0,S15,V15) -> 0 | M15: =K15-L15 -> 0 | P15: 3 | Q15: =IF(A15="","",IF($A$13<>A15,"月が異なります！",IF(SUM($I$13:I15)>$S$7,"決定時間数を超過しています！",""))) ->  | R15: 0 | S15: 0 | T15: =SUM($S$13:S15) -> 0 | U15: =IF(AND(T14<$H$9,T15>$H$9),1,IF(T15>$H$9,2,0)) -> 0 | V15: =IF(U15=1,$H$9-T14,0) -> 0 | W15: =IF(I15=0,0,CONCATENATE(VLOOKUP(I15+"00:01",'データ '!K:M,3,TRUE),"/",$W$11)) -> 0
I16: 0 | K16: 0 | L16: 0 | M16: 0 | P16: 4 | Q16: =IF(A16="","",IF($A$13<>A16,"月が異なります！",IF(SUM($I$13:I16)>$S$7,"決定時間数を超過しています！",""))) ->  | R16: 0 | S16: 0 | T16: =SUM($S$13:S16) -> 0 | U16: 0 | V16: 0 | W16: =IF(I16=0,0,CONCATENATE(VLOOKUP(I16+"00:01",'データ '!K:M,3,TRUE),"/",$W$11)) -> 0
I17: 0 | K17: 0 | L17: 0 | M17: 0 | P17: 5 | Q17: =IF(A17="","",IF($A$13<>A17,"月が異なります！",IF(SUM($I$13:I17)>$S$7,"決定時間数を超過しています！",""))) ->  | R17: 0 | S17: 0 | T17: =SUM($S$13:S17) -> 0 | U17: 0 | V17: 0 | W17: =IF(I17=0,0,CONCATENATE(VLOOKUP(I17+"00:01",'データ '!K:M,3,TRUE),"/",$W$11)) -> 0
I18: 0 | K18: 0 | L18: 0 | M18: 0 | P18: 6 | Q18: =IF(A18="","",IF($A$13<>A18,"月が異なります！",IF(SUM($I$13:I18)>$S$7,"決定時間数を超過しています！",""))) ->  | R18: 0 | S18: 0 | T18: =SUM($S$13:S18) -> 0 | U18: 0 | V18: 0 | W18: =IF(I18=0,0,CONCATENATE(VLOOKUP(I18+"00:01",'データ '!K:M,3,TRUE),"/",$W$11)) -> 0
I19: 0 | K19: 0 | L19: 0 | M19: 0 | P19: 7 | Q19: =IF(A19="","",IF($A$13<>A19,"月が異なります！",IF(SUM($I$13:I19)>$S$7,"決定時間数を超過しています！",""))) ->  | R19: 0 | S19: 0 | T19: =SUM($S$13:S19) -> 0 | U19: 0 | V19: 0 | W19: =IF(I19=0,0,CONCATENATE(VLOOKUP(I19+"00:01",'データ '!K:M,3,TRUE),"/",$W$11)) -> 0
I20: 0 | K20: 0 | L20: 0 | M20: 0 | P20: 8 | Q20: =IF(A20="","",IF($A$13<>A20,"月が異なります！",IF(SUM($I$13:I20)>$S$7,"決定時間数を超過しています！",""))) ->  | R20: 0 | S20: 0 | T20: =SUM($S$13:S20) -> 0 | U20: 0 | V20: 0 | W20: =IF(I20=0,0,CONCATENATE(VLOOKUP(I20+"00:01",'データ '!K:M,3,TRUE),"/",$W$11)) -> 0
I21: 0 | K21: 0 | L21: =IF(U21=0,S21,V21) -> 0 | M21: 0 | P21: 9 | Q21: =IF(A21="","",IF($A$13<>A21,"月が異なります！",IF(SUM($I$13:I21)>$S$7,"決定時間数を超過しています！",""))) ->  | R21: 0 | S21: 0 | T21: =SUM($S$13:S21) -> 0 | U21: 0 | V21: 0 | W21: =IF(I21=0,0,CONCATENATE(VLOOKUP(I21+"00:01",'データ '!K:M,3,TRUE),"/",$W$11)) -> 0
I22: 0 | K22: 0 | L22: =IF(U22=0,S22,V22) -> 0 | M22: 0 | P22: 10 | Q22: =IF(A22="","",IF($A$13<>A22,"月が異なります！",IF(SUM($I$13:I22)>$S$7,"決定時間数を超過しています！",""))) ->  | R22: 0 | S22: =K22-R22 -> 0 | T22: =SUM($S$13:S22) -> 0 | U22: 0 | V22: 0 | W22: =IF(I22=0,0,CONCATENATE(VLOOKUP(I22+"00:01",'データ '!K:M,3,TRUE),"/",$W$11)) -> 0
I23: 0 | K23: 0 | L23: 0 | M23: 0 | P23: 11 | Q23: =IF(A23="","",IF($A$13<>A23,"月が異なります！",IF(SUM($I$13:I23)>$S$7,"決定時間数を超過しています！",""))) ->  | R23: 0 | S23: 0 | T23: =SUM($S$13:S23) -> 0 | U23: 0 | V23: 0 | W23: =IF(I23=0,0,CONCATENATE(VLOOKUP(I23+"00:01",'データ '!K:M,3,TRUE),"/",$W$11)) -> 0
I24: 0 | K24: 0 | L24: 0 | M24: 0 | P24: 12 | Q24: =IF(A24="","",IF($A$13<>A24,"月が異なります！",IF(SUM($I$13:I24)>$S$7,"決定時間数を超過しています！",""))) ->  | R24: 0 | S24: 0 | T24: =SUM($S$13:S24) -> 0 | U24: 0 | V24: 0 | W24: =IF(I24=0,0,CONCATENATE(VLOOKUP(I24+"00:01",'データ '!K:M,3,TRUE),"/",$W$11)) -> 0
I25: 0 | K25: 0 | L25: 0 | M25: 0 | P25: 13 | Q25: =IF(A25="","",IF($A$13<>A25,"月が異なります！",IF(SUM($I$13:I25)>$S$7,"決定時間数を超過しています！",""))) ->  | R25: 0 | S25: 0 | T25: =SUM($S$13:S25) -> 0 | U25: 0 | V25: 0 | W25: =IF(I25=0,0,CONCATENATE(VLOOKUP(I25+"00:01",'データ '!K:M,3,TRUE),"/",$W$11)) -> 0
I26: 0 | K26: 0 | L26: 0 | M26: 0 | P26: 14 | Q26: =IF(A26="","",IF($A$13<>A26,"月が異なります！",IF(SUM($I$13:I26)>$S$7,"決定時間数を超過しています！",""))) ->  | R26: 0 | S26: 0 | T26: =SUM($S$13:S26) -> 0 | U26: 0 | V26: 0 | W26: =IF(I26=0,0,CONCATENATE(VLOOKUP(I26+"00:01",'データ '!K:M,3,TRUE),"/",$W$11)) -> 0
I27: 0 | K27: 0 | L27: 0 | M27: 0 | P27: 15 | Q27: =IF(A27="","",IF($A$13<>A27,"月が異なります！",IF(SUM($I$13:I27)>$S$7,"決定時間数を超過しています！",""))) ->  | R27: 0 | S27: 0 | T27: =SUM($S$13:S27) -> 0 | U27: 0 | V27: 0 | W27: =IF(I27=0,0,CONCATENATE(VLOOKUP(I27+"00:01",'データ '!K:M,3,TRUE),"/",$W$11)) -> 0
I28: 0 | K28: 0 | L28: 0 | M28: 0 | P28: 16 | Q28: =IF(A28="","",IF($A$13<>A28,"月が異なります！",IF(SUM($I$13:I28)>$S$7,"決定時間数を超過しています！",""))) ->  | R28: 0 | S28: 0 | T28: =SUM($S$13:S28) -> 0 | U28: 0 | V28: 0 | W28: =IF(I28=0,0,CONCATENATE(VLOOKUP(I28+"00:01",'データ '!K:M,3,TRUE),"/",$W$11)) -> 0
I29: 0 | K29: 0 | L29: 0 | M29: 0 | P29: 17 | Q29: =IF(A29="","",IF($A$13<>A29,"月が異なります！",IF(SUM($I$13:I29)>$S$7,"決定時間数を超過しています！",""))) ->  | R29: 0 | S29: 0 | T29: =SUM($S$13:S29) -> 0 | U29: 0 | V29: 0 | W29: =IF(I29=0,0,CONCATENATE(VLOOKUP(I29+"00:01",'データ '!K:M,3,TRUE),"/",$W$11)) -> 0
I30: 0 | K30: 0 | L30: 0 | M30: 0 | P30: 18 | Q30: =IF(A30="","",IF($A$13<>A30,"月が異なります！",IF(SUM($I$13:I30)>$S$7,"決定時間数を超過しています！",""))) ->  | R30: 0 | S30: 0 | T30: =SUM($S$13:S30) -> 0 | U30: 0 | V30: 0 | W30: =IF(I30=0,0,CONCATENATE(VLOOKUP(I30+"00:01",'データ '!K:M,3,TRUE),"/",$W$11)) -> 0
I31: 0 | K31: 0 | L31: 0 | M31: 0 | P31: 19 | Q31: =IF(A31="","",IF($A$13<>A31,"月が異なります！",IF(SUM($I$13:I31)>$S$7,"決定時間数を超過しています！",""))) ->  | R31: 0 | S31: 0 | T31: =SUM($S$13:S31) -> 0 | U31: 0 | V31: 0 | W31: =IF(I31=0,0,CONCATENATE(VLOOKUP(I31+"00:01",'データ '!K:M,3,TRUE),"/",$W$11)) -> 0
I32: 0 | K32: 0 | L32: 0 | M32: 0 | P32: 20 | Q32: =IF(A32="","",IF($A$13<>A32,"月が異なります！",IF(SUM($I$13:I32)>$S$7,"決定時間数を超過しています！",""))) ->  | R32: 0 | S32: 0 | T32: =SUM($S$13:S32) -> 0 | U32: 0 | V32: 0 | W32: =IF(I32=0,0,CONCATENATE(VLOOKUP(I32+"00:01",'データ '!K:M,3,TRUE),"/",$W$11)) -> 0
I33: 0 | K33: 0 | L33: 0 | M33: 0 | P33: 21 | Q33: =IF(A33="","",IF($A$13<>A33,"月が異なります！",IF(SUM($I$13:I33)>$S$7,"決定時間数を超過しています！",""))) ->  | R33: 0 | S33: 0 | T33: =SUM($S$13:S33) -> 0 | U33: 0 | V33: 0 | W33: =IF(I33=0,0,CONCATENATE(VLOOKUP(I33+"00:01",'データ '!K:M,3,TRUE),"/",$W$11)) -> 0
I34: 0 | K34: 0 | L34: 0 | M34: 0 | P34: 22 | Q34: =IF(A34="","",IF($A$13<>A34,"月が異なります！",IF(SUM($I$13:I34)>$S$7,"決定時間数を超過しています！",""))) ->  | R34: 0 | S34: 0 | T34: =SUM($S$13:S34) -> 0 | U34: 0 | V34: 0 | W34: =IF(I34=0,0,CONCATENATE(VLOOKUP(I34+"00:01",'データ '!K:M,3,TRUE),"/",$W$11)) -> 0
I35: 0 | K35: 0 | L35: 0 | M35: 0 | P35: 23 | Q35: =IF(A35="","",IF($A$13<>A35,"月が異なります！",IF(SUM($I$13:I35)>$S$7,"決定時間数を超過しています！",""))) ->  | R35: 0 | S35: 0 | T35: =SUM($S$13:S35) -> 0 | U35: 0 | V35: 0 | W35: =IF(I35=0,0,CONCATENATE(VLOOKUP(I35+"00:01",'データ '!K:M,3,TRUE),"/",$W$11)) -> 0
I36: 0 | K36: 0 | L36: 0 | M36: 0 | P36: 24 | Q36: =IF(A36="","",IF($A$13<>A36,"月が異なります！",IF(SUM($I$13:I36)>$S$7,"決定時間数を超過しています！",""))) ->  | R36: 0 | S36: 0 | T36: =SUM($S$13:S36) -> 0 | U36: 0 | V36: 0 | W36: =IF(I36=0,0,CONCATENATE(VLOOKUP(I36+"00:01",'データ '!K:M,3,TRUE),"/",$W$11)) -> 0
I37: 0 | K37: 0 | L37: 0 | M37: 0 | P37: 25 | Q37: =IF(A37="","",IF($A$13<>A37,"月が異なります！",IF(SUM($I$13:I37)>$S$7,"決定時間数を超過しています！",""))) ->  | R37: 0 | S37: 0 | T37: =SUM($S$13:S37) -> 0 | U37: 0 | V37: 0 | W37: =IF(I37=0,0,CONCATENATE(VLOOKUP(I37+"00:01",'データ '!K:M,3,TRUE),"/",$W$11)) -> 0
I38: 0 | K38: 0 | L38: 0 | M38: 0 | P38: 26 | Q38: =IF(A38="","",IF($A$13<>A38,"月が異なります！",IF(SUM($I$13:I38)>$S$7,"決定時間数を超過しています！",""))) ->  | R38: 0 | S38: 0 | T38: =SUM($S$13:S38) -> 0 | U38: 0 | V38: 0 | W38: =IF(I38=0,0,CONCATENATE(VLOOKUP(I38+"00:01",'データ '!K:M,3,TRUE),"/",$W$11)) -> 0
I39: 0 | K39: 0 | L39: 0 | M39: 0 | P39: 27 | Q39: =IF(A39="","",IF($A$13<>A39,"月が異なります！",IF(SUM($I$13:I39)>$S$7,"決定時間数を超過しています！",""))) ->  | R39: 0 | S39: 0 | T39: =SUM($S$13:S39) -> 0 | U39: 0 | V39: 0 | W39: =IF(I39=0,0,CONCATENATE(VLOOKUP(I39+"00:01",'データ '!K:M,3,TRUE),"/",$W$11)) -> 0
I40: 0 | K40: 0 | L40: 0 | M40: 0 | P40: 28 | Q40: =IF(A40="","",IF($A$13<>A40,"月が異なります！",IF(SUM($I$13:I40)>$S$7,"決定時間数を超過しています！",""))) ->  | R40: 0 | S40: 0 | T40: =SUM($S$13:S40) -> 0 | U40: 0 | V40: 0 | W40: =IF(I40=0,0,CONCATENATE(VLOOKUP(I40+"00:01",'データ '!K:M,3,TRUE),"/",$W$11)) -> 0
I41: 0 | K41: 0 | L41: 0 | M41: 0 | P41: 29 | Q41: =IF(A41="","",IF($A$13<>A41,"月が異なります！",IF(SUM($I$13:I41)>$S$7,"決定時間数を超過しています！",""))) ->  | R41: 0 | S41: 0 | T41: =SUM($S$13:S41) -> 0 | U41: 0 | V41: 0 | W41: =IF(I41=0,0,CONCATENATE(VLOOKUP(I41+"00:01",'データ '!K:M,3,TRUE),"/",$W$11)) -> 0
I42: 0 | K42: 0 | L42: 0 | M42: 0 | P42: 30 | Q42: =IF(A42="","",IF($A$13<>A42,"月が異なります！",IF(SUM($I$13:I42)>$S$7,"決定時間数を超過しています！",""))) ->  | R42: 0 | S42: 0 | T42: =SUM($S$13:S42) -> 0 | U42: 0 | V42: 0 | W42: =IF(I42=0,0,CONCATENATE(VLOOKUP(I42+"00:01",'データ '!K:M,3,TRUE),"/",$W$11)) -> 0
I43: 0 | K43: 0 | L43: 0 | M43: 0 | P43: 31 | Q43: =IF(A43="","",IF($A$13<>A43,"月が異なります！",IF(SUM($I$13:I43)>$S$7,"決定時間数を超過しています！",""))) ->  | R43: 0 | S43: 0 | T43: =SUM($S$13:S43) -> 0 | U43: 0 | V43: 0 | W43: =IF(I43=0,0,CONCATENATE(VLOOKUP(I43+"00:01",'データ '!K:M,3,TRUE),"/",$W$11)) -> 0
A44: 合計 | I44: =SUM(I13:I43) -> 0 | K44: =SUM(K13:K43) -> 0 | L44: =SUM(L13:L43) -> 0 | M44: =SUM(M13:M43) -> 0 | W44: =IF(I44>=$X$8,$Y$9,IF(AND(I44<$X$8,I44>=$X$7),$Y$8,IF(I44<$X$7,$Y$7)))&$W$11 -> 無

Sheet 5
B1: № | C1: 5
B4: =EOMONTH(B13,0) -> 1900-01-31 | F4: 鎌ケ谷市移動支援サービス提供実績記録票
A5: 登録番号 | D5: =VLOOKUP($C$1,利用者情報!A:U,COLUMN(利用者情報!B3),FALSE) -> 0 | G5: 支給決定障がい者等氏名 （児童氏名） | I5: =VLOOKUP($C$1,利用者情報!A:U,COLUMN(利用者情報!C1),FALSE) -> 0 | L5: 事業所登録番号
L6: =請求事業者!B3 -> 0 | Q6: コメント | S6: 決定時間数
A7: 契約支給量 | D7: 身体介護を 伴う | F7: =IF(VLOOKUP(C1,利用者情報!A:G,5)="有",CONCATENATE(VLOOKUP(C1,利用者情報!A:G,4)&"時間"),"") ->  | G7: 身体介護を 伴わない | I7: =IF(VLOOKUP(C1,利用者情報!A:G,5)<>"有",CONCATENATE(VLOOKUP(C1,利用者情報!A:G,4)&"時間"),"") -> 時間 | J7: 事業所及び その事業所 | L7: =請求事業者!B7 -> 0 | Q7: =利用者情報!J4 ->  | S7: =IF(F7="",I7,F7) -> 時間
A8: 利用者負担の有無 | F8: 利用者の負担割合 | H8: 利用者負担上限額
A9: =VLOOKUP($C$1,利用者情報!A:U,COLUMN(利用者情報!F3),FALSE) -> 0 | F9: =IF(A9="有","1割","0割") -> 0割 | H9: =VLOOKUP($C$1,利用者情報!A:U,COLUMN(利用者情報!G3),FALSE) -> 0 | W9: =請求事業者!C9 -> 5
W10: 便宜上区分
A11: 日付 | D11: 支援計画 | I11: 算定 時間 | J11: 派遣 人数 | K11: 算定額 | L11: 利用者 負担額 | M11: 請求額 | N11: サービス 提供者印 | O11: 利用者 確認印 | Q11: コメント | T11: 利用者負担額 累計 | U11: 上限到達フラグ | V11: 上限達成時の利用者負担額 | W11: =IF(F7="","無","有") -> 無
A12: 月 | B12: 日 | C12: 曜日 | D12: 開始 時間 | E12: 終了 時間 | F12: 計画 時間数 | G12: 開始 時間 | H12: 終了 時間 | R12: 請求額 | S12: 利用者 負担額 | W12: =IF(A9="有","（9割）","") -> 
A13: =IF(B13="","",TEXT(B13,"m")) ->  | C13: =IF(B13="","",B13) ->  | I13: =H13-G13 -> 0 | K13: =IF($H13=0,0,INDEX(単価,MATCH(W13,時間,0),MATCH($W$9,地域区分,0))) -> 0 | L13: =IF(U13=0,S13,V13) -> 0 | M13: =K13-L13 -> 0 | P13: 1 | Q13: =IF(A13="","",IF($A$13<>A13,"月が異なります！",IF(SUM($I$13:I13)>$S$7,"決定時間数を超過しています！",""))) ->  | R13: =IF(I13=0,0,INDEX(単価,MATCH(W13,時間,0),MATCH(IF(W12="",W9,W9&W12),地域区分,0))) -> 0 | S13: =K13-R13 -> 0 | T13: =SUM($S$13:S13) -> 0 | W13: =IF(I13=0,0,CONCATENATE(VLOOKUP(I13+"00:01",'データ '!K:M,3,TRUE),"/",$W$11)) -> 0
A14: =IF(B14="","",TEXT(B14,"m")) ->  | C14: =IF(B14="","",B14) ->  | I14: =H14-G14 -> 0 | K14: =IF($H14=0,0,INDEX(単価,MATCH(W14,時間,0),MATCH($W$9,地域区分,0))) -> 0 | L14: =IF(U14=0,S14,V14) -> 0 | M14: =K14-L14 -> 0 | P14: 2 | Q14: =IF(A14="","",IF($A$13<>A14,"月が異なります！",IF(SUM($I$13:I14)>$S$7,"決定時間数を超過しています！",""))) ->  | R14: =IF(AND($H14=0),0,IF($A$9="有",INDEX(単価,MATCH(W14,時間,0),MATCH($W$9&$W$12,地域区分,0)),INDEX(単価,MATCH(W14,時間,0),MATCH($W$9,地域区分,0)))) -> 0 | S14: =K14-R14 -> 0 | T14: =SUM($S$13:S14) -> 0 | U14: =IF(AND(T13<$H$9,T14>$H$9),1,IF(T14>$H$9,2,0)) -> 0 | V14: =IF(U14=1,$H$9-T13,0) -> 0 | W14: =IF(I14=0,0,CONCATENATE(VLOOKUP(I14+"00:01",'データ '!K:M,3,TRUE),"/",$W$11)) -> 0
I15: 0 | K15: 0 | L15: =IF(U15=0,S15,V15) -> 0 | M15: =K15-L15 -> 0 | P15: 3 | Q15: =IF(A15="","",IF($A$13<>A15,"月が異なります！",IF(SUM($I$13:I15)>$S$7,"決定時間数を超過しています！",""))) ->  | R15: 0 | S15: 0 | T15: =SUM($S$13:S15) -> 0 | U15: =IF(AND(T14<$H$9,T15>$H$9),1,IF(T15>$H$9,2,0)) -> 0 | V15: =IF(U15=1,$H$9-T14,0) -> 0 | W15: =IF(I15=0,0,CONCATENATE(VLOOKUP(I15+"00:01",'データ '!K:M,3,TRUE),"/",$W$11)) -> 0
I16: 0 | K16: 0 | L16: 0 | M16: 0 | P16: 4 | Q16: =IF(A16="","",IF($A$13<>A16,"月が異なります！",IF(SUM($I$13:I16)>$S$7,"決定時間数を超過しています！",""))) ->  | R16: 0 | S16: 0 | T16: =SUM($S$13:S16) -> 0 | U16: 0 | V16: 0 | W16: =IF(I16=0,0,CONCATENATE(VLOOKUP(I16+"00:01",'データ '!K:M,3,TRUE),"/",$W$11)) -> 0
I17: 0 | K17: 0 | L17: 0 | M17: 0 | P17: 5 | Q17: =IF(A17="","",IF($A$13<>A17,"月が異なります！",IF(SUM($I$13:I17)>$S$7,"決定時間数を超過しています！",""))) ->  | R17: 0 | S17: 0 | T17: =SUM($S$13:S17) -> 0 | U17: 0 | V17: 0 | W17: =IF(I17=0,0,CONCATENATE(VLOOKUP(I17+"00:01",'データ '!K:M,3,TRUE),"/",$W$11)) -> 0
I18: 0 | K18: 0 | L18: 0 | M18: 0 | P18: 6 | Q18: =IF(A18="","",IF($A$13<>A18,"月が異なります！",IF(SUM($I$13:I18)>$S$7,"決定時間数を超過しています！",""))) ->  | R18: 0 | S18: 0 | T18: =SUM($S$13:S18) -> 0 | U18: 0 | V18: 0 | W18: =IF(I18=0,0,CONCATENATE(VLOOKUP(I18+"00:01",'データ '!K:M,3,TRUE),"/",$W$11)) -> 0
I19: 0 | K19: 0 | L19: 0 | M19: 0 | P19: 7 | Q19: =IF(A19="","",IF($A$13<>A19,"月が異なります！",IF(SUM($I$13:I19)>$S$7,"決定時間数を超過しています！",""))) ->  | R19: 0 | S19: 0 | T19: =SUM($S$13:S19) -> 0 | U19: 0 | V19: 0 | W19: =IF(I19=0,0,CONCATENATE(VLOOKUP(I19+"00:01",'データ '!K:M,3,TRUE),"/",$W$11)) -> 0
I20: 0 | K20: 0 | L20: 0 | M20: 0 | P20: 8 | Q20: =IF(A20="","",IF($A$13<>A20,"月が異なります！",IF(SUM($I$13:I20)>$S$7,"決定時間数を超過しています！",""))) ->  | R20: 0 | S20: 0 | T20: =SUM($S$13:S20) -> 0 | U20: 0 | V20: 0 | W20: =IF(I20=0,0,CONCATENATE(VLOOKUP(I20+"00:01",'データ '!K:M,3,TRUE),"/",$W$11)) -> 0
I21: 0 | K21: 0 | L21: =IF(U21=0,S21,V21) -> 0 | M21: 0 | P21: 9 | Q21: =IF(A21="","",IF($A$13<>A21,"月が異なります！",IF(SUM($I$13:I21)>$S$7,"決定時間数を超過しています！",""))) ->  | R21: 0 | S21: 0 | T21: =SUM($S$13:S21) -> 0 | U21: 0 | V21: 0 | W21: =IF(I21=0,0,CONCATENATE(VLOOKUP(I21+"00:01",'データ '!K:M,3,TRUE),"/",$W$11)) -> 0
I22: 0 | K22: 0 | L22: =IF(U22=0,S22,V22) -> 0 | M22: 0 | P22: 10 | Q22: =IF(A22="","",IF($A$13<>A22,"月が異なります！",IF(SUM($I$13:I22)>$S$7,"決定時間数を超過しています！",""))) ->  | R22: 0 | S22: =K22-R22 -> 0 | T22: =SUM($S$13:S22) -> 0 | U22: 0 | V22: 0 | W22: =IF(I22=0,0,CONCATENATE(VLOOKUP(I22+"00:01",'データ '!K:M,3,TRUE),"/",$W$11)) -> 0
I23: 0 | K23: 0 | L23: 0 | M23: 0 | P23: 11 | Q23: =IF(A23="","",IF($A$13<>A23,"月が異なります！",IF(SUM($I$13:I23)>$S$7,"決定時間数を超過しています！",""))) ->  | R23: 0 | S23: 0 | T23: =SUM($S$13:S23) -> 0 | U23: 0 | V23: 0 | W23: =IF(I23=0,0,CONCATENATE(VLOOKUP(I23+"00:01",'データ '!K:M,3,TRUE),"/",$W$11)) -> 0
I24: 0 | K24: 0 | L24: 0 | M24: 0 | P24: 12 | Q24: =IF(A24="","",IF($A$13<>A24,"月が異なります！",IF(SUM($I$13:I24)>$S$7,"決定時間数を超過しています！",""))) ->  | R24: 0 | S24: 0 | T24: =SUM($S$13:S24) -> 0 | U24: 0 | V24: 0 | W24: =IF(I24=0,0,CONCATENATE(VLOOKUP(I24+"00:01",'データ '!K:M,3,TRUE),"/",$W$11)) -> 0
I25: 0 | K25: 0 | L25: 0 | M25: 0 | P25: 13 | Q25: =IF(A25="","",IF($A$13<>A25,"月が異なります！",IF(SUM($I$13:I25)>$S$7,"決定時間数を超過しています！",""))) ->  | R25: 0 | S25: 0 | T25: =SUM($S$13:S25) -> 0 | U25: 0 | V25: 0 | W25: =IF(I25=0,0,CONCATENATE(VLOOKUP(I25+"00:01",'データ '!K:M,3,TRUE),"/",$W$11)) -> 0
I26: 0 | K26: 0 | L26: 0 | M26: 0 | P26: 14 | Q26: =IF(A26="","",IF($A$13<>A26,"月が異なります！",IF(SUM($I$13:I26)>$S$7,"決定時間数を超過しています！",""))) ->  | R26: 0 | S26: 0 | T26: =SUM($S$13:S26) -> 0 | U26: 0 | V26: 0 | W26: =IF(I26=0,0,CONCATENATE(VLOOKUP(I26+"00:01",'データ '!K:M,3,TRUE),"/",$W$11)) -> 0
I27: 0 | K27: 0 | L27: 0 | M27: 0 | P27: 15 | Q27: =IF(A27="","",IF($A$13<>A27,"月が異なります！",IF(SUM($I$13:I27)>$S$7,"決定時間数を超過しています！",""))) ->  | R27: 0 | S27: 0 | T27: =SUM($S$13:S27) -> 0 | U27: 0 | V27: 0 | W27: =IF(I27=0,0,CONCATENATE(VLOOKUP(I27+"00:01",'データ '!K:M,3,TRUE),"/",$W$11)) -> 0
I28: 0 | K28: 0 | L28: 0 | M28: 0 | P28: 16 | Q28: =IF(A28="","",IF($A$13<>A28,"月が異なります！",IF(SUM($I$13:I28)>$S$7,"決定時間数を超過しています！",""))) ->  | R28: 0 | S28: 0 | T28: =SUM($S$13:S28) -> 0 | U28: 0 | V28: 0 | W28: =IF(I28=0,0,CONCATENATE(VLOOKUP(I28+"00:01",'データ '!K:M,3,TRUE),"/",$W$11)) -> 0
I29: 0 | K29: 0 | L29: 0 | M29: 0 | P29: 17 | Q29: =IF(A29="","",IF($A$13<>A29,"月が異なります！",IF(SUM($I$13:I29)>$S$7,"決定時間数を超過しています！",""))) ->  | R29: 0 | S29: 0 | T29: =SUM($S$13:S29) -> 0 | U29: 0 | V29: 0 | W29: =IF(I29=0,0,CONCATENATE(VLOOKUP(I29+"00:01",'データ '!K:M,3,TRUE),"/",$W$11)) -> 0
I30: 0 | K30: 0 | L30: 0 | M30: 0 | P30: 18 | Q30: =IF(A30="","",IF($A$13<>A30,"月が異なります！",IF(SUM($I$13:I30)>$S$7,"決定時間数を超過しています！",""))) ->  | R30: 0 | S30: 0 | T30: =SUM($S$13:S30) -> 0 | U30: 0 | V30: 0 | W30: =IF(I30=0,0,CONCATENATE(VLOOKUP(I30+"00:01",'データ '!K:M,3,TRUE),"/",$W$11)) -> 0
I31: 0 | K31: 0 | L31: 0 | M31: 0 | P31: 19 | Q31: =IF(A31="","",IF($A$13<>A31,"月が異なります！",IF(SUM($I$13:I31)>$S$7,"決定時間数を超過しています！",""))) ->  | R31: 0 | S31: 0 | T31: =SUM($S$13:S31) -> 0 | U31: 0 | V31: 0 | W31: =IF(I31=0,0,CONCATENATE(VLOOKUP(I31+"00:01",'データ '!K:M,3,TRUE),"/",$W$11)) -> 0
I32: 0 | K32: 0 | L32: 0 | M32: 0 | P32: 20 | Q32: =IF(A32="","",IF($A$13<>A32,"月が異なります！",IF(SUM($I$13:I32)>$S$7,"決定時間数を超過しています！",""))) ->  | R32: 0 | S32: 0 | T32: =SUM($S$13:S32) -> 0 | U32: 0 | V32: 0 | W32: =IF(I32=0,0,CONCATENATE(VLOOKUP(I32+"00:01",'データ '!K:M,3,TRUE),"/",$W$11)) -> 0
I33: 0 | K33: 0 | L33: 0 | M33: 0 | P33: 21 | Q33: =IF(A33="","",IF($A$13<>A33,"月が異なります！",IF(SUM($I$13:I33)>$S$7,"決定時間数を超過しています！",""))) ->  | R33: 0 | S33: 0 | T33: =SUM($S$13:S33) -> 0 | U33: 0 | V33: 0 | W33: =IF(I33=0,0,CONCATENATE(VLOOKUP(I33+"00:01",'データ '!K:M,3,TRUE),"/",$W$11)) -> 0
I34: 0 | K34: 0 | L34: 0 | M34: 0 | P34: 22 | Q34: =IF(A34="","",IF($A$13<>A34,"月が異なります！",IF(SUM($I$13:I34)>$S$7,"決定時間数を超過しています！",""))) ->  | R34: 0 | S34: 0 | T34: =SUM($S$13:S34) -> 0 | U34: 0 | V34: 0 | W34: =IF(I34=0,0,CONCATENATE(VLOOKUP(I34+"00:01",'データ '!K:M,3,TRUE),"/",$W$11)) -> 0
I35: 0 | K35: 0 | L35: 0 | M35: 0 | P35: 23 | Q35: =IF(A35="","",IF($A$13<>A35,"月が異なります！",IF(SUM($I$13:I35)>$S$7,"決定時間数を超過しています！",""))) ->  | R35: 0 | S35: 0 | T35: =SUM($S$13:S35) -> 0 | U35: 0 | V35: 0 | W35: =IF(I35=0,0,CONCATENATE(VLOOKUP(I35+"00:01",'データ '!K:M,3,TRUE),"/",$W$11)) -> 0
I36: 0 | K36: 0 | L36: 0 | M36: 0 | P36: 24 | Q36: =IF(A36="","",IF($A$13<>A36,"月が異なります！",IF(SUM($I$13:I36)>$S$7,"決定時間数を超過しています！",""))) ->  | R36: 0 | S36: 0 | T36: =SUM($S$13:S36) -> 0 | U36: 0 | V36: 0 | W36: =IF(I36=0,0,CONCATENATE(VLOOKUP(I36+"00:01",'データ '!K:M,3,TRUE),"/",$W$11)) -> 0
I37: 0 | K37: 0 | L37: 0 | M37: 0 | P37: 25 | Q37: =IF(A37="","",IF($A$13<>A37,"月が異なります！",IF(SUM($I$13:I37)>$S$7,"決定時間数を超過しています！",""))) ->  | R37: 0 | S37: 0 | T37: =SUM($S$13:S37) -> 0 | U37: 0 | V37: 0 | W37: =IF(I37=0,0,CONCATENATE(VLOOKUP(I37+"00:01",'データ '!K:M,3,TRUE),"/",$W$11)) -> 0
I38: 0 | K38: 0 | L38: 0 | M38: 0 | P38: 26 | Q38: =IF(A38="","",IF($A$13<>A38,"月が異なります！",IF(SUM($I$13:I38)>$S$7,"決定時間数を超過しています！",""))) ->  | R38: 0 | S38: 0 | T38: =SUM($S$13:S38) -> 0 | U38: 0 | V38: 0 | W38: =IF(I38=0,0,CONCATENATE(VLOOKUP(I38+"00:01",'データ '!K:M,3,TRUE),"/",$W$11)) -> 0
I39: 0 | K39: 0 | L39: 0 | M39: 0 | P39: 27 | Q39: =IF(A39="","",IF($A$13<>A39,"月が異なります！",IF(SUM($I$13:I39)>$S$7,"決定時間数を超過しています！",""))) ->  | R39: 0 | S39: 0 | T39: =SUM($S$13:S39) -> 0 | U39: 0 | V39: 0 | W39: =IF(I39=0,0,CONCATENATE(VLOOKUP(I39+"00:01",'データ '!K:M,3,TRUE),"/",$W$11)) -> 0
I40: 0 | K40: 0 | L40: 0 | M40: 0 | P40: 28 | Q40: =IF(A40="","",IF($A$13<>A40,"月が異なります！",IF(SUM($I$13:I40)>$S$7,"決定時間数を超過しています！",""))) ->  | R40: 0 | S40: 0 | T40: =SUM($S$13:S40) -> 0 | U40: 0 | V40: 0 | W40: =IF(I40=0,0,CONCATENATE(VLOOKUP(I40+"00:01",'データ '!K:M,3,TRUE),"/",$W$11)) -> 0
I41: 0 | K41: 0 | L41: 0 | M41: 0 | P41: 29 | Q41: =IF(A41="","",IF($A$13<>A41,"月が異なります！",IF(SUM($I$13:I41)>$S$7,"決定時間数を超過しています！",""))) ->  | R41: 0 | S41: 0 | T41: =SUM($S$13:S41) -> 0 | U41: 0 | V41: 0 | W41: =IF(I41=0,0,CONCATENATE(VLOOKUP(I41+"00:01",'データ '!K:M,3,TRUE),"/",$W$11)) -> 0
I42: 0 | K42: 0 | L42: 0 | M42: 0 | P42: 30 | Q42: =IF(A42="","",IF($A$13<>A42,"月が異なります！",IF(SUM($I$13:I42)>$S$7,"決定時間数を超過しています！",""))) ->  | R42: 0 | S42: 0 | T42: =SUM($S$13:S42) -> 0 | U42: 0 | V42: 0 | W42: =IF(I42=0,0,CONCATENATE(VLOOKUP(I42+"00:01",'データ '!K:M,3,TRUE),"/",$W$11)) -> 0
I43: 0 | K43: 0 | L43: 0 | M43: 0 | P43: 31 | Q43: =IF(A43="","",IF($A$13<>A43,"月が異なります！",IF(SUM($I$13:I43)>$S$7,"決定時間数を超過しています！",""))) ->  | R43: 0 | S43: 0 | T43: =SUM($S$13:S43) -> 0 | U43: 0 | V43: 0 | W43: =IF(I43=0,0,CONCATENATE(VLOOKUP(I43+"00:01",'データ '!K:M,3,TRUE),"/",$W$11)) -> 0
A44: 合計 | I44: =SUM(I13:I43) -> 0 | K44: =SUM(K13:K43) -> 0 | L44: =SUM(L13:L43) -> 0 | M44: =SUM(M13:M43) -> 0 | W44: =IF(I44>=$X$8,$Y$9,IF(AND(I44<$X$8,I44>=$X$7),$Y$8,IF(I44<$X$7,$Y$7)))&$W$11 -> 無

Sheet 6
B1: № | C1: 6
B4: =EOMONTH(B13,0) -> 1900-01-31 | F4: 鎌ケ谷市移動支援サービス提供実績記録票
A5: 登録番号 | D5: =VLOOKUP($C$1,利用者情報!A:U,COLUMN(利用者情報!B3),FALSE) -> 0 | G5: 支給決定障がい者等氏名 （児童氏名） | I5: =VLOOKUP($C$1,利用者情報!A:U,COLUMN(利用者情報!C1),FALSE) -> 0 | L5: 事業所登録番号
L6: =請求事業者!B3 -> 0 | Q6: コメント | S6: 決定時間数
A7: 契約支給量 | D7: 身体介護を 伴う | F7: =IF(VLOOKUP(C1,利用者情報!A:G,5)="有",CONCATENATE(VLOOKUP(C1,利用者情報!A:G,4)&"時間"),"") ->  | G7: 身体介護を 伴わない | I7: =IF(VLOOKUP(C1,利用者情報!A:G,5)<>"有",CONCATENATE(VLOOKUP(C1,利用者情報!A:G,4)&"時間"),"") -> 時間 | J7: 事業所及び その事業所 | L7: =請求事業者!B7 -> 0 | Q7: =利用者情報!J4 ->  | S7: =IF(F7="",I7,F7) -> 時間
A8: 利用者負担の有無 | F8: 利用者の負担割合 | H8: 利用者負担上限額
A9: =VLOOKUP($C$1,利用者情報!A:U,COLUMN(利用者情報!F3),FALSE) -> 0 | F9: =IF(A9="有","1割","0割") -> 0割 | H9: =VLOOKUP($C$1,利用者情報!A:U,COLUMN(利用者情報!G3),FALSE) -> 0 | W9: =請求事業者!C9 -> 5
W10: 便宜上区分
A11: 日付 | D11: 支援計画 | I11: 算定 時間 | J11: 派遣 人数 | K11: 算定額 | L11: 利用者 負担額 | M11: 請求額 | N11: サービス 提供者印 | O11: 利用者 確認印 | Q11: コメント | T11: 利用者負担額 累計 | U11: 上限到達フラグ | V11: 上限達成時の利用者負担額 | W11: =IF(F7="","無","有") -> 無
A12: 月 | B12: 日 | C12: 曜日 | D12: 開始 時間 | E12: 終了 時間 | F12: 計画 時間数 | G12: 開始 時間 | H12: 終了 時間 | R12: 請求額 | S12: 利用者 負担額 | W12: =IF(A9="有","（9割）","") -> 
A13: =IF(B13="","",TEXT(B13,"m")) ->  | C13: =IF(B13="","",B13) ->  | I13: =H13-G13 -> 0 | K13: =IF($H13=0,0,INDEX(単価,MATCH(W13,時間,0),MATCH($W$9,地域区分,0))) -> 0 | L13: =IF(U13=0,S13,V13) -> 0 | M13: =K13-L13 -> 0 | P13: 1 | Q13: =IF(A13="","",IF($A$13<>A13,"月が異なります！",IF(SUM($I$13:I13)>$S$7,"決定時間数を超過しています！",""))) ->  | R13: =IF(I13=0,0,INDEX(単価,MATCH(W13,時間,0),MATCH(IF(W12="",W9,W9&W12),地域区分,0))) -> 0 | S13: =K13-R13 -> 0 | T13: =SUM($S$13:S13) -> 0 | W13: =IF(I13=0,0,CONCATENATE(VLOOKUP(I13+"00:01",'データ '!K:M,3,TRUE),"/",$W$11)) -> 0
A14: =IF(B14="","",TEXT(B14,"m")) ->  | C14: =IF(B14="","",B14) ->  | I14: =H14-G14 -> 0 | K14: =IF($H14=0,0,INDEX(単価,MATCH(W14,時間,0),MATCH($W$9,地域区分,0))) -> 0 | L14: =IF(U14=0,S14,V14) -> 0 | M14: =K14-L14 -> 0 | P14: 2 | Q14: =IF(A14="","",IF($A$13<>A14,"月が異なります！",IF(SUM($I$13:I14)>$S$7,"決定時間数を超過しています！",""))) ->  | R14: =IF(AND($H14=0),0,IF($A$9="有",INDEX(単価,MATCH(W14,時間,0),MATCH($W$9&$W$12,地域区分,0)),INDEX(単価,MATCH(W14,時間,0),MATCH($W$9,地域区分,0)))) -> 0 | S14: =K14-R14 -> 0 | T14: =SUM($S$13:S14) -> 0 | U14: =IF(AND(T13<$H$9,T14>$H$9),1,IF(T14>$H$9,2,0)) -> 0 | V14: =IF(U14=1,$H$9-T13,0) -> 0 | W14: =IF(I14=0,0,CONCATENATE(VLOOKUP(I14+"00:01",'データ '!K:M,3,TRUE),"/",$W$11)) -> 0
I15: 0 | K15: 0 | L15: =IF(U15=0,S15,V15) -> 0 | M15: =K15-L15 -> 0 | P15: 3 | Q15: =IF(A15="","",IF($A$13<>A15,"月が異なります！",IF(SUM($I$13:I15)>$S$7,"決定時間数を超過しています！",""))) ->  | R15: 0 | S15: 0 | T15: =SUM($S$13:S15) -> 0 | U15: =IF(AND(T14<$H$9,T15>$H$9),1,IF(T15>$H$9,2,0)) -> 0 | V15: =IF(U15=1,$H$9-T14,0) -> 0 | W15: =IF(I15=0,0,CONCATENATE(VLOOKUP(I15+"00:01",'データ '!K:M,3,TRUE),"/",$W$11)) -> 0
I16: 0 | K16: 0 | L16: 0 | M16: 0 | P16: 4 | Q16: =IF(A16="","",IF($A$13<>A16,"月が異なります！",IF(SUM($I$13:I16)>$S$7,"決定時間数を超過しています！",""))) ->  | R16: 0 | S16: 0 | T16: =SUM($S$13:S16) -> 0 | U16: 0 | V16: 0 | W16: =IF(I16=0,0,CONCATENATE(VLOOKUP(I16+"00:01",'データ '!K:M,3,TRUE),"/",$W$11)) -> 0
I17: 0 | K17: 0 | L17: 0 | M17: 0 | P17: 5 | Q17: =IF(A17="","",IF($A$13<>A17,"月が異なります！",IF(SUM($I$13:I17)>$S$7,"決定時間数を超過しています！",""))) ->  | R17: 0 | S17: 0 | T17: =SUM($S$13:S17) -> 0 | U17: 0 | V17: 0 | W17: =IF(I17=0,0,CONCATENATE(VLOOKUP(I17+"00:01",'データ '!K:M,3,TRUE),"/",$W$11)) -> 0
I18: 0 | K18: 0 | L18: 0 | M18: 0 | P18: 6 | Q18: =IF(A18="","",IF($A$13<>A18,"月が異なります！",IF(SUM($I$13:I18)>$S$7,"決定時間数を超過しています！",""))) ->  | R18: 0 | S18: 0 | T18: =SUM($S$13:S18) -> 0 | U18: 0 | V18: 0 | W18: =IF(I18=0,0,CONCATENATE(VLOOKUP(I18+"00:01",'データ '!K:M,3,TRUE),"/",$W$11)) -> 0
I19: 0 | K19: 0 | L19: 0 | M19: 0 | P19: 7 | Q19: =IF(A19="","",IF($A$13<>A19,"月が異なります！",IF(SUM($I$13:I19)>$S$7,"決定時間数を超過しています！",""))) ->  | R19: 0 | S19: 0 | T19: =SUM($S$13:S19) -> 0 | U19: 0 | V19: 0 | W19: =IF(I19=0,0,CONCATENATE(VLOOKUP(I19+"00:01",'データ '!K:M,3,TRUE),"/",$W$11)) -> 0
I20: 0 | K20: 0 | L20: 0 | M20: 0 | P20: 8 | Q20: =IF(A20="","",IF($A$13<>A20,"月が異なります！",IF(SUM($I$13:I20)>$S$7,"決定時間数を超過しています！",""))) ->  | R20: 0 | S20: 0 | T20: =SUM($S$13:S20) -> 0 | U20: 0 | V20: 0 | W20: =IF(I20=0,0,CONCATENATE(VLOOKUP(I20+"00:01",'データ '!K:M,3,TRUE),"/",$W$11)) -> 0
I21: 0 | K21: 0 | L21: =IF(U21=0,S21,V21) -> 0 | M21: 0 | P21: 9 | Q21: =IF(A21="","",IF($A$13<>A21,"月が異なります！",IF(SUM($I$13:I21)>$S$7,"決定時間数を超過しています！",""))) ->  | R21: 0 | S21: 0 | T21: =SUM($S$13:S21) -> 0 | U21: 0 | V21: 0 | W21: =IF(I21=0,0,CONCATENATE(VLOOKUP(I21+"00:01",'データ '!K:M,3,TRUE),"/",$W$11)) -> 0
I22: 0 | K22: 0 | L22: =IF(U22=0,S22,V22) -> 0 | M22: 0 | P22: 10 | Q22: =IF(A22="","",IF($A$13<>A22,"月が異なります！",IF(SUM($I$13:I22)>$S$7,"決定時間数を超過しています！",""))) ->  | R22: 0 | S22: =K22-R22 -> 0 | T22: =SUM($S$13:S22) -> 0 | U22: 0 | V22: 0 | W22: =IF(I22=0,0,CONCATENATE(VLOOKUP(I22+"00:01",'データ '!K:M,3,TRUE),"/",$W$11)) -> 0
I23: 0 | K23: 0 | L23: 0 | M23: 0 | P23: 11 | Q23: =IF(A23="","",IF($A$13<>A23,"月が異なります！",IF(SUM($I$13:I23)>$S$7,"決定時間数を超過しています！",""))) ->  | R23: 0 | S23: 0 | T23: =SUM($S$13:S23) -> 0 | U23: 0 | V23: 0 | W23: =IF(I23=0,0,CONCATENATE(VLOOKUP(I23+"00:01",'データ '!K:M,3,TRUE),"/",$W$11)) -> 0
I24: 0 | K24: 0 | L24: 0 | M24: 0 | P24: 12 | Q24: =IF(A24="","",IF($A$13<>A24,"月が異なります！",IF(SUM($I$13:I24)>$S$7,"決定時間数を超過しています！",""))) ->  | R24: 0 | S24: 0 | T24: =SUM($S$13:S24) -> 0 | U24: 0 | V24: 0 | W24: =IF(I24=0,0,CONCATENATE(VLOOKUP(I24+"00:01",'データ '!K:M,3,TRUE),"/",$W$11)) -> 0
I25: 0 | K25: 0 | L25: 0 | M25: 0 | P25: 13 | Q25: =IF(A25="","",IF($A$13<>A25,"月が異なります！",IF(SUM($I$13:I25)>$S$7,"決定時間数を超過しています！",""))) ->  | R25: 0 | S25: 0 | T25: =SUM($S$13:S25) -> 0 | U25: 0 | V25: 0 | W25: =IF(I25=0,0,CONCATENATE(VLOOKUP(I25+"00:01",'データ '!K:M,3,TRUE),"/",$W$11)) -> 0
I26: 0 | K26: 0 | L26: 0 | M26: 0 | P26: 14 | Q26: =IF(A26="","",IF($A$13<>A26,"月が異なります！",IF(SUM($I$13:I26)>$S$7,"決定時間数を超過しています！",""))) ->  | R26: 0 | S26: 0 | T26: =SUM($S$13:S26) -> 0 | U26: 0 | V26: 0 | W26: =IF(I26=0,0,CONCATENATE(VLOOKUP(I26+"00:01",'データ '!K:M,3,TRUE),"/",$W$11)) -> 0
I27: 0 | K27: 0 | L27: 0 | M27: 0 | P27: 15 | Q27: =IF(A27="","",IF($A$13<>A27,"月が異なります！",IF(SUM($I$13:I27)>$S$7,"決定時間数を超過しています！",""))) ->  | R27: 0 | S27: 0 | T27: =SUM($S$13:S27) -> 0 | U27: 0 | V27: 0 | W27: =IF(I27=0,0,CONCATENATE(VLOOKUP(I27+"00:01",'データ '!K:M,3,TRUE),"/",$W$11)) -> 0
I28: 0 | K28: 0 | L28: 0 | M28: 0 | P28: 16 | Q28: =IF(A28="","",IF($A$13<>A28,"月が異なります！",IF(SUM($I$13:I28)>$S$7,"決定時間数を超過しています！",""))) ->  | R28: 0 | S28: 0 | T28: =SUM($S$13:S28) -> 0 | U28: 0 | V28: 0 | W28: =IF(I28=0,0,CONCATENATE(VLOOKUP(I28+"00:01",'データ '!K:M,3,TRUE),"/",$W$11)) -> 0
I29: 0 | K29: 0 | L29: 0 | M29: 0 | P29: 17 | Q29: =IF(A29="","",IF($A$13<>A29,"月が異なります！",IF(SUM($I$13:I29)>$S$7,"決定時間数を超過しています！",""))) ->  | R29: 0 | S29: 0 | T29: =SUM($S$13:S29) -> 0 | U29: 0 | V29: 0 | W29: =IF(I29=0,0,CONCATENATE(VLOOKUP(I29+"00:01",'データ '!K:M,3,TRUE),"/",$W$11)) -> 0
I30: 0 | K30: 0 | L30: 0 | M30: 0 | P30: 18 | Q30: =IF(A30="","",IF($A$13<>A30,"月が異なります！",IF(SUM($I$13:I30)>$S$7,"決定時間数を超過しています！",""))) ->  | R30: 0 | S30: 0 | T30: =SUM($S$13:S30) -> 0 | U30: 0 | V30: 0 | W30: =IF(I30=0,0,CONCATENATE(VLOOKUP(I30+"00:01",'データ '!K:M,3,TRUE),"/",$W$11)) -> 0
I31: 0 | K31: 0 | L31: 0 | M31: 0 | P31: 19 | Q31: =IF(A31="","",IF($A$13<>A31,"月が異なります！",IF(SUM($I$13:I31)>$S$7,"決定時間数を超過しています！",""))) ->  | R31: 0 | S31: 0 | T31: =SUM($S$13:S31) -> 0 | U31: 0 | V31: 0 | W31: =IF(I31=0,0,CONCATENATE(VLOOKUP(I31+"00:01",'データ '!K:M,3,TRUE),"/",$W$11)) -> 0
I32: 0 | K32: 0 | L32: 0 | M32: 0 | P32: 20 | Q32: =IF(A32="","",IF($A$13<>A32,"月が異なります！",IF(SUM($I$13:I32)>$S$7,"決定時間数を超過しています！",""))) ->  | R32: 0 | S32: 0 | T32: =SUM($S$13:S32) -> 0 | U32: 0 | V32: 0 | W32: =IF(I32=0,0,CONCATENATE(VLOOKUP(I32+"00:01",'データ '!K:M,3,TRUE),"/",$W$11)) -> 0
I33: 0 | K33: 0 | L33: 0 | M33: 0 | P33: 21 | Q33: =IF(A33="","",IF($A$13<>A33,"月が異なります！",IF(SUM($I$13:I33)>$S$7,"決定時間数を超過しています！",""))) ->  | R33: 0 | S33: 0 | T33: =SUM($S$13:S33) -> 0 | U33: 0 | V33: 0 | W33: =IF(I33=0,0,CONCATENATE(VLOOKUP(I33+"00:01",'データ '!K:M,3,TRUE),"/",$W$11)) -> 0
I34: 0 | K34: 0 | L34: 0 | M34: 0 | P34: 22 | Q34: =IF(A34="","",IF($A$13<>A34,"月が異なります！",IF(SUM($I$13:I34)>$S$7,"決定時間数を超過しています！",""))) ->  | R34: 0 | S34: 0 | T34: =SUM($S$13:S34) -> 0 | U34: 0 | V34: 0 | W34: =IF(I34=0,0,CONCATENATE(VLOOKUP(I34+"00:01",'データ '!K:M,3,TRUE),"/",$W$11)) -> 0
I35: 0 | K35: 0 | L35: 0 | M35: 0 | P35: 23 | Q35: =IF(A35="","",IF($A$13<>A35,"月が異なります！",IF(SUM($I$13:I35)>$S$7,"決定時間数を超過しています！",""))) ->  | R35: 0 | S35: 0 | T35: =SUM($S$13:S35) -> 0 | U35: 0 | V35: 0 | W35: =IF(I35=0,0,CONCATENATE(VLOOKUP(I35+"00:01",'データ '!K:M,3,TRUE),"/",$W$11)) -> 0
I36: 0 | K36: 0 | L36: 0 | M36: 0 | P36: 24 | Q36: =IF(A36="","",IF($A$13<>A36,"月が異なります！",IF(SUM($I$13:I36)>$S$7,"決定時間数を超過しています！",""))) ->  | R36: 0 | S36: 0 | T36: =SUM($S$13:S36) -> 0 | U36: 0 | V36: 0 | W36: =IF(I36=0,0,CONCATENATE(VLOOKUP(I36+"00:01",'データ '!K:M,3,TRUE),"/",$W$11)) -> 0
I37: 0 | K37: 0 | L37: 0 | M37: 0 | P37: 25 | Q37: =IF(A37="","",IF($A$13<>A37,"月が異なります！",IF(SUM($I$13:I37)>$S$7,"決定時間数を超過しています！",""))) ->  | R37: 0 | S37: 0 | T37: =SUM($S$13:S37) -> 0 | U37: 0 | V37: 0 | W37: =IF(I37=0,0,CONCATENATE(VLOOKUP(I37+"00:01",'データ '!K:M,3,TRUE),"/",$W$11)) -> 0
I38: 0 | K38: 0 | L38: 0 | M38: 0 | P38: 26 | Q38: =IF(A38="","",IF($A$13<>A38,"月が異なります！",IF(SUM($I$13:I38)>$S$7,"決定時間数を超過しています！",""))) ->  | R38: 0 | S38: 0 | T38: =SUM($S$13:S38) -> 0 | U38: 0 | V38: 0 | W38: =IF(I38=0,0,CONCATENATE(VLOOKUP(I38+"00:01",'データ '!K:M,3,TRUE),"/",$W$11)) -> 0
I39: 0 | K39: 0 | L39: 0 | M39: 0 | P39: 27 | Q39: =IF(A39="","",IF($A$13<>A39,"月が異なります！",IF(SUM($I$13:I39)>$S$7,"決定時間数を超過しています！",""))) ->  | R39: 0 | S39: 0 | T39: =SUM($S$13:S39) -> 0 | U39: 0 | V39: 0 | W39: =IF(I39=0,0,CONCATENATE(VLOOKUP(I39+"00:01",'データ '!K:M,3,TRUE),"/",$W$11)) -> 0
I40: 0 | K40: 0 | L40: 0 | M40: 0 | P40: 28 | Q40: =IF(A40="","",IF($A$13<>A40,"月が異なります！",IF(SUM($I$13:I40)>$S$7,"決定時間数を超過しています！",""))) ->  | R40: 0 | S40: 0 | T40: =SUM($S$13:S40) -> 0 | U40: 0 | V40: 0 | W40: =IF(I40=0,0,CONCATENATE(VLOOKUP(I40+"00:01",'データ '!K:M,3,TRUE),"/",$W$11)) -> 0
I41: 0 | K41: 0 | L41: 0 | M41: 0 | P41: 29 | Q41: =IF(A41="","",IF($A$13<>A41,"月が異なります！",IF(SUM($I$13:I41)>$S$7,"決定時間数を超過しています！",""))) ->  | R41: 0 | S41: 0 | T41: =SUM($S$13:S41) -> 0 | U41: 0 | V41: 0 | W41: =IF(I41=0,0,CONCATENATE(VLOOKUP(I41+"00:01",'データ '!K:M,3,TRUE),"/",$W$11)) -> 0
I42: 0 | K42: 0 | L42: 0 | M42: 0 | P42: 30 | Q42: =IF(A42="","",IF($A$13<>A42,"月が異なります！",IF(SUM($I$13:I42)>$S$7,"決定時間数を超過しています！",""))) ->  | R42: 0 | S42: 0 | T42: =SUM($S$13:S42) -> 0 | U42: 0 | V42: 0 | W42: =IF(I42=0,0,CONCATENATE(VLOOKUP(I42+"00:01",'データ '!K:M,3,TRUE),"/",$W$11)) -> 0
I43: 0 | K43: 0 | L43: 0 | M43: 0 | P43: 31 | Q43: =IF(A43="","",IF($A$13<>A43,"月が異なります！",IF(SUM($I$13:I43)>$S$7,"決定時間数を超過しています！",""))) ->  | R43: 0 | S43: 0 | T43: =SUM($S$13:S43) -> 0 | U43: 0 | V43: 0 | W43: =IF(I43=0,0,CONCATENATE(VLOOKUP(I43+"00:01",'データ '!K:M,3,TRUE),"/",$W$11)) -> 0
A44: 合計 | I44: =SUM(I13:I43) -> 0 | K44: =SUM(K13:K43) -> 0 | L44: =SUM(L13:L43) -> 0 | M44: =SUM(M13:M43) -> 0 | W44: =IF(I44>=$X$8,$Y$9,IF(AND(I44<$X$8,I44>=$X$7),$Y$8,IF(I44<$X$7,$Y$7)))&$W$11 -> 無

Sheet 7
B1: № | C1: 7
B4: =EOMONTH(B13,0) -> 1900-01-31 | F4: 鎌ケ谷市移動支援サービス提供実績記録票
A5: 登録番号 | D5: =VLOOKUP($C$1,利用者情報!A:U,COLUMN(利用者情報!B3),FALSE) -> 0 | G5: 支給決定障がい者等氏名 （児童氏名） | I5: =VLOOKUP($C$1,利用者情報!A:U,COLUMN(利用者情報!C1),FALSE) -> 0 | L5: 事業所登録番号
L6: =請求事業者!B3 -> 0 | Q6: コメント | S6: 決定時間数
A7: 契約支給量 | D7: 身体介護を 伴う | F7: =IF(VLOOKUP(C1,利用者情報!A:G,5)="有",CONCATENATE(VLOOKUP(C1,利用者情報!A:G,4)&"時間"),"") ->  | G7: 身体介護を 伴わない | I7: =IF(VLOOKUP(C1,利用者情報!A:G,5)<>"有",CONCATENATE(VLOOKUP(C1,利用者情報!A:G,4)&"時間"),"") -> 時間 | J7: 事業所及び その事業所 | L7: =請求事業者!B7 -> 0 | Q7: =利用者情報!J4 ->  | S7: =IF(F7="",I7,F7) -> 時間
A8: 利用者負担の有無 | F8: 利用者の負担割合 | H8: 利用者負担上限額
A9: =VLOOKUP($C$1,利用者情報!A:U,COLUMN(利用者情報!F3),FALSE) -> 0 | F9: =IF(A9="有","1割","0割") -> 0割 | H9: =VLOOKUP($C$1,利用者情報!A:U,COLUMN(利用者情報!G3),FALSE) -> 0 | W9: =請求事業者!C9 -> 5
W10: 便宜上区分
A11: 日付 | D11: 支援計画 | I11: 算定 時間 | J11: 派遣 人数 | K11: 算定額 | L11: 利用者 負担額 | M11: 請求額 | N11: サービス 提供者印 | O11: 利用者 確認印 | Q11: コメント | T11: 利用者負担額 累計 | U11: 上限到達フラグ | V11: 上限達成時の利用者負担額 | W11: =IF(F7="","無","有") -> 無
A12: 月 | B12: 日 | C12: 曜日 | D12: 開始 時間 | E12: 終了 時間 | F12: 計画 時間数 | G12: 開始 時間 | H12: 終了 時間 | R12: 請求額 | S12: 利用者 負担額 | W12: =IF(A9="有","（9割）","") -> 
A13: =IF(B13="","",TEXT(B13,"m")) ->  | C13: =IF(B13="","",B13) ->  | I13: =H13-G13 -> 0 | K13: =IF($H13=0,0,INDEX(単価,MATCH(W13,時間,0),MATCH($W$9,地域区分,0))) -> 0 | L13: =IF(U13=0,S13,V13) -> 0 | M13: =K13-L13 -> 0 | P13: 1 | Q13: =IF(A13="","",IF($A$13<>A13,"月が異なります！",IF(SUM($I$13:I13)>$S$7,"決定時間数を超過しています！",""))) ->  | R13: =IF(I13=0,0,INDEX(単価,MATCH(W13,時間,0),MATCH(IF(W12="",W9,W9&W12),地域区分,0))) -> 0 | S13: =K13-R13 -> 0 | T13: =SUM($S$13:S13) -> 0 | W13: =IF(I13=0,0,CONCATENATE(VLOOKUP(I13+"00:01",'データ '!K:M,3,TRUE),"/",$W$11)) -> 0
A14: =IF(B14="","",TEXT(B14,"m")) ->  | C14: =IF(B14="","",B14) ->  | I14: =H14-G14 -> 0 | K14: =IF($H14=0,0,INDEX(単価,MATCH(W14,時間,0),MATCH($W$9,地域区分,0))) -> 0 | L14: =IF(U14=0,S14,V14) -> 0 | M14: =K14-L14 -> 0 | P14: 2 | Q14: =IF(A14="","",IF($A$13<>A14,"月が異なります！",IF(SUM($I$13:I14)>$S$7,"決定時間数を超過しています！",""))) ->  | R14: =IF(AND($H14=0),0,IF($A$9="有",INDEX(単価,MATCH(W14,時間,0),MATCH($W$9&$W$12,地域区分,0)),INDEX(単価,MATCH(W14,時間,0),MATCH($W$9,地域区分,0)))) -> 0 | S14: =K14-R14 -> 0 | T14: =SUM($S$13:S14) -> 0 | U14: =IF(AND(T13<$H$9,T14>$H$9),1,IF(T14>$H$9,2,0)) -> 0 | V14: =IF(U14=1,$H$9-T13,0) -> 0 | W14: =IF(I14=0,0,CONCATENATE(VLOOKUP(I14+"00:01",'データ '!K:M,3,TRUE),"/",$W$11)) -> 0
I15: 0 | K15: 0 | L15: =IF(U15=0,S15,V15) -> 0 | M15: =K15-L15 -> 0 | P15: 3 | Q15: =IF(A15="","",IF($A$13<>A15,"月が異なります！",IF(SUM($I$13:I15)>$S$7,"決定時間数を超過しています！",""))) ->  | R15: 0 | S15: 0 | T15: =SUM($S$13:S15) -> 0 | U15: =IF(AND(T14<$H$9,T15>$H$9),1,IF(T15>$H$9,2,0)) -> 0 | V15: =IF(U15=1,$H$9-T14,0) -> 0 | W15: =IF(I15=0,0,CONCATENATE(VLOOKUP(I15+"00:01",'データ '!K:M,3,TRUE),"/",$W$11)) -> 0
I16: 0 | K16: 0 | L16: 0 | M16: 0 | P16: 4 | Q16: =IF(A16="","",IF($A$13<>A16,"月が異なります！",IF(SUM($I$13:I16)>$S$7,"決定時間数を超過しています！",""))) ->  | R16: 0 | S16: 0 | T16: =SUM($S$13:S16) -> 0 | U16: 0 | V16: 0 | W16: =IF(I16=0,0,CONCATENATE(VLOOKUP(I16+"00:01",'データ '!K:M,3,TRUE),"/",$W$11)) -> 0
I17: 0 | K17: 0 | L17: 0 | M17: 0 | P17: 5 | Q17: =IF(A17="","",IF($A$13<>A17,"月が異なります！",IF(SUM($I$13:I17)>$S$7,"決定時間数を超過しています！",""))) ->  | R17: 0 | S17: 0 | T17: =SUM($S$13:S17) -> 0 | U17: 0 | V17: 0 | W17: =IF(I17=0,0,CONCATENATE(VLOOKUP(I17+"00:01",'データ '!K:M,3,TRUE),"/",$W$11)) -> 0
I18: 0 | K18: 0 | L18: 0 | M18: 0 | P18: 6 | Q18: =IF(A18="","",IF($A$13<>A18,"月が異なります！",IF(SUM($I$13:I18)>$S$7,"決定時間数を超過しています！",""))) ->  | R18: 0 | S18: 0 | T18: =SUM($S$13:S18) -> 0 | U18: 0 | V18: 0 | W18: =IF(I18=0,0,CONCATENATE(VLOOKUP(I18+"00:01",'データ '!K:M,3,TRUE),"/",$W$11)) -> 0
I19: 0 | K19: 0 | L19: 0 | M19: 0 | P19: 7 | Q19: =IF(A19="","",IF($A$13<>A19,"月が異なります！",IF(SUM($I$13:I19)>$S$7,"決定時間数を超過しています！",""))) ->  | R19: 0 | S19: 0 | T19: =SUM($S$13:S19) -> 0 | U19: 0 | V19: 0 | W19: =IF(I19=0,0,CONCATENATE(VLOOKUP(I19+"00:01",'データ '!K:M,3,TRUE),"/",$W$11)) -> 0
I20: 0 | K20: 0 | L20: 0 | M20: 0 | P20: 8 | Q20: =IF(A20="","",IF($A$13<>A20,"月が異なります！",IF(SUM($I$13:I20)>$S$7,"決定時間数を超過しています！",""))) ->  | R20: 0 | S20: 0 | T20: =SUM($S$13:S20) -> 0 | U20: 0 | V20: 0 | W20: =IF(I20=0,0,CONCATENATE(VLOOKUP(I20+"00:01",'データ '!K:M,3,TRUE),"/",$W$11)) -> 0
I21: 0 | K21: 0 | L21: =IF(U21=0,S21,V21) -> 0 | M21: 0 | P21: 9 | Q21: =IF(A21="","",IF($A$13<>A21,"月が異なります！",IF(SUM($I$13:I21)>$S$7,"決定時間数を超過しています！",""))) ->  | R21: 0 | S21: 0 | T21: =SUM($S$13:S21) -> 0 | U21: 0 | V21: 0 | W21: =IF(I21=0,0,CONCATENATE(VLOOKUP(I21+"00:01",'データ '!K:M,3,TRUE),"/",$W$11)) -> 0
I22: 0 | K22: 0 | L22: =IF(U22=0,S22,V22) -> 0 | M22: 0 | P22: 10 | Q22: =IF(A22="","",IF($A$13<>A22,"月が異なります！",IF(SUM($I$13:I22)>$S$7,"決定時間数を超過しています！",""))) ->  | R22: 0 | S22: =K22-R22 -> 0 | T22: =SUM($S$13:S22) -> 0 | U22: 0 | V22: 0 | W22: =IF(I22=0,0,CONCATENATE(VLOOKUP(I22+"00:01",'データ '!K:M,3,TRUE),"/",$W$11)) -> 0
I23: 0 | K23: 0 | L23: 0 | M23: 0 | P23: 11 | Q23: =IF(A23="","",IF($A$13<>A23,"月が異なります！",IF(SUM($I$13:I23)>$S$7,"決定時間数を超過しています！",""))) ->  | R23: 0 | S23: 0 | T23: =SUM($S$13:S23) -> 0 | U23: 0 | V23: 0 | W23: =IF(I23=0,0,CONCATENATE(VLOOKUP(I23+"00:01",'データ '!K:M,3,TRUE),"/",$W$11)) -> 0
I24: 0 | K24: 0 | L24: 0 | M24: 0 | P24: 12 | Q24: =IF(A24="","",IF($A$13<>A24,"月が異なります！",IF(SUM($I$13:I24)>$S$7,"決定時間数を超過しています！",""))) ->  | R24: 0 | S24: 0 | T24: =SUM($S$13:S24) -> 0 | U24: 0 | V24: 0 | W24: =IF(I24=0,0,CONCATENATE(VLOOKUP(I24+"00:01",'データ '!K:M,3,TRUE),"/",$W$11)) -> 0
I25: 0 | K25: 0 | L25: 0 | M25: 0 | P25: 13 | Q25: =IF(A25="","",IF($A$13<>A25,"月が異なります！",IF(SUM($I$13:I25)>$S$7,"決定時間数を超過しています！",""))) ->  | R25: 0 | S25: 0 | T25: =SUM($S$13:S25) -> 0 | U25: 0 | V25: 0 | W25: =IF(I25=0,0,CONCATENATE(VLOOKUP(I25+"00:01",'データ '!K:M,3,TRUE),"/",$W$11)) -> 0
I26: 0 | K26: 0 | L26: 0 | M26: 0 | P26: 14 | Q26: =IF(A26="","",IF($A$13<>A26,"月が異なります！",IF(SUM($I$13:I26)>$S$7,"決定時間数を超過しています！",""))) ->  | R26: 0 | S26: 0 | T26: =SUM($S$13:S26) -> 0 | U26: 0 | V26: 0 | W26: =IF(I26=0,0,CONCATENATE(VLOOKUP(I26+"00:01",'データ '!K:M,3,TRUE),"/",$W$11)) -> 0
I27: 0 | K27: 0 | L27: 0 | M27: 0 | P27: 15 | Q27: =IF(A27="","",IF($A$13<>A27,"月が異なります！",IF(SUM($I$13:I27)>$S$7,"決定時間数を超過しています！",""))) ->  | R27: 0 | S27: 0 | T27: =SUM($S$13:S27) -> 0 | U27: 0 | V27: 0 | W27: =IF(I27=0,0,CONCATENATE(VLOOKUP(I27+"00:01",'データ '!K:M,3,TRUE),"/",$W$11)) -> 0
I28: 0 | K28: 0 | L28: 0 | M28: 0 | P28: 16 | Q28: =IF(A28="","",IF($A$13<>A28,"月が異なります！",IF(SUM($I$13:I28)>$S$7,"決定時間数を超過しています！",""))) ->  | R28: 0 | S28: 0 | T28: =SUM($S$13:S28) -> 0 | U28: 0 | V28: 0 | W28: =IF(I28=0,0,CONCATENATE(VLOOKUP(I28+"00:01",'データ '!K:M,3,TRUE),"/",$W$11)) -> 0
I29: 0 | K29: 0 | L29: 0 | M29: 0 | P29: 17 | Q29: =IF(A29="","",IF($A$13<>A29,"月が異なります！",IF(SUM($I$13:I29)>$S$7,"決定時間数を超過しています！",""))) ->  | R29: 0 | S29: 0 | T29: =SUM($S$13:S29) -> 0 | U29: 0 | V29: 0 | W29: =IF(I29=0,0,CONCATENATE(VLOOKUP(I29+"00:01",'データ '!K:M,3,TRUE),"/",$W$11)) -> 0
I30: 0 | K30: 0 | L30: 0 | M30: 0 | P30: 18 | Q30: =IF(A30="","",IF($A$13<>A30,"月が異なります！",IF(SUM($I$13:I30)>$S$7,"決定時間数を超過しています！",""))) ->  | R30: 0 | S30: 0 | T30: =SUM($S$13:S30) -> 0 | U30: 0 | V30: 0 | W30: =IF(I30=0,0,CONCATENATE(VLOOKUP(I30+"00:01",'データ '!K:M,3,TRUE),"/",$W$11)) -> 0
I31: 0 | K31: 0 | L31: 0 | M31: 0 | P31: 19 | Q31: =IF(A31="","",IF($A$13<>A31,"月が異なります！",IF(SUM($I$13:I31)>$S$7,"決定時間数を超過しています！",""))) ->  | R31: 0 | S31: 0 | T31: =SUM($S$13:S31) -> 0 | U31: 0 | V31: 0 | W31: =IF(I31=0,0,CONCATENATE(VLOOKUP(I31+"00:01",'データ '!K:M,3,TRUE),"/",$W$11)) -> 0
I32: 0 | K32: 0 | L32: 0 | M32: 0 | P32: 20 | Q32: =IF(A32="","",IF($A$13<>A32,"月が異なります！",IF(SUM($I$13:I32)>$S$7,"決定時間数を超過しています！",""))) ->  | R32: 0 | S32: 0 | T32: =SUM($S$13:S32) -> 0 | U32: 0 | V32: 0 | W32: =IF(I32=0,0,CONCATENATE(VLOOKUP(I32+"00:01",'データ '!K:M,3,TRUE),"/",$W$11)) -> 0
I33: 0 | K33: 0 | L33: 0 | M33: 0 | P33: 21 | Q33: =IF(A33="","",IF($A$13<>A33,"月が異なります！",IF(SUM($I$13:I33)>$S$7,"決定時間数を超過しています！",""))) ->  | R33: 0 | S33: 0 | T33: =SUM($S$13:S33) -> 0 | U33: 0 | V33: 0 | W33: =IF(I33=0,0,CONCATENATE(VLOOKUP(I33+"00:01",'データ '!K:M,3,TRUE),"/",$W$11)) -> 0
I34: 0 | K34: 0 | L34: 0 | M34: 0 | P34: 22 | Q34: =IF(A34="","",IF($A$13<>A34,"月が異なります！",IF(SUM($I$13:I34)>$S$7,"決定時間数を超過しています！",""))) ->  | R34: 0 | S34: 0 | T34: =SUM($S$13:S34) -> 0 | U34: 0 | V34: 0 | W34: =IF(I34=0,0,CONCATENATE(VLOOKUP(I34+"00:01",'データ '!K:M,3,TRUE),"/",$W$11)) -> 0
I35: 0 | K35: 0 | L35: 0 | M35: 0 | P35: 23 | Q35: =IF(A35="","",IF($A$13<>A35,"月が異なります！",IF(SUM($I$13:I35)>$S$7,"決定時間数を超過しています！",""))) ->  | R35: 0 | S35: 0 | T35: =SUM($S$13:S35) -> 0 | U35: 0 | V35: 0 | W35: =IF(I35=0,0,CONCATENATE(VLOOKUP(I35+"00:01",'データ '!K:M,3,TRUE),"/",$W$11)) -> 0
I36: 0 | K36: 0 | L36: 0 | M36: 0 | P36: 24 | Q36: =IF(A36="","",IF($A$13<>A36,"月が異なります！",IF(SUM($I$13:I36)>$S$7,"決定時間数を超過しています！",""))) ->  | R36: 0 | S36: 0 | T36: =SUM($S$13:S36) -> 0 | U36: 0 | V36: 0 | W36: =IF(I36=0,0,CONCATENATE(VLOOKUP(I36+"00:01",'データ '!K:M,3,TRUE),"/",$W$11)) -> 0
I37: 0 | K37: 0 | L37: 0 | M37: 0 | P37: 25 | Q37: =IF(A37="","",IF($A$13<>A37,"月が異なります！",IF(SUM($I$13:I37)>$S$7,"決定時間数を超過しています！",""))) ->  | R37: 0 | S37: 0 | T37: =SUM($S$13:S37) -> 0 | U37: 0 | V37: 0 | W37: =IF(I37=0,0,CONCATENATE(VLOOKUP(I37+"00:01",'データ '!K:M,3,TRUE),"/",$W$11)) -> 0
I38: 0 | K38: 0 | L38: 0 | M38: 0 | P38: 26 | Q38: =IF(A38="","",IF($A$13<>A38,"月が異なります！",IF(SUM($I$13:I38)>$S$7,"決定時間数を超過しています！",""))) ->  | R38: 0 | S38: 0 | T38: =SUM($S$13:S38) -> 0 | U38: 0 | V38: 0 | W38: =IF(I38=0,0,CONCATENATE(VLOOKUP(I38+"00:01",'データ '!K:M,3,TRUE),"/",$W$11)) -> 0
I39: 0 | K39: 0 | L39: 0 | M39: 0 | P39: 27 | Q39: =IF(A39="","",IF($A$13<>A39,"月が異なります！",IF(SUM($I$13:I39)>$S$7,"決定時間数を超過しています！",""))) ->  | R39: 0 | S39: 0 | T39: =SUM($S$13:S39) -> 0 | U39: 0 | V39: 0 | W39: =IF(I39=0,0,CONCATENATE(VLOOKUP(I39+"00:01",'データ '!K:M,3,TRUE),"/",$W$11)) -> 0
I40: 0 | K40: 0 | L40: 0 | M40: 0 | P40: 28 | Q40: =IF(A40="","",IF($A$13<>A40,"月が異なります！",IF(SUM($I$13:I40)>$S$7,"決定時間数を超過しています！",""))) ->  | R40: 0 | S40: 0 | T40: =SUM($S$13:S40) -> 0 | U40: 0 | V40: 0 | W40: =IF(I40=0,0,CONCATENATE(VLOOKUP(I40+"00:01",'データ '!K:M,3,TRUE),"/",$W$11)) -> 0
I41: 0 | K41: 0 | L41: 0 | M41: 0 | P41: 29 | Q41: =IF(A41="","",IF($A$13<>A41,"月が異なります！",IF(SUM($I$13:I41)>$S$7,"決定時間数を超過しています！",""))) ->  | R41: 0 | S41: 0 | T41: =SUM($S$13:S41) -> 0 | U41: 0 | V41: 0 | W41: =IF(I41=0,0,CONCATENATE(VLOOKUP(I41+"00:01",'データ '!K:M,3,TRUE),"/",$W$11)) -> 0
I42: 0 | K42: 0 | L42: 0 | M42: 0 | P42: 30 | Q42: =IF(A42="","",IF($A$13<>A42,"月が異なります！",IF(SUM($I$13:I42)>$S$7,"決定時間数を超過しています！",""))) ->  | R42: 0 | S42: 0 | T42: =SUM($S$13:S42) -> 0 | U42: 0 | V42: 0 | W42: =IF(I42=0,0,CONCATENATE(VLOOKUP(I42+"00:01",'データ '!K:M,3,TRUE),"/",$W$11)) -> 0
I43: 0 | K43: 0 | L43: 0 | M43: 0 | P43: 31 | Q43: =IF(A43="","",IF($A$13<>A43,"月が異なります！",IF(SUM($I$13:I43)>$S$7,"決定時間数を超過しています！",""))) ->  | R43: 0 | S43: 0 | T43: =SUM($S$13:S43) -> 0 | U43: 0 | V43: 0 | W43: =IF(I43=0,0,CONCATENATE(VLOOKUP(I43+"00:01",'データ '!K:M,3,TRUE),"/",$W$11)) -> 0
A44: 合計 | I44: =SUM(I13:I43) -> 0 | K44: =SUM(K13:K43) -> 0 | L44: =SUM(L13:L43) -> 0 | M44: =SUM(M13:M43) -> 0 | W44: =IF(I44>=$X$8,$Y$9,IF(AND(I44<$X$8,I44>=$X$7),$Y$8,IF(I44<$X$7,$Y$7)))&$W$11 -> 無

Sheet 8
B1: № | C1: 8
B4: =EOMONTH(B13,0) -> 1900-01-31 | F4: 鎌ケ谷市移動支援サービス提供実績記録票
A5: 登録番号 | D5: =VLOOKUP($C$1,利用者情報!A:U,COLUMN(利用者情報!B3),FALSE) -> 0 | G5: 支給決定障がい者等氏名 （児童氏名） | I5: =VLOOKUP($C$1,利用者情報!A:U,COLUMN(利用者情報!C1),FALSE) -> 0 | L5: 事業所登録番号
L6: =請求事業者!B3 -> 0 | Q6: コメント | S6: 決定時間数
A7: 契約支給量 | D7: 身体介護を 伴う | F7: =IF(VLOOKUP(C1,利用者情報!A:G,5)="有",CONCATENATE(VLOOKUP(C1,利用者情報!A:G,4)&"時間"),"") ->  | G7: 身体介護を 伴わない | I7: =IF(VLOOKUP(C1,利用者情報!A:G,5)<>"有",CONCATENATE(VLOOKUP(C1,利用者情報!A:G,4)&"時間"),"") -> 時間 | J7: 事業所及び その事業所 | L7: =請求事業者!B7 -> 0 | Q7: =利用者情報!J4 ->  | S7: =IF(F7="",I7,F7) -> 時間
A8: 利用者負担の有無 | F8: 利用者の負担割合 | H8: 利用者負担上限額
A9: =VLOOKUP($C$1,利用者情報!A:U,COLUMN(利用者情報!F3),FALSE) -> 0 | F9: =IF(A9="有","1割","0割") -> 0割 | H9: =VLOOKUP($C$1,利用者情報!A:U,COLUMN(利用者情報!G3),FALSE) -> 0 | W9: =請求事業者!C9 -> 5
W10: 便宜上区分
A11: 日付 | D11: 支援計画 | I11: 算定 時間 | J11: 派遣 人数 | K11: 算定額 | L11: 利用者 負担額 | M11: 請求額 | N11: サービス 提供者印 | O11: 利用者 確認印 | Q11: コメント | T11: 利用者負担額 累計 | U11: 上限到達フラグ | V11: 上限達成時の利用者負担額 | W11: =IF(F7="","無","有") -> 無
A12: 月 | B12: 日 | C12: 曜日 | D12: 開始 時間 | E12: 終了 時間 | F12: 計画 時間数 | G12: 開始 時間 | H12: 終了 時間 | R12: 請求額 | S12: 利用者 負担額 | W12: =IF(A9="有","（9割）","") -> 
A13: =IF(B13="","",TEXT(B13,"m")) ->  | C13: =IF(B13="","",B13) ->  | I13: =H13-G13 -> 0 | K13: =IF($H13=0,0,INDEX(単価,MATCH(W13,時間,0),MATCH($W$9,地域区分,0))) -> 0 | L13: =IF(U13=0,S13,V13) -> 0 | M13: =K13-L13 -> 0 | P13: 1 | Q13: =IF(A13="","",IF($A$13<>A13,"月が異なります！",IF(SUM($I$13:I13)>$S$7,"決定時間数を超過しています！",""))) ->  | R13: =IF(I13=0,0,INDEX(単価,MATCH(W13,時間,0),MATCH(IF(W12="",W9,W9&W12),地域区分,0))) -> 0 | S13: =K13-R13 -> 0 | T13: =SUM($S$13:S13) -> 0 | W13: =IF(I13=0,0,CONCATENATE(VLOOKUP(I13+"00:01",'データ '!K:M,3,TRUE),"/",$W$11)) -> 0
A14: =IF(B14="","",TEXT(B14,"m")) ->  | C14: =IF(B14="","",B14) ->  | I14: =H14-G14 -> 0 | K14: =IF($H14=0,0,INDEX(単価,MATCH(W14,時間,0),MATCH($W$9,地域区分,0))) -> 0 | L14: =IF(U14=0,S14,V14) -> 0 | M14: =K14-L14 -> 0 | P14: 2 | Q14: =IF(A14="","",IF($A$13<>A14,"月が異なります！",IF(SUM($I$13:I14)>$S$7,"決定時間数を超過しています！",""))) ->  | R14: =IF(AND($H14=0),0,IF($A$9="有",INDEX(単価,MATCH(W14,時間,0),MATCH($W$9&$W$12,地域区分,0)),INDEX(単価,MATCH(W14,時間,0),MATCH($W$9,地域区分,0)))) -> 0 | S14: =K14-R14 -> 0 | T14: =SUM($S$13:S14) -> 0 | U14: =IF(AND(T13<$H$9,T14>$H$9),1,IF(T14>$H$9,2,0)) -> 0 | V14: =IF(U14=1,$H$9-T13,0) -> 0 | W14: =IF(I14=0,0,CONCATENATE(VLOOKUP(I14+"00:01",'データ '!K:M,3,TRUE),"/",$W$11)) -> 0
I15: 0 | K15: 0 | L15: =IF(U15=0,S15,V15) -> 0 | M15: =K15-L15 -> 0 | P15: 3 | Q15: =IF(A15="","",IF($A$13<>A15,"月が異なります！",IF(SUM($I$13:I15)>$S$7,"決定時間数を超過しています！",""))) ->  | R15: 0 | S15: 0 | T15: =SUM($S$13:S15) -> 0 | U15: =IF(AND(T14<$H$9,T15>$H$9),1,IF(T15>$H$9,2,0)) -> 0 | V15: =IF(U15=1,$H$9-T14,0) -> 0 | W15: =IF(I15=0,0,CONCATENATE(VLOOKUP(I15+"00:01",'データ '!K:M,3,TRUE),"/",$W$11)) -> 0
I16: 0 | K16: 0 | L16: 0 | M16: 0 | P16: 4 | Q16: =IF(A16="","",IF($A$13<>A16,"月が異なります！",IF(SUM($I$13:I16)>$S$7,"決定時間数を超過しています！",""))) ->  | R16: 0 | S16: 0 | T16: =SUM($S$13:S16) -> 0 | U16: 0 | V16: 0 | W16: =IF(I16=0,0,CONCATENATE(VLOOKUP(I16+"00:01",'データ '!K:M,3,TRUE),"/",$W$11)) -> 0
I17: 0 | K17: 0 | L17: 0 | M17: 0 | P17: 5 | Q17: =IF(A17="","",IF($A$13<>A17,"月が異なります！",IF(SUM($I$13:I17)>$S$7,"決定時間数を超過しています！",""))) ->  | R17: 0 | S17: 0 | T17: =SUM($S$13:S17) -> 0 | U17: 0 | V17: 0 | W17: =IF(I17=0,0,CONCATENATE(VLOOKUP(I17+"00:01",'データ '!K:M,3,TRUE),"/",$W$11)) -> 0
I18: 0 | K18: 0 | L18: 0 | M18: 0 | P18: 6 | Q18: =IF(A18="","",IF($A$13<>A18,"月が異なります！",IF(SUM($I$13:I18)>$S$7,"決定時間数を超過しています！",""))) ->  | R18: 0 | S18: 0 | T18: =SUM($S$13:S18) -> 0 | U18: 0 | V18: 0 | W18: =IF(I18=0,0,CONCATENATE(VLOOKUP(I18+"00:01",'データ '!K:M,3,TRUE),"/",$W$11)) -> 0
I19: 0 | K19: 0 | L19: 0 | M19: 0 | P19: 7 | Q19: =IF(A19="","",IF($A$13<>A19,"月が異なります！",IF(SUM($I$13:I19)>$S$7,"決定時間数を超過しています！",""))) ->  | R19: 0 | S19: 0 | T19: =SUM($S$13:S19) -> 0 | U19: 0 | V19: 0 | W19: =IF(I19=0,0,CONCATENATE(VLOOKUP(I19+"00:01",'データ '!K:M,3,TRUE),"/",$W$11)) -> 0
I20: 0 | K20: 0 | L20: 0 | M20: 0 | P20: 8 | Q20: =IF(A20="","",IF($A$13<>A20,"月が異なります！",IF(SUM($I$13:I20)>$S$7,"決定時間数を超過しています！",""))) ->  | R20: 0 | S20: 0 | T20: =SUM($S$13:S20) -> 0 | U20: 0 | V20: 0 | W20: =IF(I20=0,0,CONCATENATE(VLOOKUP(I20+"00:01",'データ '!K:M,3,TRUE),"/",$W$11)) -> 0
I21: 0 | K21: 0 | L21: =IF(U21=0,S21,V21) -> 0 | M21: 0 | P21: 9 | Q21: =IF(A21="","",IF($A$13<>A21,"月が異なります！",IF(SUM($I$13:I21)>$S$7,"決定時間数を超過しています！",""))) ->  | R21: 0 | S21: 0 | T21: =SUM($S$13:S21) -> 0 | U21: 0 | V21: 0 | W21: =IF(I21=0,0,CONCATENATE(VLOOKUP(I21+"00:01",'データ '!K:M,3,TRUE),"/",$W$11)) -> 0
I22: 0 | K22: 0 | L22: =IF(U22=0,S22,V22) -> 0 | M22: 0 | P22: 10 | Q22: =IF(A22="","",IF($A$13<>A22,"月が異なります！",IF(SUM($I$13:I22)>$S$7,"決定時間数を超過しています！",""))) ->  | R22: 0 | S22: =K22-R22 -> 0 | T22: =SUM($S$13:S22) -> 0 | U22: 0 | V22: 0 | W22: =IF(I22=0,0,CONCATENATE(VLOOKUP(I22+"00:01",'データ '!K:M,3,TRUE),"/",$W$11)) -> 0
I23: 0 | K23: 0 | L23: 0 | M23: 0 | P23: 11 | Q23: =IF(A23="","",IF($A$13<>A23,"月が異なります！",IF(SUM($I$13:I23)>$S$7,"決定時間数を超過しています！",""))) ->  | R23: 0 | S23: 0 | T23: =SUM($S$13:S23) -> 0 | U23: 0 | V23: 0 | W23: =IF(I23=0,0,CONCATENATE(VLOOKUP(I23+"00:01",'データ '!K:M,3,TRUE),"/",$W$11)) -> 0
I24: 0 | K24: 0 | L24: 0 | M24: 0 | P24: 12 | Q24: =IF(A24="","",IF($A$13<>A24,"月が異なります！",IF(SUM($I$13:I24)>$S$7,"決定時間数を超過しています！",""))) ->  | R24: 0 | S24: 0 | T24: =SUM($S$13:S24) -> 0 | U24: 0 | V24: 0 | W24: =IF(I24=0,0,CONCATENATE(VLOOKUP(I24+"00:01",'データ '!K:M,3,TRUE),"/",$W$11)) -> 0
I25: 0 | K25: 0 | L25: 0 | M25: 0 | P25: 13 | Q25: =IF(A25="","",IF($A$13<>A25,"月が異なります！",IF(SUM($I$13:I25)>$S$7,"決定時間数を超過しています！",""))) ->  | R25: 0 | S25: 0 | T25: =SUM($S$13:S25) -> 0 | U25: 0 | V25: 0 | W25: =IF(I25=0,0,CONCATENATE(VLOOKUP(I25+"00:01",'データ '!K:M,3,TRUE),"/",$W$11)) -> 0
I26: 0 | K26: 0 | L26: 0 | M26: 0 | P26: 14 | Q26: =IF(A26="","",IF($A$13<>A26,"月が異なります！",IF(SUM($I$13:I26)>$S$7,"決定時間数を超過しています！",""))) ->  | R26: 0 | S26: 0 | T26: =SUM($S$13:S26) -> 0 | U26: 0 | V26: 0 | W26: =IF(I26=0,0,CONCATENATE(VLOOKUP(I26+"00:01",'データ '!K:M,3,TRUE),"/",$W$11)) -> 0
I27: 0 | K27: 0 | L27: 0 | M27: 0 | P27: 15 | Q27: =IF(A27="","",IF($A$13<>A27,"月が異なります！",IF(SUM($I$13:I27)>$S$7,"決定時間数を超過しています！",""))) ->  | R27: 0 | S27: 0 | T27: =SUM($S$13:S27) -> 0 | U27: 0 | V27: 0 | W27: =IF(I27=0,0,CONCATENATE(VLOOKUP(I27+"00:01",'データ '!K:M,3,TRUE),"/",$W$11)) -> 0
I28: 0 | K28: 0 | L28: 0 | M28: 0 | P28: 16 | Q28: =IF(A28="","",IF($A$13<>A28,"月が異なります！",IF(SUM($I$13:I28)>$S$7,"決定時間数を超過しています！",""))) ->  | R28: 0 | S28: 0 | T28: =SUM($S$13:S28) -> 0 | U28: 0 | V28: 0 | W28: =IF(I28=0,0,CONCATENATE(VLOOKUP(I28+"00:01",'データ '!K:M,3,TRUE),"/",$W$11)) -> 0
I29: 0 | K29: 0 | L29: 0 | M29: 0 | P29: 17 | Q29: =IF(A29="","",IF($A$13<>A29,"月が異なります！",IF(SUM($I$13:I29)>$S$7,"決定時間数を超過しています！",""))) ->  | R29: 0 | S29: 0 | T29: =SUM($S$13:S29) -> 0 | U29: 0 | V29: 0 | W29: =IF(I29=0,0,CONCATENATE(VLOOKUP(I29+"00:01",'データ '!K:M,3,TRUE),"/",$W$11)) -> 0
I30: 0 | K30: 0 | L30: 0 | M30: 0 | P30: 18 | Q30: =IF(A30="","",IF($A$13<>A30,"月が異なります！",IF(SUM($I$13:I30)>$S$7,"決定時間数を超過しています！",""))) ->  | R30: 0 | S30: 0 | T30: =SUM($S$13:S30) -> 0 | U30: 0 | V30: 0 | W30: =IF(I30=0,0,CONCATENATE(VLOOKUP(I30+"00:01",'データ '!K:M,3,TRUE),"/",$W$11)) -> 0
I31: 0 | K31: 0 | L31: 0 | M31: 0 | P31: 19 | Q31: =IF(A31="","",IF($A$13<>A31,"月が異なります！",IF(SUM($I$13:I31)>$S$7,"決定時間数を超過しています！",""))) ->  | R31: 0 | S31: 0 | T31: =SUM($S$13:S31) -> 0 | U31: 0 | V31: 0 | W31: =IF(I31=0,0,CONCATENATE(VLOOKUP(I31+"00:01",'データ '!K:M,3,TRUE),"/",$W$11)) -> 0
I32: 0 | K32: 0 | L32: 0 | M32: 0 | P32: 20 | Q32: =IF(A32="","",IF($A$13<>A32,"月が異なります！",IF(SUM($I$13:I32)>$S$7,"決定時間数を超過しています！",""))) ->  | R32: 0 | S32: 0 | T32: =SUM($S$13:S32) -> 0 | U32: 0 | V32: 0 | W32: =IF(I32=0,0,CONCATENATE(VLOOKUP(I32+"00:01",'データ '!K:M,3,TRUE),"/",$W$11)) -> 0
I33: 0 | K33: 0 | L33: 0 | M33: 0 | P33: 21 | Q33: =IF(A33="","",IF($A$13<>A33,"月が異なります！",IF(SUM($I$13:I33)>$S$7,"決定時間数を超過しています！",""))) ->  | R33: 0 | S33: 0 | T33: =SUM($S$13:S33) -> 0 | U33: 0 | V33: 0 | W33: =IF(I33=0,0,CONCATENATE(VLOOKUP(I33+"00:01",'データ '!K:M,3,TRUE),"/",$W$11)) -> 0
I34: 0 | K34: 0 | L34: 0 | M34: 0 | P34: 22 | Q34: =IF(A34="","",IF($A$13<>A34,"月が異なります！",IF(SUM($I$13:I34)>$S$7,"決定時間数を超過しています！",""))) ->  | R34: 0 | S34: 0 | T34: =SUM($S$13:S34) -> 0 | U34: 0 | V34: 0 | W34: =IF(I34=0,0,CONCATENATE(VLOOKUP(I34+"00:01",'データ '!K:M,3,TRUE),"/",$W$11)) -> 0
I35: 0 | K35: 0 | L35: 0 | M35: 0 | P35: 23 | Q35: =IF(A35="","",IF($A$13<>A35,"月が異なります！",IF(SUM($I$13:I35)>$S$7,"決定時間数を超過しています！",""))) ->  | R35: 0 | S35: 0 | T35: =SUM($S$13:S35) -> 0 | U35: 0 | V35: 0 | W35: =IF(I35=0,0,CONCATENATE(VLOOKUP(I35+"00:01",'データ '!K:M,3,TRUE),"/",$W$11)) -> 0
I36: 0 | K36: 0 | L36: 0 | M36: 0 | P36: 24 | Q36: =IF(A36="","",IF($A$13<>A36,"月が異なります！",IF(SUM($I$13:I36)>$S$7,"決定時間数を超過しています！",""))) ->  | R36: 0 | S36: 0 | T36: =SUM($S$13:S36) -> 0 | U36: 0 | V36: 0 | W36: =IF(I36=0,0,CONCATENATE(VLOOKUP(I36+"00:01",'データ '!K:M,3,TRUE),"/",$W$11)) -> 0
I37: 0 | K37: 0 | L37: 0 | M37: 0 | P37: 25 | Q37: =IF(A37="","",IF($A$13<>A37,"月が異なります！",IF(SUM($I$13:I37)>$S$7,"決定時間数を超過しています！",""))) ->  | R37: 0 | S37: 0 | T37: =SUM($S$13:S37) -> 0 | U37: 0 | V37: 0 | W37: =IF(I37=0,0,CONCATENATE(VLOOKUP(I37+"00:01",'データ '!K:M,3,TRUE),"/",$W$11)) -> 0
I38: 0 | K38: 0 | L38: 0 | M38: 0 | P38: 26 | Q38: =IF(A38="","",IF($A$13<>A38,"月が異なります！",IF(SUM($I$13:I38)>$S$7,"決定時間数を超過しています！",""))) ->  | R38: 0 | S38: 0 | T38: =SUM($S$13:S38) -> 0 | U38: 0 | V38: 0 | W38: =IF(I38=0,0,CONCATENATE(VLOOKUP(I38+"00:01",'データ '!K:M,3,TRUE),"/",$W$11)) -> 0
I39: 0 | K39: 0 | L39: 0 | M39: 0 | P39: 27 | Q39: =IF(A39="","",IF($A$13<>A39,"月が異なります！",IF(SUM($I$13:I39)>$S$7,"決定時間数を超過しています！",""))) ->  | R39: 0 | S39: 0 | T39: =SUM($S$13:S39) -> 0 | U39: 0 | V39: 0 | W39: =IF(I39=0,0,CONCATENATE(VLOOKUP(I39+"00:01",'データ '!K:M,3,TRUE),"/",$W$11)) -> 0
I40: 0 | K40: 0 | L40: 0 | M40: 0 | P40: 28 | Q40: =IF(A40="","",IF($A$13<>A40,"月が異なります！",IF(SUM($I$13:I40)>$S$7,"決定時間数を超過しています！",""))) ->  | R40: 0 | S40: 0 | T40: =SUM($S$13:S40) -> 0 | U40: 0 | V40: 0 | W40: =IF(I40=0,0,CONCATENATE(VLOOKUP(I40+"00:01",'データ '!K:M,3,TRUE),"/",$W$11)) -> 0
I41: 0 | K41: 0 | L41: 0 | M41: 0 | P41: 29 | Q41: =IF(A41="","",IF($A$13<>A41,"月が異なります！",IF(SUM($I$13:I41)>$S$7,"決定時間数を超過しています！",""))) ->  | R41: 0 | S41: 0 | T41: =SUM($S$13:S41) -> 0 | U41: 0 | V41: 0 | W41: =IF(I41=0,0,CONCATENATE(VLOOKUP(I41+"00:01",'データ '!K:M,3,TRUE),"/",$W$11)) -> 0
I42: 0 | K42: 0 | L42: 0 | M42: 0 | P42: 30 | Q42: =IF(A42="","",IF($A$13<>A42,"月が異なります！",IF(SUM($I$13:I42)>$S$7,"決定時間数を超過しています！",""))) ->  | R42: 0 | S42: 0 | T42: =SUM($S$13:S42) -> 0 | U42: 0 | V42: 0 | W42: =IF(I42=0,0,CONCATENATE(VLOOKUP(I42+"00:01",'データ '!K:M,3,TRUE),"/",$W$11)) -> 0
I43: 0 | K43: 0 | L43: 0 | M43: 0 | P43: 31 | Q43: =IF(A43="","",IF($A$13<>A43,"月が異なります！",IF(SUM($I$13:I43)>$S$7,"決定時間数を超過しています！",""))) ->  | R43: 0 | S43: 0 | T43: =SUM($S$13:S43) -> 0 | U43: 0 | V43: 0 | W43: =IF(I43=0,0,CONCATENATE(VLOOKUP(I43+"00:01",'データ '!K:M,3,TRUE),"/",$W$11)) -> 0
A44: 合計 | I44: =SUM(I13:I43) -> 0 | K44: =SUM(K13:K43) -> 0 | L44: =SUM(L13:L43) -> 0 | M44: =SUM(M13:M43) -> 0 | W44: =IF(I44>=$X$8,$Y$9,IF(AND(I44<$X$8,I44>=$X$7),$Y$8,IF(I44<$X$7,$Y$7)))&$W$11 -> 無

Sheet 9
B1: № | C1: 9
B4: =EOMONTH(B13,0) -> 1900-01-31 | F4: 鎌ケ谷市移動支援サービス提供実績記録票
A5: 登録番号 | D5: =VLOOKUP($C$1,利用者情報!A:U,COLUMN(利用者情報!B3),FALSE) -> 0 | G5: 支給決定障がい者等氏名 （児童氏名） | I5: =VLOOKUP($C$1,利用者情報!A:U,COLUMN(利用者情報!C1),FALSE) -> 0 | L5: 事業所登録番号
L6: =請求事業者!B3 -> 0 | Q6: コメント | S6: 決定時間数
A7: 契約支給量 | D7: 身体介護を 伴う | F7: =IF(VLOOKUP(C1,利用者情報!A:G,5)="有",CONCATENATE(VLOOKUP(C1,利用者情報!A:G,4)&"時間"),"") ->  | G7: 身体介護を 伴わない | I7: =IF(VLOOKUP(C1,利用者情報!A:G,5)<>"有",CONCATENATE(VLOOKUP(C1,利用者情報!A:G,4)&"時間"),"") -> 時間 | J7: 事業所及び その事業所 | L7: =請求事業者!B7 -> 0 | Q7: =利用者情報!J4 ->  | S7: =IF(F7="",I7,F7) -> 時間
A8: 利用者負担の有無 | F8: 利用者の負担割合 | H8: 利用者負担上限額
A9: =VLOOKUP($C$1,利用者情報!A:U,COLUMN(利用者情報!F3),FALSE) -> 0 | F9: =IF(A9="有","1割","0割") -> 0割 | H9: =VLOOKUP($C$1,利用者情報!A:U,COLUMN(利用者情報!G3),FALSE) -> 0 | W9: =請求事業者!C9 -> 5
W10: 便宜上区分
A11: 日付 | D11: 支援計画 | I11: 算定 時間 | J11: 派遣 人数 | K11: 算定額 | L11: 利用者 負担額 | M11: 請求額 | N11: サービス 提供者印 | O11: 利用者 確認印 | Q11: コメント | T11: 利用者負担額 累計 | U11: 上限到達フラグ | V11: 上限達成時の利用者負担額 | W11: =IF(F7="","無","有") -> 無
A12: 月 | B12: 日 | C12: 曜日 | D12: 開始 時間 | E12: 終了 時間 | F12: 計画 時間数 | G12: 開始 時間 | H12: 終了 時間 | R12: 請求額 | S12: 利用者 負担額 | W12: =IF(A9="有","（9割）","") -> 
A13: =IF(B13="","",TEXT(B13,"m")) ->  | C13: =IF(B13="","",B13) ->  | I13: =H13-G13 -> 0 | K13: =IF($H13=0,0,INDEX(単価,MATCH(W13,時間,0),MATCH($W$9,地域区分,0))) -> 0 | L13: =IF(U13=0,S13,V13) -> 0 | M13: =K13-L13 -> 0 | P13: 1 | Q13: =IF(A13="","",IF($A$13<>A13,"月が異なります！",IF(SUM($I$13:I13)>$S$7,"決定時間数を超過しています！",""))) ->  | R13: =IF(I13=0,0,INDEX(単価,MATCH(W13,時間,0),MATCH(IF(W12="",W9,W9&W12),地域区分,0))) -> 0 | S13: =K13-R13 -> 0 | T13: =SUM($S$13:S13) -> 0 | W13: =IF(I13=0,0,CONCATENATE(VLOOKUP(I13+"00:01",'データ '!K:M,3,TRUE),"/",$W$11)) -> 0
A14: =IF(B14="","",TEXT(B14,"m")) ->  | C14: =IF(B14="","",B14) ->  | I14: =H14-G14 -> 0 | K14: =IF($H14=0,0,INDEX(単価,MATCH(W14,時間,0),MATCH($W$9,地域区分,0))) -> 0 | L14: =IF(U14=0,S14,V14) -> 0 | M14: =K14-L14 -> 0 | P14: 2 | Q14: =IF(A14="","",IF($A$13<>A14,"月が異なります！",IF(SUM($I$13:I14)>$S$7,"決定時間数を超過しています！",""))) ->  | R14: =IF(AND($H14=0),0,IF($A$9="有",INDEX(単価,MATCH(W14,時間,0),MATCH($W$9&$W$12,地域区分,0)),INDEX(単価,MATCH(W14,時間,0),MATCH($W$9,地域区分,0)))) -> 0 | S14: =K14-R14 -> 0 | T14: =SUM($S$13:S14) -> 0 | U14: =IF(AND(T13<$H$9,T14>$H$9),1,IF(T14>$H$9,2,0)) -> 0 | V14: =IF(U14=1,$H$9-T13,0) -> 0 | W14: =IF(I14=0,0,CONCATENATE(VLOOKUP(I14+"00:01",'データ '!K:M,3,TRUE),"/",$W$11)) -> 0
I15: 0 | K15: 0 | L15: =IF(U15=0,S15,V15) -> 0 | M15: =K15-L15 -> 0 | P15: 3 | Q15: =IF(A15="","",IF($A$13<>A15,"月が異なります！",IF(SUM($I$13:I15)>$S$7,"決定時間数を超過しています！",""))) ->  | R15: 0 | S15: 0 | T15: =SUM($S$13:S15) -> 0 | U15: =IF(AND(T14<$H$9,T15>$H$9),1,IF(T15>$H$9,2,0)) -> 0 | V15: =IF(U15=1,$H$9-T14,0) -> 0 | W15: =IF(I15=0,0,CONCATENATE(VLOOKUP(I15+"00:01",'データ '!K:M,3,TRUE),"/",$W$11)) -> 0
I16: 0 | K16: 0 | L16: 0 | M16: 0 | P16: 4 | Q16: =IF(A16="","",IF($A$13<>A16,"月が異なります！",IF(SUM($I$13:I16)>$S$7,"決定時間数を超過しています！",""))) ->  | R16: 0 | S16: 0 | T16: =SUM($S$13:S16) -> 0 | U16: 0 | V16: 0 | W16: =IF(I16=0,0,CONCATENATE(VLOOKUP(I16+"00:01",'データ '!K:M,3,TRUE),"/",$W$11)) -> 0
I17: 0 | K17: 0 | L17: 0 | M17: 0 | P17: 5 | Q17: =IF(A17="","",IF($A$13<>A17,"月が異なります！",IF(SUM($I$13:I17)>$S$7,"決定時間数を超過しています！",""))) ->  | R17: 0 | S17: 0 | T17: =SUM($S$13:S17) -> 0 | U17: 0 | V17: 0 | W17: =IF(I17=0,0,CONCATENATE(VLOOKUP(I17+"00:01",'データ '!K:M,3,TRUE),"/",$W$11)) -> 0
I18: 0 | K18: 0 | L18: 0 | M18: 0 | P18: 6 | Q18: =IF(A18="","",IF($A$13<>A18,"月が異なります！",IF(SUM($I$13:I18)>$S$7,"決定時間数を超過しています！",""))) ->  | R18: 0 | S18: 0 | T18: =SUM($S$13:S18) -> 0 | U18: 0 | V18: 0 | W18: =IF(I18=0,0,CONCATENATE(VLOOKUP(I18+"00:01",'データ '!K:M,3,TRUE),"/",$W$11)) -> 0
I19: 0 | K19: 0 | L19: 0 | M19: 0 | P19: 7 | Q19: =IF(A19="","",IF($A$13<>A19,"月が異なります！",IF(SUM($I$13:I19)>$S$7,"決定時間数を超過しています！",""))) ->  | R19: 0 | S19: 0 | T19: =SUM($S$13:S19) -> 0 | U19: 0 | V19: 0 | W19: =IF(I19=0,0,CONCATENATE(VLOOKUP(I19+"00:01",'データ '!K:M,3,TRUE),"/",$W$11)) -> 0
I20: 0 | K20: 0 | L20: 0 | M20: 0 | P20: 8 | Q20: =IF(A20="","",IF($A$13<>A20,"月が異なります！",IF(SUM($I$13:I20)>$S$7,"決定時間数を超過しています！",""))) ->  | R20: 0 | S20: 0 | T20: =SUM($S$13:S20) -> 0 | U20: 0 | V20: 0 | W20: =IF(I20=0,0,CONCATENATE(VLOOKUP(I20+"00:01",'データ '!K:M,3,TRUE),"/",$W$11)) -> 0
I21: 0 | K21: 0 | L21: =IF(U21=0,S21,V21) -> 0 | M21: 0 | P21: 9 | Q21: =IF(A21="","",IF($A$13<>A21,"月が異なります！",IF(SUM($I$13:I21)>$S$7,"決定時間数を超過しています！",""))) ->  | R21: 0 | S21: 0 | T21: =SUM($S$13:S21) -> 0 | U21: 0 | V21: 0 | W21: =IF(I21=0,0,CONCATENATE(VLOOKUP(I21+"00:01",'データ '!K:M,3,TRUE),"/",$W$11)) -> 0
I22: 0 | K22: 0 | L22: =IF(U22=0,S22,V22) -> 0 | M22: 0 | P22: 10 | Q22: =IF(A22="","",IF($A$13<>A22,"月が異なります！",IF(SUM($I$13:I22)>$S$7,"決定時間数を超過しています！",""))) ->  | R22: 0 | S22: =K22-R22 -> 0 | T22: =SUM($S$13:S22) -> 0 | U22: 0 | V22: 0 | W22: =IF(I22=0,0,CONCATENATE(VLOOKUP(I22+"00:01",'データ '!K:M,3,TRUE),"/",$W$11)) -> 0
I23: 0 | K23: 0 | L23: 0 | M23: 0 | P23: 11 | Q23: =IF(A23="","",IF($A$13<>A23,"月が異なります！",IF(SUM($I$13:I23)>$S$7,"決定時間数を超過しています！",""))) ->  | R23: 0 | S23: 0 | T23: =SUM($S$13:S23) -> 0 | U23: 0 | V23: 0 | W23: =IF(I23=0,0,CONCATENATE(VLOOKUP(I23+"00:01",'データ '!K:M,3,TRUE),"/",$W$11)) -> 0
I24: 0 | K24: 0 | L24: 0 | M24: 0 | P24: 12 | Q24: =IF(A24="","",IF($A$13<>A24,"月が異なります！",IF(SUM($I$13:I24)>$S$7,"決定時間数を超過しています！",""))) ->  | R24: 0 | S24: 0 | T24: =SUM($S$13:S24) -> 0 | U24: 0 | V24: 0 | W24: =IF(I24=0,0,CONCATENATE(VLOOKUP(I24+"00:01",'データ '!K:M,3,TRUE),"/",$W$11)) -> 0
I25: 0 | K25: 0 | L25: 0 | M25: 0 | P25: 13 | Q25: =IF(A25="","",IF($A$13<>A25,"月が異なります！",IF(SUM($I$13:I25)>$S$7,"決定時間数を超過しています！",""))) ->  | R25: 0 | S25: 0 | T25: =SUM($S$13:S25) -> 0 | U25: 0 | V25: 0 | W25: =IF(I25=0,0,CONCATENATE(VLOOKUP(I25+"00:01",'データ '!K:M,3,TRUE),"/",$W$11)) -> 0
I26: 0 | K26: 0 | L26: 0 | M26: 0 | P26: 14 | Q26: =IF(A26="","",IF($A$13<>A26,"月が異なります！",IF(SUM($I$13:I26)>$S$7,"決定時間数を超過しています！",""))) ->  | R26: 0 | S26: 0 | T26: =SUM($S$13:S26) -> 0 | U26: 0 | V26: 0 | W26: =IF(I26=0,0,CONCATENATE(VLOOKUP(I26+"00:01",'データ '!K:M,3,TRUE),"/",$W$11)) -> 0
I27: 0 | K27: 0 | L27: 0 | M27: 0 | P27: 15 | Q27: =IF(A27="","",IF($A$13<>A27,"月が異なります！",IF(SUM($I$13:I27)>$S$7,"決定時間数を超過しています！",""))) ->  | R27: 0 | S27: 0 | T27: =SUM($S$13:S27) -> 0 | U27: 0 | V27: 0 | W27: =IF(I27=0,0,CONCATENATE(VLOOKUP(I27+"00:01",'データ '!K:M,3,TRUE),"/",$W$11)) -> 0
I28: 0 | K28: 0 | L28: 0 | M28: 0 | P28: 16 | Q28: =IF(A28="","",IF($A$13<>A28,"月が異なります！",IF(SUM($I$13:I28)>$S$7,"決定時間数を超過しています！",""))) ->  | R28: 0 | S28: 0 | T28: =SUM($S$13:S28) -> 0 | U28: 0 | V28: 0 | W28: =IF(I28=0,0,CONCATENATE(VLOOKUP(I28+"00:01",'データ '!K:M,3,TRUE),"/",$W$11)) -> 0
I29: 0 | K29: 0 | L29: 0 | M29: 0 | P29: 17 | Q29: =IF(A29="","",IF($A$13<>A29,"月が異なります！",IF(SUM($I$13:I29)>$S$7,"決定時間数を超過しています！",""))) ->  | R29: 0 | S29: 0 | T29: =SUM($S$13:S29) -> 0 | U29: 0 | V29: 0 | W29: =IF(I29=0,0,CONCATENATE(VLOOKUP(I29+"00:01",'データ '!K:M,3,TRUE),"/",$W$11)) -> 0
I30: 0 | K30: 0 | L30: 0 | M30: 0 | P30: 18 | Q30: =IF(A30="","",IF($A$13<>A30,"月が異なります！",IF(SUM($I$13:I30)>$S$7,"決定時間数を超過しています！",""))) ->  | R30: 0 | S30: 0 | T30: =SUM($S$13:S30) -> 0 | U30: 0 | V30: 0 | W30: =IF(I30=0,0,CONCATENATE(VLOOKUP(I30+"00:01",'データ '!K:M,3,TRUE),"/",$W$11)) -> 0
I31: 0 | K31: 0 | L31: 0 | M31: 0 | P31: 19 | Q31: =IF(A31="","",IF($A$13<>A31,"月が異なります！",IF(SUM($I$13:I31)>$S$7,"決定時間数を超過しています！",""))) ->  | R31: 0 | S31: 0 | T31: =SUM($S$13:S31) -> 0 | U31: 0 | V31: 0 | W31: =IF(I31=0,0,CONCATENATE(VLOOKUP(I31+"00:01",'データ '!K:M,3,TRUE),"/",$W$11)) -> 0
I32: 0 | K32: 0 | L32: 0 | M32: 0 | P32: 20 | Q32: =IF(A32="","",IF($A$13<>A32,"月が異なります！",IF(SUM($I$13:I32)>$S$7,"決定時間数を超過しています！",""))) ->  | R32: 0 | S32: 0 | T32: =SUM($S$13:S32) -> 0 | U32: 0 | V32: 0 | W32: =IF(I32=0,0,CONCATENATE(VLOOKUP(I32+"00:01",'データ '!K:M,3,TRUE),"/",$W$11)) -> 0
I33: 0 | K33: 0 | L33: 0 | M33: 0 | P33: 21 | Q33: =IF(A33="","",IF($A$13<>A33,"月が異なります！",IF(SUM($I$13:I33)>$S$7,"決定時間数を超過しています！",""))) ->  | R33: 0 | S33: 0 | T33: =SUM($S$13:S33) -> 0 | U33: 0 | V33: 0 | W33: =IF(I33=0,0,CONCATENATE(VLOOKUP(I33+"00:01",'データ '!K:M,3,TRUE),"/",$W$11)) -> 0
I34: 0 | K34: 0 | L34: 0 | M34: 0 | P34: 22 | Q34: =IF(A34="","",IF($A$13<>A34,"月が異なります！",IF(SUM($I$13:I34)>$S$7,"決定時間数を超過しています！",""))) ->  | R34: 0 | S34: 0 | T34: =SUM($S$13:S34) -> 0 | U34: 0 | V34: 0 | W34: =IF(I34=0,0,CONCATENATE(VLOOKUP(I34+"00:01",'データ '!K:M,3,TRUE),"/",$W$11)) -> 0
I35: 0 | K35: 0 | L35: 0 | M35: 0 | P35: 23 | Q35: =IF(A35="","",IF($A$13<>A35,"月が異なります！",IF(SUM($I$13:I35)>$S$7,"決定時間数を超過しています！",""))) ->  | R35: 0 | S35: 0 | T35: =SUM($S$13:S35) -> 0 | U35: 0 | V35: 0 | W35: =IF(I35=0,0,CONCATENATE(VLOOKUP(I35+"00:01",'データ '!K:M,3,TRUE),"/",$W$11)) -> 0
I36: 0 | K36: 0 | L36: 0 | M36: 0 | P36: 24 | Q36: =IF(A36="","",IF($A$13<>A36,"月が異なります！",IF(SUM($I$13:I36)>$S$7,"決定時間数を超過しています！",""))) ->  | R36: 0 | S36: 0 | T36: =SUM($S$13:S36) -> 0 | U36: 0 | V36: 0 | W36: =IF(I36=0,0,CONCATENATE(VLOOKUP(I36+"00:01",'データ '!K:M,3,TRUE),"/",$W$11)) -> 0
I37: 0 | K37: 0 | L37: 0 | M37: 0 | P37: 25 | Q37: =IF(A37="","",IF($A$13<>A37,"月が異なります！",IF(SUM($I$13:I37)>$S$7,"決定時間数を超過しています！",""))) ->  | R37: 0 | S37: 0 | T37: =SUM($S$13:S37) -> 0 | U37: 0 | V37: 0 | W37: =IF(I37=0,0,CONCATENATE(VLOOKUP(I37+"00:01",'データ '!K:M,3,TRUE),"/",$W$11)) -> 0
I38: 0 | K38: 0 | L38: 0 | M38: 0 | P38: 26 | Q38: =IF(A38="","",IF($A$13<>A38,"月が異なります！",IF(SUM($I$13:I38)>$S$7,"決定時間数を超過しています！",""))) ->  | R38: 0 | S38: 0 | T38: =SUM($S$13:S38) -> 0 | U38: 0 | V38: 0 | W38: =IF(I38=0,0,CONCATENATE(VLOOKUP(I38+"00:01",'データ '!K:M,3,TRUE),"/",$W$11)) -> 0
I39: 0 | K39: 0 | L39: 0 | M39: 0 | P39: 27 | Q39: =IF(A39="","",IF($A$13<>A39,"月が異なります！",IF(SUM($I$13:I39)>$S$7,"決定時間数を超過しています！",""))) ->  | R39: 0 | S39: 0 | T39: =SUM($S$13:S39) -> 0 | U39: 0 | V39: 0 | W39: =IF(I39=0,0,CONCATENATE(VLOOKUP(I39+"00:01",'データ '!K:M,3,TRUE),"/",$W$11)) -> 0
I40: 0 | K40: 0 | L40: 0 | M40: 0 | P40: 28 | Q40: =IF(A40="","",IF($A$13<>A40,"月が異なります！",IF(SUM($I$13:I40)>$S$7,"決定時間数を超過しています！",""))) ->  | R40: 0 | S40: 0 | T40: =SUM($S$13:S40) -> 0 | U40: 0 | V40: 0 | W40: =IF(I40=0,0,CONCATENATE(VLOOKUP(I40+"00:01",'データ '!K:M,3,TRUE),"/",$W$11)) -> 0
I41: 0 | K41: 0 | L41: 0 | M41: 0 | P41: 29 | Q41: =IF(A41="","",IF($A$13<>A41,"月が異なります！",IF(SUM($I$13:I41)>$S$7,"決定時間数を超過しています！",""))) ->  | R41: 0 | S41: 0 | T41: =SUM($S$13:S41) -> 0 | U41: 0 | V41: 0 | W41: =IF(I41=0,0,CONCATENATE(VLOOKUP(I41+"00:01",'データ '!K:M,3,TRUE),"/",$W$11)) -> 0
I42: 0 | K42: 0 | L42: 0 | M42: 0 | P42: 30 | Q42: =IF(A42="","",IF($A$13<>A42,"月が異なります！",IF(SUM($I$13:I42)>$S$7,"決定時間数を超過しています！",""))) ->  | R42: 0 | S42: 0 | T42: =SUM($S$13:S42) -> 0 | U42: 0 | V42: 0 | W42: =IF(I42=0,0,CONCATENATE(VLOOKUP(I42+"00:01",'データ '!K:M,3,TRUE),"/",$W$11)) -> 0
I43: 0 | K43: 0 | L43: 0 | M43: 0 | P43: 31 | Q43: =IF(A43="","",IF($A$13<>A43,"月が異なります！",IF(SUM($I$13:I43)>$S$7,"決定時間数を超過しています！",""))) ->  | R43: 0 | S43: 0 | T43: =SUM($S$13:S43) -> 0 | U43: 0 | V43: 0 | W43: =IF(I43=0,0,CONCATENATE(VLOOKUP(I43+"00:01",'データ '!K:M,3,TRUE),"/",$W$11)) -> 0
A44: 合計 | I44: =SUM(I13:I43) -> 0 | K44: =SUM(K13:K43) -> 0 | L44: =SUM(L13:L43) -> 0 | M44: =SUM(M13:M43) -> 0 | W44: =IF(I44>=$X$8,$Y$9,IF(AND(I44<$X$8,I44>=$X$7),$Y$8,IF(I44<$X$7,$Y$7)))&$W$11 -> 無

Sheet 10
B1: № | C1: 10
B4: =EOMONTH(B13,0) -> 1900-01-31 | F4: 鎌ケ谷市移動支援サービス提供実績記録票
A5: 登録番号 | D5: =VLOOKUP($C$1,利用者情報!A:U,COLUMN(利用者情報!B3),FALSE) -> 0 | G5: 支給決定障がい者等氏名 （児童氏名） | I5: =VLOOKUP($C$1,利用者情報!A:U,COLUMN(利用者情報!C1),FALSE) -> 0 | L5: 事業所登録番号
L6: =請求事業者!B3 -> 0 | Q6: コメント | S6: 決定時間数
A7: 契約支給量 | D7: 身体介護を 伴う | F7: =IF(VLOOKUP(C1,利用者情報!A:G,5)="有",CONCATENATE(VLOOKUP(C1,利用者情報!A:G,4)&"時間"),"") ->  | G7: 身体介護を 伴わない | I7: =IF(VLOOKUP(C1,利用者情報!A:G,5)<>"有",CONCATENATE(VLOOKUP(C1,利用者情報!A:G,4)&"時間"),"") -> 時間 | J7: 事業所及び その事業所 | L7: =請求事業者!B7 -> 0 | Q7: =利用者情報!J4 ->  | S7: =IF(F7="",I7,F7) -> 時間
A8: 利用者負担の有無 | F8: 利用者の負担割合 | H8: 利用者負担上限額
A9: =VLOOKUP($C$1,利用者情報!A:U,COLUMN(利用者情報!F3),FALSE) -> 0 | F9: =IF(A9="有","1割","0割") -> 0割 | H9: =VLOOKUP($C$1,利用者情報!A:U,COLUMN(利用者情報!G3),FALSE) -> 0 | W9: =請求事業者!C9 -> 5
W10: 便宜上区分
A11: 日付 | D11: 支援計画 | I11: 算定 時間 | J11: 派遣 人数 | K11: 算定額 | L11: 利用者 負担額 | M11: 請求額 | N11: サービス 提供者印 | O11: 利用者 確認印 | Q11: コメント | T11: 利用者負担額 累計 | U11: 上限到達フラグ | V11: 上限達成時の利用者負担額 | W11: =IF(F7="","無","有") -> 無
A12: 月 | B12: 日 | C12: 曜日 | D12: 開始 時間 | E12: 終了 時間 | F12: 計画 時間数 | G12: 開始 時間 | H12: 終了 時間 | R12: 請求額 | S12: 利用者 負担額 | W12: =IF(A9="有","（9割）","") -> 
A13: =IF(B13="","",TEXT(B13,"m")) ->  | C13: =IF(B13="","",B13) ->  | I13: =H13-G13 -> 0 | K13: =IF($H13=0,0,INDEX(単価,MATCH(W13,時間,0),MATCH($W$9,地域区分,0))) -> 0 | L13: =IF(U13=0,S13,V13) -> 0 | M13: =K13-L13 -> 0 | P13: 1 | Q13: =IF(A13="","",IF($A$13<>A13,"月が異なります！",IF(SUM($I$13:I13)>$S$7,"決定時間数を超過しています！",""))) ->  | R13: =IF(I13=0,0,INDEX(単価,MATCH(W13,時間,0),MATCH(IF(W12="",W9,W9&W12),地域区分,0))) -> 0 | S13: =K13-R13 -> 0 | T13: =SUM($S$13:S13) -> 0 | W13: =IF(I13=0,0,CONCATENATE(VLOOKUP(I13+"00:01",'データ '!K:M,3,TRUE),"/",$W$11)) -> 0
A14: =IF(B14="","",TEXT(B14,"m")) ->  | C14: =IF(B14="","",B14) ->  | I14: =H14-G14 -> 0 | K14: =IF($H14=0,0,INDEX(単価,MATCH(W14,時間,0),MATCH($W$9,地域区分,0))) -> 0 | L14: =IF(U14=0,S14,V14) -> 0 | M14: =K14-L14 -> 0 | P14: 2 | Q14: =IF(A14="","",IF($A$13<>A14,"月が異なります！",IF(SUM($I$13:I14)>$S$7,"決定時間数を超過しています！",""))) ->  | R14: =IF(AND($H14=0),0,IF($A$9="有",INDEX(単価,MATCH(W14,時間,0),MATCH($W$9&$W$12,地域区分,0)),INDEX(単価,MATCH(W14,時間,0),MATCH($W$9,地域区分,0)))) -> 0 | S14: =K14-R14 -> 0 | T14: =SUM($S$13:S14) -> 0 | U14: =IF(AND(T13<$H$9,T14>$H$9),1,IF(T14>$H$9,2,0)) -> 0 | V14: =IF(U14=1,$H$9-T13,0) -> 0 | W14: =IF(I14=0,0,CONCATENATE(VLOOKUP(I14+"00:01",'データ '!K:M,3,TRUE),"/",$W$11)) -> 0
I15: 0 | K15: 0 | L15: =IF(U15=0,S15,V15) -> 0 | M15: =K15-L15 -> 0 | P15: 3 | Q15: =IF(A15="","",IF($A$13<>A15,"月が異なります！",IF(SUM($I$13:I15)>$S$7,"決定時間数を超過しています！",""))) ->  | R15: 0 | S15: 0 | T15: =SUM($S$13:S15) -> 0 | U15: =IF(AND(T14<$H$9,T15>$H$9),1,IF(T15>$H$9,2,0)) -> 0 | V15: =IF(U15=1,$H$9-T14,0) -> 0 | W15: =IF(I15=0,0,CONCATENATE(VLOOKUP(I15+"00:01",'データ '!K:M,3,TRUE),"/",$W$11)) -> 0
I16: 0 | K16: 0 | L16: 0 | M16: 0 | P16: 4 | Q16: =IF(A16="","",IF($A$13<>A16,"月が異なります！",IF(SUM($I$13:I16)>$S$7,"決定時間数を超過しています！",""))) ->  | R16: 0 | S16: 0 | T16: =SUM($S$13:S16) -> 0 | U16: 0 | V16: 0 | W16: =IF(I16=0,0,CONCATENATE(VLOOKUP(I16+"00:01",'データ '!K:M,3,TRUE),"/",$W$11)) -> 0
I17: 0 | K17: 0 | L17: 0 | M17: 0 | P17: 5 | Q17: =IF(A17="","",IF($A$13<>A17,"月が異なります！",IF(SUM($I$13:I17)>$S$7,"決定時間数を超過しています！",""))) ->  | R17: 0 | S17: 0 | T17: =SUM($S$13:S17) -> 0 | U17: 0 | V17: 0 | W17: =IF(I17=0,0,CONCATENATE(VLOOKUP(I17+"00:01",'データ '!K:M,3,TRUE),"/",$W$11)) -> 0
I18: 0 | K18: 0 | L18: 0 | M18: 0 | P18: 6 | Q18: =IF(A18="","",IF($A$13<>A18,"月が異なります！",IF(SUM($I$13:I18)>$S$7,"決定時間数を超過しています！",""))) ->  | R18: 0 | S18: 0 | T18: =SUM($S$13:S18) -> 0 | U18: 0 | V18: 0 | W18: =IF(I18=0,0,CONCATENATE(VLOOKUP(I18+"00:01",'データ '!K:M,3,TRUE),"/",$W$11)) -> 0
I19: 0 | K19: 0 | L19: 0 | M19: 0 | P19: 7 | Q19: =IF(A19="","",IF($A$13<>A19,"月が異なります！",IF(SUM($I$13:I19)>$S$7,"決定時間数を超過しています！",""))) ->  | R19: 0 | S19: 0 | T19: =SUM($S$13:S19) -> 0 | U19: 0 | V19: 0 | W19: =IF(I19=0,0,CONCATENATE(VLOOKUP(I19+"00:01",'データ '!K:M,3,TRUE),"/",$W$11)) -> 0
I20: 0 | K20: 0 | L20: 0 | M20: 0 | P20: 8 | Q20: =IF(A20="","",IF($A$13<>A20,"月が異なります！",IF(SUM($I$13:I20)>$S$7,"決定時間数を超過しています！",""))) ->  | R20: 0 | S20: 0 | T20: =SUM($S$13:S20) -> 0 | U20: 0 | V20: 0 | W20: =IF(I20=0,0,CONCATENATE(VLOOKUP(I20+"00:01",'データ '!K:M,3,TRUE),"/",$W$11)) -> 0
I21: 0 | K21: 0 | L21: =IF(U21=0,S21,V21) -> 0 | M21: 0 | P21: 9 | Q21: =IF(A21="","",IF($A$13<>A21,"月が異なります！",IF(SUM($I$13:I21)>$S$7,"決定時間数を超過しています！",""))) ->  | R21: 0 | S21: 0 | T21: =SUM($S$13:S21) -> 0 | U21: 0 | V21: 0 | W21: =IF(I21=0,0,CONCATENATE(VLOOKUP(I21+"00:01",'データ '!K:M,3,TRUE),"/",$W$11)) -> 0
I22: 0 | K22: 0 | L22: =IF(U22=0,S22,V22) -> 0 | M22: 0 | P22: 10 | Q22: =IF(A22="","",IF($A$13<>A22,"月が異なります！",IF(SUM($I$13:I22)>$S$7,"決定時間数を超過しています！",""))) ->  | R22: 0 | S22: =K22-R22 -> 0 | T22: =SUM($S$13:S22) -> 0 | U22: 0 | V22: 0 | W22: =IF(I22=0,0,CONCATENATE(VLOOKUP(I22+"00:01",'データ '!K:M,3,TRUE),"/",$W$11)) -> 0
I23: 0 | K23: 0 | L23: 0 | M23: 0 | P23: 11 | Q23: =IF(A23="","",IF($A$13<>A23,"月が異なります！",IF(SUM($I$13:I23)>$S$7,"決定時間数を超過しています！",""))) ->  | R23: 0 | S23: 0 | T23: =SUM($S$13:S23) -> 0 | U23: 0 | V23: 0 | W23: =IF(I23=0,0,CONCATENATE(VLOOKUP(I23+"00:01",'データ '!K:M,3,TRUE),"/",$W$11)) -> 0
I24: 0 | K24: 0 | L24: 0 | M24: 0 | P24: 12 | Q24: =IF(A24="","",IF($A$13<>A24,"月が異なります！",IF(SUM($I$13:I24)>$S$7,"決定時間数を超過しています！",""))) ->  | R24: 0 | S24: 0 | T24: =SUM($S$13:S24) -> 0 | U24: 0 | V24: 0 | W24: =IF(I24=0,0,CONCATENATE(VLOOKUP(I24+"00:01",'データ '!K:M,3,TRUE),"/",$W$11)) -> 0
I25: 0 | K25: 0 | L25: 0 | M25: 0 | P25: 13 | Q25: =IF(A25="","",IF($A$13<>A25,"月が異なります！",IF(SUM($I$13:I25)>$S$7,"決定時間数を超過しています！",""))) ->  | R25: 0 | S25: 0 | T25: =SUM($S$13:S25) -> 0 | U25: 0 | V25: 0 | W25: =IF(I25=0,0,CONCATENATE(VLOOKUP(I25+"00:01",'データ '!K:M,3,TRUE),"/",$W$11)) -> 0
I26: 0 | K26: 0 | L26: 0 | M26: 0 | P26: 14 | Q26: =IF(A26="","",IF($A$13<>A26,"月が異なります！",IF(SUM($I$13:I26)>$S$7,"決定時間数を超過しています！",""))) ->  | R26: 0 | S26: 0 | T26: =SUM($S$13:S26) -> 0 | U26: 0 | V26: 0 | W26: =IF(I26=0,0,CONCATENATE(VLOOKUP(I26+"00:01",'データ '!K:M,3,TRUE),"/",$W$11)) -> 0
I27: 0 | K27: 0 | L27: 0 | M27: 0 | P27: 15 | Q27: =IF(A27="","",IF($A$13<>A27,"月が異なります！",IF(SUM($I$13:I27)>$S$7,"決定時間数を超過しています！",""))) ->  | R27: 0 | S27: 0 | T27: =SUM($S$13:S27) -> 0 | U27: 0 | V27: 0 | W27: =IF(I27=0,0,CONCATENATE(VLOOKUP(I27+"00:01",'データ '!K:M,3,TRUE),"/",$W$11)) -> 0
I28: 0 | K28: 0 | L28: 0 | M28: 0 | P28: 16 | Q28: =IF(A28="","",IF($A$13<>A28,"月が異なります！",IF(SUM($I$13:I28)>$S$7,"決定時間数を超過しています！",""))) ->  | R28: 0 | S28: 0 | T28: =SUM($S$13:S28) -> 0 | U28: 0 | V28: 0 | W28: =IF(I28=0,0,CONCATENATE(VLOOKUP(I28+"00:01",'データ '!K:M,3,TRUE),"/",$W$11)) -> 0
I29: 0 | K29: 0 | L29: 0 | M29: 0 | P29: 17 | Q29: =IF(A29="","",IF($A$13<>A29,"月が異なります！",IF(SUM($I$13:I29)>$S$7,"決定時間数を超過しています！",""))) ->  | R29: 0 | S29: 0 | T29: =SUM($S$13:S29) -> 0 | U29: 0 | V29: 0 | W29: =IF(I29=0,0,CONCATENATE(VLOOKUP(I29+"00:01",'データ '!K:M,3,TRUE),"/",$W$11)) -> 0
I30: 0 | K30: 0 | L30: 0 | M30: 0 | P30: 18 | Q30: =IF(A30="","",IF($A$13<>A30,"月が異なります！",IF(SUM($I$13:I30)>$S$7,"決定時間数を超過しています！",""))) ->  | R30: 0 | S30: 0 | T30: =SUM($S$13:S30) -> 0 | U30: 0 | V30: 0 | W30: =IF(I30=0,0,CONCATENATE(VLOOKUP(I30+"00:01",'データ '!K:M,3,TRUE),"/",$W$11)) -> 0
I31: 0 | K31: 0 | L31: 0 | M31: 0 | P31: 19 | Q31: =IF(A31="","",IF($A$13<>A31,"月が異なります！",IF(SUM($I$13:I31)>$S$7,"決定時間数を超過しています！",""))) ->  | R31: 0 | S31: 0 | T31: =SUM($S$13:S31) -> 0 | U31: 0 | V31: 0 | W31: =IF(I31=0,0,CONCATENATE(VLOOKUP(I31+"00:01",'データ '!K:M,3,TRUE),"/",$W$11)) -> 0
I32: 0 | K32: 0 | L32: 0 | M32: 0 | P32: 20 | Q32: =IF(A32="","",IF($A$13<>A32,"月が異なります！",IF(SUM($I$13:I32)>$S$7,"決定時間数を超過しています！",""))) ->  | R32: 0 | S32: 0 | T32: =SUM($S$13:S32) -> 0 | U32: 0 | V32: 0 | W32: =IF(I32=0,0,CONCATENATE(VLOOKUP(I32+"00:01",'データ '!K:M,3,TRUE),"/",$W$11)) -> 0
I33: 0 | K33: 0 | L33: 0 | M33: 0 | P33: 21 | Q33: =IF(A33="","",IF($A$13<>A33,"月が異なります！",IF(SUM($I$13:I33)>$S$7,"決定時間数を超過しています！",""))) ->  | R33: 0 | S33: 0 | T33: =SUM($S$13:S33) -> 0 | U33: 0 | V33: 0 | W33: =IF(I33=0,0,CONCATENATE(VLOOKUP(I33+"00:01",'データ '!K:M,3,TRUE),"/",$W$11)) -> 0
I34: 0 | K34: 0 | L34: 0 | M34: 0 | P34: 22 | Q34: =IF(A34="","",IF($A$13<>A34,"月が異なります！",IF(SUM($I$13:I34)>$S$7,"決定時間数を超過しています！",""))) ->  | R34: 0 | S34: 0 | T34: =SUM($S$13:S34) -> 0 | U34: 0 | V34: 0 | W34: =IF(I34=0,0,CONCATENATE(VLOOKUP(I34+"00:01",'データ '!K:M,3,TRUE),"/",$W$11)) -> 0
I35: 0 | K35: 0 | L35: 0 | M35: 0 | P35: 23 | Q35: =IF(A35="","",IF($A$13<>A35,"月が異なります！",IF(SUM($I$13:I35)>$S$7,"決定時間数を超過しています！",""))) ->  | R35: 0 | S35: 0 | T35: =SUM($S$13:S35) -> 0 | U35: 0 | V35: 0 | W35: =IF(I35=0,0,CONCATENATE(VLOOKUP(I35+"00:01",'データ '!K:M,3,TRUE),"/",$W$11)) -> 0
I36: 0 | K36: 0 | L36: 0 | M36: 0 | P36: 24 | Q36: =IF(A36="","",IF($A$13<>A36,"月が異なります！",IF(SUM($I$13:I36)>$S$7,"決定時間数を超過しています！",""))) ->  | R36: 0 | S36: 0 | T36: =SUM($S$13:S36) -> 0 | U36: 0 | V36: 0 | W36: =IF(I36=0,0,CONCATENATE(VLOOKUP(I36+"00:01",'データ '!K:M,3,TRUE),"/",$W$11)) -> 0
I37: 0 | K37: 0 | L37: 0 | M37: 0 | P37: 25 | Q37: =IF(A37="","",IF($A$13<>A37,"月が異なります！",IF(SUM($I$13:I37)>$S$7,"決定時間数を超過しています！",""))) ->  | R37: 0 | S37: 0 | T37: =SUM($S$13:S37) -> 0 | U37: 0 | V37: 0 | W37: =IF(I37=0,0,CONCATENATE(VLOOKUP(I37+"00:01",'データ '!K:M,3,TRUE),"/",$W$11)) -> 0
I38: 0 | K38: 0 | L38: 0 | M38: 0 | P38: 26 | Q38: =IF(A38="","",IF($A$13<>A38,"月が異なります！",IF(SUM($I$13:I38)>$S$7,"決定時間数を超過しています！",""))) ->  | R38: 0 | S38: 0 | T38: =SUM($S$13:S38) -> 0 | U38: 0 | V38: 0 | W38: =IF(I38=0,0,CONCATENATE(VLOOKUP(I38+"00:01",'データ '!K:M,3,TRUE),"/",$W$11)) -> 0
I39: 0 | K39: 0 | L39: 0 | M39: 0 | P39: 27 | Q39: =IF(A39="","",IF($A$13<>A39,"月が異なります！",IF(SUM($I$13:I39)>$S$7,"決定時間数を超過しています！",""))) ->  | R39: 0 | S39: 0 | T39: =SUM($S$13:S39) -> 0 | U39: 0 | V39: 0 | W39: =IF(I39=0,0,CONCATENATE(VLOOKUP(I39+"00:01",'データ '!K:M,3,TRUE),"/",$W$11)) -> 0
I40: 0 | K40: 0 | L40: 0 | M40: 0 | P40: 28 | Q40: =IF(A40="","",IF($A$13<>A40,"月が異なります！",IF(SUM($I$13:I40)>$S$7,"決定時間数を超過しています！",""))) ->  | R40: 0 | S40: 0 | T40: =SUM($S$13:S40) -> 0 | U40: 0 | V40: 0 | W40: =IF(I40=0,0,CONCATENATE(VLOOKUP(I40+"00:01",'データ '!K:M,3,TRUE),"/",$W$11)) -> 0
I41: 0 | K41: 0 | L41: 0 | M41: 0 | P41: 29 | Q41: =IF(A41="","",IF($A$13<>A41,"月が異なります！",IF(SUM($I$13:I41)>$S$7,"決定時間数を超過しています！",""))) ->  | R41: 0 | S41: 0 | T41: =SUM($S$13:S41) -> 0 | U41: 0 | V41: 0 | W41: =IF(I41=0,0,CONCATENATE(VLOOKUP(I41+"00:01",'データ '!K:M,3,TRUE),"/",$W$11)) -> 0
I42: 0 | K42: 0 | L42: 0 | M42: 0 | P42: 30 | Q42: =IF(A42="","",IF($A$13<>A42,"月が異なります！",IF(SUM($I$13:I42)>$S$7,"決定時間数を超過しています！",""))) ->  | R42: 0 | S42: 0 | T42: =SUM($S$13:S42) -> 0 | U42: 0 | V42: 0 | W42: =IF(I42=0,0,CONCATENATE(VLOOKUP(I42+"00:01",'データ '!K:M,3,TRUE),"/",$W$11)) -> 0
I43: 0 | K43: 0 | L43: 0 | M43: 0 | P43: 31 | Q43: =IF(A43="","",IF($A$13<>A43,"月が異なります！",IF(SUM($I$13:I43)>$S$7,"決定時間数を超過しています！",""))) ->  | R43: 0 | S43: 0 | T43: =SUM($S$13:S43) -> 0 | U43: 0 | V43: 0 | W43: =IF(I43=0,0,CONCATENATE(VLOOKUP(I43+"00:01",'データ '!K:M,3,TRUE),"/",$W$11)) -> 0
A44: 合計 | I44: =SUM(I13:I43) -> 0 | K44: =SUM(K13:K43) -> 0 | L44: =SUM(L13:L43) -> 0 | M44: =SUM(M13:M43) -> 0 | W44: =IF(I44>=$X$8,$Y$9,IF(AND(I44<$X$8,I44>=$X$7),$Y$8,IF(I44<$X$7,$Y$7)))&$W$11 -> 無

Sheet 11
B1: № | C1: 11
B4: =EOMONTH(B13,0) -> 1900-01-31 | F4: 鎌ケ谷市移動支援サービス提供実績記録票
A5: 登録番号 | D5: =VLOOKUP($C$1,利用者情報!A:U,COLUMN(利用者情報!B3),FALSE) -> 0 | G5: 支給決定障がい者等氏名 （児童氏名） | I5: =VLOOKUP($C$1,利用者情報!A:U,COLUMN(利用者情報!C1),FALSE) -> 0 | L5: 事業所登録番号
L6: =請求事業者!B3 -> 0 | Q6: コメント | S6: 決定時間数
A7: 契約支給量 | D7: 身体介護を 伴う | F7: =IF(VLOOKUP(C1,利用者情報!A:G,5)="有",CONCATENATE(VLOOKUP(C1,利用者情報!A:G,4)&"時間"),"") ->  | G7: 身体介護を 伴わない | I7: =IF(VLOOKUP(C1,利用者情報!A:G,5)<>"有",CONCATENATE(VLOOKUP(C1,利用者情報!A:G,4)&"時間"),"") -> 時間 | J7: 事業所及び その事業所 | L7: =請求事業者!B7 -> 0 | Q7: =利用者情報!J4 ->  | S7: =IF(F7="",I7,F7) -> 時間
A8: 利用者負担の有無 | F8: 利用者の負担割合 | H8: 利用者負担上限額
A9: =VLOOKUP($C$1,利用者情報!A:U,COLUMN(利用者情報!F3),FALSE) -> 0 | F9: =IF(A9="有","1割","0割") -> 0割 | H9: =VLOOKUP($C$1,利用者情報!A:U,COLUMN(利用者情報!G3),FALSE) -> 0 | W9: =請求事業者!C9 -> 5
W10: 便宜上区分
A11: 日付 | D11: 支援計画 | I11: 算定 時間 | J11: 派遣 人数 | K11: 算定額 | L11: 利用者 負担額 | M11: 請求額 | N11: サービス 提供者印 | O11: 利用者 確認印 | Q11: コメント | T11: 利用者負担額 累計 | U11: 上限到達フラグ | V11: 上限達成時の利用者負担額 | W11: =IF(F7="","無","有") -> 無
A12: 月 | B12: 日 | C12: 曜日 | D12: 開始 時間 | E12: 終了 時間 | F12: 計画 時間数 | G12: 開始 時間 | H12: 終了 時間 | R12: 請求額 | S12: 利用者 負担額 | W12: =IF(A9="有","（9割）","") -> 
A13: =IF(B13="","",TEXT(B13,"m")) ->  | C13: =IF(B13="","",B13) ->  | I13: =H13-G13 -> 0 | K13: =IF($H13=0,0,INDEX(単価,MATCH(W13,時間,0),MATCH($W$9,地域区分,0))) -> 0 | L13: =IF(U13=0,S13,V13) -> 0 | M13: =K13-L13 -> 0 | P13: 1 | Q13: =IF(A13="","",IF($A$13<>A13,"月が異なります！",IF(SUM($I$13:I13)>$S$7,"決定時間数を超過しています！",""))) ->  | R13: =IF(I13=0,0,INDEX(単価,MATCH(W13,時間,0),MATCH(IF(W12="",W9,W9&W12),地域区分,0))) -> 0 | S13: =K13-R13 -> 0 | T13: =SUM($S$13:S13) -> 0 | W13: =IF(I13=0,0,CONCATENATE(VLOOKUP(I13+"00:01",'データ '!K:M,3,TRUE),"/",$W$11)) -> 0
A14: =IF(B14="","",TEXT(B14,"m")) ->  | C14: =IF(B14="","",B14) ->  | I14: =H14-G14 -> 0 | K14: =IF($H14=0,0,INDEX(単価,MATCH(W14,時間,0),MATCH($W$9,地域区分,0))) -> 0 | L14: =IF(U14=0,S14,V14) -> 0 | M14: =K14-L14 -> 0 | P14: 2 | Q14: =IF(A14="","",IF($A$13<>A14,"月が異なります！",IF(SUM($I$13:I14)>$S$7,"決定時間数を超過しています！",""))) ->  | R14: =IF(AND($H14=0),0,IF($A$9="有",INDEX(単価,MATCH(W14,時間,0),MATCH($W$9&$W$12,地域区分,0)),INDEX(単価,MATCH(W14,時間,0),MATCH($W$9,地域区分,0)))) -> 0 | S14: =K14-R14 -> 0 | T14: =SUM($S$13:S14) -> 0 | U14: =IF(AND(T13<$H$9,T14>$H$9),1,IF(T14>$H$9,2,0)) -> 0 | V14: =IF(U14=1,$H$9-T13,0) -> 0 | W14: =IF(I14=0,0,CONCATENATE(VLOOKUP(I14+"00:01",'データ '!K:M,3,TRUE),"/",$W$11)) -> 0
I15: 0 | K15: 0 | L15: =IF(U15=0,S15,V15) -> 0 | M15: =K15-L15 -> 0 | P15: 3 | Q15: =IF(A15="","",IF($A$13<>A15,"月が異なります！",IF(SUM($I$13:I15)>$S$7,"決定時間数を超過しています！",""))) ->  | R15: 0 | S15: 0 | T15: =SUM($S$13:S15) -> 0 | U15: =IF(AND(T14<$H$9,T15>$H$9),1,IF(T15>$H$9,2,0)) -> 0 | V15: =IF(U15=1,$H$9-T14,0) -> 0 | W15: =IF(I15=0,0,CONCATENATE(VLOOKUP(I15+"00:01",'データ '!K:M,3,TRUE),"/",$W$11)) -> 0
I16: 0 | K16: 0 | L16: 0 | M16: 0 | P16: 4 | Q16: =IF(A16="","",IF($A$13<>A16,"月が異なります！",IF(SUM($I$13:I16)>$S$7,"決定時間数を超過しています！",""))) ->  | R16: 0 | S16: 0 | T16: =SUM($S$13:S16) -> 0 | U16: 0 | V16: 0 | W16: =IF(I16=0,0,CONCATENATE(VLOOKUP(I16+"00:01",'データ '!K:M,3,TRUE),"/",$W$11)) -> 0
I17: 0 | K17: 0 | L17: 0 | M17: 0 | P17: 5 | Q17: =IF(A17="","",IF($A$13<>A17,"月が異なります！",IF(SUM($I$13:I17)>$S$7,"決定時間数を超過しています！",""))) ->  | R17: 0 | S17: 0 | T17: =SUM($S$13:S17) -> 0 | U17: 0 | V17: 0 | W17: =IF(I17=0,0,CONCATENATE(VLOOKUP(I17+"00:01",'データ '!K:M,3,TRUE),"/",$W$11)) -> 0
I18: 0 | K18: 0 | L18: 0 | M18: 0 | P18: 6 | Q18: =IF(A18="","",IF($A$13<>A18,"月が異なります！",IF(SUM($I$13:I18)>$S$7,"決定時間数を超過しています！",""))) ->  | R18: 0 | S18: 0 | T18: =SUM($S$13:S18) -> 0 | U18: 0 | V18: 0 | W18: =IF(I18=0,0,CONCATENATE(VLOOKUP(I18+"00:01",'データ '!K:M,3,TRUE),"/",$W$11)) -> 0
I19: 0 | K19: 0 | L19: 0 | M19: 0 | P19: 7 | Q19: =IF(A19="","",IF($A$13<>A19,"月が異なります！",IF(SUM($I$13:I19)>$S$7,"決定時間数を超過しています！",""))) ->  | R19: 0 | S19: 0 | T19: =SUM($S$13:S19) -> 0 | U19: 0 | V19: 0 | W19: =IF(I19=0,0,CONCATENATE(VLOOKUP(I19+"00:01",'データ '!K:M,3,TRUE),"/",$W$11)) -> 0
I20: 0 | K20: 0 | L20: 0 | M20: 0 | P20: 8 | Q20: =IF(A20="","",IF($A$13<>A20,"月が異なります！",IF(SUM($I$13:I20)>$S$7,"決定時間数を超過しています！",""))) ->  | R20: 0 | S20: 0 | T20: =SUM($S$13:S20) -> 0 | U20: 0 | V20: 0 | W20: =IF(I20=0,0,CONCATENATE(VLOOKUP(I20+"00:01",'データ '!K:M,3,TRUE),"/",$W$11)) -> 0
I21: 0 | K21: 0 | L21: =IF(U21=0,S21,V21) -> 0 | M21: 0 | P21: 9 | Q21: =IF(A21="","",IF($A$13<>A21,"月が異なります！",IF(SUM($I$13:I21)>$S$7,"決定時間数を超過しています！",""))) ->  | R21: 0 | S21: 0 | T21: =SUM($S$13:S21) -> 0 | U21: 0 | V21: 0 | W21: =IF(I21=0,0,CONCATENATE(VLOOKUP(I21+"00:01",'データ '!K:M,3,TRUE),"/",$W$11)) -> 0
I22: 0 | K22: 0 | L22: =IF(U22=0,S22,V22) -> 0 | M22: 0 | P22: 10 | Q22: =IF(A22="","",IF($A$13<>A22,"月が異なります！",IF(SUM($I$13:I22)>$S$7,"決定時間数を超過しています！",""))) ->  | R22: 0 | S22: =K22-R22 -> 0 | T22: =SUM($S$13:S22) -> 0 | U22: 0 | V22: 0 | W22: =IF(I22=0,0,CONCATENATE(VLOOKUP(I22+"00:01",'データ '!K:M,3,TRUE),"/",$W$11)) -> 0
I23: 0 | K23: 0 | L23: 0 | M23: 0 | P23: 11 | Q23: =IF(A23="","",IF($A$13<>A23,"月が異なります！",IF(SUM($I$13:I23)>$S$7,"決定時間数を超過しています！",""))) ->  | R23: 0 | S23: 0 | T23: =SUM($S$13:S23) -> 0 | U23: 0 | V23: 0 | W23: =IF(I23=0,0,CONCATENATE(VLOOKUP(I23+"00:01",'データ '!K:M,3,TRUE),"/",$W$11)) -> 0
I24: 0 | K24: 0 | L24: 0 | M24: 0 | P24: 12 | Q24: =IF(A24="","",IF($A$13<>A24,"月が異なります！",IF(SUM($I$13:I24)>$S$7,"決定時間数を超過しています！",""))) ->  | R24: 0 | S24: 0 | T24: =SUM($S$13:S24) -> 0 | U24: 0 | V24: 0 | W24: =IF(I24=0,0,CONCATENATE(VLOOKUP(I24+"00:01",'データ '!K:M,3,TRUE),"/",$W$11)) -> 0
I25: 0 | K25: 0 | L25: 0 | M25: 0 | P25: 13 | Q25: =IF(A25="","",IF($A$13<>A25,"月が異なります！",IF(SUM($I$13:I25)>$S$7,"決定時間数を超過しています！",""))) ->  | R25: 0 | S25: 0 | T25: =SUM($S$13:S25) -> 0 | U25: 0 | V25: 0 | W25: =IF(I25=0,0,CONCATENATE(VLOOKUP(I25+"00:01",'データ '!K:M,3,TRUE),"/",$W$11)) -> 0
I26: 0 | K26: 0 | L26: 0 | M26: 0 | P26: 14 | Q26: =IF(A26="","",IF($A$13<>A26,"月が異なります！",IF(SUM($I$13:I26)>$S$7,"決定時間数を超過しています！",""))) ->  | R26: 0 | S26: 0 | T26: =SUM($S$13:S26) -> 0 | U26: 0 | V26: 0 | W26: =IF(I26=0,0,CONCATENATE(VLOOKUP(I26+"00:01",'データ '!K:M,3,TRUE),"/",$W$11)) -> 0
I27: 0 | K27: 0 | L27: 0 | M27: 0 | P27: 15 | Q27: =IF(A27="","",IF($A$13<>A27,"月が異なります！",IF(SUM($I$13:I27)>$S$7,"決定時間数を超過しています！",""))) ->  | R27: 0 | S27: 0 | T27: =SUM($S$13:S27) -> 0 | U27: 0 | V27: 0 | W27: =IF(I27=0,0,CONCATENATE(VLOOKUP(I27+"00:01",'データ '!K:M,3,TRUE),"/",$W$11)) -> 0
I28: 0 | K28: 0 | L28: 0 | M28: 0 | P28: 16 | Q28: =IF(A28="","",IF($A$13<>A28,"月が異なります！",IF(SUM($I$13:I28)>$S$7,"決定時間数を超過しています！",""))) ->  | R28: 0 | S28: 0 | T28: =SUM($S$13:S28) -> 0 | U28: 0 | V28: 0 | W28: =IF(I28=0,0,CONCATENATE(VLOOKUP(I28+"00:01",'データ '!K:M,3,TRUE),"/",$W$11)) -> 0
I29: 0 | K29: 0 | L29: 0 | M29: 0 | P29: 17 | Q29: =IF(A29="","",IF($A$13<>A29,"月が異なります！",IF(SUM($I$13:I29)>$S$7,"決定時間数を超過しています！",""))) ->  | R29: 0 | S29: 0 | T29: =SUM($S$13:S29) -> 0 | U29: 0 | V29: 0 | W29: =IF(I29=0,0,CONCATENATE(VLOOKUP(I29+"00:01",'データ '!K:M,3,TRUE),"/",$W$11)) -> 0
I30: 0 | K30: 0 | L30: 0 | M30: 0 | P30: 18 | Q30: =IF(A30="","",IF($A$13<>A30,"月が異なります！",IF(SUM($I$13:I30)>$S$7,"決定時間数を超過しています！",""))) ->  | R30: 0 | S30: 0 | T30: =SUM($S$13:S30) -> 0 | U30: 0 | V30: 0 | W30: =IF(I30=0,0,CONCATENATE(VLOOKUP(I30+"00:01",'データ '!K:M,3,TRUE),"/",$W$11)) -> 0
I31: 0 | K31: 0 | L31: 0 | M31: 0 | P31: 19 | Q31: =IF(A31="","",IF($A$13<>A31,"月が異なります！",IF(SUM($I$13:I31)>$S$7,"決定時間数を超過しています！",""))) ->  | R31: 0 | S31: 0 | T31: =SUM($S$13:S31) -> 0 | U31: 0 | V31: 0 | W31: =IF(I31=0,0,CONCATENATE(VLOOKUP(I31+"00:01",'データ '!K:M,3,TRUE),"/",$W$11)) -> 0
I32: 0 | K32: 0 | L32: 0 | M32: 0 | P32: 20 | Q32: =IF(A32="","",IF($A$13<>A32,"月が異なります！",IF(SUM($I$13:I32)>$S$7,"決定時間数を超過しています！",""))) ->  | R32: 0 | S32: 0 | T32: =SUM($S$13:S32) -> 0 | U32: 0 | V32: 0 | W32: =IF(I32=0,0,CONCATENATE(VLOOKUP(I32+"00:01",'データ '!K:M,3,TRUE),"/",$W$11)) -> 0
I33: 0 | K33: 0 | L33: 0 | M33: 0 | P33: 21 | Q33: =IF(A33="","",IF($A$13<>A33,"月が異なります！",IF(SUM($I$13:I33)>$S$7,"決定時間数を超過しています！",""))) ->  | R33: 0 | S33: 0 | T33: =SUM($S$13:S33) -> 0 | U33: 0 | V33: 0 | W33: =IF(I33=0,0,CONCATENATE(VLOOKUP(I33+"00:01",'データ '!K:M,3,TRUE),"/",$W$11)) -> 0
I34: 0 | K34: 0 | L34: 0 | M34: 0 | P34: 22 | Q34: =IF(A34="","",IF($A$13<>A34,"月が異なります！",IF(SUM($I$13:I34)>$S$7,"決定時間数を超過しています！",""))) ->  | R34: 0 | S34: 0 | T34: =SUM($S$13:S34) -> 0 | U34: 0 | V34: 0 | W34: =IF(I34=0,0,CONCATENATE(VLOOKUP(I34+"00:01",'データ '!K:M,3,TRUE),"/",$W$11)) -> 0
I35: 0 | K35: 0 | L35: 0 | M35: 0 | P35: 23 | Q35: =IF(A35="","",IF($A$13<>A35,"月が異なります！",IF(SUM($I$13:I35)>$S$7,"決定時間数を超過しています！",""))) ->  | R35: 0 | S35: 0 | T35: =SUM($S$13:S35) -> 0 | U35: 0 | V35: 0 | W35: =IF(I35=0,0,CONCATENATE(VLOOKUP(I35+"00:01",'データ '!K:M,3,TRUE),"/",$W$11)) -> 0
I36: 0 | K36: 0 | L36: 0 | M36: 0 | P36: 24 | Q36: =IF(A36="","",IF($A$13<>A36,"月が異なります！",IF(SUM($I$13:I36)>$S$7,"決定時間数を超過しています！",""))) ->  | R36: 0 | S36: 0 | T36: =SUM($S$13:S36) -> 0 | U36: 0 | V36: 0 | W36: =IF(I36=0,0,CONCATENATE(VLOOKUP(I36+"00:01",'データ '!K:M,3,TRUE),"/",$W$11)) -> 0
I37: 0 | K37: 0 | L37: 0 | M37: 0 | P37: 25 | Q37: =IF(A37="","",IF($A$13<>A37,"月が異なります！",IF(SUM($I$13:I37)>$S$7,"決定時間数を超過しています！",""))) ->  | R37: 0 | S37: 0 | T37: =SUM($S$13:S37) -> 0 | U37: 0 | V37: 0 | W37: =IF(I37=0,0,CONCATENATE(VLOOKUP(I37+"00:01",'データ '!K:M,3,TRUE),"/",$W$11)) -> 0
I38: 0 | K38: 0 | L38: 0 | M38: 0 | P38: 26 | Q38: =IF(A38="","",IF($A$13<>A38,"月が異なります！",IF(SUM($I$13:I38)>$S$7,"決定時間数を超過しています！",""))) ->  | R38: 0 | S38: 0 | T38: =SUM($S$13:S38) -> 0 | U38: 0 | V38: 0 | W38: =IF(I38=0,0,CONCATENATE(VLOOKUP(I38+"00:01",'データ '!K:M,3,TRUE),"/",$W$11)) -> 0
I39: 0 | K39: 0 | L39: 0 | M39: 0 | P39: 27 | Q39: =IF(A39="","",IF($A$13<>A39,"月が異なります！",IF(SUM($I$13:I39)>$S$7,"決定時間数を超過しています！",""))) ->  | R39: 0 | S39: 0 | T39: =SUM($S$13:S39) -> 0 | U39: 0 | V39: 0 | W39: =IF(I39=0,0,CONCATENATE(VLOOKUP(I39+"00:01",'データ '!K:M,3,TRUE),"/",$W$11)) -> 0
I40: 0 | K40: 0 | L40: 0 | M40: 0 | P40: 28 | Q40: =IF(A40="","",IF($A$13<>A40,"月が異なります！",IF(SUM($I$13:I40)>$S$7,"決定時間数を超過しています！",""))) ->  | R40: 0 | S40: 0 | T40: =SUM($S$13:S40) -> 0 | U40: 0 | V40: 0 | W40: =IF(I40=0,0,CONCATENATE(VLOOKUP(I40+"00:01",'データ '!K:M,3,TRUE),"/",$W$11)) -> 0
I41: 0 | K41: 0 | L41: 0 | M41: 0 | P41: 29 | Q41: =IF(A41="","",IF($A$13<>A41,"月が異なります！",IF(SUM($I$13:I41)>$S$7,"決定時間数を超過しています！",""))) ->  | R41: 0 | S41: 0 | T41: =SUM($S$13:S41) -> 0 | U41: 0 | V41: 0 | W41: =IF(I41=0,0,CONCATENATE(VLOOKUP(I41+"00:01",'データ '!K:M,3,TRUE),"/",$W$11)) -> 0
I42: 0 | K42: 0 | L42: 0 | M42: 0 | P42: 30 | Q42: =IF(A42="","",IF($A$13<>A42,"月が異なります！",IF(SUM($I$13:I42)>$S$7,"決定時間数を超過しています！",""))) ->  | R42: 0 | S42: 0 | T42: =SUM($S$13:S42) -> 0 | U42: 0 | V42: 0 | W42: =IF(I42=0,0,CONCATENATE(VLOOKUP(I42+"00:01",'データ '!K:M,3,TRUE),"/",$W$11)) -> 0
I43: 0 | K43: 0 | L43: 0 | M43: 0 | P43: 31 | Q43: =IF(A43="","",IF($A$13<>A43,"月が異なります！",IF(SUM($I$13:I43)>$S$7,"決定時間数を超過しています！",""))) ->  | R43: 0 | S43: 0 | T43: =SUM($S$13:S43) -> 0 | U43: 0 | V43: 0 | W43: =IF(I43=0,0,CONCATENATE(VLOOKUP(I43+"00:01",'データ '!K:M,3,TRUE),"/",$W$11)) -> 0
A44: 合計 | I44: =SUM(I13:I43) -> 0 | K44: =SUM(K13:K43) -> 0 | L44: =SUM(L13:L43) -> 0 | M44: =SUM(M13:M43) -> 0 | W44: =IF(I44>=$X$8,$Y$9,IF(AND(I44<$X$8,I44>=$X$7),$Y$8,IF(I44<$X$7,$Y$7)))&$W$11 -> 無

Sheet 12
B1: № | C1: 12
B4: =EOMONTH(B13,0) -> 1900-01-31 | F4: 鎌ケ谷市移動支援サービス提供実績記録票
A5: 登録番号 | D5: =VLOOKUP($C$1,利用者情報!A:U,COLUMN(利用者情報!B3),FALSE) -> 0 | G5: 支給決定障がい者等氏名 （児童氏名） | I5: =VLOOKUP($C$1,利用者情報!A:U,COLUMN(利用者情報!C1),FALSE) -> 0 | L5: 事業所登録番号
L6: =請求事業者!B3 -> 0 | Q6: コメント | S6: 決定時間数
A7: 契約支給量 | D7: 身体介護を 伴う | F7: =IF(VLOOKUP(C1,利用者情報!A:G,5)="有",CONCATENATE(VLOOKUP(C1,利用者情報!A:G,4)&"時間"),"") ->  | G7: 身体介護を 伴わない | I7: =IF(VLOOKUP(C1,利用者情報!A:G,5)<>"有",CONCATENATE(VLOOKUP(C1,利用者情報!A:G,4)&"時間"),"") -> 時間 | J7: 事業所及び その事業所 | L7: =請求事業者!B7 -> 0 | Q7: =利用者情報!J4 ->  | S7: =IF(F7="",I7,F7) -> 時間
A8: 利用者負担の有無 | F8: 利用者の負担割合 | H8: 利用者負担上限額
A9: =VLOOKUP($C$1,利用者情報!A:U,COLUMN(利用者情報!F3),FALSE) -> 0 | F9: =IF(A9="有","1割","0割") -> 0割 | H9: =VLOOKUP($C$1,利用者情報!A:U,COLUMN(利用者情報!G3),FALSE) -> 0 | W9: =請求事業者!C9 -> 5
W10: 便宜上区分
A11: 日付 | D11: 支援計画 | I11: 算定 時間 | J11: 派遣 人数 | K11: 算定額 | L11: 利用者 負担額 | M11: 請求額 | N11: サービス 提供者印 | O11: 利用者 確認印 | Q11: コメント | T11: 利用者負担額 累計 | U11: 上限到達フラグ | V11: 上限達成時の利用者負担額 | W11: =IF(F7="","無","有") -> 無
A12: 月 | B12: 日 | C12: 曜日 | D12: 開始 時間 | E12: 終了 時間 | F12: 計画 時間数 | G12: 開始 時間 | H12: 終了 時間 | R12: 請求額 | S12: 利用者 負担額 | W12: =IF(A9="有","（9割）","") -> 
A13: =IF(B13="","",TEXT(B13,"m")) ->  | C13: =IF(B13="","",B13) ->  | I13: =H13-G13 -> 0 | K13: =IF($H13=0,0,INDEX(単価,MATCH(W13,時間,0),MATCH($W$9,地域区分,0))) -> 0 | L13: =IF(U13=0,S13,V13) -> 0 | M13: =K13-L13 -> 0 | P13: 1 | Q13: =IF(A13="","",IF($A$13<>A13,"月が異なります！",IF(SUM($I$13:I13)>$S$7,"決定時間数を超過しています！",""))) ->  | R13: =IF(I13=0,0,INDEX(単価,MATCH(W13,時間,0),MATCH(IF(W12="",W9,W9&W12),地域区分,0))) -> 0 | S13: =K13-R13 -> 0 | T13: =SUM($S$13:S13) -> 0 | W13: =IF(I13=0,0,CONCATENATE(VLOOKUP(I13+"00:01",'データ '!K:M,3,TRUE),"/",$W$11)) -> 0
A14: =IF(B14="","",TEXT(B14,"m")) ->  | C14: =IF(B14="","",B14) ->  | I14: =H14-G14 -> 0 | K14: =IF($H14=0,0,INDEX(単価,MATCH(W14,時間,0),MATCH($W$9,地域区分,0))) -> 0 | L14: =IF(U14=0,S14,V14) -> 0 | M14: =K14-L14 -> 0 | P14: 2 | Q14: =IF(A14="","",IF($A$13<>A14,"月が異なります！",IF(SUM($I$13:I14)>$S$7,"決定時間数を超過しています！",""))) ->  | R14: =IF(AND($H14=0),0,IF($A$9="有",INDEX(単価,MATCH(W14,時間,0),MATCH($W$9&$W$12,地域区分,0)),INDEX(単価,MATCH(W14,時間,0),MATCH($W$9,地域区分,0)))) -> 0 | S14: =K14-R14 -> 0 | T14: =SUM($S$13:S14) -> 0 | U14: =IF(AND(T13<$H$9,T14>$H$9),1,IF(T14>$H$9,2,0)) -> 0 | V14: =IF(U14=1,$H$9-T13,0) -> 0 | W14: =IF(I14=0,0,CONCATENATE(VLOOKUP(I14+"00:01",'データ '!K:M,3,TRUE),"/",$W$11)) -> 0
I15: 0 | K15: 0 | L15: =IF(U15=0,S15,V15) -> 0 | M15: =K15-L15 -> 0 | P15: 3 | Q15: =IF(A15="","",IF($A$13<>A15,"月が異なります！",IF(SUM($I$13:I15)>$S$7,"決定時間数を超過しています！",""))) ->  | R15: 0 | S15: 0 | T15: =SUM($S$13:S15) -> 0 | U15: =IF(AND(T14<$H$9,T15>$H$9),1,IF(T15>$H$9,2,0)) -> 0 | V15: =IF(U15=1,$H$9-T14,0) -> 0 | W15: =IF(I15=0,0,CONCATENATE(VLOOKUP(I15+"00:01",'データ '!K:M,3,TRUE),"/",$W$11)) -> 0
I16: 0 | K16: 0 | L16: 0 | M16: 0 | P16: 4 | Q16: =IF(A16="","",IF($A$13<>A16,"月が異なります！",IF(SUM($I$13:I16)>$S$7,"決定時間数を超過しています！",""))) ->  | R16: 0 | S16: 0 | T16: =SUM($S$13:S16) -> 0 | U16: 0 | V16: 0 | W16: =IF(I16=0,0,CONCATENATE(VLOOKUP(I16+"00:01",'データ '!K:M,3,TRUE),"/",$W$11)) -> 0
I17: 0 | K17: 0 | L17: 0 | M17: 0 | P17: 5 | Q17: =IF(A17="","",IF($A$13<>A17,"月が異なります！",IF(SUM($I$13:I17)>$S$7,"決定時間数を超過しています！",""))) ->  | R17: 0 | S17: 0 | T17: =SUM($S$13:S17) -> 0 | U17: 0 | V17: 0 | W17: =IF(I17=0,0,CONCATENATE(VLOOKUP(I17+"00:01",'データ '!K:M,3,TRUE),"/",$W$11)) -> 0
I18: 0 | K18: 0 | L18: 0 | M18: 0 | P18: 6 | Q18: =IF(A18="","",IF($A$13<>A18,"月が異なります！",IF(SUM($I$13:I18)>$S$7,"決定時間数を超過しています！",""))) ->  | R18: 0 | S18: 0 | T18: =SUM($S$13:S18) -> 0 | U18: 0 | V18: 0 | W18: =IF(I18=0,0,CONCATENATE(VLOOKUP(I18+"00:01",'データ '!K:M,3,TRUE),"/",$W$11)) -> 0
I19: 0 | K19: 0 | L19: 0 | M19: 0 | P19: 7 | Q19: =IF(A19="","",IF($A$13<>A19,"月が異なります！",IF(SUM($I$13:I19)>$S$7,"決定時間数を超過しています！",""))) ->  | R19: 0 | S19: 0 | T19: =SUM($S$13:S19) -> 0 | U19: 0 | V19: 0 | W19: =IF(I19=0,0,CONCATENATE(VLOOKUP(I19+"00:01",'データ '!K:M,3,TRUE),"/",$W$11)) -> 0
I20: 0 | K20: 0 | L20: 0 | M20: 0 | P20: 8 | Q20: =IF(A20="","",IF($A$13<>A20,"月が異なります！",IF(SUM($I$13:I20)>$S$7,"決定時間数を超過しています！",""))) ->  | R20: 0 | S20: 0 | T20: =SUM($S$13:S20) -> 0 | U20: 0 | V20: 0 | W20: =IF(I20=0,0,CONCATENATE(VLOOKUP(I20+"00:01",'データ '!K:M,3,TRUE),"/",$W$11)) -> 0
I21: 0 | K21: 0 | L21: =IF(U21=0,S21,V21) -> 0 | M21: 0 | P21: 9 | Q21: =IF(A21="","",IF($A$13<>A21,"月が異なります！",IF(SUM($I$13:I21)>$S$7,"決定時間数を超過しています！",""))) ->  | R21: 0 | S21: 0 | T21: =SUM($S$13:S21) -> 0 | U21: 0 | V21: 0 | W21: =IF(I21=0,0,CONCATENATE(VLOOKUP(I21+"00:01",'データ '!K:M,3,TRUE),"/",$W$11)) -> 0
I22: 0 | K22: 0 | L22: =IF(U22=0,S22,V22) -> 0 | M22: 0 | P22: 10 | Q22: =IF(A22="","",IF($A$13<>A22,"月が異なります！",IF(SUM($I$13:I22)>$S$7,"決定時間数を超過しています！",""))) ->  | R22: 0 | S22: =K22-R22 -> 0 | T22: =SUM($S$13:S22) -> 0 | U22: 0 | V22: 0 | W22: =IF(I22=0,0,CONCATENATE(VLOOKUP(I22+"00:01",'データ '!K:M,3,TRUE),"/",$W$11)) -> 0
I23: 0 | K23: 0 | L23: 0 | M23: 0 | P23: 11 | Q23: =IF(A23="","",IF($A$13<>A23,"月が異なります！",IF(SUM($I$13:I23)>$S$7,"決定時間数を超過しています！",""))) ->  | R23: 0 | S23: 0 | T23: =SUM($S$13:S23) -> 0 | U23: 0 | V23: 0 | W23: =IF(I23=0,0,CONCATENATE(VLOOKUP(I23+"00:01",'データ '!K:M,3,TRUE),"/",$W$11)) -> 0
I24: 0 | K24: 0 | L24: 0 | M24: 0 | P24: 12 | Q24: =IF(A24="","",IF($A$13<>A24,"月が異なります！",IF(SUM($I$13:I24)>$S$7,"決定時間数を超過しています！",""))) ->  | R24: 0 | S24: 0 | T24: =SUM($S$13:S24) -> 0 | U24: 0 | V24: 0 | W24: =IF(I24=0,0,CONCATENATE(VLOOKUP(I24+"00:01",'データ '!K:M,3,TRUE),"/",$W$11)) -> 0
I25: 0 | K25: 0 | L25: 0 | M25: 0 | P25: 13 | Q25: =IF(A25="","",IF($A$13<>A25,"月が異なります！",IF(SUM($I$13:I25)>$S$7,"決定時間数を超過しています！",""))) ->  | R25: 0 | S25: 0 | T25: =SUM($S$13:S25) -> 0 | U25: 0 | V25: 0 | W25: =IF(I25=0,0,CONCATENATE(VLOOKUP(I25+"00:01",'データ '!K:M,3,TRUE),"/",$W$11)) -> 0
I26: 0 | K26: 0 | L26: 0 | M26: 0 | P26: 14 | Q26: =IF(A26="","",IF($A$13<>A26,"月が異なります！",IF(SUM($I$13:I26)>$S$7,"決定時間数を超過しています！",""))) ->  | R26: 0 | S26: 0 | T26: =SUM($S$13:S26) -> 0 | U26: 0 | V26: 0 | W26: =IF(I26=0,0,CONCATENATE(VLOOKUP(I26+"00:01",'データ '!K:M,3,TRUE),"/",$W$11)) -> 0
I27: 0 | K27: 0 | L27: 0 | M27: 0 | P27: 15 | Q27: =IF(A27="","",IF($A$13<>A27,"月が異なります！",IF(SUM($I$13:I27)>$S$7,"決定時間数を超過しています！",""))) ->  | R27: 0 | S27: 0 | T27: =SUM($S$13:S27) -> 0 | U27: 0 | V27: 0 | W27: =IF(I27=0,0,CONCATENATE(VLOOKUP(I27+"00:01",'データ '!K:M,3,TRUE),"/",$W$11)) -> 0
I28: 0 | K28: 0 | L28: 0 | M28: 0 | P28: 16 | Q28: =IF(A28="","",IF($A$13<>A28,"月が異なります！",IF(SUM($I$13:I28)>$S$7,"決定時間数を超過しています！",""))) ->  | R28: 0 | S28: 0 | T28: =SUM($S$13:S28) -> 0 | U28: 0 | V28: 0 | W28: =IF(I28=0,0,CONCATENATE(VLOOKUP(I28+"00:01",'データ '!K:M,3,TRUE),"/",$W$11)) -> 0
I29: 0 | K29: 0 | L29: 0 | M29: 0 | P29: 17 | Q29: =IF(A29="","",IF($A$13<>A29,"月が異なります！",IF(SUM($I$13:I29)>$S$7,"決定時間数を超過しています！",""))) ->  | R29: 0 | S29: 0 | T29: =SUM($S$13:S29) -> 0 | U29: 0 | V29: 0 | W29: =IF(I29=0,0,CONCATENATE(VLOOKUP(I29+"00:01",'データ '!K:M,3,TRUE),"/",$W$11)) -> 0
I30: 0 | K30: 0 | L30: 0 | M30: 0 | P30: 18 | Q30: =IF(A30="","",IF($A$13<>A30,"月が異なります！",IF(SUM($I$13:I30)>$S$7,"決定時間数を超過しています！",""))) ->  | R30: 0 | S30: 0 | T30: =SUM($S$13:S30) -> 0 | U30: 0 | V30: 0 | W30: =IF(I30=0,0,CONCATENATE(VLOOKUP(I30+"00:01",'データ '!K:M,3,TRUE),"/",$W$11)) -> 0
I31: 0 | K31: 0 | L31: 0 | M31: 0 | P31: 19 | Q31: =IF(A31="","",IF($A$13<>A31,"月が異なります！",IF(SUM($I$13:I31)>$S$7,"決定時間数を超過しています！",""))) ->  | R31: 0 | S31: 0 | T31: =SUM($S$13:S31) -> 0 | U31: 0 | V31: 0 | W31: =IF(I31=0,0,CONCATENATE(VLOOKUP(I31+"00:01",'データ '!K:M,3,TRUE),"/",$W$11)) -> 0
I32: 0 | K32: 0 | L32: 0 | M32: 0 | P32: 20 | Q32: =IF(A32="","",IF($A$13<>A32,"月が異なります！",IF(SUM($I$13:I32)>$S$7,"決定時間数を超過しています！",""))) ->  | R32: 0 | S32: 0 | T32: =SUM($S$13:S32) -> 0 | U32: 0 | V32: 0 | W32: =IF(I32=0,0,CONCATENATE(VLOOKUP(I32+"00:01",'データ '!K:M,3,TRUE),"/",$W$11)) -> 0
I33: 0 | K33: 0 | L33: 0 | M33: 0 | P33: 21 | Q33: =IF(A33="","",IF($A$13<>A33,"月が異なります！",IF(SUM($I$13:I33)>$S$7,"決定時間数を超過しています！",""))) ->  | R33: 0 | S33: 0 | T33: =SUM($S$13:S33) -> 0 | U33: 0 | V33: 0 | W33: =IF(I33=0,0,CONCATENATE(VLOOKUP(I33+"00:01",'データ '!K:M,3,TRUE),"/",$W$11)) -> 0
I34: 0 | K34: 0 | L34: 0 | M34: 0 | P34: 22 | Q34: =IF(A34="","",IF($A$13<>A34,"月が異なります！",IF(SUM($I$13:I34)>$S$7,"決定時間数を超過しています！",""))) ->  | R34: 0 | S34: 0 | T34: =SUM($S$13:S34) -> 0 | U34: 0 | V34: 0 | W34: =IF(I34=0,0,CONCATENATE(VLOOKUP(I34+"00:01",'データ '!K:M,3,TRUE),"/",$W$11)) -> 0
I35: 0 | K35: 0 | L35: 0 | M35: 0 | P35: 23 | Q35: =IF(A35="","",IF($A$13<>A35,"月が異なります！",IF(SUM($I$13:I35)>$S$7,"決定時間数を超過しています！",""))) ->  | R35: 0 | S35: 0 | T35: =SUM($S$13:S35) -> 0 | U35: 0 | V35: 0 | W35: =IF(I35=0,0,CONCATENATE(VLOOKUP(I35+"00:01",'データ '!K:M,3,TRUE),"/",$W$11)) -> 0
I36: 0 | K36: 0 | L36: 0 | M36: 0 | P36: 24 | Q36: =IF(A36="","",IF($A$13<>A36,"月が異なります！",IF(SUM($I$13:I36)>$S$7,"決定時間数を超過しています！",""))) ->  | R36: 0 | S36: 0 | T36: =SUM($S$13:S36) -> 0 | U36: 0 | V36: 0 | W36: =IF(I36=0,0,CONCATENATE(VLOOKUP(I36+"00:01",'データ '!K:M,3,TRUE),"/",$W$11)) -> 0
I37: 0 | K37: 0 | L37: 0 | M37: 0 | P37: 25 | Q37: =IF(A37="","",IF($A$13<>A37,"月が異なります！",IF(SUM($I$13:I37)>$S$7,"決定時間数を超過しています！",""))) ->  | R37: 0 | S37: 0 | T37: =SUM($S$13:S37) -> 0 | U37: 0 | V37: 0 | W37: =IF(I37=0,0,CONCATENATE(VLOOKUP(I37+"00:01",'データ '!K:M,3,TRUE),"/",$W$11)) -> 0
I38: 0 | K38: 0 | L38: 0 | M38: 0 | P38: 26 | Q38: =IF(A38="","",IF($A$13<>A38,"月が異なります！",IF(SUM($I$13:I38)>$S$7,"決定時間数を超過しています！",""))) ->  | R38: 0 | S38: 0 | T38: =SUM($S$13:S38) -> 0 | U38: 0 | V38: 0 | W38: =IF(I38=0,0,CONCATENATE(VLOOKUP(I38+"00:01",'データ '!K:M,3,TRUE),"/",$W$11)) -> 0
I39: 0 | K39: 0 | L39: 0 | M39: 0 | P39: 27 | Q39: =IF(A39="","",IF($A$13<>A39,"月が異なります！",IF(SUM($I$13:I39)>$S$7,"決定時間数を超過しています！",""))) ->  | R39: 0 | S39: 0 | T39: =SUM($S$13:S39) -> 0 | U39: 0 | V39: 0 | W39: =IF(I39=0,0,CONCATENATE(VLOOKUP(I39+"00:01",'データ '!K:M,3,TRUE),"/",$W$11)) -> 0
I40: 0 | K40: 0 | L40: 0 | M40: 0 | P40: 28 | Q40: =IF(A40="","",IF($A$13<>A40,"月が異なります！",IF(SUM($I$13:I40)>$S$7,"決定時間数を超過しています！",""))) ->  | R40: 0 | S40: 0 | T40: =SUM($S$13:S40) -> 0 | U40: 0 | V40: 0 | W40: =IF(I40=0,0,CONCATENATE(VLOOKUP(I40+"00:01",'データ '!K:M,3,TRUE),"/",$W$11)) -> 0
I41: 0 | K41: 0 | L41: 0 | M41: 0 | P41: 29 | Q41: =IF(A41="","",IF($A$13<>A41,"月が異なります！",IF(SUM($I$13:I41)>$S$7,"決定時間数を超過しています！",""))) ->  | R41: 0 | S41: 0 | T41: =SUM($S$13:S41) -> 0 | U41: 0 | V41: 0 | W41: =IF(I41=0,0,CONCATENATE(VLOOKUP(I41+"00:01",'データ '!K:M,3,TRUE),"/",$W$11)) -> 0
I42: 0 | K42: 0 | L42: 0 | M42: 0 | P42: 30 | Q42: =IF(A42="","",IF($A$13<>A42,"月が異なります！",IF(SUM($I$13:I42)>$S$7,"決定時間数を超過しています！",""))) ->  | R42: 0 | S42: 0 | T42: =SUM($S$13:S42) -> 0 | U42: 0 | V42: 0 | W42: =IF(I42=0,0,CONCATENATE(VLOOKUP(I42+"00:01",'データ '!K:M,3,TRUE),"/",$W$11)) -> 0
I43: 0 | K43: 0 | L43: 0 | M43: 0 | P43: 31 | Q43: =IF(A43="","",IF($A$13<>A43,"月が異なります！",IF(SUM($I$13:I43)>$S$7,"決定時間数を超過しています！",""))) ->  | R43: 0 | S43: 0 | T43: =SUM($S$13:S43) -> 0 | U43: 0 | V43: 0 | W43: =IF(I43=0,0,CONCATENATE(VLOOKUP(I43+"00:01",'データ '!K:M,3,TRUE),"/",$W$11)) -> 0
A44: 合計 | I44: =SUM(I13:I43) -> 0 | K44: =SUM(K13:K43) -> 0 | L44: =SUM(L13:L43) -> 0 | M44: =SUM(M13:M43) -> 0 | W44: =IF(I44>=$X$8,$Y$9,IF(AND(I44<$X$8,I44>=$X$7),$Y$8,IF(I44<$X$7,$Y$7)))&$W$11 -> 無

Sheet 13
B1: № | C1: 13
B4: =EOMONTH(B13,0) -> 1900-01-31 | F4: 鎌ケ谷市移動支援サービス提供実績記録票
A5: 登録番号 | D5: =VLOOKUP($C$1,利用者情報!A:U,COLUMN(利用者情報!B3),FALSE) -> 0 | G5: 支給決定障がい者等氏名 （児童氏名） | I5: =VLOOKUP($C$1,利用者情報!A:U,COLUMN(利用者情報!C1),FALSE) -> 0 | L5: 事業所登録番号
L6: =請求事業者!B3 -> 0 | Q6: コメント | S6: 決定時間数
A7: 契約支給量 | D7: 身体介護を 伴う | F7: =IF(VLOOKUP(C1,利用者情報!A:G,5)="有",CONCATENATE(VLOOKUP(C1,利用者情報!A:G,4)&"時間"),"") ->  | G7: 身体介護を 伴わない | I7: =IF(VLOOKUP(C1,利用者情報!A:G,5)<>"有",CONCATENATE(VLOOKUP(C1,利用者情報!A:G,4)&"時間"),"") -> 時間 | J7: 事業所及び その事業所 | L7: =請求事業者!B7 -> 0 | Q7: =利用者情報!J4 ->  | S7: =IF(F7="",I7,F7) -> 時間
A8: 利用者負担の有無 | F8: 利用者の負担割合 | H8: 利用者負担上限額
A9: =VLOOKUP($C$1,利用者情報!A:U,COLUMN(利用者情報!F3),FALSE) -> 0 | F9: =IF(A9="有","1割","0割") -> 0割 | H9: =VLOOKUP($C$1,利用者情報!A:U,COLUMN(利用者情報!G3),FALSE) -> 0 | W9: =請求事業者!C9 -> 5
W10: 便宜上区分
A11: 日付 | D11: 支援計画 | I11: 算定 時間 | J11: 派遣 人数 | K11: 算定額 | L11: 利用者 負担額 | M11: 請求額 | N11: サービス 提供者印 | O11: 利用者 確認印 | Q11: コメント | T11: 利用者負担額 累計 | U11: 上限到達フラグ | V11: 上限達成時の利用者負担額 | W11: =IF(F7="","無","有") -> 無
A12: 月 | B12: 日 | C12: 曜日 | D12: 開始 時間 | E12: 終了 時間 | F12: 計画 時間数 | G12: 開始 時間 | H12: 終了 時間 | R12: 請求額 | S12: 利用者 負担額 | W12: =IF(A9="有","（9割）","") -> 
A13: =IF(B13="","",TEXT(B13,"m")) ->  | C13: =IF(B13="","",B13) ->  | I13: =H13-G13 -> 0 | K13: =IF($H13=0,0,INDEX(単価,MATCH(W13,時間,0),MATCH($W$9,地域区分,0))) -> 0 | L13: =IF(U13=0,S13,V13) -> 0 | M13: =K13-L13 -> 0 | P13: 1 | Q13: =IF(A13="","",IF($A$13<>A13,"月が異なります！",IF(SUM($I$13:I13)>$S$7,"決定時間数を超過しています！",""))) ->  | R13: =IF(I13=0,0,INDEX(単価,MATCH(W13,時間,0),MATCH(IF(W12="",W9,W9&W12),地域区分,0))) -> 0 | S13: =K13-R13 -> 0 | T13: =SUM($S$13:S13) -> 0 | W13: =IF(I13=0,0,CONCATENATE(VLOOKUP(I13+"00:01",'データ '!K:M,3,TRUE),"/",$W$11)) -> 0
A14: =IF(B14="","",TEXT(B14,"m")) ->  | C14: =IF(B14="","",B14) ->  | I14: =H14-G14 -> 0 | K14: =IF($H14=0,0,INDEX(単価,MATCH(W14,時間,0),MATCH($W$9,地域区分,0))) -> 0 | L14: =IF(U14=0,S14,V14) -> 0 | M14: =K14-L14 -> 0 | P14: 2 | Q14: =IF(A14="","",IF($A$13<>A14,"月が異なります！",IF(SUM($I$13:I14)>$S$7,"決定時間数を超過しています！",""))) ->  | R14: =IF(AND($H14=0),0,IF($A$9="有",INDEX(単価,MATCH(W14,時間,0),MATCH($W$9&$W$12,地域区分,0)),INDEX(単価,MATCH(W14,時間,0),MATCH($W$9,地域区分,0)))) -> 0 | S14: =K14-R14 -> 0 | T14: =SUM($S$13:S14) -> 0 | U14: =IF(AND(T13<$H$9,T14>$H$9),1,IF(T14>$H$9,2,0)) -> 0 | V14: =IF(U14=1,$H$9-T13,0) -> 0 | W14: =IF(I14=0,0,CONCATENATE(VLOOKUP(I14+"00:01",'データ '!K:M,3,TRUE),"/",$W$11)) -> 0
I15: 0 | K15: 0 | L15: =IF(U15=0,S15,V15) -> 0 | M15: =K15-L15 -> 0 | P15: 3 | Q15: =IF(A15="","",IF($A$13<>A15,"月が異なります！",IF(SUM($I$13:I15)>$S$7,"決定時間数を超過しています！",""))) ->  | R15: 0 | S15: 0 | T15: =SUM($S$13:S15) -> 0 | U15: =IF(AND(T14<$H$9,T15>$H$9),1,IF(T15>$H$9,2,0)) -> 0 | V15: =IF(U15=1,$H$9-T14,0) -> 0 | W15: =IF(I15=0,0,CONCATENATE(VLOOKUP(I15+"00:01",'データ '!K:M,3,TRUE),"/",$W$11)) -> 0
I16: 0 | K16: 0 | L16: 0 | M16: 0 | P16: 4 | Q16: =IF(A16="","",IF($A$13<>A16,"月が異なります！",IF(SUM($I$13:I16)>$S$7,"決定時間数を超過しています！",""))) ->  | R16: 0 | S16: 0 | T16: =SUM($S$13:S16) -> 0 | U16: 0 | V16: 0 | W16: =IF(I16=0,0,CONCATENATE(VLOOKUP(I16+"00:01",'データ '!K:M,3,TRUE),"/",$W$11)) -> 0
I17: 0 | K17: 0 | L17: 0 | M17: 0 | P17: 5 | Q17: =IF(A17="","",IF($A$13<>A17,"月が異なります！",IF(SUM($I$13:I17)>$S$7,"決定時間数を超過しています！",""))) ->  | R17: 0 | S17: 0 | T17: =SUM($S$13:S17) -> 0 | U17: 0 | V17: 0 | W17: =IF(I17=0,0,CONCATENATE(VLOOKUP(I17+"00:01",'データ '!K:M,3,TRUE),"/",$W$11)) -> 0
I18: 0 | K18: 0 | L18: 0 | M18: 0 | P18: 6 | Q18: =IF(A18="","",IF($A$13<>A18,"月が異なります！",IF(SUM($I$13:I18)>$S$7,"決定時間数を超過しています！",""))) ->  | R18: 0 | S18: 0 | T18: =SUM($S$13:S18) -> 0 | U18: 0 | V18: 0 | W18: =IF(I18=0,0,CONCATENATE(VLOOKUP(I18+"00:01",'データ '!K:M,3,TRUE),"/",$W$11)) -> 0
I19: 0 | K19: 0 | L19: 0 | M19: 0 | P19: 7 | Q19: =IF(A19="","",IF($A$13<>A19,"月が異なります！",IF(SUM($I$13:I19)>$S$7,"決定時間数を超過しています！",""))) ->  | R19: 0 | S19: 0 | T19: =SUM($S$13:S19) -> 0 | U19: 0 | V19: 0 | W19: =IF(I19=0,0,CONCATENATE(VLOOKUP(I19+"00:01",'データ '!K:M,3,TRUE),"/",$W$11)) -> 0
I20: 0 | K20: 0 | L20: 0 | M20: 0 | P20: 8 | Q20: =IF(A20="","",IF($A$13<>A20,"月が異なります！",IF(SUM($I$13:I20)>$S$7,"決定時間数を超過しています！",""))) ->  | R20: 0 | S20: 0 | T20: =SUM($S$13:S20) -> 0 | U20: 0 | V20: 0 | W20: =IF(I20=0,0,CONCATENATE(VLOOKUP(I20+"00:01",'データ '!K:M,3,TRUE),"/",$W$11)) -> 0
I21: 0 | K21: 0 | L21: =IF(U21=0,S21,V21) -> 0 | M21: 0 | P21: 9 | Q21: =IF(A21="","",IF($A$13<>A21,"月が異なります！",IF(SUM($I$13:I21)>$S$7,"決定時間数を超過しています！",""))) ->  | R21: 0 | S21: 0 | T21: =SUM($S$13:S21) -> 0 | U21: 0 | V21: 0 | W21: =IF(I21=0,0,CONCATENATE(VLOOKUP(I21+"00:01",'データ '!K:M,3,TRUE),"/",$W$11)) -> 0
I22: 0 | K22: 0 | L22: =IF(U22=0,S22,V22) -> 0 | M22: 0 | P22: 10 | Q22: =IF(A22="","",IF($A$13<>A22,"月が異なります！",IF(SUM($I$13:I22)>$S$7,"決定時間数を超過しています！",""))) ->  | R22: 0 | S22: =K22-R22 -> 0 | T22: =SUM($S$13:S22) -> 0 | U22: 0 | V22: 0 | W22: =IF(I22=0,0,CONCATENATE(VLOOKUP(I22+"00:01",'データ '!K:M,3,TRUE),"/",$W$11)) -> 0
I23: 0 | K23: 0 | L23: 0 | M23: 0 | P23: 11 | Q23: =IF(A23="","",IF($A$13<>A23,"月が異なります！",IF(SUM($I$13:I23)>$S$7,"決定時間数を超過しています！",""))) ->  | R23: 0 | S23: 0 | T23: =SUM($S$13:S23) -> 0 | U23: 0 | V23: 0 | W23: =IF(I23=0,0,CONCATENATE(VLOOKUP(I23+"00:01",'データ '!K:M,3,TRUE),"/",$W$11)) -> 0
I24: 0 | K24: 0 | L24: 0 | M24: 0 | P24: 12 | Q24: =IF(A24="","",IF($A$13<>A24,"月が異なります！",IF(SUM($I$13:I24)>$S$7,"決定時間数を超過しています！",""))) ->  | R24: 0 | S24: 0 | T24: =SUM($S$13:S24) -> 0 | U24: 0 | V24: 0 | W24: =IF(I24=0,0,CONCATENATE(VLOOKUP(I24+"00:01",'データ '!K:M,3,TRUE),"/",$W$11)) -> 0
I25: 0 | K25: 0 | L25: 0 | M25: 0 | P25: 13 | Q25: =IF(A25="","",IF($A$13<>A25,"月が異なります！",IF(SUM($I$13:I25)>$S$7,"決定時間数を超過しています！",""))) ->  | R25: 0 | S25: 0 | T25: =SUM($S$13:S25) -> 0 | U25: 0 | V25: 0 | W25: =IF(I25=0,0,CONCATENATE(VLOOKUP(I25+"00:01",'データ '!K:M,3,TRUE),"/",$W$11)) -> 0
I26: 0 | K26: 0 | L26: 0 | M26: 0 | P26: 14 | Q26: =IF(A26="","",IF($A$13<>A26,"月が異なります！",IF(SUM($I$13:I26)>$S$7,"決定時間数を超過しています！",""))) ->  | R26: 0 | S26: 0 | T26: =SUM($S$13:S26) -> 0 | U26: 0 | V26: 0 | W26: =IF(I26=0,0,CONCATENATE(VLOOKUP(I26+"00:01",'データ '!K:M,3,TRUE),"/",$W$11)) -> 0
I27: 0 | K27: 0 | L27: 0 | M27: 0 | P27: 15 | Q27: =IF(A27="","",IF($A$13<>A27,"月が異なります！",IF(SUM($I$13:I27)>$S$7,"決定時間数を超過しています！",""))) ->  | R27: 0 | S27: 0 | T27: =SUM($S$13:S27) -> 0 | U27: 0 | V27: 0 | W27: =IF(I27=0,0,CONCATENATE(VLOOKUP(I27+"00:01",'データ '!K:M,3,TRUE),"/",$W$11)) -> 0
I28: 0 | K28: 0 | L28: 0 | M28: 0 | P28: 16 | Q28: =IF(A28="","",IF($A$13<>A28,"月が異なります！",IF(SUM($I$13:I28)>$S$7,"決定時間数を超過しています！",""))) ->  | R28: 0 | S28: 0 | T28: =SUM($S$13:S28) -> 0 | U28: 0 | V28: 0 | W28: =IF(I28=0,0,CONCATENATE(VLOOKUP(I28+"00:01",'データ '!K:M,3,TRUE),"/",$W$11)) -> 0
I29: 0 | K29: 0 | L29: 0 | M29: 0 | P29: 17 | Q29: =IF(A29="","",IF($A$13<>A29,"月が異なります！",IF(SUM($I$13:I29)>$S$7,"決定時間数を超過しています！",""))) ->  | R29: 0 | S29: 0 | T29: =SUM($S$13:S29) -> 0 | U29: 0 | V29: 0 | W29: =IF(I29=0,0,CONCATENATE(VLOOKUP(I29+"00:01",'データ '!K:M,3,TRUE),"/",$W$11)) -> 0
I30: 0 | K30: 0 | L30: 0 | M30: 0 | P30: 18 | Q30: =IF(A30="","",IF($A$13<>A30,"月が異なります！",IF(SUM($I$13:I30)>$S$7,"決定時間数を超過しています！",""))) ->  | R30: 0 | S30: 0 | T30: =SUM($S$13:S30) -> 0 | U30: 0 | V30: 0 | W30: =IF(I30=0,0,CONCATENATE(VLOOKUP(I30+"00:01",'データ '!K:M,3,TRUE),"/",$W$11)) -> 0
I31: 0 | K31: 0 | L31: 0 | M31: 0 | P31: 19 | Q31: =IF(A31="","",IF($A$13<>A31,"月が異なります！",IF(SUM($I$13:I31)>$S$7,"決定時間数を超過しています！",""))) ->  | R31: 0 | S31: 0 | T31: =SUM($S$13:S31) -> 0 | U31: 0 | V31: 0 | W31: =IF(I31=0,0,CONCATENATE(VLOOKUP(I31+"00:01",'データ '!K:M,3,TRUE),"/",$W$11)) -> 0
I32: 0 | K32: 0 | L32: 0 | M32: 0 | P32: 20 | Q32: =IF(A32="","",IF($A$13<>A32,"月が異なります！",IF(SUM($I$13:I32)>$S$7,"決定時間数を超過しています！",""))) ->  | R32: 0 | S32: 0 | T32: =SUM($S$13:S32) -> 0 | U32: 0 | V32: 0 | W32: =IF(I32=0,0,CONCATENATE(VLOOKUP(I32+"00:01",'データ '!K:M,3,TRUE),"/",$W$11)) -> 0
I33: 0 | K33: 0 | L33: 0 | M33: 0 | P33: 21 | Q33: =IF(A33="","",IF($A$13<>A33,"月が異なります！",IF(SUM($I$13:I33)>$S$7,"決定時間数を超過しています！",""))) ->  | R33: 0 | S33: 0 | T33: =SUM($S$13:S33) -> 0 | U33: 0 | V33: 0 | W33: =IF(I33=0,0,CONCATENATE(VLOOKUP(I33+"00:01",'データ '!K:M,3,TRUE),"/",$W$11)) -> 0
I34: 0 | K34: 0 | L34: 0 | M34: 0 | P34: 22 | Q34: =IF(A34="","",IF($A$13<>A34,"月が異なります！",IF(SUM($I$13:I34)>$S$7,"決定時間数を超過しています！",""))) ->  | R34: 0 | S34: 0 | T34: =SUM($S$13:S34) -> 0 | U34: 0 | V34: 0 | W34: =IF(I34=0,0,CONCATENATE(VLOOKUP(I34+"00:01",'データ '!K:M,3,TRUE),"/",$W$11)) -> 0
I35: 0 | K35: 0 | L35: 0 | M35: 0 | P35: 23 | Q35: =IF(A35="","",IF($A$13<>A35,"月が異なります！",IF(SUM($I$13:I35)>$S$7,"決定時間数を超過しています！",""))) ->  | R35: 0 | S35: 0 | T35: =SUM($S$13:S35) -> 0 | U35: 0 | V35: 0 | W35: =IF(I35=0,0,CONCATENATE(VLOOKUP(I35+"00:01",'データ '!K:M,3,TRUE),"/",$W$11)) -> 0
I36: 0 | K36: 0 | L36: 0 | M36: 0 | P36: 24 | Q36: =IF(A36="","",IF($A$13<>A36,"月が異なります！",IF(SUM($I$13:I36)>$S$7,"決定時間数を超過しています！",""))) ->  | R36: 0 | S36: 0 | T36: =SUM($S$13:S36) -> 0 | U36: 0 | V36: 0 | W36: =IF(I36=0,0,CONCATENATE(VLOOKUP(I36+"00:01",'データ '!K:M,3,TRUE),"/",$W$11)) -> 0
I37: 0 | K37: 0 | L37: 0 | M37: 0 | P37: 25 | Q37: =IF(A37="","",IF($A$13<>A37,"月が異なります！",IF(SUM($I$13:I37)>$S$7,"決定時間数を超過しています！",""))) ->  | R37: 0 | S37: 0 | T37: =SUM($S$13:S37) -> 0 | U37: 0 | V37: 0 | W37: =IF(I37=0,0,CONCATENATE(VLOOKUP(I37+"00:01",'データ '!K:M,3,TRUE),"/",$W$11)) -> 0
I38: 0 | K38: 0 | L38: 0 | M38: 0 | P38: 26 | Q38: =IF(A38="","",IF($A$13<>A38,"月が異なります！",IF(SUM($I$13:I38)>$S$7,"決定時間数を超過しています！",""))) ->  | R38: 0 | S38: 0 | T38: =SUM($S$13:S38) -> 0 | U38: 0 | V38: 0 | W38: =IF(I38=0,0,CONCATENATE(VLOOKUP(I38+"00:01",'データ '!K:M,3,TRUE),"/",$W$11)) -> 0
I39: 0 | K39: 0 | L39: 0 | M39: 0 | P39: 27 | Q39: =IF(A39="","",IF($A$13<>A39,"月が異なります！",IF(SUM($I$13:I39)>$S$7,"決定時間数を超過しています！",""))) ->  | R39: 0 | S39: 0 | T39: =SUM($S$13:S39) -> 0 | U39: 0 | V39: 0 | W39: =IF(I39=0,0,CONCATENATE(VLOOKUP(I39+"00:01",'データ '!K:M,3,TRUE),"/",$W$11)) -> 0
I40: 0 | K40: 0 | L40: 0 | M40: 0 | P40: 28 | Q40: =IF(A40="","",IF($A$13<>A40,"月が異なります！",IF(SUM($I$13:I40)>$S$7,"決定時間数を超過しています！",""))) ->  | R40: 0 | S40: 0 | T40: =SUM($S$13:S40) -> 0 | U40: 0 | V40: 0 | W40: =IF(I40=0,0,CONCATENATE(VLOOKUP(I40+"00:01",'データ '!K:M,3,TRUE),"/",$W$11)) -> 0
I41: 0 | K41: 0 | L41: 0 | M41: 0 | P41: 29 | Q41: =IF(A41="","",IF($A$13<>A41,"月が異なります！",IF(SUM($I$13:I41)>$S$7,"決定時間数を超過しています！",""))) ->  | R41: 0 | S41: 0 | T41: =SUM($S$13:S41) -> 0 | U41: 0 | V41: 0 | W41: =IF(I41=0,0,CONCATENATE(VLOOKUP(I41+"00:01",'データ '!K:M,3,TRUE),"/",$W$11)) -> 0
I42: 0 | K42: 0 | L42: 0 | M42: 0 | P42: 30 | Q42: =IF(A42="","",IF($A$13<>A42,"月が異なります！",IF(SUM($I$13:I42)>$S$7,"決定時間数を超過しています！",""))) ->  | R42: 0 | S42: 0 | T42: =SUM($S$13:S42) -> 0 | U42: 0 | V42: 0 | W42: =IF(I42=0,0,CONCATENATE(VLOOKUP(I42+"00:01",'データ '!K:M,3,TRUE),"/",$W$11)) -> 0
I43: 0 | K43: 0 | L43: 0 | M43: 0 | P43: 31 | Q43: =IF(A43="","",IF($A$13<>A43,"月が異なります！",IF(SUM($I$13:I43)>$S$7,"決定時間数を超過しています！",""))) ->  | R43: 0 | S43: 0 | T43: =SUM($S$13:S43) -> 0 | U43: 0 | V43: 0 | W43: =IF(I43=0,0,CONCATENATE(VLOOKUP(I43+"00:01",'データ '!K:M,3,TRUE),"/",$W$11)) -> 0
A44: 合計 | I44: =SUM(I13:I43) -> 0 | K44: =SUM(K13:K43) -> 0 | L44: =SUM(L13:L43) -> 0 | M44: =SUM(M13:M43) -> 0 | W44: =IF(I44>=$X$8,$Y$9,IF(AND(I44<$X$8,I44>=$X$7),$Y$8,IF(I44<$X$7,$Y$7)))&$W$11 -> 無

Sheet 14
B1: № | C1: 14
B4: =EOMONTH(B13,0) -> 1900-01-31 | F4: 鎌ケ谷市移動支援サービス提供実績記録票
A5: 登録番号 | D5: =VLOOKUP($C$1,利用者情報!A:U,COLUMN(利用者情報!B3),FALSE) -> 0 | G5: 支給決定障がい者等氏名 （児童氏名） | I5: =VLOOKUP($C$1,利用者情報!A:U,COLUMN(利用者情報!C1),FALSE) -> 0 | L5: 事業所登録番号
L6: =請求事業者!B3 -> 0 | Q6: コメント | S6: 決定時間数
A7: 契約支給量 | D7: 身体介護を 伴う | F7: =IF(VLOOKUP(C1,利用者情報!A:G,5)="有",CONCATENATE(VLOOKUP(C1,利用者情報!A:G,4)&"時間"),"") ->  | G7: 身体介護を 伴わない | I7: =IF(VLOOKUP(C1,利用者情報!A:G,5)<>"有",CONCATENATE(VLOOKUP(C1,利用者情報!A:G,4)&"時間"),"") -> 時間 | J7: 事業所及び その事業所 | L7: =請求事業者!B7 -> 0 | Q7: =利用者情報!J4 ->  | S7: =IF(F7="",I7,F7) -> 時間
A8: 利用者負担の有無 | F8: 利用者の負担割合 | H8: 利用者負担上限額
A9: =VLOOKUP($C$1,利用者情報!A:U,COLUMN(利用者情報!F3),FALSE) -> 0 | F9: =IF(A9="有","1割","0割") -> 0割 | H9: =VLOOKUP($C$1,利用者情報!A:U,COLUMN(利用者情報!G3),FALSE) -> 0 | W9: =請求事業者!C9 -> 5
W10: 便宜上区分
A11: 日付 | D11: 支援計画 | I11: 算定 時間 | J11: 派遣 人数 | K11: 算定額 | L11: 利用者 負担額 | M11: 請求額 | N11: サービス 提供者印 | O11: 利用者 確認印 | Q11: コメント | T11: 利用者負担額 累計 | U11: 上限到達フラグ | V11: 上限達成時の利用者負担額 | W11: =IF(F7="","無","有") -> 無
A12: 月 | B12: 日 | C12: 曜日 | D12: 開始 時間 | E12: 終了 時間 | F12: 計画 時間数 | G12: 開始 時間 | H12: 終了 時間 | R12: 請求額 | S12: 利用者 負担額 | W12: =IF(A9="有","（9割）","") -> 
A13: =IF(B13="","",TEXT(B13,"m")) ->  | C13: =IF(B13="","",B13) ->  | I13: =H13-G13 -> 0 | K13: =IF($H13=0,0,INDEX(単価,MATCH(W13,時間,0),MATCH($W$9,地域区分,0))) -> 0 | L13: =IF(U13=0,S13,V13) -> 0 | M13: =K13-L13 -> 0 | P13: 1 | Q13: =IF(A13="","",IF($A$13<>A13,"月が異なります！",IF(SUM($I$13:I13)>$S$7,"決定時間数を超過しています！",""))) ->  | R13: =IF(I13=0,0,INDEX(単価,MATCH(W13,時間,0),MATCH(IF(W12="",W9,W9&W12),地域区分,0))) -> 0 | S13: =K13-R13 -> 0 | T13: =SUM($S$13:S13) -> 0 | W13: =IF(I13=0,0,CONCATENATE(VLOOKUP(I13+"00:01",'データ '!K:M,3,TRUE),"/",$W$11)) -> 0
A14: =IF(B14="","",TEXT(B14,"m")) ->  | C14: =IF(B14="","",B14) ->  | I14: =H14-G14 -> 0 | K14: =IF($H14=0,0,INDEX(単価,MATCH(W14,時間,0),MATCH($W$9,地域区分,0))) -> 0 | L14: =IF(U14=0,S14,V14) -> 0 | M14: =K14-L14 -> 0 | P14: 2 | Q14: =IF(A14="","",IF($A$13<>A14,"月が異なります！",IF(SUM($I$13:I14)>$S$7,"決定時間数を超過しています！",""))) ->  | R14: =IF(AND($H14=0),0,IF($A$9="有",INDEX(単価,MATCH(W14,時間,0),MATCH($W$9&$W$12,地域区分,0)),INDEX(単価,MATCH(W14,時間,0),MATCH($W$9,地域区分,0)))) -> 0 | S14: =K14-R14 -> 0 | T14: =SUM($S$13:S14) -> 0 | U14: =IF(AND(T13<$H$9,T14>$H$9),1,IF(T14>$H$9,2,0)) -> 0 | V14: =IF(U14=1,$H$9-T13,0) -> 0 | W14: =IF(I14=0,0,CONCATENATE(VLOOKUP(I14+"00:01",'データ '!K:M,3,TRUE),"/",$W$11)) -> 0
I15: 0 | K15: 0 | L15: =IF(U15=0,S15,V15) -> 0 | M15: =K15-L15 -> 0 | P15: 3 | Q15: =IF(A15="","",IF($A$13<>A15,"月が異なります！",IF(SUM($I$13:I15)>$S$7,"決定時間数を超過しています！",""))) ->  | R15: 0 | S15: 0 | T15: =SUM($S$13:S15) -> 0 | U15: =IF(AND(T14<$H$9,T15>$H$9),1,IF(T15>$H$9,2,0)) -> 0 | V15: =IF(U15=1,$H$9-T14,0) -> 0 | W15: =IF(I15=0,0,CONCATENATE(VLOOKUP(I15+"00:01",'データ '!K:M,3,TRUE),"/",$W$11)) -> 0
I16: 0 | K16: 0 | L16: 0 | M16: 0 | P16: 4 | Q16: =IF(A16="","",IF($A$13<>A16,"月が異なります！",IF(SUM($I$13:I16)>$S$7,"決定時間数を超過しています！",""))) ->  | R16: 0 | S16: 0 | T16: =SUM($S$13:S16) -> 0 | U16: 0 | V16: 0 | W16: =IF(I16=0,0,CONCATENATE(VLOOKUP(I16+"00:01",'データ '!K:M,3,TRUE),"/",$W$11)) -> 0
I17: 0 | K17: 0 | L17: 0 | M17: 0 | P17: 5 | Q17: =IF(A17="","",IF($A$13<>A17,"月が異なります！",IF(SUM($I$13:I17)>$S$7,"決定時間数を超過しています！",""))) ->  | R17: 0 | S17: 0 | T17: =SUM($S$13:S17) -> 0 | U17: 0 | V17: 0 | W17: =IF(I17=0,0,CONCATENATE(VLOOKUP(I17+"00:01",'データ '!K:M,3,TRUE),"/",$W$11)) -> 0
I18: 0 | K18: 0 | L18: 0 | M18: 0 | P18: 6 | Q18: =IF(A18="","",IF($A$13<>A18,"月が異なります！",IF(SUM($I$13:I18)>$S$7,"決定時間数を超過しています！",""))) ->  | R18: 0 | S18: 0 | T18: =SUM($S$13:S18) -> 0 | U18: 0 | V18: 0 | W18: =IF(I18=0,0,CONCATENATE(VLOOKUP(I18+"00:01",'データ '!K:M,3,TRUE),"/",$W$11)) -> 0
I19: 0 | K19: 0 | L19: 0 | M19: 0 | P19: 7 | Q19: =IF(A19="","",IF($A$13<>A19,"月が異なります！",IF(SUM($I$13:I19)>$S$7,"決定時間数を超過しています！",""))) ->  | R19: 0 | S19: 0 | T19: =SUM($S$13:S19) -> 0 | U19: 0 | V19: 0 | W19: =IF(I19=0,0,CONCATENATE(VLOOKUP(I19+"00:01",'データ '!K:M,3,TRUE),"/",$W$11)) -> 0
I20: 0 | K20: 0 | L20: 0 | M20: 0 | P20: 8 | Q20: =IF(A20="","",IF($A$13<>A20,"月が異なります！",IF(SUM($I$13:I20)>$S$7,"決定時間数を超過しています！",""))) ->  | R20: 0 | S20: 0 | T20: =SUM($S$13:S20) -> 0 | U20: 0 | V20: 0 | W20: =IF(I20=0,0,CONCATENATE(VLOOKUP(I20+"00:01",'データ '!K:M,3,TRUE),"/",$W$11)) -> 0
I21: 0 | K21: 0 | L21: =IF(U21=0,S21,V21) -> 0 | M21: 0 | P21: 9 | Q21: =IF(A21="","",IF($A$13<>A21,"月が異なります！",IF(SUM($I$13:I21)>$S$7,"決定時間数を超過しています！",""))) ->  | R21: 0 | S21: 0 | T21: =SUM($S$13:S21) -> 0 | U21: 0 | V21: 0 | W21: =IF(I21=0,0,CONCATENATE(VLOOKUP(I21+"00:01",'データ '!K:M,3,TRUE),"/",$W$11)) -> 0
I22: 0 | K22: 0 | L22: =IF(U22=0,S22,V22) -> 0 | M22: 0 | P22: 10 | Q22: =IF(A22="","",IF($A$13<>A22,"月が異なります！",IF(SUM($I$13:I22)>$S$7,"決定時間数を超過しています！",""))) ->  | R22: 0 | S22: =K22-R22 -> 0 | T22: =SUM($S$13:S22) -> 0 | U22: 0 | V22: 0 | W22: =IF(I22=0,0,CONCATENATE(VLOOKUP(I22+"00:01",'データ '!K:M,3,TRUE),"/",$W$11)) -> 0
I23: 0 | K23: 0 | L23: 0 | M23: 0 | P23: 11 | Q23: =IF(A23="","",IF($A$13<>A23,"月が異なります！",IF(SUM($I$13:I23)>$S$7,"決定時間数を超過しています！",""))) ->  | R23: 0 | S23: 0 | T23: =SUM($S$13:S23) -> 0 | U23: 0 | V23: 0 | W23: =IF(I23=0,0,CONCATENATE(VLOOKUP(I23+"00:01",'データ '!K:M,3,TRUE),"/",$W$11)) -> 0
I24: 0 | K24: 0 | L24: 0 | M24: 0 | P24: 12 | Q24: =IF(A24="","",IF($A$13<>A24,"月が異なります！",IF(SUM($I$13:I24)>$S$7,"決定時間数を超過しています！",""))) ->  | R24: 0 | S24: 0 | T24: =SUM($S$13:S24) -> 0 | U24: 0 | V24: 0 | W24: =IF(I24=0,0,CONCATENATE(VLOOKUP(I24+"00:01",'データ '!K:M,3,TRUE),"/",$W$11)) -> 0
I25: 0 | K25: 0 | L25: 0 | M25: 0 | P25: 13 | Q25: =IF(A25="","",IF($A$13<>A25,"月が異なります！",IF(SUM($I$13:I25)>$S$7,"決定時間数を超過しています！",""))) ->  | R25: 0 | S25: 0 | T25: =SUM($S$13:S25) -> 0 | U25: 0 | V25: 0 | W25: =IF(I25=0,0,CONCATENATE(VLOOKUP(I25+"00:01",'データ '!K:M,3,TRUE),"/",$W$11)) -> 0
I26: 0 | K26: 0 | L26: 0 | M26: 0 | P26: 14 | Q26: =IF(A26="","",IF($A$13<>A26,"月が異なります！",IF(SUM($I$13:I26)>$S$7,"決定時間数を超過しています！",""))) ->  | R26: 0 | S26: 0 | T26: =SUM($S$13:S26) -> 0 | U26: 0 | V26: 0 | W26: =IF(I26=0,0,CONCATENATE(VLOOKUP(I26+"00:01",'データ '!K:M,3,TRUE),"/",$W$11)) -> 0
I27: 0 | K27: 0 | L27: 0 | M27: 0 | P27: 15 | Q27: =IF(A27="","",IF($A$13<>A27,"月が異なります！",IF(SUM($I$13:I27)>$S$7,"決定時間数を超過しています！",""))) ->  | R27: 0 | S27: 0 | T27: =SUM($S$13:S27) -> 0 | U27: 0 | V27: 0 | W27: =IF(I27=0,0,CONCATENATE(VLOOKUP(I27+"00:01",'データ '!K:M,3,TRUE),"/",$W$11)) -> 0
I28: 0 | K28: 0 | L28: 0 | M28: 0 | P28: 16 | Q28: =IF(A28="","",IF($A$13<>A28,"月が異なります！",IF(SUM($I$13:I28)>$S$7,"決定時間数を超過しています！",""))) ->  | R28: 0 | S28: 0 | T28: =SUM($S$13:S28) -> 0 | U28: 0 | V28: 0 | W28: =IF(I28=0,0,CONCATENATE(VLOOKUP(I28+"00:01",'データ '!K:M,3,TRUE),"/",$W$11)) -> 0
I29: 0 | K29: 0 | L29: 0 | M29: 0 | P29: 17 | Q29: =IF(A29="","",IF($A$13<>A29,"月が異なります！",IF(SUM($I$13:I29)>$S$7,"決定時間数を超過しています！",""))) ->  | R29: 0 | S29: 0 | T29: =SUM($S$13:S29) -> 0 | U29: 0 | V29: 0 | W29: =IF(I29=0,0,CONCATENATE(VLOOKUP(I29+"00:01",'データ '!K:M,3,TRUE),"/",$W$11)) -> 0
I30: 0 | K30: 0 | L30: 0 | M30: 0 | P30: 18 | Q30: =IF(A30="","",IF($A$13<>A30,"月が異なります！",IF(SUM($I$13:I30)>$S$7,"決定時間数を超過しています！",""))) ->  | R30: 0 | S30: 0 | T30: =SUM($S$13:S30) -> 0 | U30: 0 | V30: 0 | W30: =IF(I30=0,0,CONCATENATE(VLOOKUP(I30+"00:01",'データ '!K:M,3,TRUE),"/",$W$11)) -> 0
I31: 0 | K31: 0 | L31: 0 | M31: 0 | P31: 19 | Q31: =IF(A31="","",IF($A$13<>A31,"月が異なります！",IF(SUM($I$13:I31)>$S$7,"決定時間数を超過しています！",""))) ->  | R31: 0 | S31: 0 | T31: =SUM($S$13:S31) -> 0 | U31: 0 | V31: 0 | W31: =IF(I31=0,0,CONCATENATE(VLOOKUP(I31+"00:01",'データ '!K:M,3,TRUE),"/",$W$11)) -> 0
I32: 0 | K32: 0 | L32: 0 | M32: 0 | P32: 20 | Q32: =IF(A32="","",IF($A$13<>A32,"月が異なります！",IF(SUM($I$13:I32)>$S$7,"決定時間数を超過しています！",""))) ->  | R32: 0 | S32: 0 | T32: =SUM($S$13:S32) -> 0 | U32: 0 | V32: 0 | W32: =IF(I32=0,0,CONCATENATE(VLOOKUP(I32+"00:01",'データ '!K:M,3,TRUE),"/",$W$11)) -> 0
I33: 0 | K33: 0 | L33: 0 | M33: 0 | P33: 21 | Q33: =IF(A33="","",IF($A$13<>A33,"月が異なります！",IF(SUM($I$13:I33)>$S$7,"決定時間数を超過しています！",""))) ->  | R33: 0 | S33: 0 | T33: =SUM($S$13:S33) -> 0 | U33: 0 | V33: 0 | W33: =IF(I33=0,0,CONCATENATE(VLOOKUP(I33+"00:01",'データ '!K:M,3,TRUE),"/",$W$11)) -> 0
I34: 0 | K34: 0 | L34: 0 | M34: 0 | P34: 22 | Q34: =IF(A34="","",IF($A$13<>A34,"月が異なります！",IF(SUM($I$13:I34)>$S$7,"決定時間数を超過しています！",""))) ->  | R34: 0 | S34: 0 | T34: =SUM($S$13:S34) -> 0 | U34: 0 | V34: 0 | W34: =IF(I34=0,0,CONCATENATE(VLOOKUP(I34+"00:01",'データ '!K:M,3,TRUE),"/",$W$11)) -> 0
I35: 0 | K35: 0 | L35: 0 | M35: 0 | P35: 23 | Q35: =IF(A35="","",IF($A$13<>A35,"月が異なります！",IF(SUM($I$13:I35)>$S$7,"決定時間数を超過しています！",""))) ->  | R35: 0 | S35: 0 | T35: =SUM($S$13:S35) -> 0 | U35: 0 | V35: 0 | W35: =IF(I35=0,0,CONCATENATE(VLOOKUP(I35+"00:01",'データ '!K:M,3,TRUE),"/",$W$11)) -> 0
I36: 0 | K36: 0 | L36: 0 | M36: 0 | P36: 24 | Q36: =IF(A36="","",IF($A$13<>A36,"月が異なります！",IF(SUM($I$13:I36)>$S$7,"決定時間数を超過しています！",""))) ->  | R36: 0 | S36: 0 | T36: =SUM($S$13:S36) -> 0 | U36: 0 | V36: 0 | W36: =IF(I36=0,0,CONCATENATE(VLOOKUP(I36+"00:01",'データ '!K:M,3,TRUE),"/",$W$11)) -> 0
I37: 0 | K37: 0 | L37: 0 | M37: 0 | P37: 25 | Q37: =IF(A37="","",IF($A$13<>A37,"月が異なります！",IF(SUM($I$13:I37)>$S$7,"決定時間数を超過しています！",""))) ->  | R37: 0 | S37: 0 | T37: =SUM($S$13:S37) -> 0 | U37: 0 | V37: 0 | W37: =IF(I37=0,0,CONCATENATE(VLOOKUP(I37+"00:01",'データ '!K:M,3,TRUE),"/",$W$11)) -> 0
I38: 0 | K38: 0 | L38: 0 | M38: 0 | P38: 26 | Q38: =IF(A38="","",IF($A$13<>A38,"月が異なります！",IF(SUM($I$13:I38)>$S$7,"決定時間数を超過しています！",""))) ->  | R38: 0 | S38: 0 | T38: =SUM($S$13:S38) -> 0 | U38: 0 | V38: 0 | W38: =IF(I38=0,0,CONCATENATE(VLOOKUP(I38+"00:01",'データ '!K:M,3,TRUE),"/",$W$11)) -> 0
I39: 0 | K39: 0 | L39: 0 | M39: 0 | P39: 27 | Q39: =IF(A39="","",IF($A$13<>A39,"月が異なります！",IF(SUM($I$13:I39)>$S$7,"決定時間数を超過しています！",""))) ->  | R39: 0 | S39: 0 | T39: =SUM($S$13:S39) -> 0 | U39: 0 | V39: 0 | W39: =IF(I39=0,0,CONCATENATE(VLOOKUP(I39+"00:01",'データ '!K:M,3,TRUE),"/",$W$11)) -> 0
I40: 0 | K40: 0 | L40: 0 | M40: 0 | P40: 28 | Q40: =IF(A40="","",IF($A$13<>A40,"月が異なります！",IF(SUM($I$13:I40)>$S$7,"決定時間数を超過しています！",""))) ->  | R40: 0 | S40: 0 | T40: =SUM($S$13:S40) -> 0 | U40: 0 | V40: 0 | W40: =IF(I40=0,0,CONCATENATE(VLOOKUP(I40+"00:01",'データ '!K:M,3,TRUE),"/",$W$11)) -> 0
I41: 0 | K41: 0 | L41: 0 | M41: 0 | P41: 29 | Q41: =IF(A41="","",IF($A$13<>A41,"月が異なります！",IF(SUM($I$13:I41)>$S$7,"決定時間数を超過しています！",""))) ->  | R41: 0 | S41: 0 | T41: =SUM($S$13:S41) -> 0 | U41: 0 | V41: 0 | W41: =IF(I41=0,0,CONCATENATE(VLOOKUP(I41+"00:01",'データ '!K:M,3,TRUE),"/",$W$11)) -> 0
I42: 0 | K42: 0 | L42: 0 | M42: 0 | P42: 30 | Q42: =IF(A42="","",IF($A$13<>A42,"月が異なります！",IF(SUM($I$13:I42)>$S$7,"決定時間数を超過しています！",""))) ->  | R42: 0 | S42: 0 | T42: =SUM($S$13:S42) -> 0 | U42: 0 | V42: 0 | W42: =IF(I42=0,0,CONCATENATE(VLOOKUP(I42+"00:01",'データ '!K:M,3,TRUE),"/",$W$11)) -> 0
I43: 0 | K43: 0 | L43: 0 | M43: 0 | P43: 31 | Q43: =IF(A43="","",IF($A$13<>A43,"月が異なります！",IF(SUM($I$13:I43)>$S$7,"決定時間数を超過しています！",""))) ->  | R43: 0 | S43: 0 | T43: =SUM($S$13:S43) -> 0 | U43: 0 | V43: 0 | W43: =IF(I43=0,0,CONCATENATE(VLOOKUP(I43+"00:01",'データ '!K:M,3,TRUE),"/",$W$11)) -> 0
A44: 合計 | I44: =SUM(I13:I43) -> 0 | K44: =SUM(K13:K43) -> 0 | L44: =SUM(L13:L43) -> 0 | M44: =SUM(M13:M43) -> 0 | W44: =IF(I44>=$X$8,$Y$9,IF(AND(I44<$X$8,I44>=$X$7),$Y$8,IF(I44<$X$7,$Y$7)))&$W$11 -> 無

Sheet 15
B1: № | C1: 15
B4: =EOMONTH(B13,0) -> 1900-01-31 | F4: 鎌ケ谷市移動支援サービス提供実績記録票
A5: 登録番号 | D5: =VLOOKUP($C$1,利用者情報!A:U,COLUMN(利用者情報!B3),FALSE) -> 0 | G5: 支給決定障がい者等氏名 （児童氏名） | I5: =VLOOKUP($C$1,利用者情報!A:U,COLUMN(利用者情報!C1),FALSE) -> 0 | L5: 事業所登録番号
L6: =請求事業者!B3 -> 0 | Q6: コメント | S6: 決定時間数
A7: 契約支給量 | D7: 身体介護を 伴う | F7: =IF(VLOOKUP(C1,利用者情報!A:G,5)="有",CONCATENATE(VLOOKUP(C1,利用者情報!A:G,4)&"時間"),"") ->  | G7: 身体介護を 伴わない | I7: =IF(VLOOKUP(C1,利用者情報!A:G,5)<>"有",CONCATENATE(VLOOKUP(C1,利用者情報!A:G,4)&"時間"),"") -> 時間 | J7: 事業所及び その事業所 | L7: =請求事業者!B7 -> 0 | Q7: =利用者情報!J4 ->  | S7: =IF(F7="",I7,F7) -> 時間
A8: 利用者負担の有無 | F8: 利用者の負担割合 | H8: 利用者負担上限額
A9: =VLOOKUP($C$1,利用者情報!A:U,COLUMN(利用者情報!F3),FALSE) -> 0 | F9: =IF(A9="有","1割","0割") -> 0割 | H9: =VLOOKUP($C$1,利用者情報!A:U,COLUMN(利用者情報!G3),FALSE) -> 0 | W9: =請求事業者!C9 -> 5
W10: 便宜上区分
A11: 日付 | D11: 支援計画 | I11: 算定 時間 | J11: 派遣 人数 | K11: 算定額 | L11: 利用者 負担額 | M11: 請求額 | N11: サービス 提供者印 | O11: 利用者 確認印 | Q11: コメント | T11: 利用者負担額 累計 | U11: 上限到達フラグ | V11: 上限達成時の利用者負担額 | W11: =IF(F7="","無","有") -> 無
A12: 月 | B12: 日 | C12: 曜日 | D12: 開始 時間 | E12: 終了 時間 | F12: 計画 時間数 | G12: 開始 時間 | H12: 終了 時間 | R12: 請求額 | S12: 利用者 負担額 | W12: =IF(A9="有","（9割）","") -> 
A13: =IF(B13="","",TEXT(B13,"m")) ->  | C13: =IF(B13="","",B13) ->  | I13: =H13-G13 -> 0 | K13: =IF($H13=0,0,INDEX(単価,MATCH(W13,時間,0),MATCH($W$9,地域区分,0))) -> 0 | L13: =IF(U13=0,S13,V13) -> 0 | M13: =K13-L13 -> 0 | P13: 1 | Q13: =IF(A13="","",IF($A$13<>A13,"月が異なります！",IF(SUM($I$13:I13)>$S$7,"決定時間数を超過しています！",""))) ->  | R13: =IF(I13=0,0,INDEX(単価,MATCH(W13,時間,0),MATCH(IF(W12="",W9,W9&W12),地域区分,0))) -> 0 | S13: =K13-R13 -> 0 | T13: =SUM($S$13:S13) -> 0 | W13: =IF(I13=0,0,CONCATENATE(VLOOKUP(I13+"00:01",'データ '!K:M,3,TRUE),"/",$W$11)) -> 0
A14: =IF(B14="","",TEXT(B14,"m")) ->  | C14: =IF(B14="","",B14) ->  | I14: =H14-G14 -> 0 | K14: =IF($H14=0,0,INDEX(単価,MATCH(W14,時間,0),MATCH($W$9,地域区分,0))) -> 0 | L14: =IF(U14=0,S14,V14) -> 0 | M14: =K14-L14 -> 0 | P14: 2 | Q14: =IF(A14="","",IF($A$13<>A14,"月が異なります！",IF(SUM($I$13:I14)>$S$7,"決定時間数を超過しています！",""))) ->  | R14: =IF(AND($H14=0),0,IF($A$9="有",INDEX(単価,MATCH(W14,時間,0),MATCH($W$9&$W$12,地域区分,0)),INDEX(単価,MATCH(W14,時間,0),MATCH($W$9,地域区分,0)))) -> 0 | S14: =K14-R14 -> 0 | T14: =SUM($S$13:S14) -> 0 | U14: =IF(AND(T13<$H$9,T14>$H$9),1,IF(T14>$H$9,2,0)) -> 0 | V14: =IF(U14=1,$H$9-T13,0) -> 0 | W14: =IF(I14=0,0,CONCATENATE(VLOOKUP(I14+"00:01",'データ '!K:M,3,TRUE),"/",$W$11)) -> 0
I15: 0 | K15: 0 | L15: =IF(U15=0,S15,V15) -> 0 | M15: =K15-L15 -> 0 | P15: 3 | Q15: =IF(A15="","",IF($A$13<>A15,"月が異なります！",IF(SUM($I$13:I15)>$S$7,"決定時間数を超過しています！",""))) ->  | R15: 0 | S15: 0 | T15: =SUM($S$13:S15) -> 0 | U15: =IF(AND(T14<$H$9,T15>$H$9),1,IF(T15>$H$9,2,0)) -> 0 | V15: =IF(U15=1,$H$9-T14,0) -> 0 | W15: =IF(I15=0,0,CONCATENATE(VLOOKUP(I15+"00:01",'データ '!K:M,3,TRUE),"/",$W$11)) -> 0
I16: 0 | K16: 0 | L16: 0 | M16: 0 | P16: 4 | Q16: =IF(A16="","",IF($A$13<>A16,"月が異なります！",IF(SUM($I$13:I16)>$S$7,"決定時間数を超過しています！",""))) ->  | R16: 0 | S16: 0 | T16: =SUM($S$13:S16) -> 0 | U16: 0 | V16: 0 | W16: =IF(I16=0,0,CONCATENATE(VLOOKUP(I16+"00:01",'データ '!K:M,3,TRUE),"/",$W$11)) -> 0
I17: 0 | K17: 0 | L17: 0 | M17: 0 | P17: 5 | Q17: =IF(A17="","",IF($A$13<>A17,"月が異なります！",IF(SUM($I$13:I17)>$S$7,"決定時間数を超過しています！",""))) ->  | R17: 0 | S17: 0 | T17: =SUM($S$13:S17) -> 0 | U17: 0 | V17: 0 | W17: =IF(I17=0,0,CONCATENATE(VLOOKUP(I17+"00:01",'データ '!K:M,3,TRUE),"/",$W$11)) -> 0
I18: 0 | K18: 0 | L18: 0 | M18: 0 | P18: 6 | Q18: =IF(A18="","",IF($A$13<>A18,"月が異なります！",IF(SUM($I$13:I18)>$S$7,"決定時間数を超過しています！",""))) ->  | R18: 0 | S18: 0 | T18: =SUM($S$13:S18) -> 0 | U18: 0 | V18: 0 | W18: =IF(I18=0,0,CONCATENATE(VLOOKUP(I18+"00:01",'データ '!K:M,3,TRUE),"/",$W$11)) -> 0
I19: 0 | K19: 0 | L19: 0 | M19: 0 | P19: 7 | Q19: =IF(A19="","",IF($A$13<>A19,"月が異なります！",IF(SUM($I$13:I19)>$S$7,"決定時間数を超過しています！",""))) ->  | R19: 0 | S19: 0 | T19: =SUM($S$13:S19) -> 0 | U19: 0 | V19: 0 | W19: =IF(I19=0,0,CONCATENATE(VLOOKUP(I19+"00:01",'データ '!K:M,3,TRUE),"/",$W$11)) -> 0
I20: 0 | K20: 0 | L20: 0 | M20: 0 | P20: 8 | Q20: =IF(A20="","",IF($A$13<>A20,"月が異なります！",IF(SUM($I$13:I20)>$S$7,"決定時間数を超過しています！",""))) ->  | R20: 0 | S20: 0 | T20: =SUM($S$13:S20) -> 0 | U20: 0 | V20: 0 | W20: =IF(I20=0,0,CONCATENATE(VLOOKUP(I20+"00:01",'データ '!K:M,3,TRUE),"/",$W$11)) -> 0
I21: 0 | K21: 0 | L21: =IF(U21=0,S21,V21) -> 0 | M21: 0 | P21: 9 | Q21: =IF(A21="","",IF($A$13<>A21,"月が異なります！",IF(SUM($I$13:I21)>$S$7,"決定時間数を超過しています！",""))) ->  | R21: 0 | S21: 0 | T21: =SUM($S$13:S21) -> 0 | U21: 0 | V21: 0 | W21: =IF(I21=0,0,CONCATENATE(VLOOKUP(I21+"00:01",'データ '!K:M,3,TRUE),"/",$W$11)) -> 0
I22: 0 | K22: 0 | L22: =IF(U22=0,S22,V22) -> 0 | M22: 0 | P22: 10 | Q22: =IF(A22="","",IF($A$13<>A22,"月が異なります！",IF(SUM($I$13:I22)>$S$7,"決定時間数を超過しています！",""))) ->  | R22: 0 | S22: =K22-R22 -> 0 | T22: =SUM($S$13:S22) -> 0 | U22: 0 | V22: 0 | W22: =IF(I22=0,0,CONCATENATE(VLOOKUP(I22+"00:01",'データ '!K:M,3,TRUE),"/",$W$11)) -> 0
I23: 0 | K23: 0 | L23: 0 | M23: 0 | P23: 11 | Q23: =IF(A23="","",IF($A$13<>A23,"月が異なります！",IF(SUM($I$13:I23)>$S$7,"決定時間数を超過しています！",""))) ->  | R23: 0 | S23: 0 | T23: =SUM($S$13:S23) -> 0 | U23: 0 | V23: 0 | W23: =IF(I23=0,0,CONCATENATE(VLOOKUP(I23+"00:01",'データ '!K:M,3,TRUE),"/",$W$11)) -> 0
I24: 0 | K24: 0 | L24: 0 | M24: 0 | P24: 12 | Q24: =IF(A24="","",IF($A$13<>A24,"月が異なります！",IF(SUM($I$13:I24)>$S$7,"決定時間数を超過しています！",""))) ->  | R24: 0 | S24: 0 | T24: =SUM($S$13:S24) -> 0 | U24: 0 | V24: 0 | W24: =IF(I24=0,0,CONCATENATE(VLOOKUP(I24+"00:01",'データ '!K:M,3,TRUE),"/",$W$11)) -> 0
I25: 0 | K25: 0 | L25: 0 | M25: 0 | P25: 13 | Q25: =IF(A25="","",IF($A$13<>A25,"月が異なります！",IF(SUM($I$13:I25)>$S$7,"決定時間数を超過しています！",""))) ->  | R25: 0 | S25: 0 | T25: =SUM($S$13:S25) -> 0 | U25: 0 | V25: 0 | W25: =IF(I25=0,0,CONCATENATE(VLOOKUP(I25+"00:01",'データ '!K:M,3,TRUE),"/",$W$11)) -> 0
I26: 0 | K26: 0 | L26: 0 | M26: 0 | P26: 14 | Q26: =IF(A26="","",IF($A$13<>A26,"月が異なります！",IF(SUM($I$13:I26)>$S$7,"決定時間数を超過しています！",""))) ->  | R26: 0 | S26: 0 | T26: =SUM($S$13:S26) -> 0 | U26: 0 | V26: 0 | W26: =IF(I26=0,0,CONCATENATE(VLOOKUP(I26+"00:01",'データ '!K:M,3,TRUE),"/",$W$11)) -> 0
I27: 0 | K27: 0 | L27: 0 | M27: 0 | P27: 15 | Q27: =IF(A27="","",IF($A$13<>A27,"月が異なります！",IF(SUM($I$13:I27)>$S$7,"決定時間数を超過しています！",""))) ->  | R27: 0 | S27: 0 | T27: =SUM($S$13:S27) -> 0 | U27: 0 | V27: 0 | W27: =IF(I27=0,0,CONCATENATE(VLOOKUP(I27+"00:01",'データ '!K:M,3,TRUE),"/",$W$11)) -> 0
I28: 0 | K28: 0 | L28: 0 | M28: 0 | P28: 16 | Q28: =IF(A28="","",IF($A$13<>A28,"月が異なります！",IF(SUM($I$13:I28)>$S$7,"決定時間数を超過しています！",""))) ->  | R28: 0 | S28: 0 | T28: =SUM($S$13:S28) -> 0 | U28: 0 | V28: 0 | W28: =IF(I28=0,0,CONCATENATE(VLOOKUP(I28+"00:01",'データ '!K:M,3,TRUE),"/",$W$11)) -> 0
I29: 0 | K29: 0 | L29: 0 | M29: 0 | P29: 17 | Q29: =IF(A29="","",IF($A$13<>A29,"月が異なります！",IF(SUM($I$13:I29)>$S$7,"決定時間数を超過しています！",""))) ->  | R29: 0 | S29: 0 | T29: =SUM($S$13:S29) -> 0 | U29: 0 | V29: 0 | W29: =IF(I29=0,0,CONCATENATE(VLOOKUP(I29+"00:01",'データ '!K:M,3,TRUE),"/",$W$11)) -> 0
I30: 0 | K30: 0 | L30: 0 | M30: 0 | P30: 18 | Q30: =IF(A30="","",IF($A$13<>A30,"月が異なります！",IF(SUM($I$13:I30)>$S$7,"決定時間数を超過しています！",""))) ->  | R30: 0 | S30: 0 | T30: =SUM($S$13:S30) -> 0 | U30: 0 | V30: 0 | W30: =IF(I30=0,0,CONCATENATE(VLOOKUP(I30+"00:01",'データ '!K:M,3,TRUE),"/",$W$11)) -> 0
I31: 0 | K31: 0 | L31: 0 | M31: 0 | P31: 19 | Q31: =IF(A31="","",IF($A$13<>A31,"月が異なります！",IF(SUM($I$13:I31)>$S$7,"決定時間数を超過しています！",""))) ->  | R31: 0 | S31: 0 | T31: =SUM($S$13:S31) -> 0 | U31: 0 | V31: 0 | W31: =IF(I31=0,0,CONCATENATE(VLOOKUP(I31+"00:01",'データ '!K:M,3,TRUE),"/",$W$11)) -> 0
I32: 0 | K32: 0 | L32: 0 | M32: 0 | P32: 20 | Q32: =IF(A32="","",IF($A$13<>A32,"月が異なります！",IF(SUM($I$13:I32)>$S$7,"決定時間数を超過しています！",""))) ->  | R32: 0 | S32: 0 | T32: =SUM($S$13:S32) -> 0 | U32: 0 | V32: 0 | W32: =IF(I32=0,0,CONCATENATE(VLOOKUP(I32+"00:01",'データ '!K:M,3,TRUE),"/",$W$11)) -> 0
I33: 0 | K33: 0 | L33: 0 | M33: 0 | P33: 21 | Q33: =IF(A33="","",IF($A$13<>A33,"月が異なります！",IF(SUM($I$13:I33)>$S$7,"決定時間数を超過しています！",""))) ->  | R33: 0 | S33: 0 | T33: =SUM($S$13:S33) -> 0 | U33: 0 | V33: 0 | W33: =IF(I33=0,0,CONCATENATE(VLOOKUP(I33+"00:01",'データ '!K:M,3,TRUE),"/",$W$11)) -> 0
I34: 0 | K34: 0 | L34: 0 | M34: 0 | P34: 22 | Q34: =IF(A34="","",IF($A$13<>A34,"月が異なります！",IF(SUM($I$13:I34)>$S$7,"決定時間数を超過しています！",""))) ->  | R34: 0 | S34: 0 | T34: =SUM($S$13:S34) -> 0 | U34: 0 | V34: 0 | W34: =IF(I34=0,0,CONCATENATE(VLOOKUP(I34+"00:01",'データ '!K:M,3,TRUE),"/",$W$11)) -> 0
I35: 0 | K35: 0 | L35: 0 | M35: 0 | P35: 23 | Q35: =IF(A35="","",IF($A$13<>A35,"月が異なります！",IF(SUM($I$13:I35)>$S$7,"決定時間数を超過しています！",""))) ->  | R35: 0 | S35: 0 | T35: =SUM($S$13:S35) -> 0 | U35: 0 | V35: 0 | W35: =IF(I35=0,0,CONCATENATE(VLOOKUP(I35+"00:01",'データ '!K:M,3,TRUE),"/",$W$11)) -> 0
I36: 0 | K36: 0 | L36: 0 | M36: 0 | P36: 24 | Q36: =IF(A36="","",IF($A$13<>A36,"月が異なります！",IF(SUM($I$13:I36)>$S$7,"決定時間数を超過しています！",""))) ->  | R36: 0 | S36: 0 | T36: =SUM($S$13:S36) -> 0 | U36: 0 | V36: 0 | W36: =IF(I36=0,0,CONCATENATE(VLOOKUP(I36+"00:01",'データ '!K:M,3,TRUE),"/",$W$11)) -> 0
I37: 0 | K37: 0 | L37: 0 | M37: 0 | P37: 25 | Q37: =IF(A37="","",IF($A$13<>A37,"月が異なります！",IF(SUM($I$13:I37)>$S$7,"決定時間数を超過しています！",""))) ->  | R37: 0 | S37: 0 | T37: =SUM($S$13:S37) -> 0 | U37: 0 | V37: 0 | W37: =IF(I37=0,0,CONCATENATE(VLOOKUP(I37+"00:01",'データ '!K:M,3,TRUE),"/",$W$11)) -> 0
I38: 0 | K38: 0 | L38: 0 | M38: 0 | P38: 26 | Q38: =IF(A38="","",IF($A$13<>A38,"月が異なります！",IF(SUM($I$13:I38)>$S$7,"決定時間数を超過しています！",""))) ->  | R38: 0 | S38: 0 | T38: =SUM($S$13:S38) -> 0 | U38: 0 | V38: 0 | W38: =IF(I38=0,0,CONCATENATE(VLOOKUP(I38+"00:01",'データ '!K:M,3,TRUE),"/",$W$11)) -> 0
I39: 0 | K39: 0 | L39: 0 | M39: 0 | P39: 27 | Q39: =IF(A39="","",IF($A$13<>A39,"月が異なります！",IF(SUM($I$13:I39)>$S$7,"決定時間数を超過しています！",""))) ->  | R39: 0 | S39: 0 | T39: =SUM($S$13:S39) -> 0 | U39: 0 | V39: 0 | W39: =IF(I39=0,0,CONCATENATE(VLOOKUP(I39+"00:01",'データ '!K:M,3,TRUE),"/",$W$11)) -> 0
I40: 0 | K40: 0 | L40: 0 | M40: 0 | P40: 28 | Q40: =IF(A40="","",IF($A$13<>A40,"月が異なります！",IF(SUM($I$13:I40)>$S$7,"決定時間数を超過しています！",""))) ->  | R40: 0 | S40: 0 | T40: =SUM($S$13:S40) -> 0 | U40: 0 | V40: 0 | W40: =IF(I40=0,0,CONCATENATE(VLOOKUP(I40+"00:01",'データ '!K:M,3,TRUE),"/",$W$11)) -> 0
I41: 0 | K41: 0 | L41: 0 | M41: 0 | P41: 29 | Q41: =IF(A41="","",IF($A$13<>A41,"月が異なります！",IF(SUM($I$13:I41)>$S$7,"決定時間数を超過しています！",""))) ->  | R41: 0 | S41: 0 | T41: =SUM($S$13:S41) -> 0 | U41: 0 | V41: 0 | W41: =IF(I41=0,0,CONCATENATE(VLOOKUP(I41+"00:01",'データ '!K:M,3,TRUE),"/",$W$11)) -> 0
I42: 0 | K42: 0 | L42: 0 | M42: 0 | P42: 30 | Q42: =IF(A42="","",IF($A$13<>A42,"月が異なります！",IF(SUM($I$13:I42)>$S$7,"決定時間数を超過しています！",""))) ->  | R42: 0 | S42: 0 | T42: =SUM($S$13:S42) -> 0 | U42: 0 | V42: 0 | W42: =IF(I42=0,0,CONCATENATE(VLOOKUP(I42+"00:01",'データ '!K:M,3,TRUE),"/",$W$11)) -> 0
I43: 0 | K43: 0 | L43: 0 | M43: 0 | P43: 31 | Q43: =IF(A43="","",IF($A$13<>A43,"月が異なります！",IF(SUM($I$13:I43)>$S$7,"決定時間数を超過しています！",""))) ->  | R43: 0 | S43: 0 | T43: =SUM($S$13:S43) -> 0 | U43: 0 | V43: 0 | W43: =IF(I43=0,0,CONCATENATE(VLOOKUP(I43+"00:01",'データ '!K:M,3,TRUE),"/",$W$11)) -> 0
A44: 合計 | I44: =SUM(I13:I43) -> 0 | K44: =SUM(K13:K43) -> 0 | L44: =SUM(L13:L43) -> 0 | M44: =SUM(M13:M43) -> 0 | W44: =IF(I44>=$X$8,$Y$9,IF(AND(I44<$X$8,I44>=$X$7),$Y$8,IF(I44<$X$7,$Y$7)))&$W$11 -> 無

Sheet 16
B1: № | C1: 16
B4: =EOMONTH(B13,0) -> 1900-01-31 | F4: 鎌ケ谷市移動支援サービス提供実績記録票
A5: 登録番号 | D5: =VLOOKUP($C$1,利用者情報!A:U,COLUMN(利用者情報!B3),FALSE) -> 0 | G5: 支給決定障がい者等氏名 （児童氏名） | I5: =VLOOKUP($C$1,利用者情報!A:U,COLUMN(利用者情報!C1),FALSE) -> 0 | L5: 事業所登録番号
L6: =請求事業者!B3 -> 0 | Q6: コメント | S6: 決定時間数
A7: 契約支給量 | D7: 身体介護を 伴う | F7: =IF(VLOOKUP(C1,利用者情報!A:G,5)="有",CONCATENATE(VLOOKUP(C1,利用者情報!A:G,4)&"時間"),"") ->  | G7: 身体介護を 伴わない | I7: =IF(VLOOKUP(C1,利用者情報!A:G,5)<>"有",CONCATENATE(VLOOKUP(C1,利用者情報!A:G,4)&"時間"),"") -> 時間 | J7: 事業所及び その事業所 | L7: =請求事業者!B7 -> 0 | Q7: =利用者情報!J4 ->  | S7: =IF(F7="",I7,F7) -> 時間
A8: 利用者負担の有無 | F8: 利用者の負担割合 | H8: 利用者負担上限額
A9: =VLOOKUP($C$1,利用者情報!A:U,COLUMN(利用者情報!F3),FALSE) -> 0 | F9: =IF(A9="有","1割","0割") -> 0割 | H9: =VLOOKUP($C$1,利用者情報!A:U,COLUMN(利用者情報!G3),FALSE) -> 0 | W9: =請求事業者!C9 -> 5
W10: 便宜上区分
A11: 日付 | D11: 支援計画 | I11: 算定 時間 | J11: 派遣 人数 | K11: 算定額 | L11: 利用者 負担額 | M11: 請求額 | N11: サービス 提供者印 | O11: 利用者 確認印 | Q11: コメント | T11: 利用者負担額 累計 | U11: 上限到達フラグ | V11: 上限達成時の利用者負担額 | W11: =IF(F7="","無","有") -> 無
A12: 月 | B12: 日 | C12: 曜日 | D12: 開始 時間 | E12: 終了 時間 | F12: 計画 時間数 | G12: 開始 時間 | H12: 終了 時間 | R12: 請求額 | S12: 利用者 負担額 | W12: =IF(A9="有","（9割）","") -> 
A13: =IF(B13="","",TEXT(B13,"m")) ->  | C13: =IF(B13="","",B13) ->  | I13: =H13-G13 -> 0 | K13: =IF($H13=0,0,INDEX(単価,MATCH(W13,時間,0),MATCH($W$9,地域区分,0))) -> 0 | L13: =IF(U13=0,S13,V13) -> 0 | M13: =K13-L13 -> 0 | P13: 1 | Q13: =IF(A13="","",IF($A$13<>A13,"月が異なります！",IF(SUM($I$13:I13)>$S$7,"決定時間数を超過しています！",""))) ->  | R13: =IF(I13=0,0,INDEX(単価,MATCH(W13,時間,0),MATCH(IF(W12="",W9,W9&W12),地域区分,0))) -> 0 | S13: =K13-R13 -> 0 | T13: =SUM($S$13:S13) -> 0 | W13: =IF(I13=0,0,CONCATENATE(VLOOKUP(I13+"00:01",'データ '!K:M,3,TRUE),"/",$W$11)) -> 0
A14: =IF(B14="","",TEXT(B14,"m")) ->  | C14: =IF(B14="","",B14) ->  | I14: =H14-G14 -> 0 | K14: =IF($H14=0,0,INDEX(単価,MATCH(W14,時間,0),MATCH($W$9,地域区分,0))) -> 0 | L14: =IF(U14=0,S14,V14) -> 0 | M14: =K14-L14 -> 0 | P14: 2 | Q14: =IF(A14="","",IF($A$13<>A14,"月が異なります！",IF(SUM($I$13:I14)>$S$7,"決定時間数を超過しています！",""))) ->  | R14: =IF(AND($H14=0),0,IF($A$9="有",INDEX(単価,MATCH(W14,時間,0),MATCH($W$9&$W$12,地域区分,0)),INDEX(単価,MATCH(W14,時間,0),MATCH($W$9,地域区分,0)))) -> 0 | S14: =K14-R14 -> 0 | T14: =SUM($S$13:S14) -> 0 | U14: =IF(AND(T13<$H$9,T14>$H$9),1,IF(T14>$H$9,2,0)) -> 0 | V14: =IF(U14=1,$H$9-T13,0) -> 0 | W14: =IF(I14=0,0,CONCATENATE(VLOOKUP(I14+"00:01",'データ '!K:M,3,TRUE),"/",$W$11)) -> 0
I15: 0 | K15: 0 | L15: =IF(U15=0,S15,V15) -> 0 | M15: =K15-L15 -> 0 | P15: 3 | Q15: =IF(A15="","",IF($A$13<>A15,"月が異なります！",IF(SUM($I$13:I15)>$S$7,"決定時間数を超過しています！",""))) ->  | R15: 0 | S15: 0 | T15: =SUM($S$13:S15) -> 0 | U15: =IF(AND(T14<$H$9,T15>$H$9),1,IF(T15>$H$9,2,0)) -> 0 | V15: =IF(U15=1,$H$9-T14,0) -> 0 | W15: =IF(I15=0,0,CONCATENATE(VLOOKUP(I15+"00:01",'データ '!K:M,3,TRUE),"/",$W$11)) -> 0
I16: 0 | K16: 0 | L16: 0 | M16: 0 | P16: 4 | Q16: =IF(A16="","",IF($A$13<>A16,"月が異なります！",IF(SUM($I$13:I16)>$S$7,"決定時間数を超過しています！",""))) ->  | R16: 0 | S16: 0 | T16: =SUM($S$13:S16) -> 0 | U16: 0 | V16: 0 | W16: =IF(I16=0,0,CONCATENATE(VLOOKUP(I16+"00:01",'データ '!K:M,3,TRUE),"/",$W$11)) -> 0
I17: 0 | K17: 0 | L17: 0 | M17: 0 | P17: 5 | Q17: =IF(A17="","",IF($A$13<>A17,"月が異なります！",IF(SUM($I$13:I17)>$S$7,"決定時間数を超過しています！",""))) ->  | R17: 0 | S17: 0 | T17: =SUM($S$13:S17) -> 0 | U17: 0 | V17: 0 | W17: =IF(I17=0,0,CONCATENATE(VLOOKUP(I17+"00:01",'データ '!K:M,3,TRUE),"/",$W$11)) -> 0
I18: 0 | K18: 0 | L18: 0 | M18: 0 | P18: 6 | Q18: =IF(A18="","",IF($A$13<>A18,"月が異なります！",IF(SUM($I$13:I18)>$S$7,"決定時間数を超過しています！",""))) ->  | R18: 0 | S18: 0 | T18: =SUM($S$13:S18) -> 0 | U18: 0 | V18: 0 | W18: =IF(I18=0,0,CONCATENATE(VLOOKUP(I18+"00:01",'データ '!K:M,3,TRUE),"/",$W$11)) -> 0
I19: 0 | K19: 0 | L19: 0 | M19: 0 | P19: 7 | Q19: =IF(A19="","",IF($A$13<>A19,"月が異なります！",IF(SUM($I$13:I19)>$S$7,"決定時間数を超過しています！",""))) ->  | R19: 0 | S19: 0 | T19: =SUM($S$13:S19) -> 0 | U19: 0 | V19: 0 | W19: =IF(I19=0,0,CONCATENATE(VLOOKUP(I19+"00:01",'データ '!K:M,3,TRUE),"/",$W$11)) -> 0
I20: 0 | K20: 0 | L20: 0 | M20: 0 | P20: 8 | Q20: =IF(A20="","",IF($A$13<>A20,"月が異なります！",IF(SUM($I$13:I20)>$S$7,"決定時間数を超過しています！",""))) ->  | R20: 0 | S20: 0 | T20: =SUM($S$13:S20) -> 0 | U20: 0 | V20: 0 | W20: =IF(I20=0,0,CONCATENATE(VLOOKUP(I20+"00:01",'データ '!K:M,3,TRUE),"/",$W$11)) -> 0
I21: 0 | K21: 0 | L21: =IF(U21=0,S21,V21) -> 0 | M21: 0 | P21: 9 | Q21: =IF(A21="","",IF($A$13<>A21,"月が異なります！",IF(SUM($I$13:I21)>$S$7,"決定時間数を超過しています！",""))) ->  | R21: 0 | S21: 0 | T21: =SUM($S$13:S21) -> 0 | U21: 0 | V21: 0 | W21: =IF(I21=0,0,CONCATENATE(VLOOKUP(I21+"00:01",'データ '!K:M,3,TRUE),"/",$W$11)) -> 0
I22: 0 | K22: 0 | L22: =IF(U22=0,S22,V22) -> 0 | M22: 0 | P22: 10 | Q22: =IF(A22="","",IF($A$13<>A22,"月が異なります！",IF(SUM($I$13:I22)>$S$7,"決定時間数を超過しています！",""))) ->  | R22: 0 | S22: =K22-R22 -> 0 | T22: =SUM($S$13:S22) -> 0 | U22: 0 | V22: 0 | W22: =IF(I22=0,0,CONCATENATE(VLOOKUP(I22+"00:01",'データ '!K:M,3,TRUE),"/",$W$11)) -> 0
I23: 0 | K23: 0 | L23: 0 | M23: 0 | P23: 11 | Q23: =IF(A23="","",IF($A$13<>A23,"月が異なります！",IF(SUM($I$13:I23)>$S$7,"決定時間数を超過しています！",""))) ->  | R23: 0 | S23: 0 | T23: =SUM($S$13:S23) -> 0 | U23: 0 | V23: 0 | W23: =IF(I23=0,0,CONCATENATE(VLOOKUP(I23+"00:01",'データ '!K:M,3,TRUE),"/",$W$11)) -> 0
I24: 0 | K24: 0 | L24: 0 | M24: 0 | P24: 12 | Q24: =IF(A24="","",IF($A$13<>A24,"月が異なります！",IF(SUM($I$13:I24)>$S$7,"決定時間数を超過しています！",""))) ->  | R24: 0 | S24: 0 | T24: =SUM($S$13:S24) -> 0 | U24: 0 | V24: 0 | W24: =IF(I24=0,0,CONCATENATE(VLOOKUP(I24+"00:01",'データ '!K:M,3,TRUE),"/",$W$11)) -> 0
I25: 0 | K25: 0 | L25: 0 | M25: 0 | P25: 13 | Q25: =IF(A25="","",IF($A$13<>A25,"月が異なります！",IF(SUM($I$13:I25)>$S$7,"決定時間数を超過しています！",""))) ->  | R25: 0 | S25: 0 | T25: =SUM($S$13:S25) -> 0 | U25: 0 | V25: 0 | W25: =IF(I25=0,0,CONCATENATE(VLOOKUP(I25+"00:01",'データ '!K:M,3,TRUE),"/",$W$11)) -> 0
I26: 0 | K26: 0 | L26: 0 | M26: 0 | P26: 14 | Q26: =IF(A26="","",IF($A$13<>A26,"月が異なります！",IF(SUM($I$13:I26)>$S$7,"決定時間数を超過しています！",""))) ->  | R26: 0 | S26: 0 | T26: =SUM($S$13:S26) -> 0 | U26: 0 | V26: 0 | W26: =IF(I26=0,0,CONCATENATE(VLOOKUP(I26+"00:01",'データ '!K:M,3,TRUE),"/",$W$11)) -> 0
I27: 0 | K27: 0 | L27: 0 | M27: 0 | P27: 15 | Q27: =IF(A27="","",IF($A$13<>A27,"月が異なります！",IF(SUM($I$13:I27)>$S$7,"決定時間数を超過しています！",""))) ->  | R27: 0 | S27: 0 | T27: =SUM($S$13:S27) -> 0 | U27: 0 | V27: 0 | W27: =IF(I27=0,0,CONCATENATE(VLOOKUP(I27+"00:01",'データ '!K:M,3,TRUE),"/",$W$11)) -> 0
I28: 0 | K28: 0 | L28: 0 | M28: 0 | P28: 16 | Q28: =IF(A28="","",IF($A$13<>A28,"月が異なります！",IF(SUM($I$13:I28)>$S$7,"決定時間数を超過しています！",""))) ->  | R28: 0 | S28: 0 | T28: =SUM($S$13:S28) -> 0 | U28: 0 | V28: 0 | W28: =IF(I28=0,0,CONCATENATE(VLOOKUP(I28+"00:01",'データ '!K:M,3,TRUE),"/",$W$11)) -> 0
I29: 0 | K29: 0 | L29: 0 | M29: 0 | P29: 17 | Q29: =IF(A29="","",IF($A$13<>A29,"月が異なります！",IF(SUM($I$13:I29)>$S$7,"決定時間数を超過しています！",""))) ->  | R29: 0 | S29: 0 | T29: =SUM($S$13:S29) -> 0 | U29: 0 | V29: 0 | W29: =IF(I29=0,0,CONCATENATE(VLOOKUP(I29+"00:01",'データ '!K:M,3,TRUE),"/",$W$11)) -> 0
I30: 0 | K30: 0 | L30: 0 | M30: 0 | P30: 18 | Q30: =IF(A30="","",IF($A$13<>A30,"月が異なります！",IF(SUM($I$13:I30)>$S$7,"決定時間数を超過しています！",""))) ->  | R30: 0 | S30: 0 | T30: =SUM($S$13:S30) -> 0 | U30: 0 | V30: 0 | W30: =IF(I30=0,0,CONCATENATE(VLOOKUP(I30+"00:01",'データ '!K:M,3,TRUE),"/",$W$11)) -> 0
I31: 0 | K31: 0 | L31: 0 | M31: 0 | P31: 19 | Q31: =IF(A31="","",IF($A$13<>A31,"月が異なります！",IF(SUM($I$13:I31)>$S$7,"決定時間数を超過しています！",""))) ->  | R31: 0 | S31: 0 | T31: =SUM($S$13:S31) -> 0 | U31: 0 | V31: 0 | W31: =IF(I31=0,0,CONCATENATE(VLOOKUP(I31+"00:01",'データ '!K:M,3,TRUE),"/",$W$11)) -> 0
I32: 0 | K32: 0 | L32: 0 | M32: 0 | P32: 20 | Q32: =IF(A32="","",IF($A$13<>A32,"月が異なります！",IF(SUM($I$13:I32)>$S$7,"決定時間数を超過しています！",""))) ->  | R32: 0 | S32: 0 | T32: =SUM($S$13:S32) -> 0 | U32: 0 | V32: 0 | W32: =IF(I32=0,0,CONCATENATE(VLOOKUP(I32+"00:01",'データ '!K:M,3,TRUE),"/",$W$11)) -> 0
I33: 0 | K33: 0 | L33: 0 | M33: 0 | P33: 21 | Q33: =IF(A33="","",IF($A$13<>A33,"月が異なります！",IF(SUM($I$13:I33)>$S$7,"決定時間数を超過しています！",""))) ->  | R33: 0 | S33: 0 | T33: =SUM($S$13:S33) -> 0 | U33: 0 | V33: 0 | W33: =IF(I33=0,0,CONCATENATE(VLOOKUP(I33+"00:01",'データ '!K:M,3,TRUE),"/",$W$11)) -> 0
I34: 0 | K34: 0 | L34: 0 | M34: 0 | P34: 22 | Q34: =IF(A34="","",IF($A$13<>A34,"月が異なります！",IF(SUM($I$13:I34)>$S$7,"決定時間数を超過しています！",""))) ->  | R34: 0 | S34: 0 | T34: =SUM($S$13:S34) -> 0 | U34: 0 | V34: 0 | W34: =IF(I34=0,0,CONCATENATE(VLOOKUP(I34+"00:01",'データ '!K:M,3,TRUE),"/",$W$11)) -> 0
I35: 0 | K35: 0 | L35: 0 | M35: 0 | P35: 23 | Q35: =IF(A35="","",IF($A$13<>A35,"月が異なります！",IF(SUM($I$13:I35)>$S$7,"決定時間数を超過しています！",""))) ->  | R35: 0 | S35: 0 | T35: =SUM($S$13:S35) -> 0 | U35: 0 | V35: 0 | W35: =IF(I35=0,0,CONCATENATE(VLOOKUP(I35+"00:01",'データ '!K:M,3,TRUE),"/",$W$11)) -> 0
I36: 0 | K36: 0 | L36: 0 | M36: 0 | P36: 24 | Q36: =IF(A36="","",IF($A$13<>A36,"月が異なります！",IF(SUM($I$13:I36)>$S$7,"決定時間数を超過しています！",""))) ->  | R36: 0 | S36: 0 | T36: =SUM($S$13:S36) -> 0 | U36: 0 | V36: 0 | W36: =IF(I36=0,0,CONCATENATE(VLOOKUP(I36+"00:01",'データ '!K:M,3,TRUE),"/",$W$11)) -> 0
I37: 0 | K37: 0 | L37: 0 | M37: 0 | P37: 25 | Q37: =IF(A37="","",IF($A$13<>A37,"月が異なります！",IF(SUM($I$13:I37)>$S$7,"決定時間数を超過しています！",""))) ->  | R37: 0 | S37: 0 | T37: =SUM($S$13:S37) -> 0 | U37: 0 | V37: 0 | W37: =IF(I37=0,0,CONCATENATE(VLOOKUP(I37+"00:01",'データ '!K:M,3,TRUE),"/",$W$11)) -> 0
I38: 0 | K38: 0 | L38: 0 | M38: 0 | P38: 26 | Q38: =IF(A38="","",IF($A$13<>A38,"月が異なります！",IF(SUM($I$13:I38)>$S$7,"決定時間数を超過しています！",""))) ->  | R38: 0 | S38: 0 | T38: =SUM($S$13:S38) -> 0 | U38: 0 | V38: 0 | W38: =IF(I38=0,0,CONCATENATE(VLOOKUP(I38+"00:01",'データ '!K:M,3,TRUE),"/",$W$11)) -> 0
I39: 0 | K39: 0 | L39: 0 | M39: 0 | P39: 27 | Q39: =IF(A39="","",IF($A$13<>A39,"月が異なります！",IF(SUM($I$13:I39)>$S$7,"決定時間数を超過しています！",""))) ->  | R39: 0 | S39: 0 | T39: =SUM($S$13:S39) -> 0 | U39: 0 | V39: 0 | W39: =IF(I39=0,0,CONCATENATE(VLOOKUP(I39+"00:01",'データ '!K:M,3,TRUE),"/",$W$11)) -> 0
I40: 0 | K40: 0 | L40: 0 | M40: 0 | P40: 28 | Q40: =IF(A40="","",IF($A$13<>A40,"月が異なります！",IF(SUM($I$13:I40)>$S$7,"決定時間数を超過しています！",""))) ->  | R40: 0 | S40: 0 | T40: =SUM($S$13:S40) -> 0 | U40: 0 | V40: 0 | W40: =IF(I40=0,0,CONCATENATE(VLOOKUP(I40+"00:01",'データ '!K:M,3,TRUE),"/",$W$11)) -> 0
I41: 0 | K41: 0 | L41: 0 | M41: 0 | P41: 29 | Q41: =IF(A41="","",IF($A$13<>A41,"月が異なります！",IF(SUM($I$13:I41)>$S$7,"決定時間数を超過しています！",""))) ->  | R41: 0 | S41: 0 | T41: =SUM($S$13:S41) -> 0 | U41: 0 | V41: 0 | W41: =IF(I41=0,0,CONCATENATE(VLOOKUP(I41+"00:01",'データ '!K:M,3,TRUE),"/",$W$11)) -> 0
I42: 0 | K42: 0 | L42: 0 | M42: 0 | P42: 30 | Q42: =IF(A42="","",IF($A$13<>A42,"月が異なります！",IF(SUM($I$13:I42)>$S$7,"決定時間数を超過しています！",""))) ->  | R42: 0 | S42: 0 | T42: =SUM($S$13:S42) -> 0 | U42: 0 | V42: 0 | W42: =IF(I42=0,0,CONCATENATE(VLOOKUP(I42+"00:01",'データ '!K:M,3,TRUE),"/",$W$11)) -> 0
I43: 0 | K43: 0 | L43: 0 | M43: 0 | P43: 31 | Q43: =IF(A43="","",IF($A$13<>A43,"月が異なります！",IF(SUM($I$13:I43)>$S$7,"決定時間数を超過しています！",""))) ->  | R43: 0 | S43: 0 | T43: =SUM($S$13:S43) -> 0 | U43: 0 | V43: 0 | W43: =IF(I43=0,0,CONCATENATE(VLOOKUP(I43+"00:01",'データ '!K:M,3,TRUE),"/",$W$11)) -> 0
A44: 合計 | I44: =SUM(I13:I43) -> 0 | K44: =SUM(K13:K43) -> 0 | L44: =SUM(L13:L43) -> 0 | M44: =SUM(M13:M43) -> 0 | W44: =IF(I44>=$X$8,$Y$9,IF(AND(I44<$X$8,I44>=$X$7),$Y$8,IF(I44<$X$7,$Y$7)))&$W$11 -> 無

Sheet 17
B1: № | C1: 17
B4: =EOMONTH(B13,0) -> 1900-01-31 | F4: 鎌ケ谷市移動支援サービス提供実績記録票
A5: 登録番号 | D5: =VLOOKUP($C$1,利用者情報!A:U,COLUMN(利用者情報!B3),FALSE) -> 0 | G5: 支給決定障がい者等氏名 （児童氏名） | I5: =VLOOKUP($C$1,利用者情報!A:U,COLUMN(利用者情報!C1),FALSE) -> 0 | L5: 事業所登録番号
L6: =請求事業者!B3 -> 0 | Q6: コメント | S6: 決定時間数
A7: 契約支給量 | D7: 身体介護を 伴う | F7: =IF(VLOOKUP(C1,利用者情報!A:G,5)="有",CONCATENATE(VLOOKUP(C1,利用者情報!A:G,4)&"時間"),"") ->  | G7: 身体介護を 伴わない | I7: =IF(VLOOKUP(C1,利用者情報!A:G,5)<>"有",CONCATENATE(VLOOKUP(C1,利用者情報!A:G,4)&"時間"),"") -> 時間 | J7: 事業所及び その事業所 | L7: =請求事業者!B7 -> 0 | Q7: =利用者情報!J4 ->  | S7: =IF(F7="",I7,F7) -> 時間
A8: 利用者負担の有無 | F8: 利用者の負担割合 | H8: 利用者負担上限額
A9: =VLOOKUP($C$1,利用者情報!A:U,COLUMN(利用者情報!F3),FALSE) -> 0 | F9: =IF(A9="有","1割","0割") -> 0割 | H9: =VLOOKUP($C$1,利用者情報!A:U,COLUMN(利用者情報!G3),FALSE) -> 0 | W9: =請求事業者!C9 -> 5
W10: 便宜上区分
A11: 日付 | D11: 支援計画 | I11: 算定 時間 | J11: 派遣 人数 | K11: 算定額 | L11: 利用者 負担額 | M11: 請求額 | N11: サービス 提供者印 | O11: 利用者 確認印 | Q11: コメント | T11: 利用者負担額 累計 | U11: 上限到達フラグ | V11: 上限達成時の利用者負担額 | W11: =IF(F7="","無","有") -> 無
A12: 月 | B12: 日 | C12: 曜日 | D12: 開始 時間 | E12: 終了 時間 | F12: 計画 時間数 | G12: 開始 時間 | H12: 終了 時間 | R12: 請求額 | S12: 利用者 負担額 | W12: =IF(A9="有","（9割）","") -> 
A13: =IF(B13="","",TEXT(B13,"m")) ->  | C13: =IF(B13="","",B13) ->  | I13: =H13-G13 -> 0 | K13: =IF($H13=0,0,INDEX(単価,MATCH(W13,時間,0),MATCH($W$9,地域区分,0))) -> 0 | L13: =IF(U13=0,S13,V13) -> 0 | M13: =K13-L13 -> 0 | P13: 1 | Q13: =IF(A13="","",IF($A$13<>A13,"月が異なります！",IF(SUM($I$13:I13)>$S$7,"決定時間数を超過しています！",""))) ->  | R13: =IF(I13=0,0,INDEX(単価,MATCH(W13,時間,0),MATCH(IF(W12="",W9,W9&W12),地域区分,0))) -> 0 | S13: =K13-R13 -> 0 | T13: =SUM($S$13:S13) -> 0 | W13: =IF(I13=0,0,CONCATENATE(VLOOKUP(I13+"00:01",'データ '!K:M,3,TRUE),"/",$W$11)) -> 0
A14: =IF(B14="","",TEXT(B14,"m")) ->  | C14: =IF(B14="","",B14) ->  | I14: =H14-G14 -> 0 | K14: =IF($H14=0,0,INDEX(単価,MATCH(W14,時間,0),MATCH($W$9,地域区分,0))) -> 0 | L14: =IF(U14=0,S14,V14) -> 0 | M14: =K14-L14 -> 0 | P14: 2 | Q14: =IF(A14="","",IF($A$13<>A14,"月が異なります！",IF(SUM($I$13:I14)>$S$7,"決定時間数を超過しています！",""))) ->  | R14: =IF(AND($H14=0),0,IF($A$9="有",INDEX(単価,MATCH(W14,時間,0),MATCH($W$9&$W$12,地域区分,0)),INDEX(単価,MATCH(W14,時間,0),MATCH($W$9,地域区分,0)))) -> 0 | S14: =K14-R14 -> 0 | T14: =SUM($S$13:S14) -> 0 | U14: =IF(AND(T13<$H$9,T14>$H$9),1,IF(T14>$H$9,2,0)) -> 0 | V14: =IF(U14=1,$H$9-T13,0) -> 0 | W14: =IF(I14=0,0,CONCATENATE(VLOOKUP(I14+"00:01",'データ '!K:M,3,TRUE),"/",$W$11)) -> 0
I15: 0 | K15: 0 | L15: =IF(U15=0,S15,V15) -> 0 | M15: =K15-L15 -> 0 | P15: 3 | Q15: =IF(A15="","",IF($A$13<>A15,"月が異なります！",IF(SUM($I$13:I15)>$S$7,"決定時間数を超過しています！",""))) ->  | R15: 0 | S15: 0 | T15: =SUM($S$13:S15) -> 0 | U15: =IF(AND(T14<$H$9,T15>$H$9),1,IF(T15>$H$9,2,0)) -> 0 | V15: =IF(U15=1,$H$9-T14,0) -> 0 | W15: =IF(I15=0,0,CONCATENATE(VLOOKUP(I15+"00:01",'データ '!K:M,3,TRUE),"/",$W$11)) -> 0
I16: 0 | K16: 0 | L16: 0 | M16: 0 | P16: 4 | Q16: =IF(A16="","",IF($A$13<>A16,"月が異なります！",IF(SUM($I$13:I16)>$S$7,"決定時間数を超過しています！",""))) ->  | R16: 0 | S16: 0 | T16: =SUM($S$13:S16) -> 0 | U16: 0 | V16: 0 | W16: =IF(I16=0,0,CONCATENATE(VLOOKUP(I16+"00:01",'データ '!K:M,3,TRUE),"/",$W$11)) -> 0
I17: 0 | K17: 0 | L17: 0 | M17: 0 | P17: 5 | Q17: =IF(A17="","",IF($A$13<>A17,"月が異なります！",IF(SUM($I$13:I17)>$S$7,"決定時間数を超過しています！",""))) ->  | R17: 0 | S17: 0 | T17: =SUM($S$13:S17) -> 0 | U17: 0 | V17: 0 | W17: =IF(I17=0,0,CONCATENATE(VLOOKUP(I17+"00:01",'データ '!K:M,3,TRUE),"/",$W$11)) -> 0
I18: 0 | K18: 0 | L18: 0 | M18: 0 | P18: 6 | Q18: =IF(A18="","",IF($A$13<>A18,"月が異なります！",IF(SUM($I$13:I18)>$S$7,"決定時間数を超過しています！",""))) ->  | R18: 0 | S18: 0 | T18: =SUM($S$13:S18) -> 0 | U18: 0 | V18: 0 | W18: =IF(I18=0,0,CONCATENATE(VLOOKUP(I18+"00:01",'データ '!K:M,3,TRUE),"/",$W$11)) -> 0
I19: 0 | K19: 0 | L19: 0 | M19: 0 | P19: 7 | Q19: =IF(A19="","",IF($A$13<>A19,"月が異なります！",IF(SUM($I$13:I19)>$S$7,"決定時間数を超過しています！",""))) ->  | R19: 0 | S19: 0 | T19: =SUM($S$13:S19) -> 0 | U19: 0 | V19: 0 | W19: =IF(I19=0,0,CONCATENATE(VLOOKUP(I19+"00:01",'データ '!K:M,3,TRUE),"/",$W$11)) -> 0
I20: 0 | K20: 0 | L20: 0 | M20: 0 | P20: 8 | Q20: =IF(A20="","",IF($A$13<>A20,"月が異なります！",IF(SUM($I$13:I20)>$S$7,"決定時間数を超過しています！",""))) ->  | R20: 0 | S20: 0 | T20: =SUM($S$13:S20) -> 0 | U20: 0 | V20: 0 | W20: =IF(I20=0,0,CONCATENATE(VLOOKUP(I20+"00:01",'データ '!K:M,3,TRUE),"/",$W$11)) -> 0
I21: 0 | K21: 0 | L21: =IF(U21=0,S21,V21) -> 0 | M21: 0 | P21: 9 | Q21: =IF(A21="","",IF($A$13<>A21,"月が異なります！",IF(SUM($I$13:I21)>$S$7,"決定時間数を超過しています！",""))) ->  | R21: 0 | S21: 0 | T21: =SUM($S$13:S21) -> 0 | U21: 0 | V21: 0 | W21: =IF(I21=0,0,CONCATENATE(VLOOKUP(I21+"00:01",'データ '!K:M,3,TRUE),"/",$W$11)) -> 0
I22: 0 | K22: 0 | L22: =IF(U22=0,S22,V22) -> 0 | M22: 0 | P22: 10 | Q22: =IF(A22="","",IF($A$13<>A22,"月が異なります！",IF(SUM($I$13:I22)>$S$7,"決定時間数を超過しています！",""))) ->  | R22: 0 | S22: =K22-R22 -> 0 | T22: =SUM($S$13:S22) -> 0 | U22: 0 | V22: 0 | W22: =IF(I22=0,0,CONCATENATE(VLOOKUP(I22+"00:01",'データ '!K:M,3,TRUE),"/",$W$11)) -> 0
I23: 0 | K23: 0 | L23: 0 | M23: 0 | P23: 11 | Q23: =IF(A23="","",IF($A$13<>A23,"月が異なります！",IF(SUM($I$13:I23)>$S$7,"決定時間数を超過しています！",""))) ->  | R23: 0 | S23: 0 | T23: =SUM($S$13:S23) -> 0 | U23: 0 | V23: 0 | W23: =IF(I23=0,0,CONCATENATE(VLOOKUP(I23+"00:01",'データ '!K:M,3,TRUE),"/",$W$11)) -> 0
I24: 0 | K24: 0 | L24: 0 | M24: 0 | P24: 12 | Q24: =IF(A24="","",IF($A$13<>A24,"月が異なります！",IF(SUM($I$13:I24)>$S$7,"決定時間数を超過しています！",""))) ->  | R24: 0 | S24: 0 | T24: =SUM($S$13:S24) -> 0 | U24: 0 | V24: 0 | W24: =IF(I24=0,0,CONCATENATE(VLOOKUP(I24+"00:01",'データ '!K:M,3,TRUE),"/",$W$11)) -> 0
I25: 0 | K25: 0 | L25: 0 | M25: 0 | P25: 13 | Q25: =IF(A25="","",IF($A$13<>A25,"月が異なります！",IF(SUM($I$13:I25)>$S$7,"決定時間数を超過しています！",""))) ->  | R25: 0 | S25: 0 | T25: =SUM($S$13:S25) -> 0 | U25: 0 | V25: 0 | W25: =IF(I25=0,0,CONCATENATE(VLOOKUP(I25+"00:01",'データ '!K:M,3,TRUE),"/",$W$11)) -> 0
I26: 0 | K26: 0 | L26: 0 | M26: 0 | P26: 14 | Q26: =IF(A26="","",IF($A$13<>A26,"月が異なります！",IF(SUM($I$13:I26)>$S$7,"決定時間数を超過しています！",""))) ->  | R26: 0 | S26: 0 | T26: =SUM($S$13:S26) -> 0 | U26: 0 | V26: 0 | W26: =IF(I26=0,0,CONCATENATE(VLOOKUP(I26+"00:01",'データ '!K:M,3,TRUE),"/",$W$11)) -> 0
I27: 0 | K27: 0 | L27: 0 | M27: 0 | P27: 15 | Q27: =IF(A27="","",IF($A$13<>A27,"月が異なります！",IF(SUM($I$13:I27)>$S$7,"決定時間数を超過しています！",""))) ->  | R27: 0 | S27: 0 | T27: =SUM($S$13:S27) -> 0 | U27: 0 | V27: 0 | W27: =IF(I27=0,0,CONCATENATE(VLOOKUP(I27+"00:01",'データ '!K:M,3,TRUE),"/",$W$11)) -> 0
I28: 0 | K28: 0 | L28: 0 | M28: 0 | P28: 16 | Q28: =IF(A28="","",IF($A$13<>A28,"月が異なります！",IF(SUM($I$13:I28)>$S$7,"決定時間数を超過しています！",""))) ->  | R28: 0 | S28: 0 | T28: =SUM($S$13:S28) -> 0 | U28: 0 | V28: 0 | W28: =IF(I28=0,0,CONCATENATE(VLOOKUP(I28+"00:01",'データ '!K:M,3,TRUE),"/",$W$11)) -> 0
I29: 0 | K29: 0 | L29: 0 | M29: 0 | P29: 17 | Q29: =IF(A29="","",IF($A$13<>A29,"月が異なります！",IF(SUM($I$13:I29)>$S$7,"決定時間数を超過しています！",""))) ->  | R29: 0 | S29: 0 | T29: =SUM($S$13:S29) -> 0 | U29: 0 | V29: 0 | W29: =IF(I29=0,0,CONCATENATE(VLOOKUP(I29+"00:01",'データ '!K:M,3,TRUE),"/",$W$11)) -> 0
I30: 0 | K30: 0 | L30: 0 | M30: 0 | P30: 18 | Q30: =IF(A30="","",IF($A$13<>A30,"月が異なります！",IF(SUM($I$13:I30)>$S$7,"決定時間数を超過しています！",""))) ->  | R30: 0 | S30: 0 | T30: =SUM($S$13:S30) -> 0 | U30: 0 | V30: 0 | W30: =IF(I30=0,0,CONCATENATE(VLOOKUP(I30+"00:01",'データ '!K:M,3,TRUE),"/",$W$11)) -> 0
I31: 0 | K31: 0 | L31: 0 | M31: 0 | P31: 19 | Q31: =IF(A31="","",IF($A$13<>A31,"月が異なります！",IF(SUM($I$13:I31)>$S$7,"決定時間数を超過しています！",""))) ->  | R31: 0 | S31: 0 | T31: =SUM($S$13:S31) -> 0 | U31: 0 | V31: 0 | W31: =IF(I31=0,0,CONCATENATE(VLOOKUP(I31+"00:01",'データ '!K:M,3,TRUE),"/",$W$11)) -> 0
I32: 0 | K32: 0 | L32: 0 | M32: 0 | P32: 20 | Q32: =IF(A32="","",IF($A$13<>A32,"月が異なります！",IF(SUM($I$13:I32)>$S$7,"決定時間数を超過しています！",""))) ->  | R32: 0 | S32: 0 | T32: =SUM($S$13:S32) -> 0 | U32: 0 | V32: 0 | W32: =IF(I32=0,0,CONCATENATE(VLOOKUP(I32+"00:01",'データ '!K:M,3,TRUE),"/",$W$11)) -> 0
I33: 0 | K33: 0 | L33: 0 | M33: 0 | P33: 21 | Q33: =IF(A33="","",IF($A$13<>A33,"月が異なります！",IF(SUM($I$13:I33)>$S$7,"決定時間数を超過しています！",""))) ->  | R33: 0 | S33: 0 | T33: =SUM($S$13:S33) -> 0 | U33: 0 | V33: 0 | W33: =IF(I33=0,0,CONCATENATE(VLOOKUP(I33+"00:01",'データ '!K:M,3,TRUE),"/",$W$11)) -> 0
I34: 0 | K34: 0 | L34: 0 | M34: 0 | P34: 22 | Q34: =IF(A34="","",IF($A$13<>A34,"月が異なります！",IF(SUM($I$13:I34)>$S$7,"決定時間数を超過しています！",""))) ->  | R34: 0 | S34: 0 | T34: =SUM($S$13:S34) -> 0 | U34: 0 | V34: 0 | W34: =IF(I34=0,0,CONCATENATE(VLOOKUP(I34+"00:01",'データ '!K:M,3,TRUE),"/",$W$11)) -> 0
I35: 0 | K35: 0 | L35: 0 | M35: 0 | P35: 23 | Q35: =IF(A35="","",IF($A$13<>A35,"月が異なります！",IF(SUM($I$13:I35)>$S$7,"決定時間数を超過しています！",""))) ->  | R35: 0 | S35: 0 | T35: =SUM($S$13:S35) -> 0 | U35: 0 | V35: 0 | W35: =IF(I35=0,0,CONCATENATE(VLOOKUP(I35+"00:01",'データ '!K:M,3,TRUE),"/",$W$11)) -> 0
I36: 0 | K36: 0 | L36: 0 | M36: 0 | P36: 24 | Q36: =IF(A36="","",IF($A$13<>A36,"月が異なります！",IF(SUM($I$13:I36)>$S$7,"決定時間数を超過しています！",""))) ->  | R36: 0 | S36: 0 | T36: =SUM($S$13:S36) -> 0 | U36: 0 | V36: 0 | W36: =IF(I36=0,0,CONCATENATE(VLOOKUP(I36+"00:01",'データ '!K:M,3,TRUE),"/",$W$11)) -> 0
I37: 0 | K37: 0 | L37: 0 | M37: 0 | P37: 25 | Q37: =IF(A37="","",IF($A$13<>A37,"月が異なります！",IF(SUM($I$13:I37)>$S$7,"決定時間数を超過しています！",""))) ->  | R37: 0 | S37: 0 | T37: =SUM($S$13:S37) -> 0 | U37: 0 | V37: 0 | W37: =IF(I37=0,0,CONCATENATE(VLOOKUP(I37+"00:01",'データ '!K:M,3,TRUE),"/",$W$11)) -> 0
I38: 0 | K38: 0 | L38: 0 | M38: 0 | P38: 26 | Q38: =IF(A38="","",IF($A$13<>A38,"月が異なります！",IF(SUM($I$13:I38)>$S$7,"決定時間数を超過しています！",""))) ->  | R38: 0 | S38: 0 | T38: =SUM($S$13:S38) -> 0 | U38: 0 | V38: 0 | W38: =IF(I38=0,0,CONCATENATE(VLOOKUP(I38+"00:01",'データ '!K:M,3,TRUE),"/",$W$11)) -> 0
I39: 0 | K39: 0 | L39: 0 | M39: 0 | P39: 27 | Q39: =IF(A39="","",IF($A$13<>A39,"月が異なります！",IF(SUM($I$13:I39)>$S$7,"決定時間数を超過しています！",""))) ->  | R39: 0 | S39: 0 | T39: =SUM($S$13:S39) -> 0 | U39: 0 | V39: 0 | W39: =IF(I39=0,0,CONCATENATE(VLOOKUP(I39+"00:01",'データ '!K:M,3,TRUE),"/",$W$11)) -> 0
I40: 0 | K40: 0 | L40: 0 | M40: 0 | P40: 28 | Q40: =IF(A40="","",IF($A$13<>A40,"月が異なります！",IF(SUM($I$13:I40)>$S$7,"決定時間数を超過しています！",""))) ->  | R40: 0 | S40: 0 | T40: =SUM($S$13:S40) -> 0 | U40: 0 | V40: 0 | W40: =IF(I40=0,0,CONCATENATE(VLOOKUP(I40+"00:01",'データ '!K:M,3,TRUE),"/",$W$11)) -> 0
I41: 0 | K41: 0 | L41: 0 | M41: 0 | P41: 29 | Q41: =IF(A41="","",IF($A$13<>A41,"月が異なります！",IF(SUM($I$13:I41)>$S$7,"決定時間数を超過しています！",""))) ->  | R41: 0 | S41: 0 | T41: =SUM($S$13:S41) -> 0 | U41: 0 | V41: 0 | W41: =IF(I41=0,0,CONCATENATE(VLOOKUP(I41+"00:01",'データ '!K:M,3,TRUE),"/",$W$11)) -> 0
I42: 0 | K42: 0 | L42: 0 | M42: 0 | P42: 30 | Q42: =IF(A42="","",IF($A$13<>A42,"月が異なります！",IF(SUM($I$13:I42)>$S$7,"決定時間数を超過しています！",""))) ->  | R42: 0 | S42: 0 | T42: =SUM($S$13:S42) -> 0 | U42: 0 | V42: 0 | W42: =IF(I42=0,0,CONCATENATE(VLOOKUP(I42+"00:01",'データ '!K:M,3,TRUE),"/",$W$11)) -> 0
I43: 0 | K43: 0 | L43: 0 | M43: 0 | P43: 31 | Q43: =IF(A43="","",IF($A$13<>A43,"月が異なります！",IF(SUM($I$13:I43)>$S$7,"決定時間数を超過しています！",""))) ->  | R43: 0 | S43: 0 | T43: =SUM($S$13:S43) -> 0 | U43: 0 | V43: 0 | W43: =IF(I43=0,0,CONCATENATE(VLOOKUP(I43+"00:01",'データ '!K:M,3,TRUE),"/",$W$11)) -> 0
A44: 合計 | I44: =SUM(I13:I43) -> 0 | K44: =SUM(K13:K43) -> 0 | L44: =SUM(L13:L43) -> 0 | M44: =SUM(M13:M43) -> 0 | W44: =IF(I44>=$X$8,$Y$9,IF(AND(I44<$X$8,I44>=$X$7),$Y$8,IF(I44<$X$7,$Y$7)))&$W$11 -> 無

Sheet 18
B1: № | C1: 18
B4: =EOMONTH(B13,0) -> 1900-01-31 | F4: 鎌ケ谷市移動支援サービス提供実績記録票
A5: 登録番号 | D5: =VLOOKUP($C$1,利用者情報!A:U,COLUMN(利用者情報!B3),FALSE) -> 0 | G5: 支給決定障がい者等氏名 （児童氏名） | I5: =VLOOKUP($C$1,利用者情報!A:U,COLUMN(利用者情報!C1),FALSE) -> 0 | L5: 事業所登録番号
L6: =請求事業者!B3 -> 0 | Q6: コメント | S6: 決定時間数
A7: 契約支給量 | D7: 身体介護を 伴う | F7: =IF(VLOOKUP(C1,利用者情報!A:G,5)="有",CONCATENATE(VLOOKUP(C1,利用者情報!A:G,4)&"時間"),"") ->  | G7: 身体介護を 伴わない | I7: =IF(VLOOKUP(C1,利用者情報!A:G,5)<>"有",CONCATENATE(VLOOKUP(C1,利用者情報!A:G,4)&"時間"),"") -> 時間 | J7: 事業所及び その事業所 | L7: =請求事業者!B7 -> 0 | Q7: =利用者情報!J4 ->  | S7: =IF(F7="",I7,F7) -> 時間
A8: 利用者負担の有無 | F8: 利用者の負担割合 | H8: 利用者負担上限額
A9: =VLOOKUP($C$1,利用者情報!A:U,COLUMN(利用者情報!F3),FALSE) -> 0 | F9: =IF(A9="有","1割","0割") -> 0割 | H9: =VLOOKUP($C$1,利用者情報!A:U,COLUMN(利用者情報!G3),FALSE) -> 0 | W9: =請求事業者!C9 -> 5
W10: 便宜上区分
A11: 日付 | D11: 支援計画 | I11: 算定 時間 | J11: 派遣 人数 | K11: 算定額 | L11: 利用者 負担額 | M11: 請求額 | N11: サービス 提供者印 | O11: 利用者 確認印 | Q11: コメント | T11: 利用者負担額 累計 | U11: 上限到達フラグ | V11: 上限達成時の利用者負担額 | W11: =IF(F7="","無","有") -> 無
A12: 月 | B12: 日 | C12: 曜日 | D12: 開始 時間 | E12: 終了 時間 | F12: 計画 時間数 | G12: 開始 時間 | H12: 終了 時間 | R12: 請求額 | S12: 利用者 負担額 | W12: =IF(A9="有","（9割）","") -> 
A13: =IF(B13="","",TEXT(B13,"m")) ->  | C13: =IF(B13="","",B13) ->  | I13: =H13-G13 -> 0 | K13: =IF($H13=0,0,INDEX(単価,MATCH(W13,時間,0),MATCH($W$9,地域区分,0))) -> 0 | L13: =IF(U13=0,S13,V13) -> 0 | M13: =K13-L13 -> 0 | P13: 1 | Q13: =IF(A13="","",IF($A$13<>A13,"月が異なります！",IF(SUM($I$13:I13)>$S$7,"決定時間数を超過しています！",""))) ->  | R13: =IF(I13=0,0,INDEX(単価,MATCH(W13,時間,0),MATCH(IF(W12="",W9,W9&W12),地域区分,0))) -> 0 | S13: =K13-R13 -> 0 | T13: =SUM($S$13:S13) -> 0 | W13: =IF(I13=0,0,CONCATENATE(VLOOKUP(I13+"00:01",'データ '!K:M,3,TRUE),"/",$W$11)) -> 0
A14: =IF(B14="","",TEXT(B14,"m")) ->  | C14: =IF(B14="","",B14) ->  | I14: =H14-G14 -> 0 | K14: =IF($H14=0,0,INDEX(単価,MATCH(W14,時間,0),MATCH($W$9,地域区分,0))) -> 0 | L14: =IF(U14=0,S14,V14) -> 0 | M14: =K14-L14 -> 0 | P14: 2 | Q14: =IF(A14="","",IF($A$13<>A14,"月が異なります！",IF(SUM($I$13:I14)>$S$7,"決定時間数を超過しています！",""))) ->  | R14: =IF(AND($H14=0),0,IF($A$9="有",INDEX(単価,MATCH(W14,時間,0),MATCH($W$9&$W$12,地域区分,0)),INDEX(単価,MATCH(W14,時間,0),MATCH($W$9,地域区分,0)))) -> 0 | S14: =K14-R14 -> 0 | T14: =SUM($S$13:S14) -> 0 | U14: =IF(AND(T13<$H$9,T14>$H$9),1,IF(T14>$H$9,2,0)) -> 0 | V14: =IF(U14=1,$H$9-T13,0) -> 0 | W14: =IF(I14=0,0,CONCATENATE(VLOOKUP(I14+"00:01",'データ '!K:M,3,TRUE),"/",$W$11)) -> 0
I15: 0 | K15: 0 | L15: =IF(U15=0,S15,V15) -> 0 | M15: =K15-L15 -> 0 | P15: 3 | Q15: =IF(A15="","",IF($A$13<>A15,"月が異なります！",IF(SUM($I$13:I15)>$S$7,"決定時間数を超過しています！",""))) ->  | R15: 0 | S15: 0 | T15: =SUM($S$13:S15) -> 0 | U15: =IF(AND(T14<$H$9,T15>$H$9),1,IF(T15>$H$9,2,0)) -> 0 | V15: =IF(U15=1,$H$9-T14,0) -> 0 | W15: =IF(I15=0,0,CONCATENATE(VLOOKUP(I15+"00:01",'データ '!K:M,3,TRUE),"/",$W$11)) -> 0
I16: 0 | K16: 0 | L16: 0 | M16: 0 | P16: 4 | Q16: =IF(A16="","",IF($A$13<>A16,"月が異なります！",IF(SUM($I$13:I16)>$S$7,"決定時間数を超過しています！",""))) ->  | R16: 0 | S16: 0 | T16: =SUM($S$13:S16) -> 0 | U16: 0 | V16: 0 | W16: =IF(I16=0,0,CONCATENATE(VLOOKUP(I16+"00:01",'データ '!K:M,3,TRUE),"/",$W$11)) -> 0
I17: 0 | K17: 0 | L17: 0 | M17: 0 | P17: 5 | Q17: =IF(A17="","",IF($A$13<>A17,"月が異なります！",IF(SUM($I$13:I17)>$S$7,"決定時間数を超過しています！",""))) ->  | R17: 0 | S17: 0 | T17: =SUM($S$13:S17) -> 0 | U17: 0 | V17: 0 | W17: =IF(I17=0,0,CONCATENATE(VLOOKUP(I17+"00:01",'データ '!K:M,3,TRUE),"/",$W$11)) -> 0
I18: 0 | K18: 0 | L18: 0 | M18: 0 | P18: 6 | Q18: =IF(A18="","",IF($A$13<>A18,"月が異なります！",IF(SUM($I$13:I18)>$S$7,"決定時間数を超過しています！",""))) ->  | R18: 0 | S18: 0 | T18: =SUM($S$13:S18) -> 0 | U18: 0 | V18: 0 | W18: =IF(I18=0,0,CONCATENATE(VLOOKUP(I18+"00:01",'データ '!K:M,3,TRUE),"/",$W$11)) -> 0
I19: 0 | K19: 0 | L19: 0 | M19: 0 | P19: 7 | Q19: =IF(A19="","",IF($A$13<>A19,"月が異なります！",IF(SUM($I$13:I19)>$S$7,"決定時間数を超過しています！",""))) ->  | R19: 0 | S19: 0 | T19: =SUM($S$13:S19) -> 0 | U19: 0 | V19: 0 | W19: =IF(I19=0,0,CONCATENATE(VLOOKUP(I19+"00:01",'データ '!K:M,3,TRUE),"/",$W$11)) -> 0
I20: 0 | K20: 0 | L20: 0 | M20: 0 | P20: 8 | Q20: =IF(A20="","",IF($A$13<>A20,"月が異なります！",IF(SUM($I$13:I20)>$S$7,"決定時間数を超過しています！",""))) ->  | R20: 0 | S20: 0 | T20: =SUM($S$13:S20) -> 0 | U20: 0 | V20: 0 | W20: =IF(I20=0,0,CONCATENATE(VLOOKUP(I20+"00:01",'データ '!K:M,3,TRUE),"/",$W$11)) -> 0
I21: 0 | K21: 0 | L21: =IF(U21=0,S21,V21) -> 0 | M21: 0 | P21: 9 | Q21: =IF(A21="","",IF($A$13<>A21,"月が異なります！",IF(SUM($I$13:I21)>$S$7,"決定時間数を超過しています！",""))) ->  | R21: 0 | S21: 0 | T21: =SUM($S$13:S21) -> 0 | U21: 0 | V21: 0 | W21: =IF(I21=0,0,CONCATENATE(VLOOKUP(I21+"00:01",'データ '!K:M,3,TRUE),"/",$W$11)) -> 0
I22: 0 | K22: 0 | L22: =IF(U22=0,S22,V22) -> 0 | M22: 0 | P22: 10 | Q22: =IF(A22="","",IF($A$13<>A22,"月が異なります！",IF(SUM($I$13:I22)>$S$7,"決定時間数を超過しています！",""))) ->  | R22: 0 | S22: =K22-R22 -> 0 | T22: =SUM($S$13:S22) -> 0 | U22: 0 | V22: 0 | W22: =IF(I22=0,0,CONCATENATE(VLOOKUP(I22+"00:01",'データ '!K:M,3,TRUE),"/",$W$11)) -> 0
I23: 0 | K23: 0 | L23: 0 | M23: 0 | P23: 11 | Q23: =IF(A23="","",IF($A$13<>A23,"月が異なります！",IF(SUM($I$13:I23)>$S$7,"決定時間数を超過しています！",""))) ->  | R23: 0 | S23: 0 | T23: =SUM($S$13:S23) -> 0 | U23: 0 | V23: 0 | W23: =IF(I23=0,0,CONCATENATE(VLOOKUP(I23+"00:01",'データ '!K:M,3,TRUE),"/",$W$11)) -> 0
I24: 0 | K24: 0 | L24: 0 | M24: 0 | P24: 12 | Q24: =IF(A24="","",IF($A$13<>A24,"月が異なります！",IF(SUM($I$13:I24)>$S$7,"決定時間数を超過しています！",""))) ->  | R24: 0 | S24: 0 | T24: =SUM($S$13:S24) -> 0 | U24: 0 | V24: 0 | W24: =IF(I24=0,0,CONCATENATE(VLOOKUP(I24+"00:01",'データ '!K:M,3,TRUE),"/",$W$11)) -> 0
I25: 0 | K25: 0 | L25: 0 | M25: 0 | P25: 13 | Q25: =IF(A25="","",IF($A$13<>A25,"月が異なります！",IF(SUM($I$13:I25)>$S$7,"決定時間数を超過しています！",""))) ->  | R25: 0 | S25: 0 | T25: =SUM($S$13:S25) -> 0 | U25: 0 | V25: 0 | W25: =IF(I25=0,0,CONCATENATE(VLOOKUP(I25+"00:01",'データ '!K:M,3,TRUE),"/",$W$11)) -> 0
I26: 0 | K26: 0 | L26: 0 | M26: 0 | P26: 14 | Q26: =IF(A26="","",IF($A$13<>A26,"月が異なります！",IF(SUM($I$13:I26)>$S$7,"決定時間数を超過しています！",""))) ->  | R26: 0 | S26: 0 | T26: =SUM($S$13:S26) -> 0 | U26: 0 | V26: 0 | W26: =IF(I26=0,0,CONCATENATE(VLOOKUP(I26+"00:01",'データ '!K:M,3,TRUE),"/",$W$11)) -> 0
I27: 0 | K27: 0 | L27: 0 | M27: 0 | P27: 15 | Q27: =IF(A27="","",IF($A$13<>A27,"月が異なります！",IF(SUM($I$13:I27)>$S$7,"決定時間数を超過しています！",""))) ->  | R27: 0 | S27: 0 | T27: =SUM($S$13:S27) -> 0 | U27: 0 | V27: 0 | W27: =IF(I27=0,0,CONCATENATE(VLOOKUP(I27+"00:01",'データ '!K:M,3,TRUE),"/",$W$11)) -> 0
I28: 0 | K28: 0 | L28: 0 | M28: 0 | P28: 16 | Q28: =IF(A28="","",IF($A$13<>A28,"月が異なります！",IF(SUM($I$13:I28)>$S$7,"決定時間数を超過しています！",""))) ->  | R28: 0 | S28: 0 | T28: =SUM($S$13:S28) -> 0 | U28: 0 | V28: 0 | W28: =IF(I28=0,0,CONCATENATE(VLOOKUP(I28+"00:01",'データ '!K:M,3,TRUE),"/",$W$11)) -> 0
I29: 0 | K29: 0 | L29: 0 | M29: 0 | P29: 17 | Q29: =IF(A29="","",IF($A$13<>A29,"月が異なります！",IF(SUM($I$13:I29)>$S$7,"決定時間数を超過しています！",""))) ->  | R29: 0 | S29: 0 | T29: =SUM($S$13:S29) -> 0 | U29: 0 | V29: 0 | W29: =IF(I29=0,0,CONCATENATE(VLOOKUP(I29+"00:01",'データ '!K:M,3,TRUE),"/",$W$11)) -> 0
I30: 0 | K30: 0 | L30: 0 | M30: 0 | P30: 18 | Q30: =IF(A30="","",IF($A$13<>A30,"月が異なります！",IF(SUM($I$13:I30)>$S$7,"決定時間数を超過しています！",""))) ->  | R30: 0 | S30: 0 | T30: =SUM($S$13:S30) -> 0 | U30: 0 | V30: 0 | W30: =IF(I30=0,0,CONCATENATE(VLOOKUP(I30+"00:01",'データ '!K:M,3,TRUE),"/",$W$11)) -> 0
I31: 0 | K31: 0 | L31: 0 | M31: 0 | P31: 19 | Q31: =IF(A31="","",IF($A$13<>A31,"月が異なります！",IF(SUM($I$13:I31)>$S$7,"決定時間数を超過しています！",""))) ->  | R31: 0 | S31: 0 | T31: =SUM($S$13:S31) -> 0 | U31: 0 | V31: 0 | W31: =IF(I31=0,0,CONCATENATE(VLOOKUP(I31+"00:01",'データ '!K:M,3,TRUE),"/",$W$11)) -> 0
I32: 0 | K32: 0 | L32: 0 | M32: 0 | P32: 20 | Q32: =IF(A32="","",IF($A$13<>A32,"月が異なります！",IF(SUM($I$13:I32)>$S$7,"決定時間数を超過しています！",""))) ->  | R32: 0 | S32: 0 | T32: =SUM($S$13:S32) -> 0 | U32: 0 | V32: 0 | W32: =IF(I32=0,0,CONCATENATE(VLOOKUP(I32+"00:01",'データ '!K:M,3,TRUE),"/",$W$11)) -> 0
I33: 0 | K33: 0 | L33: 0 | M33: 0 | P33: 21 | Q33: =IF(A33="","",IF($A$13<>A33,"月が異なります！",IF(SUM($I$13:I33)>$S$7,"決定時間数を超過しています！",""))) ->  | R33: 0 | S33: 0 | T33: =SUM($S$13:S33) -> 0 | U33: 0 | V33: 0 | W33: =IF(I33=0,0,CONCATENATE(VLOOKUP(I33+"00:01",'データ '!K:M,3,TRUE),"/",$W$11)) -> 0
I34: 0 | K34: 0 | L34: 0 | M34: 0 | P34: 22 | Q34: =IF(A34="","",IF($A$13<>A34,"月が異なります！",IF(SUM($I$13:I34)>$S$7,"決定時間数を超過しています！",""))) ->  | R34: 0 | S34: 0 | T34: =SUM($S$13:S34) -> 0 | U34: 0 | V34: 0 | W34: =IF(I34=0,0,CONCATENATE(VLOOKUP(I34+"00:01",'データ '!K:M,3,TRUE),"/",$W$11)) -> 0
I35: 0 | K35: 0 | L35: 0 | M35: 0 | P35: 23 | Q35: =IF(A35="","",IF($A$13<>A35,"月が異なります！",IF(SUM($I$13:I35)>$S$7,"決定時間数を超過しています！",""))) ->  | R35: 0 | S35: 0 | T35: =SUM($S$13:S35) -> 0 | U35: 0 | V35: 0 | W35: =IF(I35=0,0,CONCATENATE(VLOOKUP(I35+"00:01",'データ '!K:M,3,TRUE),"/",$W$11)) -> 0
I36: 0 | K36: 0 | L36: 0 | M36: 0 | P36: 24 | Q36: =IF(A36="","",IF($A$13<>A36,"月が異なります！",IF(SUM($I$13:I36)>$S$7,"決定時間数を超過しています！",""))) ->  | R36: 0 | S36: 0 | T36: =SUM($S$13:S36) -> 0 | U36: 0 | V36: 0 | W36: =IF(I36=0,0,CONCATENATE(VLOOKUP(I36+"00:01",'データ '!K:M,3,TRUE),"/",$W$11)) -> 0
I37: 0 | K37: 0 | L37: 0 | M37: 0 | P37: 25 | Q37: =IF(A37="","",IF($A$13<>A37,"月が異なります！",IF(SUM($I$13:I37)>$S$7,"決定時間数を超過しています！",""))) ->  | R37: 0 | S37: 0 | T37: =SUM($S$13:S37) -> 0 | U37: 0 | V37: 0 | W37: =IF(I37=0,0,CONCATENATE(VLOOKUP(I37+"00:01",'データ '!K:M,3,TRUE),"/",$W$11)) -> 0
I38: 0 | K38: 0 | L38: 0 | M38: 0 | P38: 26 | Q38: =IF(A38="","",IF($A$13<>A38,"月が異なります！",IF(SUM($I$13:I38)>$S$7,"決定時間数を超過しています！",""))) ->  | R38: 0 | S38: 0 | T38: =SUM($S$13:S38) -> 0 | U38: 0 | V38: 0 | W38: =IF(I38=0,0,CONCATENATE(VLOOKUP(I38+"00:01",'データ '!K:M,3,TRUE),"/",$W$11)) -> 0
I39: 0 | K39: 0 | L39: 0 | M39: 0 | P39: 27 | Q39: =IF(A39="","",IF($A$13<>A39,"月が異なります！",IF(SUM($I$13:I39)>$S$7,"決定時間数を超過しています！",""))) ->  | R39: 0 | S39: 0 | T39: =SUM($S$13:S39) -> 0 | U39: 0 | V39: 0 | W39: =IF(I39=0,0,CONCATENATE(VLOOKUP(I39+"00:01",'データ '!K:M,3,TRUE),"/",$W$11)) -> 0
I40: 0 | K40: 0 | L40: 0 | M40: 0 | P40: 28 | Q40: =IF(A40="","",IF($A$13<>A40,"月が異なります！",IF(SUM($I$13:I40)>$S$7,"決定時間数を超過しています！",""))) ->  | R40: 0 | S40: 0 | T40: =SUM($S$13:S40) -> 0 | U40: 0 | V40: 0 | W40: =IF(I40=0,0,CONCATENATE(VLOOKUP(I40+"00:01",'データ '!K:M,3,TRUE),"/",$W$11)) -> 0
I41: 0 | K41: 0 | L41: 0 | M41: 0 | P41: 29 | Q41: =IF(A41="","",IF($A$13<>A41,"月が異なります！",IF(SUM($I$13:I41)>$S$7,"決定時間数を超過しています！",""))) ->  | R41: 0 | S41: 0 | T41: =SUM($S$13:S41) -> 0 | U41: 0 | V41: 0 | W41: =IF(I41=0,0,CONCATENATE(VLOOKUP(I41+"00:01",'データ '!K:M,3,TRUE),"/",$W$11)) -> 0
I42: 0 | K42: 0 | L42: 0 | M42: 0 | P42: 30 | Q42: =IF(A42="","",IF($A$13<>A42,"月が異なります！",IF(SUM($I$13:I42)>$S$7,"決定時間数を超過しています！",""))) ->  | R42: 0 | S42: 0 | T42: =SUM($S$13:S42) -> 0 | U42: 0 | V42: 0 | W42: =IF(I42=0,0,CONCATENATE(VLOOKUP(I42+"00:01",'データ '!K:M,3,TRUE),"/",$W$11)) -> 0
I43: 0 | K43: 0 | L43: 0 | M43: 0 | P43: 31 | Q43: =IF(A43="","",IF($A$13<>A43,"月が異なります！",IF(SUM($I$13:I43)>$S$7,"決定時間数を超過しています！",""))) ->  | R43: 0 | S43: 0 | T43: =SUM($S$13:S43) -> 0 | U43: 0 | V43: 0 | W43: =IF(I43=0,0,CONCATENATE(VLOOKUP(I43+"00:01",'データ '!K:M,3,TRUE),"/",$W$11)) -> 0
A44: 合計 | I44: =SUM(I13:I43) -> 0 | K44: =SUM(K13:K43) -> 0 | L44: =SUM(L13:L43) -> 0 | M44: =SUM(M13:M43) -> 0 | W44: =IF(I44>=$X$8,$Y$9,IF(AND(I44<$X$8,I44>=$X$7),$Y$8,IF(I44<$X$7,$Y$7)))&$W$11 -> 無

Sheet 19
B1: № | C1: 19
B4: =EOMONTH(B13,0) -> 1900-01-31 | F4: 鎌ケ谷市移動支援サービス提供実績記録票
A5: 登録番号 | D5: =VLOOKUP($C$1,利用者情報!A:U,COLUMN(利用者情報!B3),FALSE) -> 0 | G5: 支給決定障がい者等氏名 （児童氏名） | I5: =VLOOKUP($C$1,利用者情報!A:U,COLUMN(利用者情報!C1),FALSE) -> 0 | L5: 事業所登録番号
L6: =請求事業者!B3 -> 0 | Q6: コメント | S6: 決定時間数
A7: 契約支給量 | D7: 身体介護を 伴う | F7: =IF(VLOOKUP(C1,利用者情報!A:G,5)="有",CONCATENATE(VLOOKUP(C1,利用者情報!A:G,4)&"時間"),"") ->  | G7: 身体介護を 伴わない | I7: =IF(VLOOKUP(C1,利用者情報!A:G,5)<>"有",CONCATENATE(VLOOKUP(C1,利用者情報!A:G,4)&"時間"),"") -> 時間 | J7: 事業所及び その事業所 | L7: =請求事業者!B7 -> 0 | Q7: =利用者情報!J4 ->  | S7: =IF(F7="",I7,F7) -> 時間
A8: 利用者負担の有無 | F8: 利用者の負担割合 | H8: 利用者負担上限額
A9: =VLOOKUP($C$1,利用者情報!A:U,COLUMN(利用者情報!F3),FALSE) -> 0 | F9: =IF(A9="有","1割","0割") -> 0割 | H9: =VLOOKUP($C$1,利用者情報!A:U,COLUMN(利用者情報!G3),FALSE) -> 0 | W9: =請求事業者!C9 -> 5
W10: 便宜上区分
A11: 日付 | D11: 支援計画 | I11: 算定 時間 | J11: 派遣 人数 | K11: 算定額 | L11: 利用者 負担額 | M11: 請求額 | N11: サービス 提供者印 | O11: 利用者 確認印 | Q11: コメント | T11: 利用者負担額 累計 | U11: 上限到達フラグ | V11: 上限達成時の利用者負担額 | W11: =IF(F7="","無","有") -> 無
A12: 月 | B12: 日 | C12: 曜日 | D12: 開始 時間 | E12: 終了 時間 | F12: 計画 時間数 | G12: 開始 時間 | H12: 終了 時間 | R12: 請求額 | S12: 利用者 負担額 | W12: =IF(A9="有","（9割）","") -> 
A13: =IF(B13="","",TEXT(B13,"m")) ->  | C13: =IF(B13="","",B13) ->  | I13: =H13-G13 -> 0 | K13: =IF($H13=0,0,INDEX(単価,MATCH(W13,時間,0),MATCH($W$9,地域区分,0))) -> 0 | L13: =IF(U13=0,S13,V13) -> 0 | M13: =K13-L13 -> 0 | P13: 1 | Q13: =IF(A13="","",IF($A$13<>A13,"月が異なります！",IF(SUM($I$13:I13)>$S$7,"決定時間数を超過しています！",""))) ->  | R13: =IF(I13=0,0,INDEX(単価,MATCH(W13,時間,0),MATCH(IF(W12="",W9,W9&W12),地域区分,0))) -> 0 | S13: =K13-R13 -> 0 | T13: =SUM($S$13:S13) -> 0 | W13: =IF(I13=0,0,CONCATENATE(VLOOKUP(I13+"00:01",'データ '!K:M,3,TRUE),"/",$W$11)) -> 0
A14: =IF(B14="","",TEXT(B14,"m")) ->  | C14: =IF(B14="","",B14) ->  | I14: =H14-G14 -> 0 | K14: =IF($H14=0,0,INDEX(単価,MATCH(W14,時間,0),MATCH($W$9,地域区分,0))) -> 0 | L14: =IF(U14=0,S14,V14) -> 0 | M14: =K14-L14 -> 0 | P14: 2 | Q14: =IF(A14="","",IF($A$13<>A14,"月が異なります！",IF(SUM($I$13:I14)>$S$7,"決定時間数を超過しています！",""))) ->  | R14: =IF(AND($H14=0),0,IF($A$9="有",INDEX(単価,MATCH(W14,時間,0),MATCH($W$9&$W$12,地域区分,0)),INDEX(単価,MATCH(W14,時間,0),MATCH($W$9,地域区分,0)))) -> 0 | S14: =K14-R14 -> 0 | T14: =SUM($S$13:S14) -> 0 | U14: =IF(AND(T13<$H$9,T14>$H$9),1,IF(T14>$H$9,2,0)) -> 0 | V14: =IF(U14=1,$H$9-T13,0) -> 0 | W14: =IF(I14=0,0,CONCATENATE(VLOOKUP(I14+"00:01",'データ '!K:M,3,TRUE),"/",$W$11)) -> 0
I15: 0 | K15: 0 | L15: =IF(U15=0,S15,V15) -> 0 | M15: =K15-L15 -> 0 | P15: 3 | Q15: =IF(A15="","",IF($A$13<>A15,"月が異なります！",IF(SUM($I$13:I15)>$S$7,"決定時間数を超過しています！",""))) ->  | R15: 0 | S15: 0 | T15: =SUM($S$13:S15) -> 0 | U15: =IF(AND(T14<$H$9,T15>$H$9),1,IF(T15>$H$9,2,0)) -> 0 | V15: =IF(U15=1,$H$9-T14,0) -> 0 | W15: =IF(I15=0,0,CONCATENATE(VLOOKUP(I15+"00:01",'データ '!K:M,3,TRUE),"/",$W$11)) -> 0
I16: 0 | K16: 0 | L16: 0 | M16: 0 | P16: 4 | Q16: =IF(A16="","",IF($A$13<>A16,"月が異なります！",IF(SUM($I$13:I16)>$S$7,"決定時間数を超過しています！",""))) ->  | R16: 0 | S16: 0 | T16: =SUM($S$13:S16) -> 0 | U16: 0 | V16: 0 | W16: =IF(I16=0,0,CONCATENATE(VLOOKUP(I16+"00:01",'データ '!K:M,3,TRUE),"/",$W$11)) -> 0
I17: 0 | K17: 0 | L17: 0 | M17: 0 | P17: 5 | Q17: =IF(A17="","",IF($A$13<>A17,"月が異なります！",IF(SUM($I$13:I17)>$S$7,"決定時間数を超過しています！",""))) ->  | R17: 0 | S17: 0 | T17: =SUM($S$13:S17) -> 0 | U17: 0 | V17: 0 | W17: =IF(I17=0,0,CONCATENATE(VLOOKUP(I17+"00:01",'データ '!K:M,3,TRUE),"/",$W$11)) -> 0
I18: 0 | K18: 0 | L18: 0 | M18: 0 | P18: 6 | Q18: =IF(A18="","",IF($A$13<>A18,"月が異なります！",IF(SUM($I$13:I18)>$S$7,"決定時間数を超過しています！",""))) ->  | R18: 0 | S18: 0 | T18: =SUM($S$13:S18) -> 0 | U18: 0 | V18: 0 | W18: =IF(I18=0,0,CONCATENATE(VLOOKUP(I18+"00:01",'データ '!K:M,3,TRUE),"/",$W$11)) -> 0
I19: 0 | K19: 0 | L19: 0 | M19: 0 | P19: 7 | Q19: =IF(A19="","",IF($A$13<>A19,"月が異なります！",IF(SUM($I$13:I19)>$S$7,"決定時間数を超過しています！",""))) ->  | R19: 0 | S19: 0 | T19: =SUM($S$13:S19) -> 0 | U19: 0 | V19: 0 | W19: =IF(I19=0,0,CONCATENATE(VLOOKUP(I19+"00:01",'データ '!K:M,3,TRUE),"/",$W$11)) -> 0
I20: 0 | K20: 0 | L20: 0 | M20: 0 | P20: 8 | Q20: =IF(A20="","",IF($A$13<>A20,"月が異なります！",IF(SUM($I$13:I20)>$S$7,"決定時間数を超過しています！",""))) ->  | R20: 0 | S20: 0 | T20: =SUM($S$13:S20) -> 0 | U20: 0 | V20: 0 | W20: =IF(I20=0,0,CONCATENATE(VLOOKUP(I20+"00:01",'データ '!K:M,3,TRUE),"/",$W$11)) -> 0
I21: 0 | K21: 0 | L21: =IF(U21=0,S21,V21) -> 0 | M21: 0 | P21: 9 | Q21: =IF(A21="","",IF($A$13<>A21,"月が異なります！",IF(SUM($I$13:I21)>$S$7,"決定時間数を超過しています！",""))) ->  | R21: 0 | S21: 0 | T21: =SUM($S$13:S21) -> 0 | U21: 0 | V21: 0 | W21: =IF(I21=0,0,CONCATENATE(VLOOKUP(I21+"00:01",'データ '!K:M,3,TRUE),"/",$W$11)) -> 0
I22: 0 | K22: 0 | L22: =IF(U22=0,S22,V22) -> 0 | M22: 0 | P22: 10 | Q22: =IF(A22="","",IF($A$13<>A22,"月が異なります！",IF(SUM($I$13:I22)>$S$7,"決定時間数を超過しています！",""))) ->  | R22: 0 | S22: =K22-R22 -> 0 | T22: =SUM($S$13:S22) -> 0 | U22: 0 | V22: 0 | W22: =IF(I22=0,0,CONCATENATE(VLOOKUP(I22+"00:01",'データ '!K:M,3,TRUE),"/",$W$11)) -> 0
I23: 0 | K23: 0 | L23: 0 | M23: 0 | P23: 11 | Q23: =IF(A23="","",IF($A$13<>A23,"月が異なります！",IF(SUM($I$13:I23)>$S$7,"決定時間数を超過しています！",""))) ->  | R23: 0 | S23: 0 | T23: =SUM($S$13:S23) -> 0 | U23: 0 | V23: 0 | W23: =IF(I23=0,0,CONCATENATE(VLOOKUP(I23+"00:01",'データ '!K:M,3,TRUE),"/",$W$11)) -> 0
I24: 0 | K24: 0 | L24: 0 | M24: 0 | P24: 12 | Q24: =IF(A24="","",IF($A$13<>A24,"月が異なります！",IF(SUM($I$13:I24)>$S$7,"決定時間数を超過しています！",""))) ->  | R24: 0 | S24: 0 | T24: =SUM($S$13:S24) -> 0 | U24: 0 | V24: 0 | W24: =IF(I24=0,0,CONCATENATE(VLOOKUP(I24+"00:01",'データ '!K:M,3,TRUE),"/",$W$11)) -> 0
I25: 0 | K25: 0 | L25: 0 | M25: 0 | P25: 13 | Q25: =IF(A25="","",IF($A$13<>A25,"月が異なります！",IF(SUM($I$13:I25)>$S$7,"決定時間数を超過しています！",""))) ->  | R25: 0 | S25: 0 | T25: =SUM($S$13:S25) -> 0 | U25: 0 | V25: 0 | W25: =IF(I25=0,0,CONCATENATE(VLOOKUP(I25+"00:01",'データ '!K:M,3,TRUE),"/",$W$11)) -> 0
I26: 0 | K26: 0 | L26: 0 | M26: 0 | P26: 14 | Q26: =IF(A26="","",IF($A$13<>A26,"月が異なります！",IF(SUM($I$13:I26)>$S$7,"決定時間数を超過しています！",""))) ->  | R26: 0 | S26: 0 | T26: =SUM($S$13:S26) -> 0 | U26: 0 | V26: 0 | W26: =IF(I26=0,0,CONCATENATE(VLOOKUP(I26+"00:01",'データ '!K:M,3,TRUE),"/",$W$11)) -> 0
I27: 0 | K27: 0 | L27: 0 | M27: 0 | P27: 15 | Q27: =IF(A27="","",IF($A$13<>A27,"月が異なります！",IF(SUM($I$13:I27)>$S$7,"決定時間数を超過しています！",""))) ->  | R27: 0 | S27: 0 | T27: =SUM($S$13:S27) -> 0 | U27: 0 | V27: 0 | W27: =IF(I27=0,0,CONCATENATE(VLOOKUP(I27+"00:01",'データ '!K:M,3,TRUE),"/",$W$11)) -> 0
I28: 0 | K28: 0 | L28: 0 | M28: 0 | P28: 16 | Q28: =IF(A28="","",IF($A$13<>A28,"月が異なります！",IF(SUM($I$13:I28)>$S$7,"決定時間数を超過しています！",""))) ->  | R28: 0 | S28: 0 | T28: =SUM($S$13:S28) -> 0 | U28: 0 | V28: 0 | W28: =IF(I28=0,0,CONCATENATE(VLOOKUP(I28+"00:01",'データ '!K:M,3,TRUE),"/",$W$11)) -> 0
I29: 0 | K29: 0 | L29: 0 | M29: 0 | P29: 17 | Q29: =IF(A29="","",IF($A$13<>A29,"月が異なります！",IF(SUM($I$13:I29)>$S$7,"決定時間数を超過しています！",""))) ->  | R29: 0 | S29: 0 | T29: =SUM($S$13:S29) -> 0 | U29: 0 | V29: 0 | W29: =IF(I29=0,0,CONCATENATE(VLOOKUP(I29+"00:01",'データ '!K:M,3,TRUE),"/",$W$11)) -> 0
I30: 0 | K30: 0 | L30: 0 | M30: 0 | P30: 18 | Q30: =IF(A30="","",IF($A$13<>A30,"月が異なります！",IF(SUM($I$13:I30)>$S$7,"決定時間数を超過しています！",""))) ->  | R30: 0 | S30: 0 | T30: =SUM($S$13:S30) -> 0 | U30: 0 | V30: 0 | W30: =IF(I30=0,0,CONCATENATE(VLOOKUP(I30+"00:01",'データ '!K:M,3,TRUE),"/",$W$11)) -> 0
I31: 0 | K31: 0 | L31: 0 | M31: 0 | P31: 19 | Q31: =IF(A31="","",IF($A$13<>A31,"月が異なります！",IF(SUM($I$13:I31)>$S$7,"決定時間数を超過しています！",""))) ->  | R31: 0 | S31: 0 | T31: =SUM($S$13:S31) -> 0 | U31: 0 | V31: 0 | W31: =IF(I31=0,0,CONCATENATE(VLOOKUP(I31+"00:01",'データ '!K:M,3,TRUE),"/",$W$11)) -> 0
I32: 0 | K32: 0 | L32: 0 | M32: 0 | P32: 20 | Q32: =IF(A32="","",IF($A$13<>A32,"月が異なります！",IF(SUM($I$13:I32)>$S$7,"決定時間数を超過しています！",""))) ->  | R32: 0 | S32: 0 | T32: =SUM($S$13:S32) -> 0 | U32: 0 | V32: 0 | W32: =IF(I32=0,0,CONCATENATE(VLOOKUP(I32+"00:01",'データ '!K:M,3,TRUE),"/",$W$11)) -> 0
I33: 0 | K33: 0 | L33: 0 | M33: 0 | P33: 21 | Q33: =IF(A33="","",IF($A$13<>A33,"月が異なります！",IF(SUM($I$13:I33)>$S$7,"決定時間数を超過しています！",""))) ->  | R33: 0 | S33: 0 | T33: =SUM($S$13:S33) -> 0 | U33: 0 | V33: 0 | W33: =IF(I33=0,0,CONCATENATE(VLOOKUP(I33+"00:01",'データ '!K:M,3,TRUE),"/",$W$11)) -> 0
I34: 0 | K34: 0 | L34: 0 | M34: 0 | P34: 22 | Q34: =IF(A34="","",IF($A$13<>A34,"月が異なります！",IF(SUM($I$13:I34)>$S$7,"決定時間数を超過しています！",""))) ->  | R34: 0 | S34: 0 | T34: =SUM($S$13:S34) -> 0 | U34: 0 | V34: 0 | W34: =IF(I34=0,0,CONCATENATE(VLOOKUP(I34+"00:01",'データ '!K:M,3,TRUE),"/",$W$11)) -> 0
I35: 0 | K35: 0 | L35: 0 | M35: 0 | P35: 23 | Q35: =IF(A35="","",IF($A$13<>A35,"月が異なります！",IF(SUM($I$13:I35)>$S$7,"決定時間数を超過しています！",""))) ->  | R35: 0 | S35: 0 | T35: =SUM($S$13:S35) -> 0 | U35: 0 | V35: 0 | W35: =IF(I35=0,0,CONCATENATE(VLOOKUP(I35+"00:01",'データ '!K:M,3,TRUE),"/",$W$11)) -> 0
I36: 0 | K36: 0 | L36: 0 | M36: 0 | P36: 24 | Q36: =IF(A36="","",IF($A$13<>A36,"月が異なります！",IF(SUM($I$13:I36)>$S$7,"決定時間数を超過しています！",""))) ->  | R36: 0 | S36: 0 | T36: =SUM($S$13:S36) -> 0 | U36: 0 | V36: 0 | W36: =IF(I36=0,0,CONCATENATE(VLOOKUP(I36+"00:01",'データ '!K:M,3,TRUE),"/",$W$11)) -> 0
I37: 0 | K37: 0 | L37: 0 | M37: 0 | P37: 25 | Q37: =IF(A37="","",IF($A$13<>A37,"月が異なります！",IF(SUM($I$13:I37)>$S$7,"決定時間数を超過しています！",""))) ->  | R37: 0 | S37: 0 | T37: =SUM($S$13:S37) -> 0 | U37: 0 | V37: 0 | W37: =IF(I37=0,0,CONCATENATE(VLOOKUP(I37+"00:01",'データ '!K:M,3,TRUE),"/",$W$11)) -> 0
I38: 0 | K38: 0 | L38: 0 | M38: 0 | P38: 26 | Q38: =IF(A38="","",IF($A$13<>A38,"月が異なります！",IF(SUM($I$13:I38)>$S$7,"決定時間数を超過しています！",""))) ->  | R38: 0 | S38: 0 | T38: =SUM($S$13:S38) -> 0 | U38: 0 | V38: 0 | W38: =IF(I38=0,0,CONCATENATE(VLOOKUP(I38+"00:01",'データ '!K:M,3,TRUE),"/",$W$11)) -> 0
I39: 0 | K39: 0 | L39: 0 | M39: 0 | P39: 27 | Q39: =IF(A39="","",IF($A$13<>A39,"月が異なります！",IF(SUM($I$13:I39)>$S$7,"決定時間数を超過しています！",""))) ->  | R39: 0 | S39: 0 | T39: =SUM($S$13:S39) -> 0 | U39: 0 | V39: 0 | W39: =IF(I39=0,0,CONCATENATE(VLOOKUP(I39+"00:01",'データ '!K:M,3,TRUE),"/",$W$11)) -> 0
I40: 0 | K40: 0 | L40: 0 | M40: 0 | P40: 28 | Q40: =IF(A40="","",IF($A$13<>A40,"月が異なります！",IF(SUM($I$13:I40)>$S$7,"決定時間数を超過しています！",""))) ->  | R40: 0 | S40: 0 | T40: =SUM($S$13:S40) -> 0 | U40: 0 | V40: 0 | W40: =IF(I40=0,0,CONCATENATE(VLOOKUP(I40+"00:01",'データ '!K:M,3,TRUE),"/",$W$11)) -> 0
I41: 0 | K41: 0 | L41: 0 | M41: 0 | P41: 29 | Q41: =IF(A41="","",IF($A$13<>A41,"月が異なります！",IF(SUM($I$13:I41)>$S$7,"決定時間数を超過しています！",""))) ->  | R41: 0 | S41: 0 | T41: =SUM($S$13:S41) -> 0 | U41: 0 | V41: 0 | W41: =IF(I41=0,0,CONCATENATE(VLOOKUP(I41+"00:01",'データ '!K:M,3,TRUE),"/",$W$11)) -> 0
I42: 0 | K42: 0 | L42: 0 | M42: 0 | P42: 30 | Q42: =IF(A42="","",IF($A$13<>A42,"月が異なります！",IF(SUM($I$13:I42)>$S$7,"決定時間数を超過しています！",""))) ->  | R42: 0 | S42: 0 | T42: =SUM($S$13:S42) -> 0 | U42: 0 | V42: 0 | W42: =IF(I42=0,0,CONCATENATE(VLOOKUP(I42+"00:01",'データ '!K:M,3,TRUE),"/",$W$11)) -> 0
I43: 0 | K43: 0 | L43: 0 | M43: 0 | P43: 31 | Q43: =IF(A43="","",IF($A$13<>A43,"月が異なります！",IF(SUM($I$13:I43)>$S$7,"決定時間数を超過しています！",""))) ->  | R43: 0 | S43: 0 | T43: =SUM($S$13:S43) -> 0 | U43: 0 | V43: 0 | W43: =IF(I43=0,0,CONCATENATE(VLOOKUP(I43+"00:01",'データ '!K:M,3,TRUE),"/",$W$11)) -> 0
A44: 合計 | I44: =SUM(I13:I43) -> 0 | K44: =SUM(K13:K43) -> 0 | L44: =SUM(L13:L43) -> 0 | M44: =SUM(M13:M43) -> 0 | W44: =IF(I44>=$X$8,$Y$9,IF(AND(I44<$X$8,I44>=$X$7),$Y$8,IF(I44<$X$7,$Y$7)))&$W$11 -> 無

Sheet 20
B1: № | C1: 20
B4: =EOMONTH(B13,0) -> 1900-01-31 | F4: 鎌ケ谷市移動支援サービス提供実績記録票
A5: 登録番号 | D5: =VLOOKUP($C$1,利用者情報!A:U,COLUMN(利用者情報!B3),FALSE) -> 0 | G5: 支給決定障がい者等氏名 （児童氏名） | I5: =VLOOKUP($C$1,利用者情報!A:U,COLUMN(利用者情報!C1),FALSE) -> 0 | L5: 事業所登録番号
L6: =請求事業者!B3 -> 0 | Q6: コメント | S6: 決定時間数
A7: 契約支給量 | D7: 身体介護を 伴う | F7: =IF(VLOOKUP(C1,利用者情報!A:G,5)="有",CONCATENATE(VLOOKUP(C1,利用者情報!A:G,4)&"時間"),"") ->  | G7: 身体介護を 伴わない | I7: =IF(VLOOKUP(C1,利用者情報!A:G,5)<>"有",CONCATENATE(VLOOKUP(C1,利用者情報!A:G,4)&"時間"),"") -> 時間 | J7: 事業所及び その事業所 | L7: =請求事業者!B7 -> 0 | Q7: =利用者情報!J4 ->  | S7: =IF(F7="",I7,F7) -> 時間
A8: 利用者負担の有無 | F8: 利用者の負担割合 | H8: 利用者負担上限額
A9: =VLOOKUP($C$1,利用者情報!A:U,COLUMN(利用者情報!F3),FALSE) -> 0 | F9: =IF(A9="有","1割","0割") -> 0割 | H9: =VLOOKUP($C$1,利用者情報!A:U,COLUMN(利用者情報!G3),FALSE) -> 0 | W9: =請求事業者!C9 -> 5
W10: 便宜上区分
A11: 日付 | D11: 支援計画 | I11: 算定 時間 | J11: 派遣 人数 | K11: 算定額 | L11: 利用者 負担額 | M11: 請求額 | N11: サービス 提供者印 | O11: 利用者 確認印 | Q11: コメント | T11: 利用者負担額 累計 | U11: 上限到達フラグ | V11: 上限達成時の利用者負担額 | W11: =IF(F7="","無","有") -> 無
A12: 月 | B12: 日 | C12: 曜日 | D12: 開始 時間 | E12: 終了 時間 | F12: 計画 時間数 | G12: 開始 時間 | H12: 終了 時間 | R12: 請求額 | S12: 利用者 負担額 | W12: =IF(A9="有","（9割）","") -> 
A13: =IF(B13="","",TEXT(B13,"m")) ->  | C13: =IF(B13="","",B13) ->  | I13: =H13-G13 -> 0 | K13: =IF($H13=0,0,INDEX(単価,MATCH(W13,時間,0),MATCH($W$9,地域区分,0))) -> 0 | L13: =IF(U13=0,S13,V13) -> 0 | M13: =K13-L13 -> 0 | P13: 1 | Q13: =IF(A13="","",IF($A$13<>A13,"月が異なります！",IF(SUM($I$13:I13)>$S$7,"決定時間数を超過しています！",""))) ->  | R13: =IF(I13=0,0,INDEX(単価,MATCH(W13,時間,0),MATCH(IF(W12="",W9,W9&W12),地域区分,0))) -> 0 | S13: =K13-R13 -> 0 | T13: =SUM($S$13:S13) -> 0 | W13: =IF(I13=0,0,CONCATENATE(VLOOKUP(I13+"00:01",'データ '!K:M,3,TRUE),"/",$W$11)) -> 0
A14: =IF(B14="","",TEXT(B14,"m")) ->  | C14: =IF(B14="","",B14) ->  | I14: =H14-G14 -> 0 | K14: =IF($H14=0,0,INDEX(単価,MATCH(W14,時間,0),MATCH($W$9,地域区分,0))) -> 0 | L14: =IF(U14=0,S14,V14) -> 0 | M14: =K14-L14 -> 0 | P14: 2 | Q14: =IF(A14="","",IF($A$13<>A14,"月が異なります！",IF(SUM($I$13:I14)>$S$7,"決定時間数を超過しています！",""))) ->  | R14: =IF(AND($H14=0),0,IF($A$9="有",INDEX(単価,MATCH(W14,時間,0),MATCH($W$9&$W$12,地域区分,0)),INDEX(単価,MATCH(W14,時間,0),MATCH($W$9,地域区分,0)))) -> 0 | S14: =K14-R14 -> 0 | T14: =SUM($S$13:S14) -> 0 | U14: =IF(AND(T13<$H$9,T14>$H$9),1,IF(T14>$H$9,2,0)) -> 0 | V14: =IF(U14=1,$H$9-T13,0) -> 0 | W14: =IF(I14=0,0,CONCATENATE(VLOOKUP(I14+"00:01",'データ '!K:M,3,TRUE),"/",$W$11)) -> 0
I15: 0 | K15: 0 | L15: =IF(U15=0,S15,V15) -> 0 | M15: =K15-L15 -> 0 | P15: 3 | Q15: =IF(A15="","",IF($A$13<>A15,"月が異なります！",IF(SUM($I$13:I15)>$S$7,"決定時間数を超過しています！",""))) ->  | R15: 0 | S15: 0 | T15: =SUM($S$13:S15) -> 0 | U15: =IF(AND(T14<$H$9,T15>$H$9),1,IF(T15>$H$9,2,0)) -> 0 | V15: =IF(U15=1,$H$9-T14,0) -> 0 | W15: =IF(I15=0,0,CONCATENATE(VLOOKUP(I15+"00:01",'データ '!K:M,3,TRUE),"/",$W$11)) -> 0
I16: 0 | K16: 0 | L16: 0 | M16: 0 | P16: 4 | Q16: =IF(A16="","",IF($A$13<>A16,"月が異なります！",IF(SUM($I$13:I16)>$S$7,"決定時間数を超過しています！",""))) ->  | R16: 0 | S16: 0 | T16: =SUM($S$13:S16) -> 0 | U16: 0 | V16: 0 | W16: =IF(I16=0,0,CONCATENATE(VLOOKUP(I16+"00:01",'データ '!K:M,3,TRUE),"/",$W$11)) -> 0
I17: 0 | K17: 0 | L17: 0 | M17: 0 | P17: 5 | Q17: =IF(A17="","",IF($A$13<>A17,"月が異なります！",IF(SUM($I$13:I17)>$S$7,"決定時間数を超過しています！",""))) ->  | R17: 0 | S17: 0 | T17: =SUM($S$13:S17) -> 0 | U17: 0 | V17: 0 | W17: =IF(I17=0,0,CONCATENATE(VLOOKUP(I17+"00:01",'データ '!K:M,3,TRUE),"/",$W$11)) -> 0
I18: 0 | K18: 0 | L18: 0 | M18: 0 | P18: 6 | Q18: =IF(A18="","",IF($A$13<>A18,"月が異なります！",IF(SUM($I$13:I18)>$S$7,"決定時間数を超過しています！",""))) ->  | R18: 0 | S18: 0 | T18: =SUM($S$13:S18) -> 0 | U18: 0 | V18: 0 | W18: =IF(I18=0,0,CONCATENATE(VLOOKUP(I18+"00:01",'データ '!K:M,3,TRUE),"/",$W$11)) -> 0
I19: 0 | K19: 0 | L19: 0 | M19: 0 | P19: 7 | Q19: =IF(A19="","",IF($A$13<>A19,"月が異なります！",IF(SUM($I$13:I19)>$S$7,"決定時間数を超過しています！",""))) ->  | R19: 0 | S19: 0 | T19: =SUM($S$13:S19) -> 0 | U19: 0 | V19: 0 | W19: =IF(I19=0,0,CONCATENATE(VLOOKUP(I19+"00:01",'データ '!K:M,3,TRUE),"/",$W$11)) -> 0
I20: 0 | K20: 0 | L20: 0 | M20: 0 | P20: 8 | Q20: =IF(A20="","",IF($A$13<>A20,"月が異なります！",IF(SUM($I$13:I20)>$S$7,"決定時間数を超過しています！",""))) ->  | R20: 0 | S20: 0 | T20: =SUM($S$13:S20) -> 0 | U20: 0 | V20: 0 | W20: =IF(I20=0,0,CONCATENATE(VLOOKUP(I20+"00:01",'データ '!K:M,3,TRUE),"/",$W$11)) -> 0
I21: 0 | K21: 0 | L21: =IF(U21=0,S21,V21) -> 0 | M21: 0 | P21: 9 | Q21: =IF(A21="","",IF($A$13<>A21,"月が異なります！",IF(SUM($I$13:I21)>$S$7,"決定時間数を超過しています！",""))) ->  | R21: 0 | S21: 0 | T21: =SUM($S$13:S21) -> 0 | U21: 0 | V21: 0 | W21: =IF(I21=0,0,CONCATENATE(VLOOKUP(I21+"00:01",'データ '!K:M,3,TRUE),"/",$W$11)) -> 0
I22: 0 | K22: 0 | L22: =IF(U22=0,S22,V22) -> 0 | M22: 0 | P22: 10 | Q22: =IF(A22="","",IF($A$13<>A22,"月が異なります！",IF(SUM($I$13:I22)>$S$7,"決定時間数を超過しています！",""))) ->  | R22: 0 | S22: =K22-R22 -> 0 | T22: =SUM($S$13:S22) -> 0 | U22: 0 | V22: 0 | W22: =IF(I22=0,0,CONCATENATE(VLOOKUP(I22+"00:01",'データ '!K:M,3,TRUE),"/",$W$11)) -> 0
I23: 0 | K23: 0 | L23: 0 | M23: 0 | P23: 11 | Q23: =IF(A23="","",IF($A$13<>A23,"月が異なります！",IF(SUM($I$13:I23)>$S$7,"決定時間数を超過しています！",""))) ->  | R23: 0 | S23: 0 | T23: =SUM($S$13:S23) -> 0 | U23: 0 | V23: 0 | W23: =IF(I23=0,0,CONCATENATE(VLOOKUP(I23+"00:01",'データ '!K:M,3,TRUE),"/",$W$11)) -> 0
I24: 0 | K24: 0 | L24: 0 | M24: 0 | P24: 12 | Q24: =IF(A24="","",IF($A$13<>A24,"月が異なります！",IF(SUM($I$13:I24)>$S$7,"決定時間数を超過しています！",""))) ->  | R24: 0 | S24: 0 | T24: =SUM($S$13:S24) -> 0 | U24: 0 | V24: 0 | W24: =IF(I24=0,0,CONCATENATE(VLOOKUP(I24+"00:01",'データ '!K:M,3,TRUE),"/",$W$11)) -> 0
I25: 0 | K25: 0 | L25: 0 | M25: 0 | P25: 13 | Q25: =IF(A25="","",IF($A$13<>A25,"月が異なります！",IF(SUM($I$13:I25)>$S$7,"決定時間数を超過しています！",""))) ->  | R25: 0 | S25: 0 | T25: =SUM($S$13:S25) -> 0 | U25: 0 | V25: 0 | W25: =IF(I25=0,0,CONCATENATE(VLOOKUP(I25+"00:01",'データ '!K:M,3,TRUE),"/",$W$11)) -> 0
I26: 0 | K26: 0 | L26: 0 | M26: 0 | P26: 14 | Q26: =IF(A26="","",IF($A$13<>A26,"月が異なります！",IF(SUM($I$13:I26)>$S$7,"決定時間数を超過しています！",""))) ->  | R26: 0 | S26: 0 | T26: =SUM($S$13:S26) -> 0 | U26: 0 | V26: 0 | W26: =IF(I26=0,0,CONCATENATE(VLOOKUP(I26+"00:01",'データ '!K:M,3,TRUE),"/",$W$11)) -> 0
I27: 0 | K27: 0 | L27: 0 | M27: 0 | P27: 15 | Q27: =IF(A27="","",IF($A$13<>A27,"月が異なります！",IF(SUM($I$13:I27)>$S$7,"決定時間数を超過しています！",""))) ->  | R27: 0 | S27: 0 | T27: =SUM($S$13:S27) -> 0 | U27: 0 | V27: 0 | W27: =IF(I27=0,0,CONCATENATE(VLOOKUP(I27+"00:01",'データ '!K:M,3,TRUE),"/",$W$11)) -> 0
I28: 0 | K28: 0 | L28: 0 | M28: 0 | P28: 16 | Q28: =IF(A28="","",IF($A$13<>A28,"月が異なります！",IF(SUM($I$13:I28)>$S$7,"決定時間数を超過しています！",""))) ->  | R28: 0 | S28: 0 | T28: =SUM($S$13:S28) -> 0 | U28: 0 | V28: 0 | W28: =IF(I28=0,0,CONCATENATE(VLOOKUP(I28+"00:01",'データ '!K:M,3,TRUE),"/",$W$11)) -> 0
I29: 0 | K29: 0 | L29: 0 | M29: 0 | P29: 17 | Q29: =IF(A29="","",IF($A$13<>A29,"月が異なります！",IF(SUM($I$13:I29)>$S$7,"決定時間数を超過しています！",""))) ->  | R29: 0 | S29: 0 | T29: =SUM($S$13:S29) -> 0 | U29: 0 | V29: 0 | W29: =IF(I29=0,0,CONCATENATE(VLOOKUP(I29+"00:01",'データ '!K:M,3,TRUE),"/",$W$11)) -> 0
I30: 0 | K30: 0 | L30: 0 | M30: 0 | P30: 18 | Q30: =IF(A30="","",IF($A$13<>A30,"月が異なります！",IF(SUM($I$13:I30)>$S$7,"決定時間数を超過しています！",""))) ->  | R30: 0 | S30: 0 | T30: =SUM($S$13:S30) -> 0 | U30: 0 | V30: 0 | W30: =IF(I30=0,0,CONCATENATE(VLOOKUP(I30+"00:01",'データ '!K:M,3,TRUE),"/",$W$11)) -> 0
I31: 0 | K31: 0 | L31: 0 | M31: 0 | P31: 19 | Q31: =IF(A31="","",IF($A$13<>A31,"月が異なります！",IF(SUM($I$13:I31)>$S$7,"決定時間数を超過しています！",""))) ->  | R31: 0 | S31: 0 | T31: =SUM($S$13:S31) -> 0 | U31: 0 | V31: 0 | W31: =IF(I31=0,0,CONCATENATE(VLOOKUP(I31+"00:01",'データ '!K:M,3,TRUE),"/",$W$11)) -> 0
I32: 0 | K32: 0 | L32: 0 | M32: 0 | P32: 20 | Q32: =IF(A32="","",IF($A$13<>A32,"月が異なります！",IF(SUM($I$13:I32)>$S$7,"決定時間数を超過しています！",""))) ->  | R32: 0 | S32: 0 | T32: =SUM($S$13:S32) -> 0 | U32: 0 | V32: 0 | W32: =IF(I32=0,0,CONCATENATE(VLOOKUP(I32+"00:01",'データ '!K:M,3,TRUE),"/",$W$11)) -> 0
I33: 0 | K33: 0 | L33: 0 | M33: 0 | P33: 21 | Q33: =IF(A33="","",IF($A$13<>A33,"月が異なります！",IF(SUM($I$13:I33)>$S$7,"決定時間数を超過しています！",""))) ->  | R33: 0 | S33: 0 | T33: =SUM($S$13:S33) -> 0 | U33: 0 | V33: 0 | W33: =IF(I33=0,0,CONCATENATE(VLOOKUP(I33+"00:01",'データ '!K:M,3,TRUE),"/",$W$11)) -> 0
I34: 0 | K34: 0 | L34: 0 | M34: 0 | P34: 22 | Q34: =IF(A34="","",IF($A$13<>A34,"月が異なります！",IF(SUM($I$13:I34)>$S$7,"決定時間数を超過しています！",""))) ->  | R34: 0 | S34: 0 | T34: =SUM($S$13:S34) -> 0 | U34: 0 | V34: 0 | W34: =IF(I34=0,0,CONCATENATE(VLOOKUP(I34+"00:01",'データ '!K:M,3,TRUE),"/",$W$11)) -> 0
I35: 0 | K35: 0 | L35: 0 | M35: 0 | P35: 23 | Q35: =IF(A35="","",IF($A$13<>A35,"月が異なります！",IF(SUM($I$13:I35)>$S$7,"決定時間数を超過しています！",""))) ->  | R35: 0 | S35: 0 | T35: =SUM($S$13:S35) -> 0 | U35: 0 | V35: 0 | W35: =IF(I35=0,0,CONCATENATE(VLOOKUP(I35+"00:01",'データ '!K:M,3,TRUE),"/",$W$11)) -> 0
I36: 0 | K36: 0 | L36: 0 | M36: 0 | P36: 24 | Q36: =IF(A36="","",IF($A$13<>A36,"月が異なります！",IF(SUM($I$13:I36)>$S$7,"決定時間数を超過しています！",""))) ->  | R36: 0 | S36: 0 | T36: =SUM($S$13:S36) -> 0 | U36: 0 | V36: 0 | W36: =IF(I36=0,0,CONCATENATE(VLOOKUP(I36+"00:01",'データ '!K:M,3,TRUE),"/",$W$11)) -> 0
I37: 0 | K37: 0 | L37: 0 | M37: 0 | P37: 25 | Q37: =IF(A37="","",IF($A$13<>A37,"月が異なります！",IF(SUM($I$13:I37)>$S$7,"決定時間数を超過しています！",""))) ->  | R37: 0 | S37: 0 | T37: =SUM($S$13:S37) -> 0 | U37: 0 | V37: 0 | W37: =IF(I37=0,0,CONCATENATE(VLOOKUP(I37+"00:01",'データ '!K:M,3,TRUE),"/",$W$11)) -> 0
I38: 0 | K38: 0 | L38: 0 | M38: 0 | P38: 26 | Q38: =IF(A38="","",IF($A$13<>A38,"月が異なります！",IF(SUM($I$13:I38)>$S$7,"決定時間数を超過しています！",""))) ->  | R38: 0 | S38: 0 | T38: =SUM($S$13:S38) -> 0 | U38: 0 | V38: 0 | W38: =IF(I38=0,0,CONCATENATE(VLOOKUP(I38+"00:01",'データ '!K:M,3,TRUE),"/",$W$11)) -> 0
I39: 0 | K39: 0 | L39: 0 | M39: 0 | P39: 27 | Q39: =IF(A39="","",IF($A$13<>A39,"月が異なります！",IF(SUM($I$13:I39)>$S$7,"決定時間数を超過しています！",""))) ->  | R39: 0 | S39: 0 | T39: =SUM($S$13:S39) -> 0 | U39: 0 | V39: 0 | W39: =IF(I39=0,0,CONCATENATE(VLOOKUP(I39+"00:01",'データ '!K:M,3,TRUE),"/",$W$11)) -> 0
I40: 0 | K40: 0 | L40: 0 | M40: 0 | P40: 28 | Q40: =IF(A40="","",IF($A$13<>A40,"月が異なります！",IF(SUM($I$13:I40)>$S$7,"決定時間数を超過しています！",""))) ->  | R40: 0 | S40: 0 | T40: =SUM($S$13:S40) -> 0 | U40: 0 | V40: 0 | W40: =IF(I40=0,0,CONCATENATE(VLOOKUP(I40+"00:01",'データ '!K:M,3,TRUE),"/",$W$11)) -> 0
I41: 0 | K41: 0 | L41: 0 | M41: 0 | P41: 29 | Q41: =IF(A41="","",IF($A$13<>A41,"月が異なります！",IF(SUM($I$13:I41)>$S$7,"決定時間数を超過しています！",""))) ->  | R41: 0 | S41: 0 | T41: =SUM($S$13:S41) -> 0 | U41: 0 | V41: 0 | W41: =IF(I41=0,0,CONCATENATE(VLOOKUP(I41+"00:01",'データ '!K:M,3,TRUE),"/",$W$11)) -> 0
I42: 0 | K42: 0 | L42: 0 | M42: 0 | P42: 30 | Q42: =IF(A42="","",IF($A$13<>A42,"月が異なります！",IF(SUM($I$13:I42)>$S$7,"決定時間数を超過しています！",""))) ->  | R42: 0 | S42: 0 | T42: =SUM($S$13:S42) -> 0 | U42: 0 | V42: 0 | W42: =IF(I42=0,0,CONCATENATE(VLOOKUP(I42+"00:01",'データ '!K:M,3,TRUE),"/",$W$11)) -> 0
I43: 0 | K43: 0 | L43: 0 | M43: 0 | P43: 31 | Q43: =IF(A43="","",IF($A$13<>A43,"月が異なります！",IF(SUM($I$13:I43)>$S$7,"決定時間数を超過しています！",""))) ->  | R43: 0 | S43: 0 | T43: =SUM($S$13:S43) -> 0 | U43: 0 | V43: 0 | W43: =IF(I43=0,0,CONCATENATE(VLOOKUP(I43+"00:01",'データ '!K:M,3,TRUE),"/",$W$11)) -> 0
A44: 合計 | I44: =SUM(I13:I43) -> 0 | K44: =SUM(K13:K43) -> 0 | L44: =SUM(L13:L43) -> 0 | M44: =SUM(M13:M43) -> 0 | W44: =IF(I44>=$X$8,$Y$9,IF(AND(I44<$X$8,I44>=$X$7),$Y$8,IF(I44<$X$7,$Y$7)))&$W$11 -> 無
